Workbook

Sheet Assumptions (hidden)
A1: Assumptions and Factors — Title I Part C Migrant - Final
B2: Caution: Yellow Cells below drive are inputs into the calculations in this model
AF3: Row Headings on Allocation Table
A4: Funding | C4: Final 2021-22 | D4: Preliminary 2021-22 | E4: Final 2020-21 | F4: Preliminary 2020-21 | G4: Final 2019-20 | H4: Preliminary 2019-20 | I4: Final 2018-19 | J4: Preliminary 2018-19 | K4: Final 2017-18 | L4: Preliminary 2017-18 | M4: 2nd Rev Final 2016-17 | N4: Rev Final 2016-17 | O4: Final 2016-17 | P4: Final 2015-16 | Q4: Preliminary 2015-16 | R4: Final 2014-15 | S4: Preliminary 2014-15 | T4: Revised Final 2013-14 | U4: Final 2013-14 | V4: Final 2012-13 | W4: Preliminary 2012-13 | X4: Final 2011-12 | Y4: Preliminary 2011-12 | Z4: Final 2010-11 | AA4: Final 2009-10 | AB4: Final 2008-09 | AC4: Source:
B5: Total State Allocation | C5: 36172055 | D5: 36170767 | E5: 33650164 | F5: 32545772 | G5: 29253692 | H5: 28509499 | I5: 27865765 | J5: 26740196 | K5: 24667573 | L5: 24540413 | M5: 14921087 | N5: 14921087 | O5: 14921087 | P5: 14921087 | Q5: 14875015 | R5: 14875015 | S5: 14875015 | T5: 14839257 | U5: 14839257 | V5: 15628872 | W5: 15628872 | X5: 15659257 | Y5: 15659257 | Z5: 15691456 | AA5: 14450894 | AB5: 15015291
B6: State Allocation under $14B rule | C6: 29680217 | D6: 29680217 | E6: 28007581 | F6: 32545800 | G6: 23817704 | H6: 23834846 | I6: 21267203 | J6: 21267203 | K6: 13112612 | L6: 13104377 | M6: 13566765 | N6: 13616032 | O6: 13566765 | P6: 14077428 | Q6: 14055099 | R6: 14085411 | S6: 14041918 | T6: 14645076 | U6: 14645076 | V6: 14620622 | W6: 14620622 | X6: 14680941 | Y6: 14680941 | Z6: 14980942
A7: General Admin | B7: State Admin | C7: =ROUND(C6*0.01,0) -> 296802 | D7: =ROUND(D6*0.01,0) -> 296802 | E7: =ROUND(E6*0.01,0) -> 280076 | F7: =ROUND(F6*0.01,0) -> 325458 | G7: =ROUND(G6*0.01,0) -> 238177 | H7: 238348 | I7: 212672 | J7: 212672 | K7: 131126 | L7: 131044 | M7: 135668 | N7: =ROUND(N6*0.01,0) -> 136160 | O7: 135668 | P7: 140774 | Q7: 140551 | R7: 140854 | S7: 140419 | T7: 146451 | U7: =ROUND(U6*0.01,0) -> 146451 | V7: =ROUND(V6*0.01,0) -> 146206 | W7: =ROUND(W6*0.01,0) -> 146206 | X7: =ROUND(X6*0.01,0) -> 146809 | Y7: =ROUND(14680941*0.01,0) -> 146809 | Z7: =ROUND(14680942*0.01,0) -> 146809 | AA7: =ROUND(13563693*0.01,0) -> 135637 | AB7: =ROUND(14649429*0.01,0) -> 146494 | AC7: 0.01
B8: State Level Activities (Unallocated Balance) | C8: =C5-C7-C18-C24 -> 13087588 | D8: =D5-D7-D18-D24 -> 13086382 | E8: =E5-E7-E18-E24 -> 13179990 | F8: =F5-F7-F18-F24 -> 12692851 | G8: =G5-G7-G18-G24 -> 10935689 | H8: 11551691 | I8: 11233633 | J8: 10783406 | K8: 9920983 | L8: 12702535 | M8: =M5-M7-M18-M24 -> 3078585 | N8: 3078093 | O8: 4570694 | P8: 2999662 | Q8: 2953813 | R8: 3913523 | S8: 2273028 | T8: 14692806 | U8: 14692806 | V8: 15482666 | W8: 15482666 | X8: 15512448 | Y8: 15512448 | Z8: 15544647 | AA8: 14315257 | AB8: 536592
A10: Other Admin | B10: Director salary
B11: Regional Offices
B12: MSDS
B13: Other stakeholders
B15: Other Grants - not through formula | C15: 180000
B16: Summer Grants - Current Year | C16: 2278840 | D16: 2278758 | E16: 3365016 | F16: 3254577 | G16: 2978130 | H16: 2786577 | I16: 2486577 | J16: 2374020 | K16: 2281677 | L16: 1492109 | M16: 1492109 | N16: 1492109 | P16: 1565926 | Q16: 1565926 | R16: 1565926 | S16: 1565926 | T16: 1562887 | U16: 1562887 | W16: 1000000 | X16: 1000000 | Z16: 1550000 | AA16: 1200000 | AB16: 1200000
B17: Summer Grants - Prior Year Unspent Funds | S17: 75004
B18: Total | C18: =C16+C17 -> 2278840 | D18: =D16+D17 -> 2278758 | E18: =E16+E17 -> 3365016 | F18: 3254577 | G18: =G16+G17 -> 2978130 | H18: 2786577 | I18: =I16+I17 -> 2486577 | J18: 2374020 | K18: 2281677 | L18: 1492109 | M18: 1492109 | N18: 1492109 | P18: 1565926 | Q18: =Q16 -> 1565926 | S18: =SUM(S16:S17) -> 1640930
B19: Allocated per Worksheet
B20: Difference
B22: Total Regular Year Allocation - from Sylvia | C22: 20508825 | D22: 20508825 | E22: 16825082 | F22: 16272886 | G22: 15101696 | H22: 13932883 | I22: 13932883 | J22: 13370098 | K22: 12333787 | L22: 8952652 | M22: 8952652 | N22: 8952652 | O22: 8952652 | P22: 9470989 | Q22: 9470989 | R22: 9395554 | S22: 9395554 | T22: 9212323 | U22: 9212323 | V22: 11016189 | W22: 11016189 | X22: 11500000 | Y22: 11500000 | Z22: 11500000 | AA22: 10135000 | AB22: 9900000
B23: Regular Grants from Prior Year Unspent Funds | L23: 1262073 | M23: 1262073 | N23: 1262073 | O23: 1262073 | P23: 743736 | Q23: 743736 | R23: 1425084 | S23: 1425084 | V23: ='2012-13 FINAL'!N18 -> 11010766
B24: Total | C24: =SUM(C22:C23) -> 20508825 | D24: =SUM(D22:D23) -> 20508825 | E24: =SUM(E22:E23) -> 16825082 | F24: 16272886 | G24: =SUM(G22:G23) -> 15101696 | H24: 13932883 | I24: =SUM(I22:I23) -> 13932883 | J24: 13370098 | K24: 12333787 | L24: =SUM(L22:L23) -> 10214725 | M24: 10214725 | N24: =SUM(N22:N23) -> 10214725 | O24: 10214725 | P24: 10214725 | Q24: 10214725 | R24: 10820638 | S24: 10820638
B25: Allocated per Worksheet before MOE | C25: ='2021-22 Final'!N18 -> 20508825 | D25: ='2021-22 Prelim'!N18 -> 20508825 | E25: ='2020-21 Final'!N18 -> 16795507 | F25: ='2020-21 Prelim'!N18 -> 16272886 | G25: ='2019-20 Prelim'!N18 -> 13932883 | H25: ='2019-20 Prelim'!N18 -> 13932883 | I25: ='2018-19 Final'!N18 -> 13932883 | J25: ='2018-19 Prelim'!N18 -> 13370098 | K25: ='2017-18 Final'!N18 -> 12333787 | S25: ='2014-15 Preliminary'!N18 -> 10820638
B26: MOE Reduction | C26: ='2021-22 Prelim'!O18 -> 0 | D26: ='2021-22 Prelim'!P18 -> 0 | E26: ='2020-21 Final'!P18 -> 0 | F26: ='2020-21 Prelim'!P18 -> 0 | G26: ='2019-20 Prelim'!Q18 -> -57 | H26: ='2019-20 Prelim'!Q18 -> -57 | I26: ='2018-19 Final'!Q18 -> 0 | J26: ='2018-19 Final'!Q18 -> 0 | K26: ='2017-18 Final'!Q18 -> -1406
B27: Allocated per Worksheet after MOE | C27: =SUM(C25:C26) -> 20508825 | D27: =SUM(D25:D26) -> 20508825 | E27: 16795507 | F27: =SUM(F25:F26) -> 16272886 | G27: 13932826 | H27: 13932826 | I27: 13932883 | J27: 13370098 | K27: 12332381
B29: MERO Allocation - Sylvia to provide | G29: 2757777 | R29: 1619378 | S29: 1619378
B30: Allocated per Worksheet | S30: ='2014-15 MERO Prelim'!N18 -> 1409333
B31: Difference | S31: =+S29-S30 -> 210045
B35: Counter-do not change | W35: 1
B37: Summer:
B38: Amount per Pass Unit | W38: 90 | X38: 90
B39: Amount per Credits | W39: 900 | X39: 900
B42: Number of LEP child within the districts | U42: From Bilingual apportionment data
A43: DataSets: | B43: Native american students are also added. See above.
B48: Allocations
B52: Program Review (Sylvia Reyna)
A55: Other Fund Factor
A56: Min | D56: =SMALL('other funds ftr 2021 for 2122'!$H:$H,COUNTIF('other funds ftr 2021 for 2122'!$H:$H,0)+1) -> 0.002188352519 | F56: =SMALL('other funds ftr 1920 for 2021'!$H:$H,COUNTIF('other funds ftr 1920 for 2021'!$H:$H,0)+1) -> 0.002221895009 | H56: =SMALL('other funds ftr 1819 for 1920'!H:H,COUNTIF('other funds ftr 1819 for 1920'!H:H,0)+1) -> 0.001171979847 | J56: =SMALL('other funds ftr 1718 for 1819'!H:H,COUNTIF('other funds ftr 1718 for 1819'!H:H,0)+1) -> 0.002861193122
A57: < 20th Percentile | B57: 1.15 | D57: =PERCENTILE(IF('other funds ftr 2021 for 2122'!$H$2:$H$316,'other funds ftr 2021 for 2122'!$H$2:$H$316),0.2) -> 0.01465837103 | F57: =PERCENTILE(IF('other funds ftr 1920 for 2021'!$H$2:$H$311,'other funds ftr 1920 for 2021'!$H$2:$H$311),0.2) -> 0.01500003239 | H57: =PERCENTILE(IF('other funds ftr 1819 for 1920'!H2:H311,'other funds ftr 1819 for 1920'!H2:H311),0.2) -> 0.01565336724 | J57: =PERCENTILE(IF('other funds ftr 1718 for 1819'!H3:H297,'other funds ftr 1718 for 1819'!H3:H297),0.2) -> 0.01719687959
A58: < 40th Percentile | B58: 1.05 | D58: =PERCENTILE(IF('other funds ftr 2021 for 2122'!$H$2:$H$316,'other funds ftr 2021 for 2122'!$H$2:$H$316),0.4) -> 0.03612583652 | F58: =PERCENTILE(IF('other funds ftr 1920 for 2021'!$H$2:$H$311,'other funds ftr 1920 for 2021'!$H$2:$H$311),0.4) -> 0.03587724879 | H58: =PERCENTILE(IF('other funds ftr 1819 for 1920'!H2:H311,'other funds ftr 1819 for 1920'!H2:H311),0.4) -> 0.0370609667 | J58: =PERCENTILE(IF('other funds ftr 1718 for 1819'!H4:H298,'other funds ftr 1718 for 1819'!H4:H298),0.4) -> 0.03624933072
A59: < 60th Percentile | B59: 1 | D59: =PERCENTILE(IF('other funds ftr 2021 for 2122'!$H$2:$H$316,'other funds ftr 2021 for 2122'!$H$2:$H$316),0.6) -> 0.06122389074 | F59: =PERCENTILE(IF('other funds ftr 1920 for 2021'!$H$2:$H$311,'other funds ftr 1920 for 2021'!$H$2:$H$311),0.6) -> 0.06147968431 | H59: =PERCENTILE(IF('other funds ftr 1819 for 1920'!H2:H311,'other funds ftr 1819 for 1920'!H2:H311),0.6) -> 0.0597864668 | J59: =PERCENTILE(IF('other funds ftr 1718 for 1819'!H5:H299,'other funds ftr 1718 for 1819'!H5:H299),0.6) -> 0.05439831943
A60: < 80th Percentile | B60: 0.95 | D60: =PERCENTILE(IF('other funds ftr 2021 for 2122'!$H$2:$H$316,'other funds ftr 2021 for 2122'!$H$2:$H$316),0.8) -> 0.08981378184 | F60: =PERCENTILE(IF('other funds ftr 1920 for 2021'!$H$2:$H$311,'other funds ftr 1920 for 2021'!$H$2:$H$311),0.8) -> 0.09073752006 | H60: =PERCENTILE(IF('other funds ftr 1819 for 1920'!H2:H311,'other funds ftr 1819 for 1920'!H2:H311),0.8) -> 0.08792628225 | J60: =PERCENTILE(IF('other funds ftr 1718 for 1819'!H5:H299,'other funds ftr 1718 for 1819'!H5:H299),0.8) -> 0.07666408416
A61: < Max | B61: 0.85 | D61: =MAX('other funds ftr 2021 for 2122'!H:H) -> 0.1820660072 | F61: =MAX('other funds ftr 1920 for 2021'!H:H) -> 0.1624478805 | H61: =MAX('other funds ftr 1819 for 1920'!H:H) -> 0.1706049389 | J61: =MAX('other funds ftr 1718 for 1819'!H:H) -> 0.1237520479

Sheet District Rosetta (hidden)
A1: CCDDD | B1: District | C1: CODE
A2: 14005 | B2: ABERDEEN | C2: WAABER
A3: 21226 | B3: ADNA | C3: WAADNA
A4: 29103 | B4: ANACORTES | C4: WAANAC
A5: 31016 | B5: ARLINGTON | C5: WAARLI
A6: 17408 | B6: AUBURN | C6: WAAURN
A7: 18303 | B7: BAINBRIDGE ISLAND | C7: WABAIN
A8: 06119 | B8: BATTLE GROUND | C8: WABATT
A9: 37501 | B9: BELLINGHAM | C9: WABELH
A10: 17405 | B10: BELLEVUE | C10: WABELV
A11: 27403 | B11: BETHEL | C11: WABETH
A12: 20203 | B12: BICKLETON | C12: WABICK
A13: 37503 | B13: BLAINE | C13: WABLAN
A14: 21234 | B14: BOISTFORT | C14: WABOIS
A15: 18100 | B15: BREMERTON | C15: WABREM
A16: 24111 | B16: BREWSTER | C16: WABREW
A17: 09075 | B17: BRIDGEPORT | C17: WABRID
A18: 29100 | B18: BURLINGTON | C18: WABURL
A19: 06117 | B19: CAMAS | C19: WACAMA
A20: 05401 | B20: CAPE FLATTERY | C20: WACAPE
A21: 04228 | B21: CASCADE | C21: WACASC
A22: 04222 | B22: CASHMERE | C22: WACASH
A23: 08401 | B23: CASTLE ROCK | C23: WACAST
A24: 21401 | B24: CENTRALIA | C24: WACENT
A25: 32356 | B25: CENTRAL VALLEY | C25: WACENV
A26: 21302 | B26: CHEHALIS | C26: WACHEH
A27: 32360 | B27: CHENEY | C27: WACHEN
A28: 16049 | B28: CHIMACUM | C28: WACHIM
B29: HEP/CAMP | C29: WACHEP
B30: CHIEF LESCHI SCHOOLS | C30: WACHIE
A31: 02250 | B31: CLARKSTON | C31: WACLAK
A32: 19404 | B32: CLE ELUM | C32: WACLEE
A33: 27400 | B33: CLOVER PARK | C33: WACLOV
A34: 36250 | B34: COLLEGE PLACE | C34: WACOLL
A35: 36400 | B35: COLUMBIA | C35: WACOLU
A36: 29011 | B36: CONCRETE | C36: WACONC
A37: 29317 | B37: CONWAY | C37: WACONW
A38: 14099 | B38: COSMOPOLIS | C38: WACOSM
A39: 15204 | B39: COUPEVILLE | C39: WACOUP
A40: 31330 | B40: DARRINGTON | C40: WADARR
A41: 07002 | B41: DAYTON | C41: WADAYT
A42: 32414 | B42: DEER PARK | C42: WADEER
A43: 09206 | B43: EASTMONT | C43: WAEAST
A44: 39090 | B44: EAST VALLEY | C44: WAEASV
A45: 31015 | B45: EDMONDS | C45: WAEDMO
A46: 19401 | B46: ELLENSBURG | C46: WAELLE
A47: 14068 | B47: ELMA | C47: WAELMA
A48: 04127 | B48: ENTIAT | C48: WAENTI
A49: 17216 | B49: ENUMCLAW | C49: WAENUC
A50: 13165 | B50: EPHRATA | C50: WAEPHR
A51: 06114 | B51: EVERGREEN | C51: WAEVER
A52: 31002 | B52: EVERETT | C52: WAEVET
A53: 17210 | B53: FEDERAL WAY | C53: WAFEDW
A54: 37502 | B54: FERNDALE | C54: WAFERN
A55: 27417 | B55: FIFE | C55: WAFIFE
A56: 03053 | B56: FINLEY | C56: WAFINL
A57: 27402 | B57: FRANKLIN PIERCE | C57: WAFRAN
A58: 20401 | B58: GLENWOOD | C58: WAGLEN
A59: 20404 | B59: GOLDENDALE | C59: WAGOLD
A60: 13301 | B60: GRAND COULEE DAM | C60: WAGRAC
A61: 31332 | B61: GRANITE FALLS | C61: WAGRAF
A62: 39204 | B62: GRANGER | C62: WAGRAG
A63: 39200 | B63: GRANDVIEW | C63: WAGRAN
B64: HEP - HERITAGE | C64: WAHEPP
A65: 39203 | B65: HIGHLAND | C65: WAHIGH
A66: 17401 | B66: HIGHLINE | C66: WAHIGL
A67: 06098 | B67: HOCKINSON | C67: WAHOCK
A68: 23404 | B68: HOOD CANAL | C68: WAHOOD
A69: 14028 | B69: HOQUIAM | C69: WAHOQU
A70: 10070 | B70: INCHELIUM | C70: WAINCH
A71: 17411 | B71: ISSAQUAH | C71: WAISSA
A72: 11056 | B72: KAHLOTUS | C72: WAKAHL
A73: 08402 | B73: KALAMA | C73: WAKALA
A74: 08458 | B74: KELSO | C74: WAKELS
A75: 03017 | B75: KENNEWICK | C75: WAKENN
A76: 17415 | B76: KENT | C76: WAKENT
A77: 03052 | B77: KIONA BENTON | C77: WAKIBE
A78: 19403 | B78: KITTITAS | C78: WAKITT
A79: 20402 | B79: KLICKITAT | C79: WAKLIC
A80: 06101 | B80: LA CENTER | C80: WALACE
A81: 29311 | B81: LA CONNER | C81: WALACO
A82: 38126 | B82: LACROSSE | C82: WALACR
A83: 04129 | B83: LAKE CHELAN | C83: WALAKE
A84: 31004 | B84: LAKE STEVENS | C84: WALAKS
A85: 17414 | B85: LAKE WASHINGTON | C85: WALAKW
A86: 01158 | B86: LIND | C86: WALIND
A87: 31306 | B87: LAKEWOOD | C87: WALKWO
A88: 08122 | B88: LONGVIEW | C88: WALONG
A89: 28144 | B89: LOPEZ ISLAND | C89: WALOPE
B90: LUMMI TRIBAL SCHOOL | C90: WALUMM
A91: 20406 | B91: LYLE | C91: WALYLE
A92: 37504 | B92: LYNDEN | C92: WALYND
A93: 39120 | B93: MABTON | C93: WAMABT
A94: 09207 | B94: MANSFIELD | C94: WAMANF
A95: 04019 | B95: MANSON | C95: WAMANS
A96: 31025 | B96: MARYSVILLE | C96: WAMARV
A97: 33207 | B97: MARY WALKER | C97: WAMARW
A98: 14065 | B98: MCCLEARY | C98: WAMCRY
A99: 32354 | B99: MEAD | C99: WAMEAD
B100: AMEP | C100: WAMEP
A101: 37505 | B101: MERIDIAN | C101: WAMERI
A102: 24350 | B102: METHOW VALLEY | C102: WAMETH
A103: 31103 | B103: MONROE | C103: WAMONR
A104: 14066 | B104: MONTESANO | C104: WAMONT
A105: 21214 | B105: MORTON | C105: WAMORT
A106: 21206 | B106: MOSSYROCK | C106: WAMOSS
A107: 13161 | B107: MOSES LAKE | C107: WAMSLK
A108: 39209 | B108: MT ADAMS | C108: WAMTAD
A109: 37507 | B109: MT BAKER | C109: WAMTBK
A110: 29320 | B110: MOUNT VERNON | C110: WAMTVE
A111: 31006 | B111: MUKILTEO | C111: WAMUKL
A112: 39003 | B112: NACHES | C112: WANACH
A113: 21014 | B113: NAPAVINE | C113: WANAPA
A114: 25155 | B114: NASELLE-GRAYS RIVER | C114: WANASE
A115: 24014 | B115: NESPELEM | C115: WANESP
A116: 37506 | B116: NOOKSACK VALLEY | C116: WANOOK
A117: 14064 | B117: NORTH BEACH | C117: WANORB
A118: 34003 | B118: NORTH THURSTON | C118: WANORH
A119: 18400 | B119: NORTH KITSAP | C119: WANORK
A120: 23403 | B120: NORTH MASON | C120: WANORM
A121: 25200 | B121: NORTH RIVER | C121: WANORR
A122: 17417 | B122: NORTHSHORE | C122: WANORS
A123: 11051 | B123: NORTH FRANKLIN | C123: WANORT
A124: 38324 | B124: OAKESDALE | C124: WAOAKD
A125: 15201 | B125: OAK HARBOR | C125: WAOAKH
A126: 25101 | B126: OCEAN BEACH | C126: WAOCEA
A127: 14172 | B127: OCOSTA | C127: WAOCOS
A128: 22105 | B128: ODESSA | C128: WAODES
A129: 24105 | B129: OKANOGAN | C129: WAOKAN
A130: 34111 | B130: OLYMPIA | C130: WAOLYM
A131: 24019 | B131: OMAK | C131: WAOMAK
A132: 21300 | B132: ONALASKA | C132: WAONAL
A133: 09013 | B133: ORONDO | C133: WAORON
A134: 24410 | B134: OROVILLE | C134: WAOROV
A135: 27344 | B135: ORTING | C135: WAORTI
A136: 01147 | B136: OTHELLO | C136: WAOTHE
A137: 09102 | B137: PALISADES | C137: WAPALI
A138: 05121 | B138: PORT ANGELES | C138: WAPANG
A139: 11001 | B139: PASCO | C139: WAPASC
A140: 24122 | B140: PATEROS | C140: WAPATE
A141: 03050 | B141: PATERSON | C141: WAPATR
A142: 27401 | B142: PENINSULA | C142: WAPENN
A143: 23402 | B143: PIONEER | C143: WAPION
A144: 12110 | B144: POMEROY | C144: WAPOME
A145: 16050 | B145: PORT TOWNSEND | C145: WAPORT
A146: 36402 | B146: PRESCOTT | C146: WAPRES
A147: 03116 | B147: PROSSER | C147: WAPROS
A148: 38267 | B148: PULLMAN | C148: WAPULL
A149: 27003 | B149: PUYALLUP | C149: WAPUYA
A150: 16020 | B150: QUEETS-CLEARWATER | C150: WAQUET
A151: 16048 | B151: QUILCENE | C151: WAQUIC
A152: 05402 | B152: QUILLAYUTE VALLEY | C152: WAQUIL
A153: 13144 | B153: QUINCY | C153: WAQUIN
A154: 34307 | B154: LAKE QUINAULT | C154: WAQUIU
A155: 34307 | B155: RAINIER | C155: WARAIN
A156: 25116 | B156: RAYMOND | C156: WARAYM
A157: 17403 | B157: RENTON | C157: WARENT
A158: 03400 | B158: RICHLAND | C158: WARICH
A159: 06122 | B159: RIDGEFIELD | C159: WARIDG
A160: 01160 | B160: RITZVILLE | C160: WARITZ
A161: 32416 | B161: RIVERSIDE | C161: WARIVR
A162: 17407 | B162: RIVERVIEW | C162: WARIVW
A163: 34401 | B163: ROCHESTER | C163: WAROCH
A164: 20403 | B164: ROOSEVELT | C164: WAROOS
A165: 13160 | B165: ROYAL CITY | C165: WAROYA
A166: 28149 | B166: SAN JUAN ISLAND | C166: WASANJ
A167: 14104 | B167: SATSOP | C167: WASATS
A168: 17001 | B168: SEATTLE | C168: WASEAT
A169: 29101 | B169: SEDRO WOOLLEY | C169: WASEDR
A170: 39119 | B170: SELAH | C170: WASELA
A171: 05323 | B171: SEQUIM | C171: WASEQU
A172: 23309 | B172: SHELTON | C172: WASHEL
A173: 17412 | B173: SHORELINE | C173: WASHOR
A174: 31201 | B174: SNOHOMISH | C174: WASNOH
A175: 17410 | B175: SNOQUALMIE VALLEY | C175: WASNOQ
A176: 13156 | B176: SOAP LAKE | C176: WASOAP
A177: 17406 | B177: SOUTH CENTRAL | C177: WASOUC
A178: 25118 | B178: SOUTH BEND | C178: WASOUT
A179: 15206 | B179: SOUTH WHIDBEY | C179: WASOWH
A180: 23042 | B180: SOUTHSIDE | C180: WASSID
A181: 32081 | B181: SPOKANE | C181: WASPOK
A182: 14104 | B182: SATSOP | C182: WASSOP
A183: 31401 | B183: STANWOOD | C183: WASTAN
A184: 11054 | B184: STAR | C184: WASTAR
A185: 30303 | B185: STEVENSON-CARSON | C185: WASTEV
A186: 31311 | B186: SULTAN | C186: WASULT
A187: 27320 | B187: SUMNER | C187: WASUMN
A188: 39201 | B188: SUNNYSIDE | C188: WASUNN
A189: 27010 | B189: TACOMA | C189: WATACO
A190: 14077 | B190: TAHOLAH | C190: WATAHO
A191: 34402 | B191: TENINO | C191: WATENI
A192: 17409 | B192: TAHOMA | C192: WATHMA
A193: 19400 | B193: THORP | C193: WATHOR
A194: 21237 | B194: TOLEDO | C194: WATOLE
A195: 24404 | B195: TONASKET | C195: WATONK
A196: 39202 | B196: TOPPENISH | C196: WATOPP
A197: 36300 | B197: TOUCHET | C197: WATOUC
A198: 20400 | B198: TROUT LAKE | C198: WATOUL
A199: 08130 | B199: TOUTLE LAKE | C199: WATOUT
A200: 17406 | B200: TUKWILA | C200: WATUKW
... 26 more rows

Sheet District
V1: Do Not | AC1: Aberdeen
F2: District Name | G2: ABERDEEN | H2: <- Please select distrtict from this drop-down | V2: Change | AC2: Brewster
F3: CCDDD | G3: =VLOOKUP(G2,CCDDD!B:C,2,0) -> 14005 | H3: 2021-22 | J3: 2020-21 | L3: 2011-12 | N3: 2010-11 | P3: 2009-10 | R3: 2008-09 | T3: 2007-08 | AC3: Bridgeport
S4: %% | AC4: Burlington
H5: Final 2021-22 | I5: % of PY | J5: Final 2020-21 | L5: Prelim 2011-12 | M5: % of PY | N5: Final 2010-11 | O5: % of PY | P5: Final 2009-10 | Q5: % of PY | R5: =Assumptions!AB4 -> Final 2008-09 | S5: of Prior Year | T5: 2007-08 | AC5: Cascade
F6: Regular Allocation | AC6: Cashmere
B7: 2 | F7: K-12 Migrant Students | G7: Average Number | H7: =IFERROR(VLOOKUP($G$3,'2021-22 Final'!$B:$R,3,0),0) -> 130 | I7: =IFERROR(H7/J7-1,0) -> 0 | J7: =IFERROR(VLOOKUP($G$3,'2020-21 Final'!$B:$R,3,0),0) -> 130 | L7: =VLOOKUP($G$2,#REF!,$B7,FALSE) ->  | M7: =IF(N7=0,0,L7/N7) ->  | N7: =VLOOKUP($G$2,#REF!,$B7,FALSE) ->  | O7: =IF(P7>0,N7/P7,"-") ->  | P7: =VLOOKUP($G$2,#REF!,$B7,FALSE) ->  | Q7: =IF(R7>0,P7/R7,"-") ->  | R7: =VLOOKUP($G$2,#REF!,$B7,FALSE) ->  | S7: =IF(T7>0,R7/T7,"-") ->  | T7: =VLOOKUP($G$2,#REF!,$B7,FALSE) ->  | V7: 1 | W7: 3 | AC7: Centralia
B8: 3 | G8: Regular Dollars | H8: =IFERROR(VLOOKUP($G$3,'2021-22 Final'!$B:$R,4,0),0) -> 61169 | I8: 0.1748583501 | J8: =IFERROR(VLOOKUP($G$3,'2020-21 Final'!$B:$R,4,0),0) -> 52065 | L8: =VLOOKUP($G$2,#REF!,$B8,FALSE) ->  | N8: =VLOOKUP($G$2,#REF!,$B8,FALSE) ->  | O8: =IF(P8>0,N8/P8,"-") ->  | P8: =VLOOKUP($G$2,#REF!,$B8,FALSE) ->  | Q8: =IF(R8>0,P8/R8,"-") ->  | R8: =VLOOKUP($G$2,#REF!,$B8,FALSE) ->  | T8: =VLOOKUP($G$2,#REF!,$B8,FALSE) ->  | V8: 2 | W8: 3 | AC8: College Place
B9: 4 | F9: Needs Support | G9: Average Number | H9: =IFERROR(VLOOKUP($G$3,'2021-22 Final'!$B:$R,5,0),0) -> 30 | I9: 0 | J9: =IFERROR(VLOOKUP($G$3,'2020-21 Final'!$B:$R,5,0),0) -> 30 | L9: =VLOOKUP($G$2,#REF!,$B9,FALSE) ->  | M9: =IF(N9=0,0,L9/N9) ->  | N9: =VLOOKUP($G$2,#REF!,$B9,FALSE) ->  | P9: =VLOOKUP($G$2,#REF!,$B9,FALSE) ->  | R9: =VLOOKUP($G$2,#REF!,$B9,FALSE) ->  | T9: =VLOOKUP($G$2,#REF!,$B9,FALSE) ->  | V9: 1 | W9: 4 | AC9: Columbia
B10: 5 | G10: Regular Dollars | H10: =IFERROR(VLOOKUP($G$3,'2021-22 Final'!$B:$R,6,0),0) -> 3529 | I10: 0.1747669774 | J10: =IFERROR(VLOOKUP($G$3,'2020-21 Final'!$B:$R,6,0),0) -> 3004 | L10: =VLOOKUP($G$2,#REF!,$B10,FALSE) ->  | M10: =IF(N10=0,0,L10/N10) ->  | N10: =VLOOKUP($G$2,#REF!,$B10,FALSE) ->  | P10: =VLOOKUP($G$2,#REF!,$B10,FALSE) ->  | R10: =VLOOKUP($G$2,#REF!,$B10,FALSE) ->  | T10: =VLOOKUP($G$2,#REF!,$B10,FALSE) ->  | V10: 2 | W10: 4 | AC10: Conway
B11: 6 | F11: Priority Interruption | G11: Priority Number | H11: =IFERROR(VLOOKUP($G$3,'2021-22 Final'!$B:$R,7,0),0) -> 42 | I11: 0 | J11: =IFERROR(VLOOKUP($G$3,'2020-21 Final'!$B:$R,7,0),0) -> 42 | L11: =VLOOKUP($G$2,#REF!,$B11,FALSE) ->  | N11: =VLOOKUP($G$2,#REF!,$B11,FALSE) ->  | P11: =VLOOKUP($G$2,#REF!,$B11,FALSE) ->  | R11: =VLOOKUP($G$2,#REF!,$B11,FALSE) ->  | T11: =VLOOKUP($G$2,#REF!,$B11,FALSE) ->  | V11: 1 | W11: 5 | AC11: East Valley
B12: 7 | G12: Priority Dollars | H12: =IFERROR(VLOOKUP($G$3,'2021-22 Final'!$B:$R,8,0),0) -> 19762 | I12: 0.1748409726 | J12: =IFERROR(VLOOKUP($G$3,'2020-21 Final'!$B:$R,8,0),0) -> 16821 | L12: =VLOOKUP($G$2,#REF!,$B12,FALSE) ->  | N12: =VLOOKUP($G$2,#REF!,$B12,FALSE) ->  | P12: =VLOOKUP($G$2,#REF!,$B12,FALSE) ->  | R12: =VLOOKUP($G$2,#REF!,$B12,FALSE) ->  | T12: =VLOOKUP($G$2,#REF!,$B12,FALSE) ->  | V12: 3 | W12: 5 | AC12: Eastmont
B13: 8 | C13: Grades 1-5 | F13: Top 1/4 | G13: Attendance | I13: =H13/J13-1 ->  | N13: =VLOOKUP($G$2,#REF!,$B13,FALSE) ->  | P13: =VLOOKUP($G$2,#REF!,$B13,FALSE) ->  | R13: =VLOOKUP($G$2,#REF!,$B13,FALSE) ->  | T13: =VLOOKUP($G$2,#REF!,$B13,FALSE) ->  | V13: 1 | W13: 6 | AC13: Ellensburg
B14: 9 | G14: Dollars | N14: =VLOOKUP($G$2,#REF!,$B14,FALSE) ->  | P14: =VLOOKUP($G$2,#REF!,$B14,FALSE) ->  | R14: =VLOOKUP($G$2,#REF!,$B14,FALSE) ->  | T14: =VLOOKUP($G$2,#REF!,$B14,FALSE) ->  | V14: 4 | W14: 6 | AC14: Entiat
B15: 10 | F15: middle 2/4 | G15: Attendance | N15: =VLOOKUP($G$2,#REF!,$B15,FALSE) ->  | P15: =VLOOKUP($G$2,#REF!,$B15,FALSE) ->  | R15: =VLOOKUP($G$2,#REF!,$B15,FALSE) ->  | T15: =VLOOKUP($G$2,#REF!,$B15,FALSE) ->  | V15: 1 | W15: 7 | AC15: Ephrata
B16: 11 | G16: Dollars | N16: =VLOOKUP($G$2,#REF!,$B16,FALSE) ->  | P16: =VLOOKUP($G$2,#REF!,$B16,FALSE) ->  | R16: =VLOOKUP($G$2,#REF!,$B16,FALSE) ->  | T16: =VLOOKUP($G$2,#REF!,$B16,FALSE) ->  | V16: 4 | W16: 7 | AC16: Ferndale
B17: 12 | C17: Grades 6-8 | F17: Top 1/4 | G17: Attendance | N17: =VLOOKUP($G$2,#REF!,$B17,FALSE) ->  | P17: =VLOOKUP($G$2,#REF!,$B17,FALSE) ->  | R17: =VLOOKUP($G$2,#REF!,$B17,FALSE) ->  | T17: =VLOOKUP($G$2,#REF!,$B17,FALSE) ->  | V17: 1 | W17: 8 | AC17: Finley
B18: 13 | G18: Dollars | N18: =VLOOKUP($G$2,#REF!,$B18,FALSE) ->  | P18: =VLOOKUP($G$2,#REF!,$B18,FALSE) ->  | R18: =VLOOKUP($G$2,#REF!,$B18,FALSE) ->  | T18: =VLOOKUP($G$2,#REF!,$B18,FALSE) ->  | V18: 4 | W18: 8 | AC18: Goldendale
B19: 14 | F19: middle 2/4 | G19: Attendance | N19: =VLOOKUP($G$2,#REF!,$B19,FALSE) ->  | P19: =VLOOKUP($G$2,#REF!,$B19,FALSE) ->  | R19: =VLOOKUP($G$2,#REF!,$B19,FALSE) ->  | T19: =VLOOKUP($G$2,#REF!,$B19,FALSE) ->  | V19: 1 | W19: 9 | AC19: Grandview
B20: 15 | G20: Dollars | N20: =VLOOKUP($G$2,#REF!,$B20,FALSE) ->  | P20: =VLOOKUP($G$2,#REF!,$B20,FALSE) ->  | R20: =VLOOKUP($G$2,#REF!,$B20,FALSE) ->  | T20: =VLOOKUP($G$2,#REF!,$B20,FALSE) ->  | V20: 4 | W20: 9 | AC20: Granger
B21: 16 | C21: Grades 9-12 | F21: Top 1/4 | G21: Attendance | N21: =VLOOKUP($G$2,#REF!,$B21,FALSE) ->  | P21: =VLOOKUP($G$2,#REF!,$B21,FALSE) ->  | R21: =VLOOKUP($G$2,#REF!,$B21,FALSE) ->  | T21: =VLOOKUP($G$2,#REF!,$B21,FALSE) ->  | V21: 1 | W21: 10 | AC21: Highland
B22: 17 | G22: Dollars | N22: =VLOOKUP($G$2,#REF!,$B22,FALSE) ->  | P22: =VLOOKUP($G$2,#REF!,$B22,FALSE) ->  | R22: =VLOOKUP($G$2,#REF!,$B22,FALSE) ->  | T22: =VLOOKUP($G$2,#REF!,$B22,FALSE) ->  | V22: 4 | W22: 10 | AC22: Hoquiam
B23: 18 | F23: middle 2/4 | G23: Attendance | N23: =VLOOKUP($G$2,#REF!,$B23,FALSE) ->  | P23: =VLOOKUP($G$2,#REF!,$B23,FALSE) ->  | R23: =VLOOKUP($G$2,#REF!,$B23,FALSE) ->  | T23: =VLOOKUP($G$2,#REF!,$B23,FALSE) ->  | V23: 1 | W23: 11 | AC23: Kennewick
B24: 19 | G24: Dollars | N24: =VLOOKUP($G$2,#REF!,$B24,FALSE) ->  | P24: =VLOOKUP($G$2,#REF!,$B24,FALSE) ->  | R24: =VLOOKUP($G$2,#REF!,$B24,FALSE) ->  | T24: =VLOOKUP($G$2,#REF!,$B24,FALSE) ->  | V24: 4 | W24: 11 | AC24: Kiona Benton
B26: 20 | G26: Subtotal Dollars | H26: =IFERROR(VLOOKUP($G$3,'2021-22 Final'!$B:$R,9,0),0) -> 84460 | I26: =IFERROR(H26/J26-1,0) -> 0.174850466 | J26: =IFERROR(VLOOKUP($G$3,'2020-21 Final'!$B:$R,9,0),0) -> 71890 | L26: =VLOOKUP($G$2,#REF!,8,FALSE) ->  | N26: =VLOOKUP($G$2,#REF!,$B26,FALSE) ->  | P26: =VLOOKUP($G$2,#REF!,$B26,FALSE) ->  | R26: =VLOOKUP($G$2,#REF!,$B26,FALSE) ->  | T26: =VLOOKUP($G$2,#REF!,$B26,FALSE) ->  | AC26: La Conner
B28: 21 | F28: Other Fund Factor | H28: =IFERROR(VLOOKUP($G$3,'2021-22 Final'!$B:$R,10,0),0) -> 0.95 | I28: =IFERROR(H28/J28-1,0) -> 0 | J28: =IFERROR(VLOOKUP($G$3,'2020-21 Final'!$B:$R,10,0),0) -> 0.95 | L28: N/A | N28: =VLOOKUP($G$2,#REF!,$B28,FALSE) ->  | P28: =VLOOKUP($G$2,#REF!,$B28,FALSE) ->  | R28: =VLOOKUP($G$2,#REF!,$B28,FALSE) ->  | T28: =VLOOKUP($G$2,#REF!,$B28,FALSE) ->  | V28: 1 | W28: 12 | AC28: Lake Chelan
B29: 22 | F29: Rural Factor | H29: =IFERROR(VLOOKUP($G$3,'2021-22 Final'!$B:$R,12,0),0) -> 1.1 | I29: =IFERROR(H29/J29-1,0) -> 0 | J29: =IFERROR(VLOOKUP($G$3,'2020-21 Final'!$B:$R,12,0),0) -> 1.1 | N29: =VLOOKUP($G$2,#REF!,$B29,FALSE) ->  | P29: =VLOOKUP($G$2,#REF!,$B29,FALSE) ->  | R29: =VLOOKUP($G$2,#REF!,$B29,FALSE) ->  | T29: =VLOOKUP($G$2,#REF!,$B29,FALSE) ->  | V29: 2 | W29: 12 | AC29: Lake Quinault
B30: 23 | G30: Total Allocated Amount | H30: =IFERROR(VLOOKUP($G$3,'2021-22 Final'!$B:$R,17,0),0) -> 88261 | I30: =IFERROR(H30/J30-1,0) -> 0.1748396028 | J30: =IFERROR(VLOOKUP($G$3,'2020-21 Final'!$B:$R,17,0),0) -> 75126 | L30: =VLOOKUP($G$2,#REF!,9,FALSE) ->  | M30: =IF(N30=0,0,L30/N30) ->  | N30: =VLOOKUP($G$2,#REF!,$B30,FALSE) ->  | P30: =VLOOKUP($G$2,#REF!,$B30,FALSE) ->  | R30: =VLOOKUP($G$2,#REF!,$B30,FALSE) ->  | T30: =VLOOKUP($G$2,#REF!,$B30,FALSE) ->  | V30: 25 | AC30: Lind
L31: =IF(VLOOKUP($G$3,#REF!,15,FALSE)="Y","Not participating","") ->  | N31: =IF(VLOOKUP($G$3,#REF!,29,FALSE)="Y","Not participating","") ->  | AC31: Lynden
F32: Summer Allocation | AC32: Mabton
F33: Allocation Factors | G33: Total Student | J33: =IFERROR(VLOOKUP($G$3,'Summer 2021'!A:K,4,0),0) -> 130 | N33: =IF(ISNA(VLOOKUP($G$2,#REF!,V33,FALSE)),0,VLOOKUP($G$2,#REF!,V33,FALSE)) ->  | P33: =IF(ISNA(VLOOKUP($G$2,#REF!,X33,FALSE)),0,VLOOKUP($G$2,#REF!,X33,FALSE)) ->  | R33: =IF(ISNA(VLOOKUP($G$2,#REF!,$V$33,FALSE)),0,VLOOKUP($G$2,#REF!,$V$33,FALSE)) ->  | T33: =IF(ISNA(VLOOKUP($G$2,#REF!,X33,FALSE)),0,VLOOKUP($G$2,#REF!,X33,FALSE)) ->  | V33: 2 | X33: 2 | AC33: Manson
G34: Needs Service | J34: =IFERROR(VLOOKUP($G$3,'Summer 2021'!A:K,6,0),0) -> 30 | N34: =IF(ISNA(VLOOKUP($G$2,#REF!,$X$34,FALSE)),0,VLOOKUP($G$2,#REF!,$X$34,FALSE)) ->  | P34: =IF(ISNA(VLOOKUP($G$2,#REF!,$X$34,FALSE)),0,VLOOKUP($G$2,#REF!,$X$34,FALSE)) ->  | R34: =IF(ISNA(VLOOKUP($G$2,#REF!,$V$34,FALSE)),0,VLOOKUP($G$2,#REF!,$V$34,FALSE)) ->  | T34: =IF(ISNA(VLOOKUP($G$2,#REF!,X34,FALSE)),0,VLOOKUP($G$2,#REF!,X34,FALSE)) ->  | V34: 3 | X34: 3 | AC34: Monroe
G35: Priority | J35: =IFERROR(VLOOKUP($G$3,'Summer 2021'!A:K,8,0),0) -> 42 | N35: =IF(ISNA(VLOOKUP($G$2,#REF!,$X$35,FALSE)),0,VLOOKUP($G$2,#REF!,$X$35,FALSE)) ->  | P35: =IF(ISNA(VLOOKUP($G$2,#REF!,$X$35,FALSE)),0,VLOOKUP($G$2,#REF!,$X$35,FALSE)) ->  | R35: =IF(ISNA(VLOOKUP($G$2,#REF!,$V$35,FALSE)),0,VLOOKUP($G$2,#REF!,$V$35,FALSE)) ->  | T35: =IF(ISNA(VLOOKUP($G$2,#REF!,X35,FALSE)),0,VLOOKUP($G$2,#REF!,X35,FALSE)) ->  | V35: 4 | X35: 4 | AC35: Moses Lake
F36: Dollars | J36: =IFERROR(VLOOKUP($G$3,'Summer 2021'!A:V,22,0),0) -> 10162 | N36: =IF(ISNA(VLOOKUP($G$2,#REF!,$X$36,FALSE)),0,VLOOKUP($G$2,#REF!,$X$36,FALSE)) ->  | P36: =IF(ISNA(VLOOKUP($G$2,#REF!,$X$36,FALSE)),0,VLOOKUP($G$2,#REF!,$X$36,FALSE)) ->  | R36: =IF(ISNA(VLOOKUP($G$2,#REF!,$V$36,FALSE)),0,VLOOKUP($G$2,#REF!,$V$36,FALSE)) ->  | T36: =IF(ISNA(VLOOKUP($G$2,#REF!,X36,FALSE)),0,VLOOKUP($G$2,#REF!,X36,FALSE)) ->  | V36: 5 | X36: 5 | AC36: Mossyrock
N37: =IF(ISNA(VLOOKUP($G$2,#REF!,$X$37,FALSE)),0,VLOOKUP($G$2,#REF!,$X$37,FALSE)) ->  | P37: =IF(ISNA(VLOOKUP($G$2,#REF!,$X$37,FALSE)),0,VLOOKUP($G$2,#REF!,$X$37,FALSE)) ->  | R37: =IF(ISNA(VLOOKUP($G$2,#REF!,$V$37,FALSE)),0,VLOOKUP($G$2,#REF!,$V$37,FALSE)) ->  | T37: =IF(ISNA(VLOOKUP($G$2,#REF!,X37,FALSE)),0,VLOOKUP($G$2,#REF!,X37,FALSE)) ->  | V37: 6 | X37: 6 | AC37: Mount Vernon
F38: SY 21-22 Health Support Grant | H38: =IFERROR(VLOOKUP($G$3,'2021-22 Final'!$B:$X,22,0),0) -> 2500 | N38: =IF(ISNA(VLOOKUP($G$2,#REF!,$X$38,FALSE)),0,VLOOKUP($G$2,#REF!,$X$38,FALSE)) ->  | P38: =IF(ISNA(VLOOKUP($G$2,#REF!,$X$38,FALSE)),0,VLOOKUP($G$2,#REF!,$X$38,FALSE)) ->  | R38: =IF(ISNA(VLOOKUP($G$2,#REF!,$V$38,FALSE)),0,VLOOKUP($G$2,#REF!,$V$38,FALSE)) ->  | T38: =IF(ISNA(VLOOKUP($G$2,#REF!,X38,FALSE)),0,VLOOKUP($G$2,#REF!,X38,FALSE)) ->  | V38: 7 | X38: 7 | AC38: Mt Adams
G39: Total Allocated Amount | H39: =H38+H30 -> 90761 | N39: =IF(ISNA(VLOOKUP($G$2,#REF!,$X$39,FALSE)),0,VLOOKUP($G$2,#REF!,$X$39,FALSE)) ->  | P39: =IF(ISNA(VLOOKUP($G$2,#REF!,$X$39,FALSE)),0,VLOOKUP($G$2,#REF!,$X$39,FALSE)) ->  | R39: =IF(ISNA(VLOOKUP($G$2,#REF!,$V$39,FALSE)),0,VLOOKUP($G$2,#REF!,$V$39,FALSE)) ->  | S39: =IF(T39>0,R39/T39,"-") ->  | T39: =IF(ISNA(VLOOKUP($G$2,#REF!,X39,FALSE)),0,VLOOKUP($G$2,#REF!,X39,FALSE)) ->  | V39: 8 | X39: 8 | AC39: Naches
AC40: Naselle-Grays River
AC41: Nooksack Valley
AC42: North Franklin
AC43: Ocean Beach
AC44: Ocosta
AC45: Okanogan
AC46: Omak
AC47: Orondo
AC48: Oroville
AC49: Othello
AC50: Palisades
AC51: Pasco
AC52: Pateros
AC53: Paterson
AC54: Prosser
AC55: Quillayute Valley
AC56: Quincy
AC57: Rochester
AC58: Roosevelt
AC59: Royal City
AC60: Seattle
AC61: Sedro Woolley
AC62: Shelton
AC63: Soap Lake
AC64: South Bend
AC65: Sunnyside
AC66: Tacoma
AC67: Tonasket
AC68: Toppenish
AC69: Touchet
AC70: Union Gap
AC71: Vancouver
AC72: Wahkiakum
AC73: Wahluke
AC74: Walla Walla
AC75: Wapato
AC76: Warden
AC77: Waterville
AC78: Wenatchee
AC79: West Valley
AC80: White Salmon
AC81: Winlock
AC82: Yakima
AC83: Zillah

Sheet iGRANTS (hidden)
B2: ="Title I C "&Assumptions!C4&" Allocations" -> Title I C Final 2021-22 Allocations
D4: =SUM(D8:D314) -> 20383154 | I4: =D4+I8 -> 20696825
D6: 2021-22 FP 206 | I6: 2021-22 FP 657
B7: CoDistID | C7: District | D7: Allocation | G7: CoDistID | H7: District | I7: Allocation
B8: 14005 | C8: ABERDEEN | D8: =_xlfn.IFNA(VLOOKUP(B8,'2021-22 Final'!B:X,23,0),0) -> 90761 | G8: 11801 | H8: ESD 123 | I8: 313671
B9: 31016 | C9: ARLINGTON | D9: =_xlfn.IFNA(VLOOKUP(B9,'2021-22 Final'!B:X,23,0),0) -> 0
B10: 17408 | C10: AUBURN | D10: =_xlfn.IFNA(VLOOKUP(B10,'2021-22 Final'!B:X,23,0),0) -> 0
B11: 06119 | C11: BATTLE GROUND | D11: =_xlfn.IFNA(VLOOKUP(B11,'2021-22 Final'!B:X,23,0),0) -> 0
B12: 37501 | C12: BELLINGHAM | D12: =_xlfn.IFNA(VLOOKUP(B12,'2021-22 Final'!B:X,23,0),0) -> 0
B13: 37503 | C13: BLAINE | D13: =_xlfn.IFNA(VLOOKUP(B13,'2021-22 Final'!B:X,23,0),0) -> 0
B14: 18100 | C14: BREMERTON | D14: =_xlfn.IFNA(VLOOKUP(B14,'2021-22 Final'!B:X,23,0),0) -> 0
B15: 24111 | C15: BREWSTER | D15: =_xlfn.IFNA(VLOOKUP(B15,'2021-22 Final'!B:X,23,0),0) -> 166354
B16: 09075 | C16: BRIDGEPORT | D16: =_xlfn.IFNA(VLOOKUP(B16,'2021-22 Final'!B:X,23,0),0) -> 154534
B17: 29100 | C17: BURLINGTON-EDISON | D17: =_xlfn.IFNA(VLOOKUP(B17,'2021-22 Final'!B:X,23,0),0) -> 208456
B18: 04228 | C18: CASCADE | D18: =_xlfn.IFNA(VLOOKUP(B18,'2021-22 Final'!B:X,23,0),0) -> 43424
B19: 04222 | C19: CASHMERE | D19: =_xlfn.IFNA(VLOOKUP(B19,'2021-22 Final'!B:X,23,0),0) -> 168079
B20: 18401 | C20: CENTRAL KITSAP | D20: =_xlfn.IFNA(VLOOKUP(B20,'2021-22 Final'!B:X,23,0),0) -> 0
B21: 32356 | C21: CENTRAL VALLEY | D21: =_xlfn.IFNA(VLOOKUP(B21,'2021-22 Final'!B:X,23,0),0) -> 0
B22: 21401 | C22: CENTRALIA | D22: =_xlfn.IFNA(VLOOKUP(B22,'2021-22 Final'!B:X,23,0),0) -> 61552
B23: 21302 | C23: CHEHALIS | D23: =_xlfn.IFNA(VLOOKUP(B23,'2021-22 Final'!B:X,23,0),0) -> 22097
B24: 27901 | C24: CHIEF LESCHI TRIBAL | D24: =_xlfn.IFNA(VLOOKUP(B24,'2021-22 Final'!B:X,23,0),0) -> 8087
B25: 29317 | C25: CONWAY | D25: =_xlfn.IFNA(VLOOKUP(B25,'2021-22 Final'!B:X,23,0),0) -> 26391
B26: 15204 | C26: COUPEVILLE | D26: =_xlfn.IFNA(VLOOKUP(B26,'2021-22 Final'!B:X,23,0),0) -> 8599
B27: 39090 | C27: EAST VALLEY | D27: =_xlfn.IFNA(VLOOKUP(B27,'2021-22 Final'!B:X,23,0),0) -> 0
B28: 09206 | C28: EASTMONT | D28: =_xlfn.IFNA(VLOOKUP(B28,'2021-22 Final'!B:X,23,0),0) -> 605515
B29: 31015 | C29: EDMONDS | D29: =_xlfn.IFNA(VLOOKUP(B29,'2021-22 Final'!B:X,23,0),0) -> 0
B30: 19401 | C30: ELLENSBURG | D30: =_xlfn.IFNA(VLOOKUP(B30,'2021-22 Final'!B:X,23,0),0) -> 31897
B31: 14068 | C31: ELMA | D31: =_xlfn.IFNA(VLOOKUP(B31,'2021-22 Final'!B:X,23,0),0) -> 0
B32: 04127 | C32: ENTIAT | D32: =_xlfn.IFNA(VLOOKUP(B32,'2021-22 Final'!B:X,23,0),0) -> 0
B33: 13165 | C33: EPHRATA | D33: =_xlfn.IFNA(VLOOKUP(B33,'2021-22 Final'!B:X,23,0),0) -> 138948
B34: 31002 | C34: EVERETT | D34: =_xlfn.IFNA(VLOOKUP(B34,'2021-22 Final'!B:X,23,0),0) -> 0
B35: 06114 | C35: EVERGREEN | D35: =_xlfn.IFNA(VLOOKUP(B35,'2021-22 Final'!B:X,23,0),0) -> 0
B36: 17210 | C36: FEDERAL WAY | D36: =_xlfn.IFNA(VLOOKUP(B36,'2021-22 Final'!B:X,23,0),0) -> 0
B37: 37502 | C37: FERNDALE | D37: =_xlfn.IFNA(VLOOKUP(B37,'2021-22 Final'!B:X,23,0),0) -> 107099
B38: 27402 | C38: FRANKLIN PIERCE | D38: =_xlfn.IFNA(VLOOKUP(B38,'2021-22 Final'!B:X,23,0),0) -> 0
B39: 20404 | C39: GOLDENDALE | D39: =_xlfn.IFNA(VLOOKUP(B39,'2021-22 Final'!B:X,23,0),0) -> 57917
B40: 13301 | C40: GRAND COULEE DAM | D40: =_xlfn.IFNA(VLOOKUP(B40,'2021-22 Final'!B:X,23,0),0) -> 0
B41: 39200 | C41: GRANDVIEW | D41: =_xlfn.IFNA(VLOOKUP(B41,'2021-22 Final'!B:X,23,0),0) -> 415868
B42: 39204 | C42: GRANGER | D42: =_xlfn.IFNA(VLOOKUP(B42,'2021-22 Final'!B:X,23,0),0) -> 291899
B43: 39203 | C43: HIGHLAND | D43: =_xlfn.IFNA(VLOOKUP(B43,'2021-22 Final'!B:X,23,0),0) -> 128608
B44: 17401 | C44: HIGHLINE | D44: =_xlfn.IFNA(VLOOKUP(B44,'2021-22 Final'!B:X,23,0),0) -> 0
B45: 23404 | C45: HOOD CANAL | D45: =_xlfn.IFNA(VLOOKUP(B45,'2021-22 Final'!B:X,23,0),0) -> 0
B46: 14028 | C46: HOQUIAM | D46: =_xlfn.IFNA(VLOOKUP(B46,'2021-22 Final'!B:X,23,0),0) -> 0
B47: 08458 | C47: KELSO | D47: =_xlfn.IFNA(VLOOKUP(B47,'2021-22 Final'!B:X,23,0),0) -> 0
B48: 03017 | C48: KENNEWICK | D48: =_xlfn.IFNA(VLOOKUP(B48,'2021-22 Final'!B:X,23,0),0) -> 2112512
B49: 17415 | C49: KENT | D49: =_xlfn.IFNA(VLOOKUP(B49,'2021-22 Final'!B:X,23,0),0) -> 0
B50: 03052 | C50: KIONA BENTON | D50: =_xlfn.IFNA(VLOOKUP(B50,'2021-22 Final'!B:X,23,0),0) -> 265479
B51: 19403 | C51: KITTITAS | D51: =_xlfn.IFNA(VLOOKUP(B51,'2021-22 Final'!B:X,23,0),0) -> 0
B52: 29311 | C52: LA CONNER | D52: =_xlfn.IFNA(VLOOKUP(B52,'2021-22 Final'!B:X,23,0),0) -> 140483
B53: 04129 | C53: LAKE CHELAN | D53: =_xlfn.IFNA(VLOOKUP(B53,'2021-22 Final'!B:X,23,0),0) -> 153188
B54: 34307 | C54: LAKE QUINAULT | D54: =_xlfn.IFNA(VLOOKUP(B54,'2021-22 Final'!B:X,23,0),0) -> 0
B55: 01158 | C55: LIND | D55: =_xlfn.IFNA(VLOOKUP(B55,'2021-22 Final'!B:X,23,0),0) -> 35454
B56: 08122 | C56: LONGVIEW | D56: =_xlfn.IFNA(VLOOKUP(B56,'2021-22 Final'!B:X,23,0),0) -> 0
B57: 37903 | C57: LUMMI TRIBAL AGENCY | D57: =_xlfn.IFNA(VLOOKUP(B57,'2021-22 Final'!B:X,23,0),0) -> 10440
B58: 20406 | C58: LYLE | D58: =_xlfn.IFNA(VLOOKUP(B58,'2021-22 Final'!B:X,23,0),0) -> 0
B59: 37504 | C59: LYNDEN | D59: =_xlfn.IFNA(VLOOKUP(B59,'2021-22 Final'!B:X,23,0),0) -> 115192
B60: 39120 | C60: MABTON | D60: =_xlfn.IFNA(VLOOKUP(B60,'2021-22 Final'!B:X,23,0),0) -> 292225
B61: 04019 | C61: MANSON | D61: =_xlfn.IFNA(VLOOKUP(B61,'2021-22 Final'!B:X,23,0),0) -> 65198
B62: 31025 | C62: MARYSVILLE | D62: =_xlfn.IFNA(VLOOKUP(B62,'2021-22 Final'!B:X,23,0),0) -> 133183
B63: 37505 | C63: MERIDIAN | D63: =_xlfn.IFNA(VLOOKUP(B63,'2021-22 Final'!B:X,23,0),0) -> 0
B64: 31103 | C64: MONROE | D64: =_xlfn.IFNA(VLOOKUP(B64,'2021-22 Final'!B:X,23,0),0) -> 0
B65: 13161 | C65: MOSES LAKE | D65: =_xlfn.IFNA(VLOOKUP(B65,'2021-22 Final'!B:X,23,0),0) -> 305169
B66: 21206 | C66: MOSSYROCK | D66: =_xlfn.IFNA(VLOOKUP(B66,'2021-22 Final'!B:X,23,0),0) -> 33796
B67: 29320 | C67: MOUNT VERNON | D67: =_xlfn.IFNA(VLOOKUP(B67,'2021-22 Final'!B:X,23,0),0) -> 1201611
B68: 39209 | C68: MT ADAMS | D68: =_xlfn.IFNA(VLOOKUP(B68,'2021-22 Final'!B:X,23,0),0) -> 106276
B69: 37507 | C69: MT BAKER | D69: =_xlfn.IFNA(VLOOKUP(B69,'2021-22 Final'!B:X,23,0),0) -> 27397
B70: 17903 | C70: MUCKLESHOOT TRIBAL SCHOOL | D70: =_xlfn.IFNA(VLOOKUP(B70,'2021-22 Final'!B:X,23,0),0) -> 16557
B71: 31006 | C71: MUKILTEO | D71: =_xlfn.IFNA(VLOOKUP(B71,'2021-22 Final'!B:X,23,0),0) -> 0
B72: 39003 | C72: NACHES VALLEY | D72: =_xlfn.IFNA(VLOOKUP(B72,'2021-22 Final'!B:X,23,0),0) -> 0
B73: 25155 | C73: NASELLE-GRAYS RIVER | D73: =_xlfn.IFNA(VLOOKUP(B73,'2021-22 Final'!B:X,23,0),0) -> 51011
B74: 24014 | C74: NESPELEM | D74: =_xlfn.IFNA(VLOOKUP(B74,'2021-22 Final'!B:X,23,0),0) -> 26556
B75: 37506 | C75: NOOKSACK VALLEY | D75: =_xlfn.IFNA(VLOOKUP(B75,'2021-22 Final'!B:X,23,0),0) -> 113898
B76: 14064 | C76: NORTH BEACH | D76: =_xlfn.IFNA(VLOOKUP(B76,'2021-22 Final'!B:X,23,0),0) -> 15299
B77: 11051 | C77: NORTH FRANKLIN | D77: =_xlfn.IFNA(VLOOKUP(B77,'2021-22 Final'!B:X,23,0),0) -> 578835
B78: 18400 | C78: NORTH KITSAP | D78: =_xlfn.IFNA(VLOOKUP(B78,'2021-22 Final'!B:X,23,0),0) -> 0
B79: 34003 | C79: NORTH THURSTON | D79: =_xlfn.IFNA(VLOOKUP(B79,'2021-22 Final'!B:X,23,0),0) -> 0
B80: 15201 | C80: OAK HARBOR | D80: =_xlfn.IFNA(VLOOKUP(B80,'2021-22 Final'!B:X,23,0),0) -> 0
B81: 25101 | C81: OCEAN BEACH | D81: =_xlfn.IFNA(VLOOKUP(B81,'2021-22 Final'!B:X,23,0),0) -> 35919
B82: 14172 | C82: OCOSTA | D82: =_xlfn.IFNA(VLOOKUP(B82,'2021-22 Final'!B:X,23,0),0) -> 39731
B83: 24105 | C83: OKANOGAN | D83: =_xlfn.IFNA(VLOOKUP(B83,'2021-22 Final'!B:X,23,0),0) -> 0
B84: 34111 | C84: OLYMPIA | D84: =_xlfn.IFNA(VLOOKUP(B84,'2021-22 Final'!B:X,23,0),0) -> 17998
B85: 24019 | C85: OMAK | D85: =_xlfn.IFNA(VLOOKUP(B85,'2021-22 Final'!B:X,23,0),0) -> 0
B86: 09013 | C86: ORONDO | D86: =_xlfn.IFNA(VLOOKUP(B86,'2021-22 Final'!B:X,23,0),0) -> 57640
B87: 24410 | C87: OROVILLE | D87: =_xlfn.IFNA(VLOOKUP(B87,'2021-22 Final'!B:X,23,0),0) -> 0
B88: 01147 | C88: OTHELLO | D88: =_xlfn.IFNA(VLOOKUP(B88,'2021-22 Final'!B:X,23,0),0) -> 730609
B89: 11001 | C89: PASCO | D89: =_xlfn.IFNA(VLOOKUP(B89,'2021-22 Final'!B:X,23,0),0) -> 1226204
B90: 24122 | C90: PATEROS | D90: =_xlfn.IFNA(VLOOKUP(B90,'2021-22 Final'!B:X,23,0),0) -> 47818
B91: 03050 | C91: PATERSON | D91: =_xlfn.IFNA(VLOOKUP(B91,'2021-22 Final'!B:X,23,0),0) -> 16446
B92: 03116 | C92: PROSSER | D92: =_xlfn.IFNA(VLOOKUP(B92,'2021-22 Final'!B:X,23,0),0) -> 546463
B93: 27003 | C93: PUYALLUP | D93: =_xlfn.IFNA(VLOOKUP(B93,'2021-22 Final'!B:X,23,0),0) -> 0
B94: 05903 | C94: QUILEUTE TRIBAL | D94: =_xlfn.IFNA(VLOOKUP(B94,'2021-22 Final'!B:X,23,0),0) -> 0
B95: 05402 | C95: QUILLAYUTE VALLEY | D95: =_xlfn.IFNA(VLOOKUP(B95,'2021-22 Final'!B:X,23,0),0) -> 51765
B96: 13144 | C96: QUINCY | D96: =_xlfn.IFNA(VLOOKUP(B96,'2021-22 Final'!B:X,23,0),0) -> 360227
B97: 17403 | C97: RENTON | D97: =_xlfn.IFNA(VLOOKUP(B97,'2021-22 Final'!B:X,23,0),0) -> 0
B98: 17407 | C98: RIVERVIEW | D98: =_xlfn.IFNA(VLOOKUP(B98,'2021-22 Final'!B:X,23,0),0) -> 0
B99: 34401 | C99: ROCHESTER | D99: =_xlfn.IFNA(VLOOKUP(B99,'2021-22 Final'!B:X,23,0),0) -> 25144
B100: 20403 | C100: ROOSEVELT | D100: =_xlfn.IFNA(VLOOKUP(B100,'2021-22 Final'!B:X,23,0),0) -> 0
B101: 13160 | C101: ROYAL CITY | D101: =_xlfn.IFNA(VLOOKUP(B101,'2021-22 Final'!B:X,23,0),0) -> 169939
B102: 17001 | C102: SEATTLE | D102: =_xlfn.IFNA(VLOOKUP(B102,'2021-22 Final'!B:X,23,0),0) -> 135484
B103: 29101 | C103: SEDRO WOOLLEY | D103: =_xlfn.IFNA(VLOOKUP(B103,'2021-22 Final'!B:X,23,0),0) -> 139060
B104: 39119 | C104: SELAH | D104: =_xlfn.IFNA(VLOOKUP(B104,'2021-22 Final'!B:X,23,0),0) -> 119727
B105: 23309 | C105: SHELTON | D105: =_xlfn.IFNA(VLOOKUP(B105,'2021-22 Final'!B:X,23,0),0) -> 136795
B106: 31201 | C106: SNOHOMISH | D106: =_xlfn.IFNA(VLOOKUP(B106,'2021-22 Final'!B:X,23,0),0) -> 62852
B107: 13156 | C107: SOAP LAKE | D107: =_xlfn.IFNA(VLOOKUP(B107,'2021-22 Final'!B:X,23,0),0) -> 0
B108: 25118 | C108: SOUTH BEND | D108: =_xlfn.IFNA(VLOOKUP(B108,'2021-22 Final'!B:X,23,0),0) -> 0
B109: 32081 | C109: SPOKANE | D109: =_xlfn.IFNA(VLOOKUP(B109,'2021-22 Final'!B:X,23,0),0) -> 0
B110: 31401 | C110: STANWOOD-CAMANO | D110: =_xlfn.IFNA(VLOOKUP(B110,'2021-22 Final'!B:X,23,0),0) -> 0
B111: 30303 | C111: STEVENSON-CARSON | D111: =_xlfn.IFNA(VLOOKUP(B111,'2021-22 Final'!B:X,23,0),0) -> 0
B112: 31311 | C112: SULTAN | D112: =_xlfn.IFNA(VLOOKUP(B112,'2021-22 Final'!B:X,23,0),0) -> 0
B113: 39201 | C113: SUNNYSIDE | D113: =_xlfn.IFNA(VLOOKUP(B113,'2021-22 Final'!B:X,23,0),0) -> 1293231
B114: 18902 | C114: SUQUAMISH TRIBAL EDUCATION DEPARTMENT | D114: =_xlfn.IFNA(VLOOKUP(B114,'2021-22 Final'!B:X,23,0),0) -> 14962
B115: 27010 | C115: TACOMA | D115: =_xlfn.IFNA(VLOOKUP(B115,'2021-22 Final'!B:X,23,0),0) -> 0
B116: 14077 | C116: TAHOLA | D116: =_xlfn.IFNA(VLOOKUP(B116,'2021-22 Final'!B:X,23,0),0) -> 0
B117: 24404 | C117: TONASKET | D117: =_xlfn.IFNA(VLOOKUP(B117,'2021-22 Final'!B:X,23,0),0) -> 260339
B118: 39202 | C118: TOPPENISH | D118: =_xlfn.IFNA(VLOOKUP(B118,'2021-22 Final'!B:X,23,0),0) -> 652079
B119: 20400 | C119: TROUT LAKE | D119: =_xlfn.IFNA(VLOOKUP(B119,'2021-22 Final'!B:X,23,0),0) -> 0
B120: 39002 | C120: UNION GAP | D120: =_xlfn.IFNA(VLOOKUP(B120,'2021-22 Final'!B:X,23,0),0) -> 35143
B121: 06037 | C121: VANCOUVER | D121: =_xlfn.IFNA(VLOOKUP(B121,'2021-22 Final'!B:X,23,0),0) -> 0
B122: 34901 | C122: WA HE LUT INDIAN TRIBAL SCHOOL | D122: =_xlfn.IFNA(VLOOKUP(B122,'2021-22 Final'!B:X,23,0),0) -> 8322
B123: 13073 | C123: WAHLUKE | D123: =_xlfn.IFNA(VLOOKUP(B123,'2021-22 Final'!B:X,23,0),0) -> 1508422
B124: 36140 | C124: WALLA WALLA | D124: =_xlfn.IFNA(VLOOKUP(B124,'2021-22 Final'!B:X,23,0),0) -> 71192
B125: 39207 | C125: WAPATO | D125: =_xlfn.IFNA(VLOOKUP(B125,'2021-22 Final'!B:X,23,0),0) -> 672706
B126: 13146 | C126: WARDEN | D126: =_xlfn.IFNA(VLOOKUP(B126,'2021-22 Final'!B:X,23,0),0) -> 250708
B127: 09209 | C127: WATERVILLE | D127: =_xlfn.IFNA(VLOOKUP(B127,'2021-22 Final'!B:X,23,0),0) -> 0
B128: 04246 | C128: WENATCHEE | D128: =_xlfn.IFNA(VLOOKUP(B128,'2021-22 Final'!B:X,23,0),0) -> 1361645
B129: 39208 | C129: WEST VALLEY | D129: =_xlfn.IFNA(VLOOKUP(B129,'2021-22 Final'!B:X,23,0),0) -> 49994
B130: 21303 | C130: WHITE PASS | D130: =_xlfn.IFNA(VLOOKUP(B130,'2021-22 Final'!B:X,23,0),0) -> 0
B131: 20405 | C131: WHITE SALMON | D131: =_xlfn.IFNA(VLOOKUP(B131,'2021-22 Final'!B:X,23,0),0) -> 0
B132: 21232 | C132: WINLOCK | D132: =_xlfn.IFNA(VLOOKUP(B132,'2021-22 Final'!B:X,23,0),0) -> 71599
B133: 39901 | C133: YAKAMA TRIBAL SCHOOL | D133: =_xlfn.IFNA(VLOOKUP(B133,'2021-22 Final'!B:X,23,0),0) -> 50552
B134: 39007 | C134: YAKIMA | D134: =_xlfn.IFNA(VLOOKUP(B134,'2021-22 Final'!B:X,23,0),0) -> 1562044
B135: 34002 | C135: YELM | D135: =_xlfn.IFNA(VLOOKUP(B135,'2021-22 Final'!B:X,23,0),0) -> 0
B136: 39205 | C136: ZILLAH | D136: =_xlfn.IFNA(VLOOKUP(B136,'2021-22 Final'!B:X,23,0),0) -> 64551

Sheet 2021-22 Final (hidden)
I1: From Assumptions Page:
C2: Constant Dollar Multipliers - Do Not Change Here | I2: Target Amounts | N2: =Assumptions!D24 -> 20508825
C3: =Assumptions!$AN$4 -> 0 | F3: 470.530457 | G3: Use CTRL K | I3: Actual Amounts | N3: =N18 -> 20508825
I4: Difference | N4: =N3-N2 -> 0
I6: =N18 -> 20508825
G7: Put total here | I7: =Assumptions!C24 -> 20508825
I10: Go to H9 & Control K to set dollar amount
D14: Migrant Students | U14: Accepting Funding? | V14: HOLD HARMLESS
C15: =F3 -> 470.530457 | D15: K-12 | F15: Needs Support | H15: Priority Interuption | R15: =R18 -> 20508825
B16: CCDDD | C16: District | D16: Ave. number | E16: Regular Dollars | F16: Ave. number | G16: Regular Dollars | H16: Priority Number | I16: Priority Dollars | J16: Subtotal | K16: Other Funds Factor | L16: Subtotal 2 | M16: Add'l Rural Factor | N16: Total Allocated Amount | P16: MOE | Q16: MOE Red. | R16: Subtotal After MOE | U16: Y for yes, N for no (reallocates money) | V16: Override funding? Y for yes, otherwise blank. | W16: Health Support Grant | X16: Total
D17: 10 | E17: =E18/D18 -> 470.3543661 | F17: 0.25 | G17: =G18/F18 -> 120.1660716 | H17: 1 | I17: =I18/H18 -> 478.7491582 | M17: 0.1 | N17: 124
A18: 0 | B18: 99999 | C18: State Total | D18: =SUMIF(D19:D152,">-10") -> 32077 | E18: =SUM(E19:E271) -> 15087557 | F18: =SUMIF(F19:F271,">=10") -> 8683 | G18: 1043402 | H18: =SUMIF(H19:H271,">=10") -> 9504 | I18: 4550032 | J18: 20680991 | L18: =SUM(L19:L271) -> 21647433 | N18: =SUM(N19:N271) -> 20508825 | Q18: =SUM(Q19:Q152) -> 0 | R18: =SUM(R19:R271) -> 20508825 | S18: 20-21 Final Allocations | T18: Allocation Difference | W18: =SUM(W19:W152) -> 188000 | X18: =SUM(X19:X156) -> 20696825
A19: 1 | B19: 14005 | C19: ABERDEEN | D19: =IFERROR(VLOOKUP(B19,'Enrollment 2122'!$A:$D,4,0),0) -> 130 | E19: =IF(D19>=10,ROUND(D19*$F$3,0),0) -> 61169 | F19: =IFERROR(VLOOKUP(B19,'Enrollment 2122'!$A:$F,6,0),0) -> 30 | G19: =IF(D19>=$D$17,ROUND(F19*$F$3*$F$17,0),0) -> 3529 | H19: =IFERROR(VLOOKUP(B19,'Enrollment 2122'!$A:$E,5,FALSE),0) -> 42 | I19: =IF(D19>=$D$17,ROUND(H19*$F$3*$H$17,0),0) -> 19762 | J19: =+E19+G19+I19 -> 84460 | K19: =IF(D19>$D$17,_xlfn.IFNA(VLOOKUP(B19,'other funds ftr 2021 for 2122'!$A:$I,9,FALSE),0),1) -> 0.95 | L19: =IF(K19=0,J19,ROUND(J19*K19,0)) -> 80237 | M19: =1+IF(ISNA(VLOOKUP(B19,'Rural and Low Income 2122'!$A:$B,2,FALSE)),0,'2021-22 Final'!$M$17) -> 1.1 | N19: =IF(U19="y",ROUND(L19*M19,0),0) -> 88261 | Q19: =ROUND(IF(P19>0,-(0.9-P19)*N19,0),0) -> 0 | R19: =N19+Q19 -> 88261 | S19: 75126 | T19: =R19-S19 -> 13135 | U19: Y | W19: =IF(U19="Y",IF(D19<=99,1500,IF(AND(D19>=100,D19<=399),2500,4000)),0) -> 2500 | X19: =W19+R19 -> 90761
A20: 2 | B20: 31016 | C20: ARLINGTON | D20: =IFERROR(VLOOKUP(B20,'Enrollment 2122'!$A:$D,4,0),0) -> 53 | E20: =IF(D20>=10,ROUND(D20*$F$3,0),0) -> 24938 | F20: =IFERROR(VLOOKUP(B20,'Enrollment 2122'!$A:$F,6,0),0) -> 24 | G20: =IF(D20>=$D$17,ROUND(F20*$F$3*$F$17,0),0) -> 2823 | H20: =IFERROR(VLOOKUP(B20,'Enrollment 2122'!$A:$E,5,FALSE),0) -> 22 | I20: =IF(D20>=$D$17,ROUND(H20*$F$3*$H$17,0),0) -> 10352 | J20: 38113 | K20: =IF(D20>$D$17,_xlfn.IFNA(VLOOKUP(B20,'other funds ftr 2021 for 2122'!$A:$I,9,FALSE),0),1) -> 0 | L20: 38113 | M20: =1+IF(ISNA(VLOOKUP(B20,'Rural and Low Income 2122'!$A:$B,2,FALSE)),0,'2021-22 Final'!$M$17) -> 1 | N20: 0 | Q20: 0 | R20: 0 | S20: 0 | T20: 0 | U20: N | W20: =IF(U20="Y",IF(D20<=99,1500,IF(AND(D20>=100,D20<=399),2500,4000)),0) -> 0 | X20: =W20+R20 -> 0
A21: 3 | B21: 17408 | C21: AUBURN | D21: =IFERROR(VLOOKUP(B21,'Enrollment 2122'!$A:$D,4,0),0) -> 39 | E21: 18351 | F21: =IFERROR(VLOOKUP(B21,'Enrollment 2122'!$A:$F,6,0),0) -> 9 | G21: 1059 | H21: =IFERROR(VLOOKUP(B21,'Enrollment 2122'!$A:$E,5,FALSE),0) -> 4 | I21: 1882 | J21: 21292 | K21: =IF(D21>$D$17,_xlfn.IFNA(VLOOKUP(B21,'other funds ftr 2021 for 2122'!$A:$I,9,FALSE),0),1) -> 0 | L21: 21292 | M21: =1+IF(ISNA(VLOOKUP(B21,'Rural and Low Income 2122'!$A:$B,2,FALSE)),0,'2021-22 Final'!$M$17) -> 1 | N21: 0 | Q21: 0 | R21: 0 | S21: 0 | T21: 0 | U21: N | W21: 0 | X21: 0
A22: 4 | B22: 06119 | C22: BATTLE GROUND | D22: =IFERROR(VLOOKUP(B22,'Enrollment 2122'!$A:$D,4,0),0) -> 21 | E22: 9881 | F22: =IFERROR(VLOOKUP(B22,'Enrollment 2122'!$A:$F,6,0),0) -> 5 | G22: 588 | H22: =IFERROR(VLOOKUP(B22,'Enrollment 2122'!$A:$E,5,FALSE),0) -> 1 | I22: 471 | J22: 10940 | K22: =IF(D22>$D$17,_xlfn.IFNA(VLOOKUP(B22,'other funds ftr 2021 for 2122'!$A:$I,9,FALSE),0),1) -> 0 | L22: 10940 | M22: =1+IF(ISNA(VLOOKUP(B22,'Rural and Low Income 2122'!$A:$B,2,FALSE)),0,'2021-22 Final'!$M$17) -> 1 | N22: 0 | Q22: 0 | R22: 0 | S22: 0 | T22: 0 | U22: N | W22: 0 | X22: 0
A23: 5 | B23: 37501 | C23: BELLINGHAM | D23: =IFERROR(VLOOKUP(B23,'Enrollment 2122'!$A:$D,4,0),0) -> 177 | E23: 83284 | F23: =IFERROR(VLOOKUP(B23,'Enrollment 2122'!$A:$F,6,0),0) -> 49 | G23: 5764 | H23: =IFERROR(VLOOKUP(B23,'Enrollment 2122'!$A:$E,5,FALSE),0) -> 33 | I23: 15528 | J23: 104576 | K23: =IF(D23>$D$17,_xlfn.IFNA(VLOOKUP(B23,'other funds ftr 2021 for 2122'!$A:$I,9,FALSE),0),1) -> 0 | L23: 104576 | M23: =1+IF(ISNA(VLOOKUP(B23,'Rural and Low Income 2122'!$A:$B,2,FALSE)),0,'2021-22 Final'!$M$17) -> 1 | N23: 0 | Q23: 0 | R23: 0 | S23: 0 | T23: 0 | U23: N | W23: 0 | X23: 0
A24: 6 | B24: 37503 | C24: BLAINE | D24: =IFERROR(VLOOKUP(B24,'Enrollment 2122'!$A:$D,4,0),0) -> 9 | E24: 0 | F24: =IFERROR(VLOOKUP(B24,'Enrollment 2122'!$A:$F,6,0),0) -> 3 | G24: 0 | H24: =IFERROR(VLOOKUP(B24,'Enrollment 2122'!$A:$E,5,FALSE),0) -> 0 | I24: 0 | J24: 0 | K24: =IF(D24>$D$17,_xlfn.IFNA(VLOOKUP(B24,'other funds ftr 2021 for 2122'!$A:$I,9,FALSE),0),1) -> 1 | L24: 0 | M24: =1+IF(ISNA(VLOOKUP(B24,'Rural and Low Income 2122'!$A:$B,2,FALSE)),0,'2021-22 Final'!$M$17) -> 1 | N24: 0 | Q24: 0 | R24: 0 | S24: 0 | T24: 0 | U24: N | W24: 0 | X24: 0
A25: 7 | B25: 18100 | C25: BREMERTON | D25: =IFERROR(VLOOKUP(B25,'Enrollment 2122'!$A:$D,4,0),0) -> 84 | E25: 39525 | F25: =IFERROR(VLOOKUP(B25,'Enrollment 2122'!$A:$F,6,0),0) -> 21 | G25: 2470 | H25: =IFERROR(VLOOKUP(B25,'Enrollment 2122'!$A:$E,5,FALSE),0) -> 17 | I25: 7999 | J25: 49994 | K25: =IF(D25>$D$17,_xlfn.IFNA(VLOOKUP(B25,'other funds ftr 2021 for 2122'!$A:$I,9,FALSE),0),1) -> 0 | L25: 49994 | M25: =1+IF(ISNA(VLOOKUP(B25,'Rural and Low Income 2122'!$A:$B,2,FALSE)),0,'2021-22 Final'!$M$17) -> 1 | N25: 0 | Q25: 0 | R25: 0 | S25: 0 | T25: 0 | U25: N | W25: 0 | X25: 0
A26: 8 | B26: 24111 | C26: BREWSTER | D26: =IFERROR(VLOOKUP(B26,'Enrollment 2122'!$A:$D,4,0),0) -> 227 | E26: 106810 | F26: =IFERROR(VLOOKUP(B26,'Enrollment 2122'!$A:$F,6,0),0) -> 34 | G26: 4000 | H26: =IFERROR(VLOOKUP(B26,'Enrollment 2122'!$A:$E,5,FALSE),0) -> 66 | I26: 31055 | J26: 141865 | K26: =IF(D26>$D$17,_xlfn.IFNA(VLOOKUP(B26,'other funds ftr 2021 for 2122'!$A:$I,9,FALSE),0),1) -> 1.05 | L26: 148958 | M26: =1+IF(ISNA(VLOOKUP(B26,'Rural and Low Income 2122'!$A:$B,2,FALSE)),0,'2021-22 Final'!$M$17) -> 1.1 | N26: 163854 | Q26: 0 | R26: 163854 | S26: 138078 | T26: 25776 | U26: Y | W26: 2500 | X26: 166354
A27: 9 | B27: 09075 | C27: BRIDGEPORT | D27: =IFERROR(VLOOKUP(B27,'Enrollment 2122'!$A:$D,4,0),0) -> 230 | E27: 108222 | F27: =IFERROR(VLOOKUP(B27,'Enrollment 2122'!$A:$F,6,0),0) -> 47 | G27: 5529 | H27: =IFERROR(VLOOKUP(B27,'Enrollment 2122'!$A:$E,5,FALSE),0) -> 38 | I27: 17880 | J27: 131631 | K27: =IF(D27>$D$17,_xlfn.IFNA(VLOOKUP(B27,'other funds ftr 2021 for 2122'!$A:$I,9,FALSE),0),1) -> 1.05 | L27: 138213 | M27: =1+IF(ISNA(VLOOKUP(B27,'Rural and Low Income 2122'!$A:$B,2,FALSE)),0,'2021-22 Final'!$M$17) -> 1.1 | N27: 152034 | Q27: 0 | R27: 152034 | S27: 129405 | T27: 22629 | U27: Y | W27: 2500 | X27: 154534
A28: 10 | B28: 29100 | C28: BURLINGTON-EDISON | D28: =IFERROR(VLOOKUP(B28,'Enrollment 2122'!$A:$D,4,0),0) -> 338 | E28: 159039 | F28: =IFERROR(VLOOKUP(B28,'Enrollment 2122'!$A:$F,6,0),0) -> 59 | G28: 6940 | H28: =IFERROR(VLOOKUP(B28,'Enrollment 2122'!$A:$E,5,FALSE),0) -> 108 | I28: 50817 | J28: 216796 | K28: =IF(D28>$D$17,_xlfn.IFNA(VLOOKUP(B28,'other funds ftr 2021 for 2122'!$A:$I,9,FALSE),0),1) -> 0.95 | L28: 205956 | M28: =1+IF(ISNA(VLOOKUP(B28,'Rural and Low Income 2122'!$A:$B,2,FALSE)),0,'2021-22 Final'!$M$17) -> 1 | N28: 205956 | Q28: 0 | R28: 205956 | S28: 155613 | T28: 50343 | U28: Y | W28: 2500 | X28: 208456
A29: 11 | B29: 04228 | C29: CASCADE | D29: =IFERROR(VLOOKUP(B29,'Enrollment 2122'!$A:$D,4,0),0) -> 64 | E29: 30114 | F29: =IFERROR(VLOOKUP(B29,'Enrollment 2122'!$A:$F,6,0),0) -> 16 | G29: 1882 | H29: =IFERROR(VLOOKUP(B29,'Enrollment 2122'!$A:$E,5,FALSE),0) -> 13 | I29: 6117 | J29: 38113 | K29: =IF(D29>$D$17,_xlfn.IFNA(VLOOKUP(B29,'other funds ftr 2021 for 2122'!$A:$I,9,FALSE),0),1) -> 1 | L29: 38113 | M29: =1+IF(ISNA(VLOOKUP(B29,'Rural and Low Income 2122'!$A:$B,2,FALSE)),0,'2021-22 Final'!$M$17) -> 1.1 | N29: 41924 | Q29: 0 | R29: 41924 | S29: 32840 | T29: 9084 | U29: Y | W29: 1500 | X29: 43424
A30: 12 | B30: 04222 | C30: CASHMERE | D30: =IFERROR(VLOOKUP(B30,'Enrollment 2122'!$A:$D,4,0),0) -> 257 | E30: 120926 | F30: =IFERROR(VLOOKUP(B30,'Enrollment 2122'!$A:$F,6,0),0) -> 20 | G30: 2353 | H30: =IFERROR(VLOOKUP(B30,'Enrollment 2122'!$A:$E,5,FALSE),0) -> 44 | I30: 20703 | J30: 143982 | K30: =IF(D30>$D$17,_xlfn.IFNA(VLOOKUP(B30,'other funds ftr 2021 for 2122'!$A:$I,9,FALSE),0),1) -> 1.15 | L30: 165579 | M30: =1+IF(ISNA(VLOOKUP(B30,'Rural and Low Income 2122'!$A:$B,2,FALSE)),0,'2021-22 Final'!$M$17) -> 1 | N30: 165579 | Q30: 0 | R30: 165579 | S30: 140935 | T30: 24644 | U30: Y | W30: 2500 | X30: 168079
A31: 14 | B31: 18401 | C31: CENTRAL KITSAP | D31: =IFERROR(VLOOKUP(B31,'Enrollment 2122'!$A:$D,4,0),0) -> 16 | E31: 7528 | F31: =IFERROR(VLOOKUP(B31,'Enrollment 2122'!$A:$F,6,0),0) -> 5 | G31: 588 | H31: =IFERROR(VLOOKUP(B31,'Enrollment 2122'!$A:$E,5,FALSE),0) -> 8 | I31: 3764 | J31: 11880 | K31: =IF(D31>$D$17,_xlfn.IFNA(VLOOKUP(B31,'other funds ftr 2021 for 2122'!$A:$I,9,FALSE),0),1) -> 0 | L31: 11880 | M31: =1+IF(ISNA(VLOOKUP(B31,'Rural and Low Income 2122'!$A:$B,2,FALSE)),0,'2021-22 Final'!$M$17) -> 1 | N31: 0 | Q31: 0 | R31: 0 | S31: 0 | T31: 0 | U31: N | W31: 0 | X31: 0
A32: 13 | B32: 32356 | C32: CENTRAL VALLEY | D32: =IFERROR(VLOOKUP(B32,'Enrollment 2122'!$A:$D,4,0),0) -> 15 | E32: 7058 | F32: =IFERROR(VLOOKUP(B32,'Enrollment 2122'!$A:$F,6,0),0) -> 1 | G32: 118 | H32: =IFERROR(VLOOKUP(B32,'Enrollment 2122'!$A:$E,5,FALSE),0) -> 5 | I32: 2353 | J32: 9529 | K32: =IF(D32>$D$17,_xlfn.IFNA(VLOOKUP(B32,'other funds ftr 2021 for 2122'!$A:$I,9,FALSE),0),1) -> 0 | L32: 9529 | M32: =1+IF(ISNA(VLOOKUP(B32,'Rural and Low Income 2122'!$A:$B,2,FALSE)),0,'2021-22 Final'!$M$17) -> 1 | N32: 0 | Q32: =ROUND(IF(P32>0,-(0.9-P32)*N32,0),0) -> 0 | R32: 0 | S32: 0 | T32: 0 | U32: N | W32: 0 | X32: 0
A33: 15 | B33: 21401 | C33: CENTRALIA | D33: =IFERROR(VLOOKUP(B33,'Enrollment 2122'!$A:$D,4,0),0) -> 97 | E33: 45641 | F33: =IFERROR(VLOOKUP(B33,'Enrollment 2122'!$A:$F,6,0),0) -> 22 | G33: 2588 | H33: =IFERROR(VLOOKUP(B33,'Enrollment 2122'!$A:$E,5,FALSE),0) -> 34 | I33: 15998 | J33: 64227 | K33: =IF(D33>$D$17,_xlfn.IFNA(VLOOKUP(B33,'other funds ftr 2021 for 2122'!$A:$I,9,FALSE),0),1) -> 0.85 | L33: 54593 | M33: =1+IF(ISNA(VLOOKUP(B33,'Rural and Low Income 2122'!$A:$B,2,FALSE)),0,'2021-22 Final'!$M$17) -> 1.1 | N33: 60052 | Q33: =ROUND(IF(P33>0,-(0.9-P33)*N33,0),0) -> 0 | R33: 60052 | S33: 51115 | T33: 8937 | U33: Y | W33: 1500 | X33: 61552
A34: 16 | B34: 21302 | C34: CHEHALIS | D34: =IFERROR(VLOOKUP(B34,'Enrollment 2122'!$A:$D,4,0),0) -> 34 | E34: 15998 | F34: =IFERROR(VLOOKUP(B34,'Enrollment 2122'!$A:$F,6,0),0) -> 14 | G34: 1647 | H34: =IFERROR(VLOOKUP(B34,'Enrollment 2122'!$A:$E,5,FALSE),0) -> 14 | I34: 6587 | J34: 24232 | K34: =IF(D34>$D$17,_xlfn.IFNA(VLOOKUP(B34,'other funds ftr 2021 for 2122'!$A:$I,9,FALSE),0),1) -> 0.85 | L34: 20597 | M34: =1+IF(ISNA(VLOOKUP(B34,'Rural and Low Income 2122'!$A:$B,2,FALSE)),0,'2021-22 Final'!$M$17) -> 1 | N34: 20597 | Q34: =ROUND(IF(P34>0,-(0.9-P34)*N34,0),0) -> 0 | R34: 20597 | S34: 17532 | T34: 3065 | U34: Y | V34: Y | W34: 1500 | X34: 22097
A35: 17 | B35: 27901 | C35: CHIEF LESCHI TRIBAL | D35: =IFERROR(VLOOKUP(B35,'Enrollment 2122'!$A:$D,4,0),0) -> 12 | E35: 5646 | F35: =IFERROR(VLOOKUP(B35,'Enrollment 2122'!$A:$F,6,0),0) -> 0 | G35: 0 | H35: =IFERROR(VLOOKUP(B35,'Enrollment 2122'!$A:$E,5,FALSE),0) -> 2 | I35: 941 | J35: 6587 | K35: =IF(D35>$D$17,_xlfn.IFNA(VLOOKUP(B35,'other funds ftr 2021 for 2122'!$A:$I,9,FALSE),0),1) -> 0 | L35: 6587 | M35: =1+IF(ISNA(VLOOKUP(B35,'Rural and Low Income 2122'!$A:$B,2,FALSE)),0,'2021-22 Final'!$M$17) -> 1 | N35: 6587 | Q35: 0 | R35: 6587 | S35: 5607 | T35: 980 | U35: Y | W35: 1500 | X35: 8087
A36: 18 | B36: 36250 | C36: COLLEGE PLACE | D36: =IFERROR(VLOOKUP(B36,'Enrollment 2122'!$A:$D,4,0),0) -> 97 | E36: 45641 | F36: =IFERROR(VLOOKUP(B36,'Enrollment 2122'!$A:$F,6,0),0) -> 27 | G36: 3176 | H36: =IFERROR(VLOOKUP(B36,'Enrollment 2122'!$A:$E,5,FALSE),0) -> 25 | I36: 11763 | J36: 60580 | K36: =IF(D36>$D$17,_xlfn.IFNA(VLOOKUP(B36,'other funds ftr 2021 for 2122'!$A:$I,9,FALSE),0),1) -> 0.95 | L36: 57551 | M36: =1+IF(ISNA(VLOOKUP(B36,'Rural and Low Income 2122'!$A:$B,2,FALSE)),0,'2021-22 Final'!$M$17) -> 1 | N36: 57551 | Q36: =ROUND(IF(P36>0,-(0.9-P36)*N36,0),0) -> 0 | R36: 57551 | S36: 48985 | T36: 8566 | U36: Y | V36: Y | W36: 1500 | X36: 59051
A37: 19 | B37: 36400 | C37: COLUMBIA | D37: =IFERROR(VLOOKUP(B37,'Enrollment 2122'!$A:$D,4,0),0) -> 60 | E37: 28232 | F37: =IFERROR(VLOOKUP(B37,'Enrollment 2122'!$A:$F,6,0),0) -> 31 | G37: 3647 | H37: =IFERROR(VLOOKUP(B37,'Enrollment 2122'!$A:$E,5,FALSE),0) -> 9 | I37: 4235 | J37: 36114 | K37: =IF(D37>$D$17,_xlfn.IFNA(VLOOKUP(B37,'other funds ftr 2021 for 2122'!$A:$I,9,FALSE),0),1) -> 0.95 | L37: 34308 | M37: =1+IF(ISNA(VLOOKUP(B37,'Rural and Low Income 2122'!$A:$B,2,FALSE)),0,'2021-22 Final'!$M$17) -> 1.1 | N37: 37739 | Q37: 0 | R37: 37739 | S37: 25396 | T37: 12343 | U37: Y | W37: 1500 | X37: 39239
A38: 20 | B38: 29317 | C38: CONWAY | D38: =IFERROR(VLOOKUP(B38,'Enrollment 2122'!$A:$D,4,0),0) -> 31 | E38: 14586 | F38: =IFERROR(VLOOKUP(B38,'Enrollment 2122'!$A:$F,6,0),0) -> 8 | G38: 941 | H38: =IFERROR(VLOOKUP(B38,'Enrollment 2122'!$A:$E,5,FALSE),0) -> 13 | I38: 6117 | J38: 21644 | K38: =IF(D38>$D$17,_xlfn.IFNA(VLOOKUP(B38,'other funds ftr 2021 for 2122'!$A:$I,9,FALSE),0),1) -> 1.15 | L38: 24891 | M38: =1+IF(ISNA(VLOOKUP(B38,'Rural and Low Income 2122'!$A:$B,2,FALSE)),0,'2021-22 Final'!$M$17) -> 1 | N38: 24891 | Q38: 0 | R38: 24891 | S38: 23304 | T38: 1587 | U38: Y | W38: 1500 | X38: 26391
A39: 21 | B39: 15204 | C39: COUPEVILLE | D39: =IFERROR(VLOOKUP(B39,'Enrollment 2122'!$A:$D,4,0),0) -> 15 | E39: 7058 | F39: =IFERROR(VLOOKUP(B39,'Enrollment 2122'!$A:$F,6,0),0) -> 3 | G39: 353 | H39: =IFERROR(VLOOKUP(B39,'Enrollment 2122'!$A:$E,5,FALSE),0) -> 2 | I39: 941 | J39: 8352 | K39: =IF(D39>$D$17,_xlfn.IFNA(VLOOKUP(B39,'other funds ftr 2021 for 2122'!$A:$I,9,FALSE),0),1) -> 0.85 | L39: 7099 | M39: =1+IF(ISNA(VLOOKUP(B39,'Rural and Low Income 2122'!$A:$B,2,FALSE)),0,'2021-22 Final'!$M$17) -> 1 | N39: 7099 | Q39: 0 | R39: 7099 | S39: 5361 | T39: 1738 | U39: Y | W39: 1500 | X39: 8599
A40: 22 | B40: 39090 | C40: EAST VALLEY | D40: =IFERROR(VLOOKUP(B40,'Enrollment 2122'!$A:$D,4,0),0) -> 246 | E40: 115750 | F40: =IFERROR(VLOOKUP(B40,'Enrollment 2122'!$A:$F,6,0),0) -> 95 | G40: 11175 | H40: =IFERROR(VLOOKUP(B40,'Enrollment 2122'!$A:$E,5,FALSE),0) -> 113 | I40: 53170 | J40: 180095 | K40: =IF(D40>$D$17,_xlfn.IFNA(VLOOKUP(B40,'other funds ftr 2021 for 2122'!$A:$I,9,FALSE),0),1) -> 0 | L40: 180095 | M40: =1+IF(ISNA(VLOOKUP(B40,'Rural and Low Income 2122'!$A:$B,2,FALSE)),0,'2021-22 Final'!$M$17) -> 1 | N40: 0 | Q40: 0 | R40: 0 | S40: 0 | T40: 0 | U40: N | W40: 0 | X40: 0
A41: 23 | B41: 09206 | C41: EASTMONT | D41: =IFERROR(VLOOKUP(B41,'Enrollment 2122'!$A:$D,4,0),0) -> 911 | E41: 428653 | F41: =IFERROR(VLOOKUP(B41,'Enrollment 2122'!$A:$F,6,0),0) -> 262 | G41: 30820 | H41: =IFERROR(VLOOKUP(B41,'Enrollment 2122'!$A:$E,5,FALSE),0) -> 241 | I41: 113398 | J41: 572871 | K41: =IF(D41>$D$17,_xlfn.IFNA(VLOOKUP(B41,'other funds ftr 2021 for 2122'!$A:$I,9,FALSE),0),1) -> 1.05 | L41: 601515 | M41: =1+IF(ISNA(VLOOKUP(B41,'Rural and Low Income 2122'!$A:$B,2,FALSE)),0,'2021-22 Final'!$M$17) -> 1 | N41: 601515 | Q41: 0 | R41: 601515 | S41: 511986 | T41: 89529 | U41: Y | W41: 4000 | X41: 605515
A42: 24 | B42: 31015 | C42: EDMONDS | D42: =IFERROR(VLOOKUP(B42,'Enrollment 2122'!$A:$D,4,0),0) -> 19 | E42: 8940 | F42: =IFERROR(VLOOKUP(B42,'Enrollment 2122'!$A:$F,6,0),0) -> 1 | G42: 118 | H42: =IFERROR(VLOOKUP(B42,'Enrollment 2122'!$A:$E,5,FALSE),0) -> 5 | I42: 2353 | J42: 11411 | K42: =IF(D42>$D$17,_xlfn.IFNA(VLOOKUP(B42,'other funds ftr 2021 for 2122'!$A:$I,9,FALSE),0),1) -> 0 | L42: 11411 | M42: =1+IF(ISNA(VLOOKUP(B42,'Rural and Low Income 2122'!$A:$B,2,FALSE)),0,'2021-22 Final'!$M$17) -> 1 | N42: 0 | Q42: 0 | R42: 0 | S42: 0 | T42: 0 | U42: N | W42: 0 | X42: 0
A43: 25 | B43: 19401 | C43: ELLENSBURG | D43: =IFERROR(VLOOKUP(B43,'Enrollment 2122'!$A:$D,4,0),0) -> 56 | E43: 26350 | F43: =IFERROR(VLOOKUP(B43,'Enrollment 2122'!$A:$F,6,0),0) -> 20 | G43: 2353 | H43: =IFERROR(VLOOKUP(B43,'Enrollment 2122'!$A:$E,5,FALSE),0) -> 15 | I43: 7058 | J43: 35761 | K43: =IF(D43>$D$17,_xlfn.IFNA(VLOOKUP(B43,'other funds ftr 2021 for 2122'!$A:$I,9,FALSE),0),1) -> 0.85 | L43: 30397 | M43: =1+IF(ISNA(VLOOKUP(B43,'Rural and Low Income 2122'!$A:$B,2,FALSE)),0,'2021-22 Final'!$M$17) -> 1 | N43: 30397 | Q43: 0 | R43: 30397 | S43: 21956 | T43: 8441 | U43: Y | W43: 1500 | X43: 31897
A44: 26 | B44: 14068 | C44: ELMA | D44: =IFERROR(VLOOKUP(B44,'Enrollment 2122'!$A:$D,4,0),0) -> 50 | E44: 23527 | F44: =IFERROR(VLOOKUP(B44,'Enrollment 2122'!$A:$F,6,0),0) -> 14 | G44: 1647 | H44: =IFERROR(VLOOKUP(B44,'Enrollment 2122'!$A:$E,5,FALSE),0) -> 3 | I44: 1412 | J44: 26586 | K44: =IF(D44>$D$17,_xlfn.IFNA(VLOOKUP(B44,'other funds ftr 2021 for 2122'!$A:$I,9,FALSE),0),1) -> 0 | L44: 26586 | M44: =1+IF(ISNA(VLOOKUP(B44,'Rural and Low Income 2122'!$A:$B,2,FALSE)),0,'2021-22 Final'!$M$17) -> 1 | N44: 0 | Q44: 0 | R44: 0 | S44: 0 | T44: 0 | U44: N | W44: 0 | X44: 0
A45: 27 | B45: 04127 | C45: ENTIAT | D45: =IFERROR(VLOOKUP(B45,'Enrollment 2122'!$A:$D,4,0),0) -> 35 | E45: 16469 | F45: =IFERROR(VLOOKUP(B45,'Enrollment 2122'!$A:$F,6,0),0) -> 3 | G45: 353 | H45: =IFERROR(VLOOKUP(B45,'Enrollment 2122'!$A:$E,5,FALSE),0) -> 12 | I45: 5646 | J45: 22468 | K45: =IF(D45>$D$17,_xlfn.IFNA(VLOOKUP(B45,'other funds ftr 2021 for 2122'!$A:$I,9,FALSE),0),1) -> 0 | L45: 22468 | M45: =1+IF(ISNA(VLOOKUP(B45,'Rural and Low Income 2122'!$A:$B,2,FALSE)),0,'2021-22 Final'!$M$17) -> 1 | N45: 0 | Q45: 0 | R45: 0 | S45: 0 | T45: 0 | U45: N | W45: 0 | X45: 0
A46: 28 | B46: 13165 | C46: EPHRATA | D46: =IFERROR(VLOOKUP(B46,'Enrollment 2122'!$A:$D,4,0),0) -> 229 | E46: 107751 | F46: =IFERROR(VLOOKUP(B46,'Enrollment 2122'!$A:$F,6,0),0) -> 57 | G46: 6705 | H46: =IFERROR(VLOOKUP(B46,'Enrollment 2122'!$A:$E,5,FALSE),0) -> 62 | I46: 29173 | J46: 143629 | K46: =IF(D46>$D$17,_xlfn.IFNA(VLOOKUP(B46,'other funds ftr 2021 for 2122'!$A:$I,9,FALSE),0),1) -> 0.95 | L46: 136448 | M46: =1+IF(ISNA(VLOOKUP(B46,'Rural and Low Income 2122'!$A:$B,2,FALSE)),0,'2021-22 Final'!$M$17) -> 1 | N46: 136448 | Q46: 0 | R46: 136448 | S46: 114523 | T46: 21925 | U46: Y | W46: 2500 | X46: 138948
A47: 29 | B47: 31002 | C47: EVERETT | D47: =IFERROR(VLOOKUP(B47,'Enrollment 2122'!$A:$D,4,0),0) -> 45 | E47: 21174 | F47: =IFERROR(VLOOKUP(B47,'Enrollment 2122'!$A:$F,6,0),0) -> 14 | G47: 1647 | H47: =IFERROR(VLOOKUP(B47,'Enrollment 2122'!$A:$E,5,FALSE),0) -> 16 | I47: 7528 | J47: 30349 | K47: =IF(D47>$D$17,_xlfn.IFNA(VLOOKUP(B47,'other funds ftr 2021 for 2122'!$A:$I,9,FALSE),0),1) -> 0 | L47: 30349 | M47: =1+IF(ISNA(VLOOKUP(B47,'Rural and Low Income 2122'!$A:$B,2,FALSE)),0,'2021-22 Final'!$M$17) -> 1 | N47: 0 | Q47: 0 | R47: 0 | S47: 0 | T47: 0 | U47: N | W47: 0 | X47: 0
A48: 30 | B48: 06114 | C48: EVERGREEN | D48: =IFERROR(VLOOKUP(B48,'Enrollment 2122'!$A:$D,4,0),0) -> 41 | E48: 19292 | F48: =IFERROR(VLOOKUP(B48,'Enrollment 2122'!$A:$F,6,0),0) -> 12 | G48: 1412 | H48: =IFERROR(VLOOKUP(B48,'Enrollment 2122'!$A:$E,5,FALSE),0) -> 6 | I48: 2823 | J48: 23527 | K48: =IF(D48>$D$17,_xlfn.IFNA(VLOOKUP(B48,'other funds ftr 2021 for 2122'!$A:$I,9,FALSE),0),1) -> 0 | L48: 23527 | M48: =1+IF(ISNA(VLOOKUP(B48,'Rural and Low Income 2122'!$A:$B,2,FALSE)),0,'2021-22 Final'!$M$17) -> 1 | N48: 0 | Q48: 0 | R48: 0 | S48: 0 | T48: 0 | U48: N | W48: 0 | X48: 0
A49: 31 | B49: 17210 | C49: FEDERAL WAY | D49: =IFERROR(VLOOKUP(B49,'Enrollment 2122'!$A:$D,4,0),0) -> 78 | E49: 36701 | F49: =IFERROR(VLOOKUP(B49,'Enrollment 2122'!$A:$F,6,0),0) -> 7 | G49: 823 | H49: =IFERROR(VLOOKUP(B49,'Enrollment 2122'!$A:$E,5,FALSE),0) -> 31 | I49: 14586 | J49: 52110 | K49: =IF(D49>$D$17,_xlfn.IFNA(VLOOKUP(B49,'other funds ftr 2021 for 2122'!$A:$I,9,FALSE),0),1) -> 0 | L49: 52110 | M49: =1+IF(ISNA(VLOOKUP(B49,'Rural and Low Income 2122'!$A:$B,2,FALSE)),0,'2021-22 Final'!$M$17) -> 1 | N49: 0 | Q49: 0 | R49: 0 | S49: 0 | T49: 0 | U49: N | W49: 0 | X49: 0
A50: 32 | B50: 37502 | C50: FERNDALE | D50: =IFERROR(VLOOKUP(B50,'Enrollment 2122'!$A:$D,4,0),0) -> 187 | E50: 87989 | F50: =IFERROR(VLOOKUP(B50,'Enrollment 2122'!$A:$F,6,0),0) -> 32 | G50: 3764 | H50: =IFERROR(VLOOKUP(B50,'Enrollment 2122'!$A:$E,5,FALSE),0) -> 39 | I50: 18351 | J50: 110104 | K50: =IF(D50>$D$17,_xlfn.IFNA(VLOOKUP(B50,'other funds ftr 2021 for 2122'!$A:$I,9,FALSE),0),1) -> 0.95 | L50: 104599 | M50: =1+IF(ISNA(VLOOKUP(B50,'Rural and Low Income 2122'!$A:$B,2,FALSE)),0,'2021-22 Final'!$M$17) -> 1 | N50: 104599 | Q50: 0 | R50: 104599 | S50: 88174 | T50: 16425 | U50: Y | W50: 2500 | X50: 107099
A51: 33 | B51: 03053 | C51: FINLEY | D51: =IFERROR(VLOOKUP(B51,'Enrollment 2122'!$A:$D,4,0),0) -> 86 | E51: 40466 | F51: =IFERROR(VLOOKUP(B51,'Enrollment 2122'!$A:$F,6,0),0) -> 23 | G51: 2706 | H51: =IFERROR(VLOOKUP(B51,'Enrollment 2122'!$A:$E,5,FALSE),0) -> 20 | I51: 9411 | J51: 52583 | K51: =IF(D51>$D$17,_xlfn.IFNA(VLOOKUP(B51,'other funds ftr 2021 for 2122'!$A:$I,9,FALSE),0),1) -> 0.95 | L51: 49954 | M51: =1+IF(ISNA(VLOOKUP(B51,'Rural and Low Income 2122'!$A:$B,2,FALSE)),0,'2021-22 Final'!$M$17) -> 1 | N51: 49954 | Q51: 0 | R51: 49954 | S51: 36335 | T51: 13619 | U51: Y | W51: 1500 | X51: 51454
A52: 34 | B52: 27402 | C52: FRANKLIN PIERCE | D52: =IFERROR(VLOOKUP(B52,'Enrollment 2122'!$A:$D,4,0),0) -> 12 | E52: 5646 | F52: =IFERROR(VLOOKUP(B52,'Enrollment 2122'!$A:$F,6,0),0) -> 0 | G52: 0 | H52: =IFERROR(VLOOKUP(B52,'Enrollment 2122'!$A:$E,5,FALSE),0) -> 3 | I52: 1412 | J52: 7058 | K52: =IF(D52>$D$17,_xlfn.IFNA(VLOOKUP(B52,'other funds ftr 2021 for 2122'!$A:$I,9,FALSE),0),1) -> 0 | L52: 7058 | M52: =1+IF(ISNA(VLOOKUP(B52,'Rural and Low Income 2122'!$A:$B,2,FALSE)),0,'2021-22 Final'!$M$17) -> 1 | N52: 0 | Q52: 0 | R52: 0 | S52: 0 | T52: 0 | U52: N | W52: 0 | X52: 0
A53: 35 | B53: 20404 | C53: GOLDENDALE | D53: =IFERROR(VLOOKUP(B53,'Enrollment 2122'!$A:$D,4,0),0) -> 85 | E53: 39995 | F53: =IFERROR(VLOOKUP(B53,'Enrollment 2122'!$A:$F,6,0),0) -> 16 | G53: 1882 | H53: =IFERROR(VLOOKUP(B53,'Enrollment 2122'!$A:$E,5,FALSE),0) -> 20 | I53: 9411 | J53: 51288 | K53: =IF(D53>$D$17,_xlfn.IFNA(VLOOKUP(B53,'other funds ftr 2021 for 2122'!$A:$I,9,FALSE),0),1) -> 0 | L53: 51288 | M53: =1+IF(ISNA(VLOOKUP(B53,'Rural and Low Income 2122'!$A:$B,2,FALSE)),0,'2021-22 Final'!$M$17) -> 1.1 | N53: 56417 | Q53: 0 | R53: 56417 | S53: 34693 | T53: 21724 | U53: Y | W53: 1500 | X53: 57917
A54: 36 | B54: 13301 | C54: GRAND COULEE DAM | D54: =IFERROR(VLOOKUP(B54,'Enrollment 2122'!$A:$D,4,0),0) -> 174 | E54: 81872 | F54: =IFERROR(VLOOKUP(B54,'Enrollment 2122'!$A:$F,6,0),0) -> 51 | G54: 5999 | H54: =IFERROR(VLOOKUP(B54,'Enrollment 2122'!$A:$E,5,FALSE),0) -> 43 | I54: 20233 | J54: 108104 | K54: =IF(D54>$D$17,_xlfn.IFNA(VLOOKUP(B54,'other funds ftr 2021 for 2122'!$A:$I,9,FALSE),0),1) -> 1.05 | L54: 113509 | M54: =1+IF(ISNA(VLOOKUP(B54,'Rural and Low Income 2122'!$A:$B,2,FALSE)),0,'2021-22 Final'!$M$17) -> 1.1 | N54: 0 | Q54: 0 | R54: 0 | S54: 0 | T54: 0 | U54: N | W54: 0 | X54: 0
A55: 37 | B55: 39200 | C55: GRANDVIEW | D55: =IFERROR(VLOOKUP(B55,'Enrollment 2122'!$A:$D,4,0),0) -> 575 | E55: 270555 | F55: =IFERROR(VLOOKUP(B55,'Enrollment 2122'!$A:$F,6,0),0) -> 155 | G55: 18233 | H55: =IFERROR(VLOOKUP(B55,'Enrollment 2122'!$A:$E,5,FALSE),0) -> 182 | I55: 85637 | J55: 374425 | K55: =IF(D55>$D$17,_xlfn.IFNA(VLOOKUP(B55,'other funds ftr 2021 for 2122'!$A:$I,9,FALSE),0),1) -> 1 | L55: 374425 | M55: =1+IF(ISNA(VLOOKUP(B55,'Rural and Low Income 2122'!$A:$B,2,FALSE)),0,'2021-22 Final'!$M$17) -> 1.1 | N55: 411868 | Q55: 0 | R55: 411868 | S55: 350565 | T55: 61303 | U55: Y | V55: Y | W55: 4000 | X55: 415868
A56: 38 | B56: 39204 | C56: GRANGER | D56: =IFERROR(VLOOKUP(B56,'Enrollment 2122'!$A:$D,4,0),0) -> 410 | E56: 192917 | F56: =IFERROR(VLOOKUP(B56,'Enrollment 2122'!$A:$F,6,0),0) -> 131 | G56: 15410 | H56: =IFERROR(VLOOKUP(B56,'Enrollment 2122'!$A:$E,5,FALSE),0) -> 87 | I56: 40936 | J56: 249263 | K56: =IF(D56>$D$17,_xlfn.IFNA(VLOOKUP(B56,'other funds ftr 2021 for 2122'!$A:$I,9,FALSE),0),1) -> 1.05 | L56: 261726 | M56: =1+IF(ISNA(VLOOKUP(B56,'Rural and Low Income 2122'!$A:$B,2,FALSE)),0,'2021-22 Final'!$M$17) -> 1.1 | N56: 287899 | Q56: 0 | R56: 287899 | S56: 245048 | T56: 42851 | U56: Y | V56: Y | W56: 4000 | X56: 291899
A57: 39 | B57: 39203 | C57: HIGHLAND | D57: =IFERROR(VLOOKUP(B57,'Enrollment 2122'!$A:$D,4,0),0) -> 205 | E57: 96459 | F57: =IFERROR(VLOOKUP(B57,'Enrollment 2122'!$A:$F,6,0),0) -> 45 | G57: 5293 | H57: =IFERROR(VLOOKUP(B57,'Enrollment 2122'!$A:$E,5,FALSE),0) -> 39 | I57: 18351 | J57: 120103 | K57: =IF(D57>$D$17,_xlfn.IFNA(VLOOKUP(B57,'other funds ftr 2021 for 2122'!$A:$I,9,FALSE),0),1) -> 1.05 | L57: 126108 | M57: =1+IF(ISNA(VLOOKUP(B57,'Rural and Low Income 2122'!$A:$B,2,FALSE)),0,'2021-22 Final'!$M$17) -> 1 | N57: 126108 | Q57: 0 | R57: 126108 | S57: 107338 | T57: 18770 | U57: Y | W57: 2500 | X57: 128608
A58: 40 | B58: 17401 | C58: HIGHLINE | D58: =IFERROR(VLOOKUP(B58,'Enrollment 2122'!$A:$D,4,0),0) -> 10 | E58: 4705 | F58: =IFERROR(VLOOKUP(B58,'Enrollment 2122'!$A:$F,6,0),0) -> 2 | G58: 235 | H58: =IFERROR(VLOOKUP(B58,'Enrollment 2122'!$A:$E,5,FALSE),0) -> 3 | I58: 1412 | J58: 6352 | K58: =IF(D58>$D$17,_xlfn.IFNA(VLOOKUP(B58,'other funds ftr 2021 for 2122'!$A:$I,9,FALSE),0),1) -> 1 | L58: 6352 | M58: =1+IF(ISNA(VLOOKUP(B58,'Rural and Low Income 2122'!$A:$B,2,FALSE)),0,'2021-22 Final'!$M$17) -> 1 | N58: 0 | Q58: 0 | R58: 0 | S58: 0 | T58: 0 | U58: N | W58: 0 | X58: 0
A59: 41 | B59: 23404 | C59: HOOD CANAL | D59: =IFERROR(VLOOKUP(B59,'Enrollment 2122'!$A:$D,4,0),0) -> 48 | E59: 22585 | F59: =IFERROR(VLOOKUP(B59,'Enrollment 2122'!$A:$F,6,0),0) -> 17 | G59: 2000 | H59: =IFERROR(VLOOKUP(B59,'Enrollment 2122'!$A:$E,5,FALSE),0) -> 13 | I59: 6117 | J59: 30702 | K59: =IF(D59>$D$17,_xlfn.IFNA(VLOOKUP(B59,'other funds ftr 2021 for 2122'!$A:$I,9,FALSE),0),1) -> 1 | L59: 30702 | M59: =1+IF(ISNA(VLOOKUP(B59,'Rural and Low Income 2122'!$A:$B,2,FALSE)),0,'2021-22 Final'!$M$17) -> 1.1 | N59: 0 | Q59: 0 | R59: 0 | S59: 0 | T59: 0 | U59: N | W59: 0 | X59: 0
A60: 42 | B60: 14028 | C60: HOQUIAM | D60: =IFERROR(VLOOKUP(B60,'Enrollment 2122'!$A:$D,4,0),0) -> 34 | E60: 15998 | F60: =IFERROR(VLOOKUP(B60,'Enrollment 2122'!$A:$F,6,0),0) -> 15 | G60: 1764 | H60: =IFERROR(VLOOKUP(B60,'Enrollment 2122'!$A:$E,5,FALSE),0) -> 12 | I60: 5646 | J60: 23408 | K60: =IF(D60>$D$17,_xlfn.IFNA(VLOOKUP(B60,'other funds ftr 2021 for 2122'!$A:$I,9,FALSE),0),1) -> 0.85 | L60: 19897 | M60: =1+IF(ISNA(VLOOKUP(B60,'Rural and Low Income 2122'!$A:$B,2,FALSE)),0,'2021-22 Final'!$M$17) -> 1.1 | N60: 0 | Q60: 0 | R60: 0 | S60: 13761 | T60: -13761 | U60: N | W60: 0 | X60: 0
A61: 43 | B61: 08458 | C61: KELSO | D61: =IFERROR(VLOOKUP(B61,'Enrollment 2122'!$A:$D,4,0),0) -> 34 | E61: 15998 | F61: =IFERROR(VLOOKUP(B61,'Enrollment 2122'!$A:$F,6,0),0) -> 7 | G61: 823 | H61: =IFERROR(VLOOKUP(B61,'Enrollment 2122'!$A:$E,5,FALSE),0) -> 10 | I61: 4705 | J61: 21526 | K61: =IF(D61>$D$17,_xlfn.IFNA(VLOOKUP(B61,'other funds ftr 2021 for 2122'!$A:$I,9,FALSE),0),1) -> 0 | L61: 21526 | M61: =1+IF(ISNA(VLOOKUP(B61,'Rural and Low Income 2122'!$A:$B,2,FALSE)),0,'2021-22 Final'!$M$17) -> 1 | N61: 0 | Q61: 0 | R61: 0 | S61: 0 | T61: 0 | U61: N | W61: 0 | X61: 0
A62: 44 | B62: 03017 | C62: KENNEWICK | D62: =IFERROR(VLOOKUP(B62,'Enrollment 2122'!$A:$D,4,0),0) -> 3008 | E62: 1415356 | F62: =IFERROR(VLOOKUP(B62,'Enrollment 2122'!$A:$F,6,0),0) -> 959 | G62: 112810 | H62: =IFERROR(VLOOKUP(B62,'Enrollment 2122'!$A:$E,5,FALSE),0) -> 1020 | I62: 479941 | J62: 2008107 | K62: =IF(D62>$D$17,_xlfn.IFNA(VLOOKUP(B62,'other funds ftr 2021 for 2122'!$A:$I,9,FALSE),0),1) -> 1.05 | L62: 2108512 | M62: =1+IF(ISNA(VLOOKUP(B62,'Rural and Low Income 2122'!$A:$B,2,FALSE)),0,'2021-22 Final'!$M$17) -> 1 | N62: 2108512 | Q62: 0 | R62: 2108512 | S62: 1794682 | T62: 313830 | U62: Y | W62: 4000 | X62: 2112512
A63: 45 | B63: 17415 | C63: KENT | D63: =IFERROR(VLOOKUP(B63,'Enrollment 2122'!$A:$D,4,0),0) -> 50 | E63: 23527 | F63: =IFERROR(VLOOKUP(B63,'Enrollment 2122'!$A:$F,6,0),0) -> 15 | G63: 1764 | H63: =IFERROR(VLOOKUP(B63,'Enrollment 2122'!$A:$E,5,FALSE),0) -> 15 | I63: 7058 | J63: 32349 | K63: =IF(D63>$D$17,_xlfn.IFNA(VLOOKUP(B63,'other funds ftr 2021 for 2122'!$A:$I,9,FALSE),0),1) -> 0 | L63: 32349 | M63: =1+IF(ISNA(VLOOKUP(B63,'Rural and Low Income 2122'!$A:$B,2,FALSE)),0,'2021-22 Final'!$M$17) -> 1 | N63: 0 | Q63: 0 | R63: 0 | S63: 0 | T63: 0 | U63: N | W63: 0 | X63: 0
A64: 46 | B64: 03052 | C64: KIONA BENTON | D64: =IFERROR(VLOOKUP(B64,'Enrollment 2122'!$A:$D,4,0),0) -> 372 | E64: 175037 | F64: =IFERROR(VLOOKUP(B64,'Enrollment 2122'!$A:$F,6,0),0) -> 124 | G64: 14586 | H64: =IFERROR(VLOOKUP(B64,'Enrollment 2122'!$A:$E,5,FALSE),0) -> 83 | I64: 39054 | J64: 228677 | K64: =IF(D64>$D$17,_xlfn.IFNA(VLOOKUP(B64,'other funds ftr 2021 for 2122'!$A:$I,9,FALSE),0),1) -> 1.15 | L64: 262979 | M64: =1+IF(ISNA(VLOOKUP(B64,'Rural and Low Income 2122'!$A:$B,2,FALSE)),0,'2021-22 Final'!$M$17) -> 1 | N64: 262979 | Q64: 0 | R64: 262979 | S64: 204373 | T64: 58606 | U64: Y | V64: Y | W64: 2500 | X64: 265479
A65: 47 | B65: 19403 | C65: KITTITAS | D65: =IFERROR(VLOOKUP(B65,'Enrollment 2122'!$A:$D,4,0),0) -> 23 | E65: 10822 | F65: =IFERROR(VLOOKUP(B65,'Enrollment 2122'!$A:$F,6,0),0) -> 8 | G65: 941 | H65: =IFERROR(VLOOKUP(B65,'Enrollment 2122'!$A:$E,5,FALSE),0) -> 4 | I65: 1882 | J65: 13645 | K65: =IF(D65>$D$17,_xlfn.IFNA(VLOOKUP(B65,'other funds ftr 2021 for 2122'!$A:$I,9,FALSE),0),1) -> 0 | L65: 13645 | M65: =1+IF(ISNA(VLOOKUP(B65,'Rural and Low Income 2122'!$A:$B,2,FALSE)),0,'2021-22 Final'!$M$17) -> 1 | N65: 0 | Q65: 0 | R65: 0 | S65: 0 | T65: 0 | U65: N | W65: 0 | X65: 0
A66: 48 | B66: 29311 | C66: LA CONNER | D66: =IFERROR(VLOOKUP(B66,'Enrollment 2122'!$A:$D,4,0),0) -> 178 | E66: 83754 | F66: =IFERROR(VLOOKUP(B66,'Enrollment 2122'!$A:$F,6,0),0) -> 72 | G66: 8470 | H66: =IFERROR(VLOOKUP(B66,'Enrollment 2122'!$A:$E,5,FALSE),0) -> 59 | I66: 27761 | J66: 119985 | K66: =IF(D66>$D$17,_xlfn.IFNA(VLOOKUP(B66,'other funds ftr 2021 for 2122'!$A:$I,9,FALSE),0),1) -> 1.15 | L66: 137983 | M66: =1+IF(ISNA(VLOOKUP(B66,'Rural and Low Income 2122'!$A:$B,2,FALSE)),0,'2021-22 Final'!$M$17) -> 1 | N66: 137983 | Q66: 0 | R66: 137983 | S66: 127923 | T66: 10060 | U66: Y | W66: 2500 | X66: 140483
A67: 49 | B67: 04129 | C67: LAKE CHELAN | D67: =IFERROR(VLOOKUP(B67,'Enrollment 2122'!$A:$D,4,0),0) -> 223 | E67: 104928 | F67: =IFERROR(VLOOKUP(B67,'Enrollment 2122'!$A:$F,6,0),0) -> 52 | G67: 6117 | H67: =IFERROR(VLOOKUP(B67,'Enrollment 2122'!$A:$E,5,FALSE),0) -> 69 | I67: 32467 | J67: 143512 | K67: =IF(D67>$D$17,_xlfn.IFNA(VLOOKUP(B67,'other funds ftr 2021 for 2122'!$A:$I,9,FALSE),0),1) -> 1.05 | L67: 150688 | M67: =1+IF(ISNA(VLOOKUP(B67,'Rural and Low Income 2122'!$A:$B,2,FALSE)),0,'2021-22 Final'!$M$17) -> 1 | N67: 150688 | Q67: 0 | R67: 150688 | S67: 128259 | T67: 22429 | U67: Y | W67: 2500 | X67: 153188
A68: 50 | B68: 34307 | C68: LAKE QUINAULT | D68: =IFERROR(VLOOKUP(B68,'Enrollment 2122'!$A:$D,4,0),0) -> 0 | E68: 0 | F68: =IFERROR(VLOOKUP(B68,'Enrollment 2122'!$A:$F,6,0),0) -> 0 | G68: 0 | H68: =IFERROR(VLOOKUP(B68,'Enrollment 2122'!$A:$E,5,FALSE),0) -> 0 | I68: 0 | J68: 0 | K68: =IF(D68>$D$17,_xlfn.IFNA(VLOOKUP(B68,'other funds ftr 2021 for 2122'!$A:$I,9,FALSE),0),1) -> 1 | L68: 0 | M68: =1+IF(ISNA(VLOOKUP(B68,'Rural and Low Income 2122'!$A:$B,2,FALSE)),0,'2021-22 Final'!$M$17) -> 1 | N68: 0 | Q68: 0 | R68: 0 | S68: 0 | T68: 0 | U68: N | W68: 0 | X68: 0
A69: 51 | B69: 01158 | C69: LIND | D69: =IFERROR(VLOOKUP(B69,'Enrollment 2122'!$A:$D,4,0),0) -> 48 | E69: 22585 | F69: =IFERROR(VLOOKUP(B69,'Enrollment 2122'!$A:$F,6,0),0) -> 15 | G69: 1764 | H69: =IFERROR(VLOOKUP(B69,'Enrollment 2122'!$A:$E,5,FALSE),0) -> 11 | I69: 5176 | J69: 29525 | K69: =IF(D69>$D$17,_xlfn.IFNA(VLOOKUP(B69,'other funds ftr 2021 for 2122'!$A:$I,9,FALSE),0),1) -> 1.15 | L69: 33954 | M69: =1+IF(ISNA(VLOOKUP(B69,'Rural and Low Income 2122'!$A:$B,2,FALSE)),0,'2021-22 Final'!$M$17) -> 1 | N69: 33954 | Q69: 0 | R69: 33954 | S69: 31791 | T69: 2163 | U69: Y | W69: 1500 | X69: 35454
A70: 52 | B70: 08122 | C70: LONGVIEW | D70: =IFERROR(VLOOKUP(B70,'Enrollment 2122'!$A:$D,4,0),0) -> 52 | E70: 24468 | F70: =IFERROR(VLOOKUP(B70,'Enrollment 2122'!$A:$F,6,0),0) -> 13 | G70: 1529 | H70: =IFERROR(VLOOKUP(B70,'Enrollment 2122'!$A:$E,5,FALSE),0) -> 9 | I70: 4235 | J70: 30232 | K70: =IF(D70>$D$17,_xlfn.IFNA(VLOOKUP(B70,'other funds ftr 2021 for 2122'!$A:$I,9,FALSE),0),1) -> 0 | L70: 30232 | M70: =1+IF(ISNA(VLOOKUP(B70,'Rural and Low Income 2122'!$A:$B,2,FALSE)),0,'2021-22 Final'!$M$17) -> 1 | N70: 0 | Q70: 0 | R70: 0 | S70: 0 | T70: 0 | U70: N | W70: 0 | X70: 0
A71: 53 | B71: 37903 | C71: LUMMI TRIBAL AGENCY | D71: =IFERROR(VLOOKUP(B71,'Enrollment 2122'!$A:$D,4,0),0) -> 15 | E71: 7058 | F71: =IFERROR(VLOOKUP(B71,'Enrollment 2122'!$A:$F,6,0),0) -> 8 | G71: 941 | H71: =IFERROR(VLOOKUP(B71,'Enrollment 2122'!$A:$E,5,FALSE),0) -> 2 | I71: 941 | J71: 8940 | K71: =IF(D71>$D$17,_xlfn.IFNA(VLOOKUP(B71,'other funds ftr 2021 for 2122'!$A:$I,9,FALSE),0),1) -> 0 | L71: 8940 | M71: =1+IF(ISNA(VLOOKUP(B71,'Rural and Low Income 2122'!$A:$B,2,FALSE)),0,'2021-22 Final'!$M$17) -> 1 | N71: 8940 | Q71: 0 | R71: 8940 | S71: 7609 | T71: 1331 | U71: Y | W71: 1500 | X71: 10440
A72: 54 | B72: 20406 | C72: LYLE | D72: =IFERROR(VLOOKUP(B72,'Enrollment 2122'!$A:$D,4,0),0) -> 42 | E72: 19762 | F72: =IFERROR(VLOOKUP(B72,'Enrollment 2122'!$A:$F,6,0),0) -> 6 | G72: 706 | H72: =IFERROR(VLOOKUP(B72,'Enrollment 2122'!$A:$E,5,FALSE),0) -> 10 | I72: 4705 | J72: 25173 | K72: =IF(D72>$D$17,_xlfn.IFNA(VLOOKUP(B72,'other funds ftr 2021 for 2122'!$A:$I,9,FALSE),0),1) -> 1 | L72: 25173 | M72: =1+IF(ISNA(VLOOKUP(B72,'Rural and Low Income 2122'!$A:$B,2,FALSE)),0,'2021-22 Final'!$M$17) -> 1 | N72: 0 | Q72: 0 | R72: 0 | S72: 0 | T72: 0 | U72: N | W72: 0 | X72: 0
A73: 55 | B73: 37504 | C73: LYNDEN | D73: =IFERROR(VLOOKUP(B73,'Enrollment 2122'!$A:$D,4,0),0) -> 190 | E73: 89401 | F73: =IFERROR(VLOOKUP(B73,'Enrollment 2122'!$A:$F,6,0),0) -> 26 | G73: 3058 | H73: =IFERROR(VLOOKUP(B73,'Enrollment 2122'!$A:$E,5,FALSE),0) -> 43 | I73: 20233 | J73: 112692 | K73: =IF(D73>$D$17,_xlfn.IFNA(VLOOKUP(B73,'other funds ftr 2021 for 2122'!$A:$I,9,FALSE),0),1) -> 1 | L73: 112692 | M73: =1+IF(ISNA(VLOOKUP(B73,'Rural and Low Income 2122'!$A:$B,2,FALSE)),0,'2021-22 Final'!$M$17) -> 1 | N73: 112692 | Q73: 0 | R73: 112692 | S73: 95918 | T73: 16774 | U73: Y | W73: 2500 | X73: 115192
A74: 56 | B74: 39120 | C74: MABTON | D74: =IFERROR(VLOOKUP(B74,'Enrollment 2122'!$A:$D,4,0),0) -> 364 | E74: 171273 | F74: =IFERROR(VLOOKUP(B74,'Enrollment 2122'!$A:$F,6,0),0) -> 107 | G74: 12587 | H74: =IFERROR(VLOOKUP(B74,'Enrollment 2122'!$A:$E,5,FALSE),0) -> 96 | I74: 45171 | J74: 229031 | K74: =IF(D74>$D$17,_xlfn.IFNA(VLOOKUP(B74,'other funds ftr 2021 for 2122'!$A:$I,9,FALSE),0),1) -> 1.15 | L74: 263386 | M74: =1+IF(ISNA(VLOOKUP(B74,'Rural and Low Income 2122'!$A:$B,2,FALSE)),0,'2021-22 Final'!$M$17) -> 1.1 | N74: 289725 | Q74: 0 | R74: 289725 | S74: 222916 | T74: 66809 | U74: Y | W74: 2500 | X74: 292225
A75: 57 | B75: 04019 | C75: MANSON | D75: =IFERROR(VLOOKUP(B75,'Enrollment 2122'!$A:$D,4,0),0) -> 100 | E75: 47053 | F75: =IFERROR(VLOOKUP(B75,'Enrollment 2122'!$A:$F,6,0),0) -> 9 | G75: 1059 | H75: =IFERROR(VLOOKUP(B75,'Enrollment 2122'!$A:$E,5,FALSE),0) -> 31 | I75: 14586 | J75: 62698 | K75: =IF(D75>$D$17,_xlfn.IFNA(VLOOKUP(B75,'other funds ftr 2021 for 2122'!$A:$I,9,FALSE),0),1) -> 1 | L75: 62698 | M75: =1+IF(ISNA(VLOOKUP(B75,'Rural and Low Income 2122'!$A:$B,2,FALSE)),0,'2021-22 Final'!$M$17) -> 1 | N75: 62698 | Q75: 0 | R75: 62698 | S75: 53366 | T75: 9332 | U75: Y | W75: 2500 | X75: 65198
A76: 58 | B76: 31025 | C76: MARYSVILLE | D76: =IFERROR(VLOOKUP(B76,'Enrollment 2122'!$A:$D,4,0),0) -> 247 | E76: 116221 | F76: =IFERROR(VLOOKUP(B76,'Enrollment 2122'!$A:$F,6,0),0) -> 75 | G76: 8822 | H76: =IFERROR(VLOOKUP(B76,'Enrollment 2122'!$A:$E,5,FALSE),0) -> 61 | I76: 28702 | J76: 153745 | K76: =IF(D76>$D$17,_xlfn.IFNA(VLOOKUP(B76,'other funds ftr 2021 for 2122'!$A:$I,9,FALSE),0),1) -> 0.85 | L76: 130683 | M76: =1+IF(ISNA(VLOOKUP(B76,'Rural and Low Income 2122'!$A:$B,2,FALSE)),0,'2021-22 Final'!$M$17) -> 1 | N76: 130683 | Q76: 0 | R76: 130683 | S76: 114381 | T76: 16302 | U76: Y | W76: 2500 | X76: 133183
A77: 59 | B77: 37505 | C77: MERIDIAN | D77: =IFERROR(VLOOKUP(B77,'Enrollment 2122'!$A:$D,4,0),0) -> 48 | E77: 22585 | F77: =IFERROR(VLOOKUP(B77,'Enrollment 2122'!$A:$F,6,0),0) -> 19 | G77: 2235 | H77: =IFERROR(VLOOKUP(B77,'Enrollment 2122'!$A:$E,5,FALSE),0) -> 10 | I77: 4705 | J77: 29525 | K77: =IF(D77>$D$17,_xlfn.IFNA(VLOOKUP(B77,'other funds ftr 2021 for 2122'!$A:$I,9,FALSE),0),1) -> 0 | L77: 29525 | M77: =1+IF(ISNA(VLOOKUP(B77,'Rural and Low Income 2122'!$A:$B,2,FALSE)),0,'2021-22 Final'!$M$17) -> 1 | N77: 0 | Q77: 0 | R77: 0 | S77: 0 | T77: 0 | U77: N | W77: 0 | X77: 0
A78: 60 | B78: 31103 | C78: MONROE | D78: =IFERROR(VLOOKUP(B78,'Enrollment 2122'!$A:$D,4,0),0) -> 10 | E78: 4705 | F78: =IFERROR(VLOOKUP(B78,'Enrollment 2122'!$A:$F,6,0),0) -> 3 | G78: 353 | H78: =IFERROR(VLOOKUP(B78,'Enrollment 2122'!$A:$E,5,FALSE),0) -> 0 | I78: 0 | J78: 5058 | K78: =IF(D78>$D$17,_xlfn.IFNA(VLOOKUP(B78,'other funds ftr 2021 for 2122'!$A:$I,9,FALSE),0),1) -> 1 | L78: 5058 | M78: =1+IF(ISNA(VLOOKUP(B78,'Rural and Low Income 2122'!$A:$B,2,FALSE)),0,'2021-22 Final'!$M$17) -> 1 | N78: 0 | Q78: 0 | R78: 0 | S78: 0 | T78: 0 | U78: N | W78: 0 | X78: 0
A79: 61 | B79: 13161 | C79: MOSES LAKE | D79: =IFERROR(VLOOKUP(B79,'Enrollment 2122'!$A:$D,4,0),0) -> 497 | E79: 233854 | F79: =IFERROR(VLOOKUP(B79,'Enrollment 2122'!$A:$F,6,0),0) -> 139 | G79: 16351 | H79: =IFERROR(VLOOKUP(B79,'Enrollment 2122'!$A:$E,5,FALSE),0) -> 142 | I79: 66815 | J79: 317020 | K79: =IF(D79>$D$17,_xlfn.IFNA(VLOOKUP(B79,'other funds ftr 2021 for 2122'!$A:$I,9,FALSE),0),1) -> 0.95 | L79: 301169 | M79: =1+IF(ISNA(VLOOKUP(B79,'Rural and Low Income 2122'!$A:$B,2,FALSE)),0,'2021-22 Final'!$M$17) -> 1 | N79: 301169 | Q79: 0 | R79: 301169 | S79: 256343 | T79: 44826 | U79: Y | W79: 4000 | X79: 305169
A80: 62 | B80: 21206 | C80: MOSSYROCK | D80: =IFERROR(VLOOKUP(B80,'Enrollment 2122'!$A:$D,4,0),0) -> 49 | E80: 23056 | F80: =IFERROR(VLOOKUP(B80,'Enrollment 2122'!$A:$F,6,0),0) -> 9 | G80: 1059 | H80: =IFERROR(VLOOKUP(B80,'Enrollment 2122'!$A:$E,5,FALSE),0) -> 21 | I80: 9881 | J80: 33996 | K80: =IF(D80>$D$17,_xlfn.IFNA(VLOOKUP(B80,'other funds ftr 2021 for 2122'!$A:$I,9,FALSE),0),1) -> 0.95 | L80: 32296 | M80: =1+IF(ISNA(VLOOKUP(B80,'Rural and Low Income 2122'!$A:$B,2,FALSE)),0,'2021-22 Final'!$M$17) -> 1 | N80: 32296 | Q80: 0 | R80: 32296 | S80: 25425 | T80: 6871 | U80: Y | W80: 1500 | X80: 33796
A81: 63 | B81: 29320 | C81: MOUNT VERNON | D81: =IFERROR(VLOOKUP(B81,'Enrollment 2122'!$A:$D,4,0),0) -> 1586 | E81: 746261 | F81: =IFERROR(VLOOKUP(B81,'Enrollment 2122'!$A:$F,6,0),0) -> 549 | G81: 64580 | H81: =IFERROR(VLOOKUP(B81,'Enrollment 2122'!$A:$E,5,FALSE),0) -> 490 | I81: 230560 | J81: 1041401 | K81: =IF(D81>$D$17,_xlfn.IFNA(VLOOKUP(B81,'other funds ftr 2021 for 2122'!$A:$I,9,FALSE),0),1) -> 1.15 | L81: 1197611 | M81: =1+IF(ISNA(VLOOKUP(B81,'Rural and Low Income 2122'!$A:$B,2,FALSE)),0,'2021-22 Final'!$M$17) -> 1 | N81: 1197611 | Q81: 0 | R81: 1197611 | S81: 930719 | T81: 266892 | U81: Y | W81: 4000 | X81: 1201611
A82: 64 | B82: 39209 | C82: MT ADAMS | D82: =IFERROR(VLOOKUP(B82,'Enrollment 2122'!$A:$D,4,0),0) -> 159 | E82: 74814 | F82: =IFERROR(VLOOKUP(B82,'Enrollment 2122'!$A:$F,6,0),0) -> 34 | G82: 4000 | H82: =IFERROR(VLOOKUP(B82,'Enrollment 2122'!$A:$E,5,FALSE),0) -> 33 | I82: 15528 | J82: 94342 | K82: =IF(D82>$D$17,_xlfn.IFNA(VLOOKUP(B82,'other funds ftr 2021 for 2122'!$A:$I,9,FALSE),0),1) -> 0 | L82: 94342 | M82: =1+IF(ISNA(VLOOKUP(B82,'Rural and Low Income 2122'!$A:$B,2,FALSE)),0,'2021-22 Final'!$M$17) -> 1.1 | N82: 103776 | Q82: 0 | R82: 103776 | S82: 0 | T82: 103776 | U82: Y | W82: 2500 | X82: 106276
A83: 65 | B83: 37507 | C83: MT BAKER | D83: =IFERROR(VLOOKUP(B83,'Enrollment 2122'!$A:$D,4,0),0) -> 46 | E83: 21644 | F83: =IFERROR(VLOOKUP(B83,'Enrollment 2122'!$A:$F,6,0),0) -> 3 | G83: 353 | H83: =IFERROR(VLOOKUP(B83,'Enrollment 2122'!$A:$E,5,FALSE),0) -> 18 | I83: 8470 | J83: =+E83+G83+I83 -> 30467 | K83: =IF(D83>$D$17,_xlfn.IFNA(VLOOKUP(B83,'other funds ftr 2021 for 2122'!$A:$I,9,FALSE),0),1) -> 0.85 | L83: =IF(K83=0,J83,ROUND(J83*K83,0)) -> 25897 | M83: =1+IF(ISNA(VLOOKUP(B83,'Rural and Low Income 2122'!$A:$B,2,FALSE)),0,'2021-22 Final'!$M$17) -> 1 | N83: =IF(U83="y",ROUND(L83*M83,0),0) -> 25897 | Q83: 0 | R83: =N83+Q83 -> 25897 | S83: 14723 | T83: =R83-S83 -> 11174 | U83: Y | W83: 1500 | X83: 27397
A84: 66 | B84: 17903 | C84: MUCKLESHOOT TRIBAL SCHOOL | D84: =IFERROR(VLOOKUP(B84,'Enrollment 2122'!$A:$D,4,0),0) -> 24 | E84: =IF(D84>=10,ROUND(D84*$F$3,0),0) -> 11293 | F84: =IFERROR(VLOOKUP(B84,'Enrollment 2122'!$A:$F,6,0),0) -> 8 | G84: =IF(D84>=$D$17,ROUND(F84*$F$3*$F$17,0),0) -> 941 | H84: =IFERROR(VLOOKUP(B84,'Enrollment 2122'!$A:$E,5,FALSE),0) -> 6 | I84: =IF(D84>=$D$17,ROUND(H84*$F$3*$H$17,0),0) -> 2823 | J84: 15057 | K84: =IF(D84>$D$17,_xlfn.IFNA(VLOOKUP(B84,'other funds ftr 2021 for 2122'!$A:$I,9,FALSE),0),1) -> 0 | L84: 15057 | M84: =1+IF(ISNA(VLOOKUP(B84,'Rural and Low Income 2122'!$A:$B,2,FALSE)),0,'2021-22 Final'!$M$17) -> 1 | N84: 15057 | Q84: 0 | R84: 15057 | S84: 8009 | T84: 7048 | U84: Y | W84: =IF(U84="Y",IF(D84<=99,1500,IF(AND(D84>=100,D84<=399),2500,4000)),0) -> 1500 | X84: =W84+R84 -> 16557
A85: 67 | B85: 31006 | C85: MUKILTEO | D85: =IFERROR(VLOOKUP(B85,'Enrollment 2122'!$A:$D,4,0),0) -> 33 | E85: 15528 | F85: =IFERROR(VLOOKUP(B85,'Enrollment 2122'!$A:$F,6,0),0) -> 15 | G85: 1764 | H85: =IFERROR(VLOOKUP(B85,'Enrollment 2122'!$A:$E,5,FALSE),0) -> 8 | I85: 3764 | J85: 21056 | K85: =IF(D85>$D$17,_xlfn.IFNA(VLOOKUP(B85,'other funds ftr 2021 for 2122'!$A:$I,9,FALSE),0),1) -> 0 | L85: 21056 | M85: =1+IF(ISNA(VLOOKUP(B85,'Rural and Low Income 2122'!$A:$B,2,FALSE)),0,'2021-22 Final'!$M$17) -> 1 | N85: 0 | Q85: 0 | R85: 0 | S85: 0 | T85: 0 | U85: N | V85: Y | W85: 0 | X85: 0
A86: 68 | B86: 39003 | C86: NACHES VALLEY | D86: =IFERROR(VLOOKUP(B86,'Enrollment 2122'!$A:$D,4,0),0) -> 128 | E86: 60228 | F86: =IFERROR(VLOOKUP(B86,'Enrollment 2122'!$A:$F,6,0),0) -> 35 | G86: 4117 | H86: =IFERROR(VLOOKUP(B86,'Enrollment 2122'!$A:$E,5,FALSE),0) -> 40 | I86: 18821 | J86: 83166 | K86: =IF(D86>$D$17,_xlfn.IFNA(VLOOKUP(B86,'other funds ftr 2021 for 2122'!$A:$I,9,FALSE),0),1) -> 0 | L86: 83166 | M86: =1+IF(ISNA(VLOOKUP(B86,'Rural and Low Income 2122'!$A:$B,2,FALSE)),0,'2021-22 Final'!$M$17) -> 1 | N86: 0 | Q86: 0 | R86: 0 | S86: 0 | T86: 0 | U86: N | V86: Y | W86: 0 | X86: 0
A87: 69 | B87: 25155 | C87: NASELLE-GRAYS RIVER | D87: =IFERROR(VLOOKUP(B87,'Enrollment 2122'!$A:$D,4,0),0) -> 75 | E87: 35290 | F87: =IFERROR(VLOOKUP(B87,'Enrollment 2122'!$A:$F,6,0),0) -> 18 | G87: 2117 | H87: =IFERROR(VLOOKUP(B87,'Enrollment 2122'!$A:$E,5,FALSE),0) -> 12 | I87: 5646 | J87: 43053 | K87: =IF(D87>$D$17,_xlfn.IFNA(VLOOKUP(B87,'other funds ftr 2021 for 2122'!$A:$I,9,FALSE),0),1) -> 1.15 | L87: 49511 | M87: =1+IF(ISNA(VLOOKUP(B87,'Rural and Low Income 2122'!$A:$B,2,FALSE)),0,'2021-22 Final'!$M$17) -> 1 | N87: 49511 | Q87: 0 | R87: 49511 | S87: 46356 | T87: 3155 | U87: Y | W87: 1500 | X87: 51011
A88: 70 | B88: 24014 | C88: NESPELEM | D88: =IFERROR(VLOOKUP(B88,'Enrollment 2122'!$A:$D,4,0),0) -> 44 | E88: 20703 | F88: =IFERROR(VLOOKUP(B88,'Enrollment 2122'!$A:$F,6,0),0) -> 9 | G88: 1059 | H88: =IFERROR(VLOOKUP(B88,'Enrollment 2122'!$A:$E,5,FALSE),0) -> 7 | I88: 3294 | J88: 25056 | K88: =IF(D88>$D$17,_xlfn.IFNA(VLOOKUP(B88,'other funds ftr 2021 for 2122'!$A:$I,9,FALSE),0),1) -> 1 | L88: 25056 | M88: =1+IF(ISNA(VLOOKUP(B88,'Rural and Low Income 2122'!$A:$B,2,FALSE)),0,'2021-22 Final'!$M$17) -> 1 | N88: 25056 | Q88: 0 | R88: 25056 | S88: 17402 | T88: 7654 | U88: Y | W88: 1500 | X88: 26556
A89: 71 | B89: 37506 | C89: NOOKSACK VALLEY | D89: =IFERROR(VLOOKUP(B89,'Enrollment 2122'!$A:$D,4,0),0) -> 201 | E89: 94577 | F89: =IFERROR(VLOOKUP(B89,'Enrollment 2122'!$A:$F,6,0),0) -> 27 | G89: 3176 | H89: =IFERROR(VLOOKUP(B89,'Enrollment 2122'!$A:$E,5,FALSE),0) -> 29 | I89: 13645 | J89: 111398 | K89: =IF(D89>$D$17,_xlfn.IFNA(VLOOKUP(B89,'other funds ftr 2021 for 2122'!$A:$I,9,FALSE),0),1) -> 1 | L89: 111398 | M89: =1+IF(ISNA(VLOOKUP(B89,'Rural and Low Income 2122'!$A:$B,2,FALSE)),0,'2021-22 Final'!$M$17) -> 1 | N89: 111398 | Q89: 0 | R89: 111398 | S89: 94817 | T89: 16581 | U89: Y | W89: 2500 | X89: 113898
A90: 72 | B90: 14064 | C90: NORTH BEACH | D90: =IFERROR(VLOOKUP(B90,'Enrollment 2122'!$A:$D,4,0),0) -> 26 | E90: 12234 | F90: =IFERROR(VLOOKUP(B90,'Enrollment 2122'!$A:$F,6,0),0) -> 6 | G90: 706 | H90: =IFERROR(VLOOKUP(B90,'Enrollment 2122'!$A:$E,5,FALSE),0) -> 7 | I90: 3294 | J90: 16234 | K90: =IF(D90>$D$17,_xlfn.IFNA(VLOOKUP(B90,'other funds ftr 2021 for 2122'!$A:$I,9,FALSE),0),1) -> 0.85 | L90: 13799 | M90: =1+IF(ISNA(VLOOKUP(B90,'Rural and Low Income 2122'!$A:$B,2,FALSE)),0,'2021-22 Final'!$M$17) -> 1 | N90: 13799 | Q90: 0 | R90: 13799 | S90: 7914 | T90: 5885 | U90: Y | W90: 1500 | X90: 15299
A91: 73 | B91: 11051 | C91: NORTH FRANKLIN | D91: =IFERROR(VLOOKUP(B91,'Enrollment 2122'!$A:$D,4,0),0) -> 657 | E91: 309139 | F91: =IFERROR(VLOOKUP(B91,'Enrollment 2122'!$A:$F,6,0),0) -> 231 | G91: 27173 | H91: =IFERROR(VLOOKUP(B91,'Enrollment 2122'!$A:$E,5,FALSE),0) -> 251 | I91: 118103 | J91: 454415 | K91: =IF(D91>$D$17,_xlfn.IFNA(VLOOKUP(B91,'other funds ftr 2021 for 2122'!$A:$I,9,FALSE),0),1) -> 1.15 | L91: 522577 | M91: =1+IF(ISNA(VLOOKUP(B91,'Rural and Low Income 2122'!$A:$B,2,FALSE)),0,'2021-22 Final'!$M$17) -> 1.1 | N91: 574835 | Q91: 0 | R91: 574835 | S91: 489277 | T91: 85558 | U91: Y | W91: 4000 | X91: 578835
A92: 74 | B92: 18400 | C92: NORTH KITSAP | D92: =IFERROR(VLOOKUP(B92,'Enrollment 2122'!$A:$D,4,0),0) -> 65 | E92: 30584 | F92: =IFERROR(VLOOKUP(B92,'Enrollment 2122'!$A:$F,6,0),0) -> 28 | G92: 3294 | H92: =IFERROR(VLOOKUP(B92,'Enrollment 2122'!$A:$E,5,FALSE),0) -> 12 | I92: 5646 | J92: 39524 | K92: =IF(D92>$D$17,_xlfn.IFNA(VLOOKUP(B92,'other funds ftr 2021 for 2122'!$A:$I,9,FALSE),0),1) -> 0 | L92: 39524 | M92: =1+IF(ISNA(VLOOKUP(B92,'Rural and Low Income 2122'!$A:$B,2,FALSE)),0,'2021-22 Final'!$M$17) -> 1 | N92: 0 | Q92: 0 | R92: 0 | S92: 0 | T92: 0 | U92: N | W92: 0 | X92: 0
A93: 75 | B93: 34003 | C93: NORTH THURSTON | D93: =IFERROR(VLOOKUP(B93,'Enrollment 2122'!$A:$D,4,0),0) -> 39 | E93: 18351 | F93: =IFERROR(VLOOKUP(B93,'Enrollment 2122'!$A:$F,6,0),0) -> 14 | G93: 1647 | H93: =IFERROR(VLOOKUP(B93,'Enrollment 2122'!$A:$E,5,FALSE),0) -> 16 | I93: 7528 | J93: 27526 | K93: =IF(D93>$D$17,_xlfn.IFNA(VLOOKUP(B93,'other funds ftr 2021 for 2122'!$A:$I,9,FALSE),0),1) -> 0 | L93: 27526 | M93: =1+IF(ISNA(VLOOKUP(B93,'Rural and Low Income 2122'!$A:$B,2,FALSE)),0,'2021-22 Final'!$M$17) -> 1 | N93: 0 | Q93: 0 | R93: 0 | S93: 0 | T93: 0 | U93: N | W93: 0 | X93: 0
A94: 76 | B94: 15201 | C94: OAK HARBOR | D94: =IFERROR(VLOOKUP(B94,'Enrollment 2122'!$A:$D,4,0),0) -> 23 | E94: 10822 | F94: =IFERROR(VLOOKUP(B94,'Enrollment 2122'!$A:$F,6,0),0) -> 8 | G94: 941 | H94: =IFERROR(VLOOKUP(B94,'Enrollment 2122'!$A:$E,5,FALSE),0) -> 12 | I94: 5646 | J94: 17409 | K94: =IF(D94>$D$17,_xlfn.IFNA(VLOOKUP(B94,'other funds ftr 2021 for 2122'!$A:$I,9,FALSE),0),1) -> 0 | L94: 17409 | M94: =1+IF(ISNA(VLOOKUP(B94,'Rural and Low Income 2122'!$A:$B,2,FALSE)),0,'2021-22 Final'!$M$17) -> 1 | N94: 0 | Q94: 0 | R94: 0 | S94: 0 | T94: 0 | U94: N | W94: 0 | X94: 0
A95: 77 | B95: 25101 | C95: OCEAN BEACH | D95: =IFERROR(VLOOKUP(B95,'Enrollment 2122'!$A:$D,4,0),0) -> 56 | E95: 26350 | F95: =IFERROR(VLOOKUP(B95,'Enrollment 2122'!$A:$F,6,0),0) -> 24 | G95: 2823 | H95: =IFERROR(VLOOKUP(B95,'Enrollment 2122'!$A:$E,5,FALSE),0) -> 15 | I95: 7058 | J95: 36231 | K95: =IF(D95>$D$17,_xlfn.IFNA(VLOOKUP(B95,'other funds ftr 2021 for 2122'!$A:$I,9,FALSE),0),1) -> 0.95 | L95: 34419 | M95: =1+IF(ISNA(VLOOKUP(B95,'Rural and Low Income 2122'!$A:$B,2,FALSE)),0,'2021-22 Final'!$M$17) -> 1 | N95: 34419 | Q95: 0 | R95: 34419 | S95: 35143 | T95: -724 | U95: Y | W95: 1500 | X95: 35919
A96: 78 | B96: 14172 | C96: OCOSTA | D96: =IFERROR(VLOOKUP(B96,'Enrollment 2122'!$A:$D,4,0),0) -> 56 | E96: 26350 | F96: =IFERROR(VLOOKUP(B96,'Enrollment 2122'!$A:$F,6,0),0) -> 15 | G96: 1764 | H96: =IFERROR(VLOOKUP(B96,'Enrollment 2122'!$A:$E,5,FALSE),0) -> 18 | I96: 8470 | J96: 36584 | K96: =IF(D96>$D$17,_xlfn.IFNA(VLOOKUP(B96,'other funds ftr 2021 for 2122'!$A:$I,9,FALSE),0),1) -> 0.95 | L96: 34755 | M96: =1+IF(ISNA(VLOOKUP(B96,'Rural and Low Income 2122'!$A:$B,2,FALSE)),0,'2021-22 Final'!$M$17) -> 1.1 | N96: 38231 | Q96: 0 | R96: 38231 | S96: 32540 | T96: 5691 | U96: Y | W96: 1500 | X96: 39731
A97: 79 | B97: 24105 | C97: OKANOGAN | D97: =IFERROR(VLOOKUP(B97,'Enrollment 2122'!$A:$D,4,0),0) -> 83 | E97: 39054 | F97: =IFERROR(VLOOKUP(B97,'Enrollment 2122'!$A:$F,6,0),0) -> 24 | G97: 2823 | H97: =IFERROR(VLOOKUP(B97,'Enrollment 2122'!$A:$E,5,FALSE),0) -> 23 | I97: 10822 | J97: 52699 | K97: =IF(D97>$D$17,_xlfn.IFNA(VLOOKUP(B97,'other funds ftr 2021 for 2122'!$A:$I,9,FALSE),0),1) -> 0 | L97: 52699 | M97: =1+IF(ISNA(VLOOKUP(B97,'Rural and Low Income 2122'!$A:$B,2,FALSE)),0,'2021-22 Final'!$M$17) -> 1.1 | N97: 0 | Q97: 0 | R97: 0 | S97: 0 | T97: 0 | U97: N | W97: 0 | X97: 0
A98: 80 | B98: 34111 | C98: OLYMPIA | D98: =IFERROR(VLOOKUP(B98,'Enrollment 2122'!$A:$D,4,0),0) -> 30 | E98: 14116 | F98: =IFERROR(VLOOKUP(B98,'Enrollment 2122'!$A:$F,6,0),0) -> 5 | G98: 588 | H98: =IFERROR(VLOOKUP(B98,'Enrollment 2122'!$A:$E,5,FALSE),0) -> 10 | I98: 4705 | J98: 19409 | K98: =IF(D98>$D$17,_xlfn.IFNA(VLOOKUP(B98,'other funds ftr 2021 for 2122'!$A:$I,9,FALSE),0),1) -> 0.85 | L98: 16498 | M98: =1+IF(ISNA(VLOOKUP(B98,'Rural and Low Income 2122'!$A:$B,2,FALSE)),0,'2021-22 Final'!$M$17) -> 1 | N98: 16498 | Q98: 0 | R98: 16498 | S98: 8681 | T98: 7817 | U98: Y | W98: 1500 | X98: 17998
A99: 81 | B99: 24019 | C99: OMAK | D99: =IFERROR(VLOOKUP(B99,'Enrollment 2122'!$A:$D,4,0),0) -> 60 | E99: 28232 | F99: =IFERROR(VLOOKUP(B99,'Enrollment 2122'!$A:$F,6,0),0) -> 24 | G99: 2823 | H99: =IFERROR(VLOOKUP(B99,'Enrollment 2122'!$A:$E,5,FALSE),0) -> 15 | I99: 7058 | J99: 38113 | K99: =IF(D99>$D$17,_xlfn.IFNA(VLOOKUP(B99,'other funds ftr 2021 for 2122'!$A:$I,9,FALSE),0),1) -> 0 | L99: 38113 | M99: =1+IF(ISNA(VLOOKUP(B99,'Rural and Low Income 2122'!$A:$B,2,FALSE)),0,'2021-22 Final'!$M$17) -> 1.1 | N99: 0 | Q99: 0 | R99: 0 | S99: 0 | T99: 0 | U99: N | W99: 0 | X99: 0
A100: 82 | B100: 09013 | C100: ORONDO | D100: =IFERROR(VLOOKUP(B100,'Enrollment 2122'!$A:$D,4,0),0) -> 89 | E100: 41877 | F100: =IFERROR(VLOOKUP(B100,'Enrollment 2122'!$A:$F,6,0),0) -> 15 | G100: 1764 | H100: =IFERROR(VLOOKUP(B100,'Enrollment 2122'!$A:$E,5,FALSE),0) -> 11 | I100: 5176 | J100: 48817 | K100: =IF(D100>$D$17,_xlfn.IFNA(VLOOKUP(B100,'other funds ftr 2021 for 2122'!$A:$I,9,FALSE),0),1) -> 1.15 | L100: 56140 | M100: =1+IF(ISNA(VLOOKUP(B100,'Rural and Low Income 2122'!$A:$B,2,FALSE)),0,'2021-22 Final'!$M$17) -> 1 | N100: 56140 | Q100: =ROUND(IF(P100>0,-(0.9-P100)*N100,0),0) -> 0 | R100: 56140 | S100: 52562 | T100: 3578 | U100: Y | W100: 1500 | X100: 57640
A101: 83 | B101: 24410 | C101: OROVILLE | D101: =IFERROR(VLOOKUP(B101,'Enrollment 2122'!$A:$D,4,0),0) -> 79 | E101: 37172 | F101: =IFERROR(VLOOKUP(B101,'Enrollment 2122'!$A:$F,6,0),0) -> 21 | G101: 2470 | H101: =IFERROR(VLOOKUP(B101,'Enrollment 2122'!$A:$E,5,FALSE),0) -> 14 | I101: 6587 | J101: 46229 | K101: =IF(D101>$D$17,_xlfn.IFNA(VLOOKUP(B101,'other funds ftr 2021 for 2122'!$A:$I,9,FALSE),0),1) -> 0 | L101: 46229 | M101: =1+IF(ISNA(VLOOKUP(B101,'Rural and Low Income 2122'!$A:$B,2,FALSE)),0,'2021-22 Final'!$M$17) -> 1.1 | N101: 0 | Q101: 0 | R101: 0 | S101: 0 | T101: 0 | U101: N | W101: 0 | X101: 0
A102: 84 | B102: 01147 | C102: OTHELLO | D102: =IFERROR(VLOOKUP(B102,'Enrollment 2122'!$A:$D,4,0),0) -> 1003 | E102: 471942 | F102: =IFERROR(VLOOKUP(B102,'Enrollment 2122'!$A:$F,6,0),0) -> 252 | G102: 29643 | H102: =IFERROR(VLOOKUP(B102,'Enrollment 2122'!$A:$E,5,FALSE),0) -> 271 | I102: 127514 | J102: 629099 | K102: =IF(D102>$D$17,_xlfn.IFNA(VLOOKUP(B102,'other funds ftr 2021 for 2122'!$A:$I,9,FALSE),0),1) -> 1.05 | L102: 660554 | M102: =1+IF(ISNA(VLOOKUP(B102,'Rural and Low Income 2122'!$A:$B,2,FALSE)),0,'2021-22 Final'!$M$17) -> 1.1 | N102: 726609 | Q102: 0 | R102: 726609 | S102: 618461 | T102: 108148 | U102: Y | W102: 4000 | X102: 730609
A103: 85 | B103: 11001 | C103: PASCO | D103: =IFERROR(VLOOKUP(B103,'Enrollment 2122'!$A:$D,4,0),0) -> 1971 | E103: 927416 | F103: =IFERROR(VLOOKUP(B103,'Enrollment 2122'!$A:$F,6,0),0) -> 510 | G103: 59993 | H103: =IFERROR(VLOOKUP(B103,'Enrollment 2122'!$A:$E,5,FALSE),0) -> 499 | I103: 234795 | J103: 1222204 | K103: =IF(D103>$D$17,_xlfn.IFNA(VLOOKUP(B103,'other funds ftr 2021 for 2122'!$A:$I,9,FALSE),0),1) -> 1 | L103: 1222204 | M103: =1+IF(ISNA(VLOOKUP(B103,'Rural and Low Income 2122'!$A:$B,2,FALSE)),0,'2021-22 Final'!$M$17) -> 1 | N103: 1222204 | Q103: 0 | R103: 1222204 | S103: 1040290 | T103: 181914 | U103: Y | W103: 4000 | X103: 1226204
A104: 86 | B104: 24122 | C104: PATEROS | D104: =IFERROR(VLOOKUP(B104,'Enrollment 2122'!$A:$D,4,0),0) -> 68 | E104: 31996 | F104: =IFERROR(VLOOKUP(B104,'Enrollment 2122'!$A:$F,6,0),0) -> 11 | G104: 1294 | H104: =IFERROR(VLOOKUP(B104,'Enrollment 2122'!$A:$E,5,FALSE),0) -> 23 | I104: 10822 | J104: 44112 | K104: =IF(D104>$D$17,_xlfn.IFNA(VLOOKUP(B104,'other funds ftr 2021 for 2122'!$A:$I,9,FALSE),0),1) -> 1.05 | L104: 46318 | M104: =1+IF(ISNA(VLOOKUP(B104,'Rural and Low Income 2122'!$A:$B,2,FALSE)),0,'2021-22 Final'!$M$17) -> 1 | N104: 46318 | Q104: 0 | R104: 46318 | S104: 43365 | T104: 2953 | U104: Y | W104: 1500 | X104: 47818
A105: 87 | B105: 03050 | C105: PATERSON | D105: =IFERROR(VLOOKUP(B105,'Enrollment 2122'!$A:$D,4,0),0) -> 22 | E105: 10352 | F105: =IFERROR(VLOOKUP(B105,'Enrollment 2122'!$A:$F,6,0),0) -> 5 | G105: 588 | H105: =IFERROR(VLOOKUP(B105,'Enrollment 2122'!$A:$E,5,FALSE),0) -> 7 | I105: 3294 | J105: 14234 | K105: =IF(D105>$D$17,_xlfn.IFNA(VLOOKUP(B105,'other funds ftr 2021 for 2122'!$A:$I,9,FALSE),0),1) -> 1.05 | L105: 14946 | M105: =1+IF(ISNA(VLOOKUP(B105,'Rural and Low Income 2122'!$A:$B,2,FALSE)),0,'2021-22 Final'!$M$17) -> 1 | N105: 14946 | Q105: 0 | R105: 14946 | S105: 15325 | T105: -379 | U105: Y | W105: 1500 | X105: 16446
A106: 88 | B106: 36402 | C106: PRESCOTT | D106: =IFERROR(VLOOKUP(B106,'Enrollment 2122'!$A:$D,4,0),0) -> 41 | E106: 19292 | F106: =IFERROR(VLOOKUP(B106,'Enrollment 2122'!$A:$F,6,0),0) -> 9 | G106: 1059 | H106: =IFERROR(VLOOKUP(B106,'Enrollment 2122'!$A:$E,5,FALSE),0) -> 4 | I106: 1882 | J106: 22233 | K106: =IF(D106>$D$17,_xlfn.IFNA(VLOOKUP(B106,'other funds ftr 2021 for 2122'!$A:$I,9,FALSE),0),1) -> 0.95 | L106: 21121 | M106: =1+IF(ISNA(VLOOKUP(B106,'Rural and Low Income 2122'!$A:$B,2,FALSE)),0,'2021-22 Final'!$M$17) -> 1 | N106: 21121 | Q106: 0 | R106: 21121 | S106: 19775 | T106: 1346 | U106: Y | W106: 1500 | X106: 22621
A107: 89 | B107: 03116 | C107: PROSSER | D107: =IFERROR(VLOOKUP(B107,'Enrollment 2122'!$A:$D,4,0),0) -> 728 | E107: 342546 | F107: =IFERROR(VLOOKUP(B107,'Enrollment 2122'!$A:$F,6,0),0) -> 262 | G107: 30820 | H107: =IFERROR(VLOOKUP(B107,'Enrollment 2122'!$A:$E,5,FALSE),0) -> 209 | I107: 98341 | J107: 471707 | K107: =IF(D107>$D$17,_xlfn.IFNA(VLOOKUP(B107,'other funds ftr 2021 for 2122'!$A:$I,9,FALSE),0),1) -> 1.15 | L107: 542463 | M107: =1+IF(ISNA(VLOOKUP(B107,'Rural and Low Income 2122'!$A:$B,2,FALSE)),0,'2021-22 Final'!$M$17) -> 1 | N107: 542463 | Q107: 0 | R107: 542463 | S107: 461724 | T107: 80739 | U107: Y | W107: 4000 | X107: 546463
A108: 90 | B108: 27003 | C108: PUYALLUP | D108: =IFERROR(VLOOKUP(B108,'Enrollment 2122'!$A:$D,4,0),0) -> 13 | E108: 6117 | F108: =IFERROR(VLOOKUP(B108,'Enrollment 2122'!$A:$F,6,0),0) -> 5 | G108: 588 | H108: =IFERROR(VLOOKUP(B108,'Enrollment 2122'!$A:$E,5,FALSE),0) -> 7 | I108: 3294 | J108: 9999 | K108: =IF(D108>$D$17,_xlfn.IFNA(VLOOKUP(B108,'other funds ftr 2021 for 2122'!$A:$I,9,FALSE),0),1) -> 0 | L108: 9999 | M108: =1+IF(ISNA(VLOOKUP(B108,'Rural and Low Income 2122'!$A:$B,2,FALSE)),0,'2021-22 Final'!$M$17) -> 1 | N108: 0 | Q108: 0 | R108: 0 | S108: 0 | T108: 0 | U108: N | W108: 0 | X108: 0
A109: 91 | B109: 05903 | C109: QUILEUTE TRIBAL | D109: =IFERROR(VLOOKUP(B109,'Enrollment 2122'!$A:$D,4,0),0) -> 3 | E109: 0 | F109: =IFERROR(VLOOKUP(B109,'Enrollment 2122'!$A:$F,6,0),0) -> 0 | G109: 0 | H109: =IFERROR(VLOOKUP(B109,'Enrollment 2122'!$A:$E,5,FALSE),0) -> 0 | I109: 0 | J109: 0 | K109: =IF(D109>$D$17,_xlfn.IFNA(VLOOKUP(B109,'other funds ftr 2021 for 2122'!$A:$I,9,FALSE),0),1) -> 1 | L109: 0 | M109: =1+IF(ISNA(VLOOKUP(B109,'Rural and Low Income 2122'!$A:$B,2,FALSE)),0,'2021-22 Final'!$M$17) -> 1 | N109: 0 | Q109: 0 | R109: 0 | S109: 0 | T109: 0 | U109: N | W109: 0 | X109: 0
A110: 92 | B110: 05402 | C110: QUILLAYUTE VALLEY | D110: =IFERROR(VLOOKUP(B110,'Enrollment 2122'!$A:$D,4,0),0) -> 86 | E110: 40466 | F110: =IFERROR(VLOOKUP(B110,'Enrollment 2122'!$A:$F,6,0),0) -> 25 | G110: 2941 | H110: =IFERROR(VLOOKUP(B110,'Enrollment 2122'!$A:$E,5,FALSE),0) -> 22 | I110: 10352 | J110: 53759 | K110: =IF(D110>$D$17,_xlfn.IFNA(VLOOKUP(B110,'other funds ftr 2021 for 2122'!$A:$I,9,FALSE),0),1) -> 0.85 | L110: 45695 | M110: =1+IF(ISNA(VLOOKUP(B110,'Rural and Low Income 2122'!$A:$B,2,FALSE)),0,'2021-22 Final'!$M$17) -> 1.1 | N110: 50265 | Q110: 0 | R110: 50265 | S110: 35948 | T110: 14317 | U110: Y | W110: 1500 | X110: 51765
A111: 93 | B111: 13144 | C111: QUINCY | D111: =IFERROR(VLOOKUP(B111,'Enrollment 2122'!$A:$D,4,0),0) -> 512 | E111: 240912 | F111: =IFERROR(VLOOKUP(B111,'Enrollment 2122'!$A:$F,6,0),0) -> 109 | G111: 12822 | H111: =IFERROR(VLOOKUP(B111,'Enrollment 2122'!$A:$E,5,FALSE),0) -> 149 | I111: 70109 | J111: 323843 | K111: =IF(D111>$D$17,_xlfn.IFNA(VLOOKUP(B111,'other funds ftr 2021 for 2122'!$A:$I,9,FALSE),0),1) -> 1 | L111: 323843 | M111: =1+IF(ISNA(VLOOKUP(B111,'Rural and Low Income 2122'!$A:$B,2,FALSE)),0,'2021-22 Final'!$M$17) -> 1.1 | N111: 356227 | Q111: 0 | R111: 356227 | S111: 303206 | T111: 53021 | U111: Y | W111: 4000 | X111: 360227
A112: 94 | B112: 17403 | C112: RENTON | D112: =IFERROR(VLOOKUP(B112,'Enrollment 2122'!$A:$D,4,0),0) -> 32 | E112: 15057 | F112: =IFERROR(VLOOKUP(B112,'Enrollment 2122'!$A:$F,6,0),0) -> 12 | G112: 1412 | H112: =IFERROR(VLOOKUP(B112,'Enrollment 2122'!$A:$E,5,FALSE),0) -> 9 | I112: 4235 | J112: 20704 | K112: =IF(D112>$D$17,_xlfn.IFNA(VLOOKUP(B112,'other funds ftr 2021 for 2122'!$A:$I,9,FALSE),0),1) -> 0 | L112: 20704 | M112: =1+IF(ISNA(VLOOKUP(B112,'Rural and Low Income 2122'!$A:$B,2,FALSE)),0,'2021-22 Final'!$M$17) -> 1 | N112: 0 | Q112: 0 | R112: 0 | S112: 0 | T112: 0 | U112: N | W112: 0 | X112: 0
A113: 95 | B113: 03400 | C113: RICHLAND | D113: =IFERROR(VLOOKUP(B113,'Enrollment 2122'!$A:$D,4,0),0) -> 206 | E113: 96929 | F113: =IFERROR(VLOOKUP(B113,'Enrollment 2122'!$A:$F,6,0),0) -> 64 | G113: 7528 | H113: =IFERROR(VLOOKUP(B113,'Enrollment 2122'!$A:$E,5,FALSE),0) -> 73 | I113: 34349 | J113: 138806 | K113: =IF(D113>$D$17,_xlfn.IFNA(VLOOKUP(B113,'other funds ftr 2021 for 2122'!$A:$I,9,FALSE),0),1) -> 0 | L113: 138806 | M113: =1+IF(ISNA(VLOOKUP(B113,'Rural and Low Income 2122'!$A:$B,2,FALSE)),0,'2021-22 Final'!$M$17) -> 1 | N113: 138806 | Q113: 0 | R113: 138806 | S113: 0 | T113: 138806 | U113: Y | W113: 2500 | X113: 141306
A114: 96 | B114: 17407 | C114: RIVERVIEW | D114: =IFERROR(VLOOKUP(B114,'Enrollment 2122'!$A:$D,4,0),0) -> 11 | E114: 5176 | F114: =IFERROR(VLOOKUP(B114,'Enrollment 2122'!$A:$F,6,0),0) -> 3 | G114: 353 | H114: =IFERROR(VLOOKUP(B114,'Enrollment 2122'!$A:$E,5,FALSE),0) -> 3 | I114: 1412 | J114: 6941 | K114: =IF(D114>$D$17,_xlfn.IFNA(VLOOKUP(B114,'other funds ftr 2021 for 2122'!$A:$I,9,FALSE),0),1) -> 0 | L114: 6941 | M114: =1+IF(ISNA(VLOOKUP(B114,'Rural and Low Income 2122'!$A:$B,2,FALSE)),0,'2021-22 Final'!$M$17) -> 1 | N114: 0 | Q114: 0 | R114: 0 | S114: 0 | T114: 0 | U114: N | W114: 0 | X114: 0
A115: 97 | B115: 34401 | C115: ROCHESTER | D115: =IFERROR(VLOOKUP(B115,'Enrollment 2122'!$A:$D,4,0),0) -> 38 | E115: 17880 | F115: =IFERROR(VLOOKUP(B115,'Enrollment 2122'!$A:$F,6,0),0) -> 13 | G115: 1529 | H115: =IFERROR(VLOOKUP(B115,'Enrollment 2122'!$A:$E,5,FALSE),0) -> 9 | I115: 4235 | J115: 23644 | K115: =IF(D115>$D$17,_xlfn.IFNA(VLOOKUP(B115,'other funds ftr 2021 for 2122'!$A:$I,9,FALSE),0),1) -> 0 | L115: 23644 | M115: =1+IF(ISNA(VLOOKUP(B115,'Rural and Low Income 2122'!$A:$B,2,FALSE)),0,'2021-22 Final'!$M$17) -> 1 | N115: 23644 | Q115: 0 | R115: 23644 | S115: 0 | T115: 23644 | U115: Y | W115: 1500 | X115: 25144
A116: 98 | B116: 20403 | C116: ROOSEVELT | D116: =IFERROR(VLOOKUP(B116,'Enrollment 2122'!$A:$D,4,0),0) -> 29 | E116: 13645 | F116: =IFERROR(VLOOKUP(B116,'Enrollment 2122'!$A:$F,6,0),0) -> 1 | G116: 118 | H116: =IFERROR(VLOOKUP(B116,'Enrollment 2122'!$A:$E,5,FALSE),0) -> 4 | I116: 1882 | J116: 15645 | K116: =IF(D116>$D$17,_xlfn.IFNA(VLOOKUP(B116,'other funds ftr 2021 for 2122'!$A:$I,9,FALSE),0),1) -> 0 | L116: 15645 | M116: =1+IF(ISNA(VLOOKUP(B116,'Rural and Low Income 2122'!$A:$B,2,FALSE)),0,'2021-22 Final'!$M$17) -> 1 | N116: 0 | Q116: 0 | R116: 0 | S116: 0 | T116: 0 | U116: N | W116: 0 | X116: 0
A117: 99 | B117: 13160 | C117: ROYAL CITY | D117: =IFERROR(VLOOKUP(B117,'Enrollment 2122'!$A:$D,4,0),0) -> 258 | E117: 121397 | F117: =IFERROR(VLOOKUP(B117,'Enrollment 2122'!$A:$F,6,0),0) -> 34 | G117: 4000 | H117: =IFERROR(VLOOKUP(B117,'Enrollment 2122'!$A:$E,5,FALSE),0) -> 57 | I117: 26820 | J117: 152217 | K117: =IF(D117>$D$17,_xlfn.IFNA(VLOOKUP(B117,'other funds ftr 2021 for 2122'!$A:$I,9,FALSE),0),1) -> 1 | L117: 152217 | M117: =1+IF(ISNA(VLOOKUP(B117,'Rural and Low Income 2122'!$A:$B,2,FALSE)),0,'2021-22 Final'!$M$17) -> 1.1 | N117: 167439 | Q117: 0 | R117: 167439 | S117: 129560 | T117: 37879 | U117: Y | W117: 2500 | X117: 169939
A118: 100 | B118: 17001 | C118: SEATTLE | D118: =IFERROR(VLOOKUP(B118,'Enrollment 2122'!$A:$D,4,0),0) -> 226 | E118: 106340 | F118: =IFERROR(VLOOKUP(B118,'Enrollment 2122'!$A:$F,6,0),0) -> 66 | G118: 7764 | H118: =IFERROR(VLOOKUP(B118,'Enrollment 2122'!$A:$E,5,FALSE),0) -> 90 | I118: 42348 | J118: 156452 | K118: =IF(D118>$D$17,_xlfn.IFNA(VLOOKUP(B118,'other funds ftr 2021 for 2122'!$A:$I,9,FALSE),0),1) -> 0.85 | L118: 132984 | M118: =1+IF(ISNA(VLOOKUP(B118,'Rural and Low Income 2122'!$A:$B,2,FALSE)),0,'2021-22 Final'!$M$17) -> 1 | N118: 132984 | Q118: 0 | R118: 132984 | S118: 113190 | T118: 19794 | U118: Y | W118: 2500 | X118: 135484
A119: 101 | B119: 29101 | C119: SEDRO WOOLLEY | D119: =IFERROR(VLOOKUP(B119,'Enrollment 2122'!$A:$D,4,0),0) -> 207 | E119: 97400 | F119: =IFERROR(VLOOKUP(B119,'Enrollment 2122'!$A:$F,6,0),0) -> 38 | G119: 4470 | H119: =IFERROR(VLOOKUP(B119,'Enrollment 2122'!$A:$E,5,FALSE),0) -> 89 | I119: 41877 | J119: 143747 | K119: =IF(D119>$D$17,_xlfn.IFNA(VLOOKUP(B119,'other funds ftr 2021 for 2122'!$A:$I,9,FALSE),0),1) -> 0.95 | L119: 136560 | M119: =1+IF(ISNA(VLOOKUP(B119,'Rural and Low Income 2122'!$A:$B,2,FALSE)),0,'2021-22 Final'!$M$17) -> 1 | N119: 136560 | Q119: 0 | R119: 136560 | S119: 116234 | T119: 20326 | U119: Y | W119: 2500 | X119: 139060
A120: 102 | B120: 39119 | C120: SELAH | D120: =IFERROR(VLOOKUP(B120,'Enrollment 2122'!$A:$D,4,0),0) -> 181 | E120: 85166 | F120: =IFERROR(VLOOKUP(B120,'Enrollment 2122'!$A:$F,6,0),0) -> 61 | G120: 7176 | H120: =IFERROR(VLOOKUP(B120,'Enrollment 2122'!$A:$E,5,FALSE),0) -> 66 | I120: 31055 | J120: 123397 | K120: =IF(D120>$D$17,_xlfn.IFNA(VLOOKUP(B120,'other funds ftr 2021 for 2122'!$A:$I,9,FALSE),0),1) -> 0.95 | L120: 117227 | M120: =1+IF(ISNA(VLOOKUP(B120,'Rural and Low Income 2122'!$A:$B,2,FALSE)),0,'2021-22 Final'!$M$17) -> 1 | N120: 117227 | Q120: 0 | R120: 117227 | S120: 99399 | T120: 17828 | U120: Y | W120: 2500 | X120: 119727
A121: 103 | B121: 23309 | C121: SHELTON | D121: =IFERROR(VLOOKUP(B121,'Enrollment 2122'!$A:$D,4,0),0) -> 216 | E121: 101635 | F121: =IFERROR(VLOOKUP(B121,'Enrollment 2122'!$A:$F,6,0),0) -> 49 | G121: 5764 | H121: =IFERROR(VLOOKUP(B121,'Enrollment 2122'!$A:$E,5,FALSE),0) -> 77 | I121: 36231 | J121: 143630 | K121: =IF(D121>$D$17,_xlfn.IFNA(VLOOKUP(B121,'other funds ftr 2021 for 2122'!$A:$I,9,FALSE),0),1) -> 0.85 | L121: 122086 | M121: =1+IF(ISNA(VLOOKUP(B121,'Rural and Low Income 2122'!$A:$B,2,FALSE)),0,'2021-22 Final'!$M$17) -> 1.1 | N121: 134295 | Q121: 0 | R121: 134295 | S121: 74612 | T121: 59683 | U121: Y | W121: 2500 | X121: 136795
A122: 104 | B122: 31201 | C122: SNOHOMISH | D122: =IFERROR(VLOOKUP(B122,'Enrollment 2122'!$A:$D,4,0),0) -> 90 | E122: 42348 | F122: =IFERROR(VLOOKUP(B122,'Enrollment 2122'!$A:$F,6,0),0) -> 41 | G122: 4823 | H122: =IFERROR(VLOOKUP(B122,'Enrollment 2122'!$A:$E,5,FALSE),0) -> 37 | I122: 17410 | J122: 64581 | K122: =IF(D122>$D$17,_xlfn.IFNA(VLOOKUP(B122,'other funds ftr 2021 for 2122'!$A:$I,9,FALSE),0),1) -> 0.95 | L122: 61352 | M122: =1+IF(ISNA(VLOOKUP(B122,'Rural and Low Income 2122'!$A:$B,2,FALSE)),0,'2021-22 Final'!$M$17) -> 1 | N122: 61352 | Q122: 0 | R122: 61352 | S122: 44135 | T122: 17217 | U122: Y | W122: 1500 | X122: 62852
A123: 105 | B123: 13156 | C123: SOAP LAKE | D123: =IFERROR(VLOOKUP(B123,'Enrollment 2122'!$A:$D,4,0),0) -> 47 | E123: 22115 | F123: =IFERROR(VLOOKUP(B123,'Enrollment 2122'!$A:$F,6,0),0) -> 12 | G123: 1412 | H123: =IFERROR(VLOOKUP(B123,'Enrollment 2122'!$A:$E,5,FALSE),0) -> 13 | I123: 6117 | J123: 29644 | K123: =IF(D123>$D$17,_xlfn.IFNA(VLOOKUP(B123,'other funds ftr 2021 for 2122'!$A:$I,9,FALSE),0),1) -> 0 | L123: 29644 | M123: =1+IF(ISNA(VLOOKUP(B123,'Rural and Low Income 2122'!$A:$B,2,FALSE)),0,'2021-22 Final'!$M$17) -> 1 | N123: 0 | Q123: 0 | R123: 0 | S123: 0 | T123: 0 | U123: N | W123: 0 | X123: 0
A124: 106 | B124: 25118 | C124: SOUTH BEND | D124: =IFERROR(VLOOKUP(B124,'Enrollment 2122'!$A:$D,4,0),0) -> 13 | E124: 6117 | F124: =IFERROR(VLOOKUP(B124,'Enrollment 2122'!$A:$F,6,0),0) -> 3 | G124: 353 | H124: =IFERROR(VLOOKUP(B124,'Enrollment 2122'!$A:$E,5,FALSE),0) -> 4 | I124: 1882 | J124: 8352 | K124: =IF(D124>$D$17,_xlfn.IFNA(VLOOKUP(B124,'other funds ftr 2021 for 2122'!$A:$I,9,FALSE),0),1) -> 0 | L124: 8352 | M124: =1+IF(ISNA(VLOOKUP(B124,'Rural and Low Income 2122'!$A:$B,2,FALSE)),0,'2021-22 Final'!$M$17) -> 1.1 | N124: 0 | Q124: 0 | R124: 0 | S124: 0 | T124: 0 | U124: N | W124: 0 | X124: 0
A125: 107 | B125: 32081 | C125: SPOKANE | D125: =IFERROR(VLOOKUP(B125,'Enrollment 2122'!$A:$D,4,0),0) -> 86 | E125: 40466 | F125: =IFERROR(VLOOKUP(B125,'Enrollment 2122'!$A:$F,6,0),0) -> 13 | G125: 1529 | H125: =IFERROR(VLOOKUP(B125,'Enrollment 2122'!$A:$E,5,FALSE),0) -> 26 | I125: 12234 | J125: 54229 | K125: =IF(D125>$D$17,_xlfn.IFNA(VLOOKUP(B125,'other funds ftr 2021 for 2122'!$A:$I,9,FALSE),0),1) -> 0 | L125: 54229 | M125: =1+IF(ISNA(VLOOKUP(B125,'Rural and Low Income 2122'!$A:$B,2,FALSE)),0,'2021-22 Final'!$M$17) -> 1 | N125: 0 | Q125: 0 | R125: 0 | S125: 0 | T125: 0 | U125: N | W125: 0 | X125: 0
A126: 108 | B126: 31401 | C126: STANWOOD-CAMANO | D126: =IFERROR(VLOOKUP(B126,'Enrollment 2122'!$A:$D,4,0),0) -> 22 | E126: 10352 | F126: =IFERROR(VLOOKUP(B126,'Enrollment 2122'!$A:$F,6,0),0) -> 7 | G126: 823 | H126: =IFERROR(VLOOKUP(B126,'Enrollment 2122'!$A:$E,5,FALSE),0) -> 6 | I126: 2823 | J126: 13998 | K126: =IF(D126>$D$17,_xlfn.IFNA(VLOOKUP(B126,'other funds ftr 2021 for 2122'!$A:$I,9,FALSE),0),1) -> 0 | L126: 13998 | M126: =1+IF(ISNA(VLOOKUP(B126,'Rural and Low Income 2122'!$A:$B,2,FALSE)),0,'2021-22 Final'!$M$17) -> 1 | N126: 0 | Q126: 0 | R126: 0 | S126: 0 | T126: 0 | U126: N | W126: 0 | X126: 0
A127: 109 | B127: 30303 | C127: STEVENSON-CARSON | D127: =IFERROR(VLOOKUP(B127,'Enrollment 2122'!$A:$D,4,0),0) -> 28 | E127: 13175 | F127: =IFERROR(VLOOKUP(B127,'Enrollment 2122'!$A:$F,6,0),0) -> 2 | G127: 235 | H127: =IFERROR(VLOOKUP(B127,'Enrollment 2122'!$A:$E,5,FALSE),0) -> 6 | I127: 2823 | J127: 16233 | K127: =IF(D127>$D$17,_xlfn.IFNA(VLOOKUP(B127,'other funds ftr 2021 for 2122'!$A:$I,9,FALSE),0),1) -> 0 | L127: 16233 | M127: =1+IF(ISNA(VLOOKUP(B127,'Rural and Low Income 2122'!$A:$B,2,FALSE)),0,'2021-22 Final'!$M$17) -> 1 | N127: 0 | Q127: 0 | R127: 0 | S127: 15199 | T127: -15199 | U127: N | W127: 0 | X127: 0
A128: 110 | B128: 31311 | C128: SULTAN | D128: =IFERROR(VLOOKUP(B128,'Enrollment 2122'!$A:$D,4,0),0) -> 21 | E128: 9881 | F128: =IFERROR(VLOOKUP(B128,'Enrollment 2122'!$A:$F,6,0),0) -> 4 | G128: 471 | H128: =IFERROR(VLOOKUP(B128,'Enrollment 2122'!$A:$E,5,FALSE),0) -> 4 | I128: 1882 | J128: 12234 | K128: =IF(D128>$D$17,_xlfn.IFNA(VLOOKUP(B128,'other funds ftr 2021 for 2122'!$A:$I,9,FALSE),0),1) -> 0 | L128: 12234 | M128: =1+IF(ISNA(VLOOKUP(B128,'Rural and Low Income 2122'!$A:$B,2,FALSE)),0,'2021-22 Final'!$M$17) -> 1 | N128: 0 | Q128: 0 | R128: 0 | S128: 0 | T128: 0 | U128: N | W128: 0 | X128: 0
A129: 111 | B129: 39201 | C129: SUNNYSIDE | D129: =IFERROR(VLOOKUP(B129,'Enrollment 2122'!$A:$D,4,0),0) -> 1719 | E129: 808842 | F129: =IFERROR(VLOOKUP(B129,'Enrollment 2122'!$A:$F,6,0),0) -> 445 | G129: 52347 | H129: =IFERROR(VLOOKUP(B129,'Enrollment 2122'!$A:$E,5,FALSE),0) -> 542 | I129: 255028 | J129: 1116217 | K129: =IF(D129>$D$17,_xlfn.IFNA(VLOOKUP(B129,'other funds ftr 2021 for 2122'!$A:$I,9,FALSE),0),1) -> 1.05 | L129: 1172028 | M129: =1+IF(ISNA(VLOOKUP(B129,'Rural and Low Income 2122'!$A:$B,2,FALSE)),0,'2021-22 Final'!$M$17) -> 1.1 | N129: 1289231 | Q129: 0 | R129: 1289231 | S129: 982970 | T129: 306261 | U129: Y | W129: 4000 | X129: 1293231
A130: 112 | B130: 18902 | C130: SUQUAMISH TRIBAL EDUCATION DEPARTMENT | D130: =IFERROR(VLOOKUP(B130,'Enrollment 2122'!$A:$D,4,0),0) -> 16 | E130: 7528 | F130: =IFERROR(VLOOKUP(B130,'Enrollment 2122'!$A:$F,6,0),0) -> 5 | G130: 588 | H130: =IFERROR(VLOOKUP(B130,'Enrollment 2122'!$A:$E,5,FALSE),0) -> 10 | I130: 4705 | J130: 12821 | K130: =IF(D130>$D$17,_xlfn.IFNA(VLOOKUP(B130,'other funds ftr 2021 for 2122'!$A:$I,9,FALSE),0),1) -> 1.05 | L130: 13462 | M130: =1+IF(ISNA(VLOOKUP(B130,'Rural and Low Income 2122'!$A:$B,2,FALSE)),0,'2021-22 Final'!$M$17) -> 1 | N130: 13462 | Q130: 0 | R130: 13462 | S130: 12551 | T130: 911 | U130: Y | W130: 1500 | X130: 14962
A131: 113 | B131: 27010 | C131: TACOMA | D131: =IFERROR(VLOOKUP(B131,'Enrollment 2122'!$A:$D,4,0),0) -> 25 | E131: 11763 | F131: =IFERROR(VLOOKUP(B131,'Enrollment 2122'!$A:$F,6,0),0) -> 3 | G131: 353 | H131: =IFERROR(VLOOKUP(B131,'Enrollment 2122'!$A:$E,5,FALSE),0) -> 14 | I131: 6587 | J131: 18703 | K131: =IF(D131>$D$17,_xlfn.IFNA(VLOOKUP(B131,'other funds ftr 2021 for 2122'!$A:$I,9,FALSE),0),1) -> 0 | L131: 18703 | M131: =1+IF(ISNA(VLOOKUP(B131,'Rural and Low Income 2122'!$A:$B,2,FALSE)),0,'2021-22 Final'!$M$17) -> 1 | N131: 0 | Q131: 0 | R131: 0 | S131: 0 | T131: 0 | U131: N | W131: 0 | X131: 0
A132: 114 | B132: 14077 | C132: TAHOLA | D132: =IFERROR(VLOOKUP(B132,'Enrollment 2122'!$A:$D,4,0),0) -> 61 | E132: 28702 | F132: =IFERROR(VLOOKUP(B132,'Enrollment 2122'!$A:$F,6,0),0) -> 10 | G132: 1176 | H132: =IFERROR(VLOOKUP(B132,'Enrollment 2122'!$A:$E,5,FALSE),0) -> 22 | I132: 10352 | J132: 40230 | K132: =IF(D132>$D$17,_xlfn.IFNA(VLOOKUP(B132,'other funds ftr 2021 for 2122'!$A:$I,9,FALSE),0),1) -> 0 | L132: 40230 | M132: =1+IF(ISNA(VLOOKUP(B132,'Rural and Low Income 2122'!$A:$B,2,FALSE)),0,'2021-22 Final'!$M$17) -> 1 | N132: 0 | Q132: 0 | R132: 0 | S132: 0 | T132: 0 | U132: N | W132: 0 | X132: 0
A133: 115 | B133: 24404 | C133: TONASKET | D133: =IFERROR(VLOOKUP(B133,'Enrollment 2122'!$A:$D,4,0),0) -> 357 | E133: 167979 | F133: =IFERROR(VLOOKUP(B133,'Enrollment 2122'!$A:$F,6,0),0) -> 126 | G133: 14822 | H133: =IFERROR(VLOOKUP(B133,'Enrollment 2122'!$A:$E,5,FALSE),0) -> 88 | I133: 41407 | J133: 224208 | K133: =IF(D133>$D$17,_xlfn.IFNA(VLOOKUP(B133,'other funds ftr 2021 for 2122'!$A:$I,9,FALSE),0),1) -> 1.15 | L133: 257839 | M133: =1+IF(ISNA(VLOOKUP(B133,'Rural and Low Income 2122'!$A:$B,2,FALSE)),0,'2021-22 Final'!$M$17) -> 1 | N133: 257839 | Q133: 0 | R133: 257839 | S133: 241409 | T133: 16430 | U133: Y | W133: 2500 | X133: 260339
A134: 116 | B134: 39202 | C134: TOPPENISH | D134: =IFERROR(VLOOKUP(B134,'Enrollment 2122'!$A:$D,4,0),0) -> 992 | E134: 466766 | F134: =IFERROR(VLOOKUP(B134,'Enrollment 2122'!$A:$F,6,0),0) -> 259 | G134: 30467 | H134: =IFERROR(VLOOKUP(B134,'Enrollment 2122'!$A:$E,5,FALSE),0) -> 255 | I134: 119985 | J134: 617218 | K134: =IF(D134>$D$17,_xlfn.IFNA(VLOOKUP(B134,'other funds ftr 2021 for 2122'!$A:$I,9,FALSE),0),1) -> 1.05 | L134: 648079 | M134: =1+IF(ISNA(VLOOKUP(B134,'Rural and Low Income 2122'!$A:$B,2,FALSE)),0,'2021-22 Final'!$M$17) -> 1 | N134: 648079 | Q134: 0 | R134: 648079 | S134: 551620 | T134: 96459 | U134: Y | W134: 4000 | X134: 652079
A135: 117 | B135: 20400 | C135: TROUT LAKE | D135: =IFERROR(VLOOKUP(B135,'Enrollment 2122'!$A:$D,4,0),0) -> 119 | E135: 55993 | F135: =IFERROR(VLOOKUP(B135,'Enrollment 2122'!$A:$F,6,0),0) -> 13 | G135: 1529 | H135: =IFERROR(VLOOKUP(B135,'Enrollment 2122'!$A:$E,5,FALSE),0) -> 42 | I135: 19762 | J135: 77284 | K135: =IF(D135>$D$17,_xlfn.IFNA(VLOOKUP(B135,'other funds ftr 2021 for 2122'!$A:$I,9,FALSE),0),1) -> 0 | L135: 77284 | M135: =1+IF(ISNA(VLOOKUP(B135,'Rural and Low Income 2122'!$A:$B,2,FALSE)),0,'2021-22 Final'!$M$17) -> 1 | N135: 0 | Q135: 0 | R135: 0 | S135: 0 | T135: 0 | U135: N | W135: 0 | X135: 0
A136: 118 | B136: 39002 | C136: UNION GAP | D136: =IFERROR(VLOOKUP(B136,'Enrollment 2122'!$A:$D,4,0),0) -> 61 | E136: 28702 | F136: =IFERROR(VLOOKUP(B136,'Enrollment 2122'!$A:$F,6,0),0) -> 14 | G136: 1647 | H136: =IFERROR(VLOOKUP(B136,'Enrollment 2122'!$A:$E,5,FALSE),0) -> 7 | I136: 3294 | J136: 33643 | K136: =IF(D136>$D$17,_xlfn.IFNA(VLOOKUP(B136,'other funds ftr 2021 for 2122'!$A:$I,9,FALSE),0),1) -> 1 | L136: 33643 | M136: =1+IF(ISNA(VLOOKUP(B136,'Rural and Low Income 2122'!$A:$B,2,FALSE)),0,'2021-22 Final'!$M$17) -> 1 | N136: 33643 | Q136: 0 | R136: 33643 | S136: 27203 | T136: 6440 | U136: Y | W136: 1500 | X136: 35143
A137: 119 | B137: 06037 | C137: VANCOUVER | D137: =IFERROR(VLOOKUP(B137,'Enrollment 2122'!$A:$D,4,0),0) -> 68 | E137: 31996 | F137: =IFERROR(VLOOKUP(B137,'Enrollment 2122'!$A:$F,6,0),0) -> 26 | G137: 3058 | H137: =IFERROR(VLOOKUP(B137,'Enrollment 2122'!$A:$E,5,FALSE),0) -> 24 | I137: 11293 | J137: 46347 | K137: =IF(D137>$D$17,_xlfn.IFNA(VLOOKUP(B137,'other funds ftr 2021 for 2122'!$A:$I,9,FALSE),0),1) -> 0 | L137: 46347 | M137: =1+IF(ISNA(VLOOKUP(B137,'Rural and Low Income 2122'!$A:$B,2,FALSE)),0,'2021-22 Final'!$M$17) -> 1 | N137: 0 | Q137: 0 | R137: 0 | S137: 0 | T137: 0 | U137: N | W137: 0 | X137: 0
A138: 120 | B138: 34901 | C138: WA HE LUT INDIAN TRIBAL SCHOOL | D138: =IFERROR(VLOOKUP(B138,'Enrollment 2122'!$A:$D,4,0),0) -> 12 | E138: 5646 | F138: =IFERROR(VLOOKUP(B138,'Enrollment 2122'!$A:$F,6,0),0) -> 2 | G138: 235 | H138: =IFERROR(VLOOKUP(B138,'Enrollment 2122'!$A:$E,5,FALSE),0) -> 2 | I138: 941 | J138: 6822 | K138: =IF(D138>$D$17,_xlfn.IFNA(VLOOKUP(B138,'other funds ftr 2021 for 2122'!$A:$I,9,FALSE),0),1) -> 0 | L138: 6822 | M138: =1+IF(ISNA(VLOOKUP(B138,'Rural and Low Income 2122'!$A:$B,2,FALSE)),0,'2021-22 Final'!$M$17) -> 1 | N138: 6822 | Q138: 0 | R138: 6822 | S138: 5807 | T138: 1015 | U138: Y | W138: 1500 | X138: 8322
A139: 121 | B139: 13073 | C139: WAHLUKE | D139: =IFERROR(VLOOKUP(B139,'Enrollment 2122'!$A:$D,4,0),0) -> 1655 | E139: 778728 | F139: =IFERROR(VLOOKUP(B139,'Enrollment 2122'!$A:$F,6,0),0) -> 258 | G139: 30349 | H139: =IFERROR(VLOOKUP(B139,'Enrollment 2122'!$A:$E,5,FALSE),0) -> 808 | I139: 380189 | J139: 1189266 | K139: =IF(D139>$D$17,_xlfn.IFNA(VLOOKUP(B139,'other funds ftr 2021 for 2122'!$A:$I,9,FALSE),0),1) -> 1.15 | L139: 1367656 | M139: =1+IF(ISNA(VLOOKUP(B139,'Rural and Low Income 2122'!$A:$B,2,FALSE)),0,'2021-22 Final'!$M$17) -> 1.1 | N139: 1504422 | Q139: 0 | R139: 1504422 | S139: 1192096 | T139: 312326 | U139: Y | W139: 4000 | X139: 1508422
A140: 122 | B140: 36140 | C140: WALLA WALLA | D140: =IFERROR(VLOOKUP(B140,'Enrollment 2122'!$A:$D,4,0),0) -> 119 | E140: 55993 | F140: =IFERROR(VLOOKUP(B140,'Enrollment 2122'!$A:$F,6,0),0) -> 39 | G140: 4588 | H140: =IFERROR(VLOOKUP(B140,'Enrollment 2122'!$A:$E,5,FALSE),0) -> 43 | I140: 20233 | J140: 80814 | K140: =IF(D140>$D$17,_xlfn.IFNA(VLOOKUP(B140,'other funds ftr 2021 for 2122'!$A:$I,9,FALSE),0),1) -> 0.85 | L140: 68692 | M140: =1+IF(ISNA(VLOOKUP(B140,'Rural and Low Income 2122'!$A:$B,2,FALSE)),0,'2021-22 Final'!$M$17) -> 1 | N140: 68692 | Q140: 0 | R140: 68692 | S140: 56340 | T140: 12352 | U140: Y | W140: 2500 | X140: 71192
A141: 123 | B141: 39207 | C141: WAPATO | D141: =IFERROR(VLOOKUP(B141,'Enrollment 2122'!$A:$D,4,0),0) -> 960 | E141: 451709 | F141: =IFERROR(VLOOKUP(B141,'Enrollment 2122'!$A:$F,6,0),0) -> 278 | G141: 32702 | H141: =IFERROR(VLOOKUP(B141,'Enrollment 2122'!$A:$E,5,FALSE),0) -> 324 | I141: 152452 | J141: 636863 | K141: =IF(D141>$D$17,_xlfn.IFNA(VLOOKUP(B141,'other funds ftr 2021 for 2122'!$A:$I,9,FALSE),0),1) -> 1.05 | L141: 668706 | M141: =1+IF(ISNA(VLOOKUP(B141,'Rural and Low Income 2122'!$A:$B,2,FALSE)),0,'2021-22 Final'!$M$17) -> 1 | N141: 668706 | Q141: 0 | R141: 668706 | S141: 569177 | T141: 99529 | U141: Y | W141: 4000 | X141: 672706
A142: 124 | B142: 13146 | C142: WARDEN | D142: =IFERROR(VLOOKUP(B142,'Enrollment 2122'!$A:$D,4,0),0) -> 312 | E142: 146806 | F142: =IFERROR(VLOOKUP(B142,'Enrollment 2122'!$A:$F,6,0),0) -> 52 | G142: 6117 | H142: =IFERROR(VLOOKUP(B142,'Enrollment 2122'!$A:$E,5,FALSE),0) -> 92 | I142: 43289 | J142: 196212 | K142: =IF(D142>$D$17,_xlfn.IFNA(VLOOKUP(B142,'other funds ftr 2021 for 2122'!$A:$I,9,FALSE),0),1) -> 1.15 | L142: 225644 | M142: =1+IF(ISNA(VLOOKUP(B142,'Rural and Low Income 2122'!$A:$B,2,FALSE)),0,'2021-22 Final'!$M$17) -> 1.1 | N142: 248208 | Q142: 0 | R142: 248208 | S142: 211264 | T142: 36944 | U142: Y | W142: 2500 | X142: 250708
A143: 125 | B143: 09209 | C143: WATERVILLE | D143: =IFERROR(VLOOKUP(B143,'Enrollment 2122'!$A:$D,4,0),0) -> 25 | E143: 11763 | F143: =IFERROR(VLOOKUP(B143,'Enrollment 2122'!$A:$F,6,0),0) -> 5 | G143: 588 | H143: =IFERROR(VLOOKUP(B143,'Enrollment 2122'!$A:$E,5,FALSE),0) -> 10 | I143: 4705 | J143: 17056 | K143: =IF(D143>$D$17,_xlfn.IFNA(VLOOKUP(B143,'other funds ftr 2021 for 2122'!$A:$I,9,FALSE),0),1) -> 0 | L143: 17056 | M143: =1+IF(ISNA(VLOOKUP(B143,'Rural and Low Income 2122'!$A:$B,2,FALSE)),0,'2021-22 Final'!$M$17) -> 1 | N143: 0 | Q143: 0 | R143: 0 | S143: 0 | T143: 0 | U143: N | W143: 0 | X143: 0
A144: 126 | B144: 04246 | C144: WENATCHEE | D144: =IFERROR(VLOOKUP(B144,'Enrollment 2122'!$A:$D,4,0),0) -> 1819 | E144: 855895 | F144: =IFERROR(VLOOKUP(B144,'Enrollment 2122'!$A:$F,6,0),0) -> 548 | G144: 64463 | H144: =IFERROR(VLOOKUP(B144,'Enrollment 2122'!$A:$E,5,FALSE),0) -> 553 | I144: 260203 | J144: 1180561 | K144: =IF(D144>$D$17,_xlfn.IFNA(VLOOKUP(B144,'other funds ftr 2021 for 2122'!$A:$I,9,FALSE),0),1) -> 1.15 | L144: 1357645 | M144: =1+IF(ISNA(VLOOKUP(B144,'Rural and Low Income 2122'!$A:$B,2,FALSE)),0,'2021-22 Final'!$M$17) -> 1 | N144: 1357645 | Q144: 0 | R144: 1357645 | S144: 1155574 | T144: 202071 | U144: Y | W144: 4000 | X144: 1361645
A145: 127 | B145: 39208 | C145: WEST VALLEY | D145: =IFERROR(VLOOKUP(B145,'Enrollment 2122'!$A:$D,4,0),0) -> 99 | E145: 46583 | F145: =IFERROR(VLOOKUP(B145,'Enrollment 2122'!$A:$F,6,0),0) -> 21 | G145: 2470 | H145: =IFERROR(VLOOKUP(B145,'Enrollment 2122'!$A:$E,5,FALSE),0) -> 17 | I145: 7999 | J145: 57052 | K145: =IF(D145>$D$17,_xlfn.IFNA(VLOOKUP(B145,'other funds ftr 2021 for 2122'!$A:$I,9,FALSE),0),1) -> 0.85 | L145: 48494 | M145: =1+IF(ISNA(VLOOKUP(B145,'Rural and Low Income 2122'!$A:$B,2,FALSE)),0,'2021-22 Final'!$M$17) -> 1 | N145: 48494 | Q145: 0 | R145: 48494 | S145: 41276 | T145: 7218 | U145: Y | W145: 1500 | X145: 49994
A146: 128 | B146: 21303 | C146: WHITE PASS | D146: =IFERROR(VLOOKUP(B146,'Enrollment 2122'!$A:$D,4,0),0) -> 55 | E146: 25879 | F146: =IFERROR(VLOOKUP(B146,'Enrollment 2122'!$A:$F,6,0),0) -> 11 | G146: 1294 | H146: =IFERROR(VLOOKUP(B146,'Enrollment 2122'!$A:$E,5,FALSE),0) -> 20 | I146: 9411 | J146: 36584 | K146: =IF(D146>$D$17,_xlfn.IFNA(VLOOKUP(B146,'other funds ftr 2021 for 2122'!$A:$I,9,FALSE),0),1) -> 0 | L146: 36584 | M146: =1+IF(ISNA(VLOOKUP(B146,'Rural and Low Income 2122'!$A:$B,2,FALSE)),0,'2021-22 Final'!$M$17) -> 1.1 | N146: 0 | Q146: 0 | R146: 0 | S146: 0 | T146: 0 | U146: N | W146: 0 | X146: 0
A147: 129 | B147: 20405 | C147: WHITE SALMON | D147: =IFERROR(VLOOKUP(B147,'Enrollment 2122'!$A:$D,4,0),0) -> 60 | E147: 28232 | F147: =IFERROR(VLOOKUP(B147,'Enrollment 2122'!$A:$F,6,0),0) -> 20 | G147: 2353 | H147: =IFERROR(VLOOKUP(B147,'Enrollment 2122'!$A:$E,5,FALSE),0) -> 18 | I147: 8470 | J147: =+E147+G147+I147 -> 39055 | K147: =IF(D147>$D$17,_xlfn.IFNA(VLOOKUP(B147,'other funds ftr 2021 for 2122'!$A:$I,9,FALSE),0),1) -> 0 | L147: =IF(K147=0,J147,ROUND(J147*K147,0)) -> 39055 | M147: =1+IF(ISNA(VLOOKUP(B147,'Rural and Low Income 2122'!$A:$B,2,FALSE)),0,'2021-22 Final'!$M$17) -> 1 | N147: =IF(U147="y",ROUND(L147*M147,0),0) -> 0 | Q147: 0 | R147: =N147+Q147 -> 0 | S147: 0 | T147: =R147-S147 -> 0 | U147: N | W147: 0 | X147: 0
A148: 130 | B148: 21232 | C148: WINLOCK | D148: =IFERROR(VLOOKUP(B148,'Enrollment 2122'!$A:$D,4,0),0) -> 101 | E148: =IF(D148>=10,ROUND(D148*$F$3,0),0) -> 47524 | F148: =IFERROR(VLOOKUP(B148,'Enrollment 2122'!$A:$F,6,0),0) -> 50 | G148: =IF(D148>=$D$17,ROUND(F148*$F$3*$F$17,0),0) -> 5882 | H148: =IFERROR(VLOOKUP(B148,'Enrollment 2122'!$A:$E,5,FALSE),0) -> 20 | I148: =IF(D148>=$D$17,ROUND(H148*$F$3*$H$17,0),0) -> 9411 | J148: 62817 | K148: =IF(D148>$D$17,_xlfn.IFNA(VLOOKUP(B148,'other funds ftr 2021 for 2122'!$A:$I,9,FALSE),0),1) -> 1 | L148: 62817 | M148: =1+IF(ISNA(VLOOKUP(B148,'Rural and Low Income 2122'!$A:$B,2,FALSE)),0,'2021-22 Final'!$M$17) -> 1.1 | N148: 69099 | Q148: 0 | R148: 69099 | S148: 58813 | T148: 10286 | U148: Y | W148: =IF(U148="Y",IF(D148<=99,1500,IF(AND(D148>=100,D148<=399),2500,4000)),0) -> 2500 | X148: =W148+R148 -> 71599
A149: 131 | B149: 39901 | C149: YAKAMA TRIBAL SCHOOL | D149: =IFERROR(VLOOKUP(B149,'Enrollment 2122'!$A:$D,4,0),0) -> 61 | E149: 28702 | F149: =IFERROR(VLOOKUP(B149,'Enrollment 2122'!$A:$F,6,0),0) -> 49 | G149: 5764 | H149: =IFERROR(VLOOKUP(B149,'Enrollment 2122'!$A:$E,5,FALSE),0) -> 31 | I149: 14586 | J149: 49052 | K149: =IF(D149>$D$17,_xlfn.IFNA(VLOOKUP(B149,'other funds ftr 2021 for 2122'!$A:$I,9,FALSE),0),1) -> 0 | L149: 49052 | M149: =1+IF(ISNA(VLOOKUP(B149,'Rural and Low Income 2122'!$A:$B,2,FALSE)),0,'2021-22 Final'!$M$17) -> 1 | N149: 49052 | Q149: 0 | R149: 49052 | S149: 33942 | T149: 15110 | U149: Y | W149: 1500 | X149: 50552
A150: 132 | B150: 39007 | C150: YAKIMA | D150: =IFERROR(VLOOKUP(B150,'Enrollment 2122'!$A:$D,4,0),0) -> 2399 | E150: 1128803 | F150: =IFERROR(VLOOKUP(B150,'Enrollment 2122'!$A:$F,6,0),0) -> 813 | G150: 95635 | H150: =IFERROR(VLOOKUP(B150,'Enrollment 2122'!$A:$E,5,FALSE),0) -> 709 | I150: 333606 | J150: 1558044 | K150: =IF(D150>$D$17,_xlfn.IFNA(VLOOKUP(B150,'other funds ftr 2021 for 2122'!$A:$I,9,FALSE),0),1) -> 1 | L150: 1558044 | M150: =1+IF(ISNA(VLOOKUP(B150,'Rural and Low Income 2122'!$A:$B,2,FALSE)),0,'2021-22 Final'!$M$17) -> 1 | N150: 1558044 | Q150: 0 | R150: 1558044 | S150: 1326145 | T150: 231899 | U150: Y | W150: 4000 | X150: 1562044
A151: 133 | B151: 34002 | C151: YELM | D151: =IFERROR(VLOOKUP(B151,'Enrollment 2122'!$A:$D,4,0),0) -> 77 | E151: 36231 | F151: =IFERROR(VLOOKUP(B151,'Enrollment 2122'!$A:$F,6,0),0) -> 12 | G151: 1412 | H151: =IFERROR(VLOOKUP(B151,'Enrollment 2122'!$A:$E,5,FALSE),0) -> 15 | I151: 7058 | J151: 44701 | K151: =IF(D151>$D$17,_xlfn.IFNA(VLOOKUP(B151,'other funds ftr 2021 for 2122'!$A:$I,9,FALSE),0),1) -> 0 | L151: 44701 | M151: =1+IF(ISNA(VLOOKUP(B151,'Rural and Low Income 2122'!$A:$B,2,FALSE)),0,'2021-22 Final'!$M$17) -> 1 | N151: 0 | Q151: 0 | R151: 0 | S151: 0 | T151: 0 | U151: N | W151: 0 | X151: 0
A152: 134 | B152: 39205 | C152: ZILLAH | D152: =IFERROR(VLOOKUP(B152,'Enrollment 2122'!$A:$D,4,0),0) -> 96 | E152: 45171 | F152: =IFERROR(VLOOKUP(B152,'Enrollment 2122'!$A:$F,6,0),0) -> 24 | G152: 2823 | H152: =IFERROR(VLOOKUP(B152,'Enrollment 2122'!$A:$E,5,FALSE),0) -> 32 | I152: 15057 | J152: 63051 | K152: =IF(D152>$D$17,_xlfn.IFNA(VLOOKUP(B152,'other funds ftr 2021 for 2122'!$A:$I,9,FALSE),0),1) -> 1 | L152: 63051 | M152: =1+IF(ISNA(VLOOKUP(B152,'Rural and Low Income 2122'!$A:$B,2,FALSE)),0,'2021-22 Final'!$M$17) -> 1 | N152: 63051 | Q152: 0 | R152: 63051 | S152: 53667 | T152: 9384 | U152: Y | W152: 1500 | X152: 64551
T154: consortium
T155: declined
S156: =S153+S154+S155 -> 0

Sheet 2021-22 Prelim (hidden)
I1: From Assumptions Page:
C2: Constant Dollar Multipliers - Do Not Change Here | I2: Target Amounts | N2: =Assumptions!D24 -> 20508825
C3: =Assumptions!$AN$4 -> 0 | F3: 470.530457 | G3: Use CTRL K | I3: Actual Amounts | N3: =N18 -> 20508825
I4: Difference | N4: =N3-N2 -> 0
I6: =N18 -> 20508825
G7: Put total here | I7: =Assumptions!D24 -> 20508825
I10: Go to H9 & Control K to set dollar amount
D14: Migrant Students | U14: Accepting Funding? | V14: HOLD HARMLESS
C15: =F3 -> 470.530457 | D15: K-12 | F15: Needs Support | H15: Priority Interuption | R15: =R18 -> 20508825
B16: CCDDD | C16: District | D16: Ave. number | E16: Regular Dollars | F16: Ave. number | G16: Regular Dollars | H16: Priority Number | I16: Priority Dollars | J16: Subtotal | K16: Other Funds Factor | L16: Subtotal 2 | M16: Add'l Rural Factor | N16: Total Allocated Amount | P16: MOE | Q16: MOE Red. | R16: Subtotal After MOE | U16: Y for yes, N for no (reallocates money) | V16: Override funding? Y for yes, otherwise blank.
D17: 10 | E17: =E18/D18 -> 470.3543661 | F17: 0.25 | G17: =G18/F18 -> 120.1660716 | H17: 1 | I17: =I18/H18 -> 478.7491582 | M17: 0.1 | N17: 124
A18: 0 | B18: 99999 | C18: State Total | D18: =SUMIF(D19:D152,">-10") -> 32077 | E18: =SUM(E19:E271) -> 15087557 | F18: =SUMIF(F19:F271,">=10") -> 8683 | G18: 1043402 | H18: =SUMIF(H19:H271,">=10") -> 9504 | I18: 4550032 | J18: 20680991 | L18: =SUM(L19:L271) -> 21647433 | N18: =SUM(N19:N271) -> 20508825 | Q18: =SUM(Q19:Q152) -> 0 | R18: =SUM(R19:R271) -> 20508825 | S18: 19-20 Final Allocations (excluding 17-18 carryover) | T18: Allocation Difference
A19: 1 | B19: 14005 | C19: ABERDEEN | D19: =IFERROR(VLOOKUP(B19,'Enrollment 2122'!$A:$D,4,0),0) -> 130 | E19: =IF(D19>=10,ROUND(D19*$F$3,0),0) -> 61169 | F19: =IFERROR(VLOOKUP(B19,'Enrollment 2122'!$A:$F,6,0),0) -> 30 | G19: =IF(D19>=$D$17,ROUND(F19*$F$3*$F$17,0),0) -> 3529 | H19: =IFERROR(VLOOKUP(B19,'Enrollment 2122'!$A:$E,5,FALSE),0) -> 42 | I19: =IF(D19>=$D$17,ROUND(H19*$F$3*$H$17,0),0) -> 19762 | J19: =+E19+G19+I19 -> 84460 | K19: =IF(D19>$D$17,_xlfn.IFNA(VLOOKUP(B19,'other funds ftr 2021 for 2122'!$A:$I,9,FALSE),0),1) -> 0.95 | L19: =IF(K19=0,J19,ROUND(J19*K19,0)) -> 80237 | M19: =1+IF(ISNA(VLOOKUP(B19,'Rural and Low Income 2122'!$A:$B,2,FALSE)),0,'2021-22 Prelim'!$M$17) -> 1.1 | N19: =IF(U19="y",ROUND(L19*M19,0),0) -> 88261 | Q19: =ROUND(IF(P19>0,-(0.9-P19)*N19,0),0) -> 0 | R19: =N19+Q19 -> 88261 | S19: 69748 | T19: =R19-S19 -> 18513 | U19: Y
A20: 2 | B20: 31016 | C20: ARLINGTON | D20: =IFERROR(VLOOKUP(B20,'Enrollment 2122'!$A:$D,4,0),0) -> 53 | E20: =IF(D20>=10,ROUND(D20*$F$3,0),0) -> 24938 | F20: =IFERROR(VLOOKUP(B20,'Enrollment 2122'!$A:$F,6,0),0) -> 24 | G20: =IF(D20>=$D$17,ROUND(F20*$F$3*$F$17,0),0) -> 2823 | H20: =IFERROR(VLOOKUP(B20,'Enrollment 2122'!$A:$E,5,FALSE),0) -> 22 | I20: =IF(D20>=$D$17,ROUND(H20*$F$3*$H$17,0),0) -> 10352 | J20: 38113 | K20: =IF(D20>$D$17,_xlfn.IFNA(VLOOKUP(B20,'other funds ftr 2021 for 2122'!$A:$I,9,FALSE),0),1) -> 0 | L20: 38113 | M20: =1+IF(ISNA(VLOOKUP(B20,'Rural and Low Income 2122'!$A:$B,2,FALSE)),0,'2021-22 Prelim'!$M$17) -> 1 | N20: 0 | Q20: 0 | R20: 0 | S20: 0 | T20: 0 | U20: N
A21: 3 | B21: 17408 | C21: AUBURN | D21: =IFERROR(VLOOKUP(B21,'Enrollment 2122'!$A:$D,4,0),0) -> 39 | E21: 18351 | F21: =IFERROR(VLOOKUP(B21,'Enrollment 2122'!$A:$F,6,0),0) -> 9 | G21: 1059 | H21: =IFERROR(VLOOKUP(B21,'Enrollment 2122'!$A:$E,5,FALSE),0) -> 4 | I21: 1882 | J21: 21292 | K21: =IF(D21>$D$17,_xlfn.IFNA(VLOOKUP(B21,'other funds ftr 2021 for 2122'!$A:$I,9,FALSE),0),1) -> 0 | L21: 21292 | M21: =1+IF(ISNA(VLOOKUP(B21,'Rural and Low Income 2122'!$A:$B,2,FALSE)),0,'2021-22 Prelim'!$M$17) -> 1 | N21: 0 | Q21: 0 | R21: 0 | S21: 0 | T21: 0 | U21: N
A22: 4 | B22: 06119 | C22: BATTLE GROUND | D22: =IFERROR(VLOOKUP(B22,'Enrollment 2122'!$A:$D,4,0),0) -> 21 | E22: 9881 | F22: =IFERROR(VLOOKUP(B22,'Enrollment 2122'!$A:$F,6,0),0) -> 5 | G22: 588 | H22: =IFERROR(VLOOKUP(B22,'Enrollment 2122'!$A:$E,5,FALSE),0) -> 1 | I22: 471 | J22: 10940 | K22: =IF(D22>$D$17,_xlfn.IFNA(VLOOKUP(B22,'other funds ftr 2021 for 2122'!$A:$I,9,FALSE),0),1) -> 0 | L22: 10940 | M22: =1+IF(ISNA(VLOOKUP(B22,'Rural and Low Income 2122'!$A:$B,2,FALSE)),0,'2021-22 Prelim'!$M$17) -> 1 | N22: 0 | Q22: 0 | R22: 0 | S22: 0 | T22: 0 | U22: N
A23: 5 | B23: 37501 | C23: BELLINGHAM | D23: =IFERROR(VLOOKUP(B23,'Enrollment 2122'!$A:$D,4,0),0) -> 177 | E23: 83284 | F23: =IFERROR(VLOOKUP(B23,'Enrollment 2122'!$A:$F,6,0),0) -> 49 | G23: 5764 | H23: =IFERROR(VLOOKUP(B23,'Enrollment 2122'!$A:$E,5,FALSE),0) -> 33 | I23: 15528 | J23: 104576 | K23: =IF(D23>$D$17,_xlfn.IFNA(VLOOKUP(B23,'other funds ftr 2021 for 2122'!$A:$I,9,FALSE),0),1) -> 0 | L23: 104576 | M23: =1+IF(ISNA(VLOOKUP(B23,'Rural and Low Income 2122'!$A:$B,2,FALSE)),0,'2021-22 Prelim'!$M$17) -> 1 | N23: 0 | Q23: 0 | R23: 0 | S23: 0 | T23: 0 | U23: N
A24: 6 | B24: 37503 | C24: BLAINE | D24: =IFERROR(VLOOKUP(B24,'Enrollment 2122'!$A:$D,4,0),0) -> 9 | E24: 0 | F24: =IFERROR(VLOOKUP(B24,'Enrollment 2122'!$A:$F,6,0),0) -> 3 | G24: 0 | H24: =IFERROR(VLOOKUP(B24,'Enrollment 2122'!$A:$E,5,FALSE),0) -> 0 | I24: 0 | J24: 0 | K24: =IF(D24>$D$17,_xlfn.IFNA(VLOOKUP(B24,'other funds ftr 2021 for 2122'!$A:$I,9,FALSE),0),1) -> 1 | L24: 0 | M24: =1+IF(ISNA(VLOOKUP(B24,'Rural and Low Income 2122'!$A:$B,2,FALSE)),0,'2021-22 Prelim'!$M$17) -> 1 | N24: 0 | Q24: 0 | R24: 0 | S24: 0 | T24: 0 | U24: N
A25: 7 | B25: 18100 | C25: BREMERTON | D25: =IFERROR(VLOOKUP(B25,'Enrollment 2122'!$A:$D,4,0),0) -> 84 | E25: 39525 | F25: =IFERROR(VLOOKUP(B25,'Enrollment 2122'!$A:$F,6,0),0) -> 21 | G25: 2470 | H25: =IFERROR(VLOOKUP(B25,'Enrollment 2122'!$A:$E,5,FALSE),0) -> 17 | I25: 7999 | J25: 49994 | K25: =IF(D25>$D$17,_xlfn.IFNA(VLOOKUP(B25,'other funds ftr 2021 for 2122'!$A:$I,9,FALSE),0),1) -> 0 | L25: 49994 | M25: =1+IF(ISNA(VLOOKUP(B25,'Rural and Low Income 2122'!$A:$B,2,FALSE)),0,'2021-22 Prelim'!$M$17) -> 1 | N25: 0 | Q25: 0 | R25: 0 | S25: 0 | T25: 0 | U25: N
A26: 8 | B26: 24111 | C26: BREWSTER | D26: =IFERROR(VLOOKUP(B26,'Enrollment 2122'!$A:$D,4,0),0) -> 227 | E26: 106810 | F26: =IFERROR(VLOOKUP(B26,'Enrollment 2122'!$A:$F,6,0),0) -> 34 | G26: 4000 | H26: =IFERROR(VLOOKUP(B26,'Enrollment 2122'!$A:$E,5,FALSE),0) -> 66 | I26: 31055 | J26: 141865 | K26: =IF(D26>$D$17,_xlfn.IFNA(VLOOKUP(B26,'other funds ftr 2021 for 2122'!$A:$I,9,FALSE),0),1) -> 1.05 | L26: 148958 | M26: =1+IF(ISNA(VLOOKUP(B26,'Rural and Low Income 2122'!$A:$B,2,FALSE)),0,'2021-22 Prelim'!$M$17) -> 1.1 | N26: 163854 | Q26: 0 | R26: 163854 | S26: 150834 | T26: 13020 | U26: Y
A27: 9 | B27: 09075 | C27: BRIDGEPORT | D27: =IFERROR(VLOOKUP(B27,'Enrollment 2122'!$A:$D,4,0),0) -> 230 | E27: 108222 | F27: =IFERROR(VLOOKUP(B27,'Enrollment 2122'!$A:$F,6,0),0) -> 47 | G27: 5529 | H27: =IFERROR(VLOOKUP(B27,'Enrollment 2122'!$A:$E,5,FALSE),0) -> 38 | I27: 17880 | J27: 131631 | K27: =IF(D27>$D$17,_xlfn.IFNA(VLOOKUP(B27,'other funds ftr 2021 for 2122'!$A:$I,9,FALSE),0),1) -> 1.05 | L27: 138213 | M27: =1+IF(ISNA(VLOOKUP(B27,'Rural and Low Income 2122'!$A:$B,2,FALSE)),0,'2021-22 Prelim'!$M$17) -> 1.1 | N27: 152034 | Q27: 0 | R27: 152034 | S27: 141169 | T27: 10865 | U27: Y
A28: 10 | B28: 29100 | C28: BURLINGTON-EDISON | D28: =IFERROR(VLOOKUP(B28,'Enrollment 2122'!$A:$D,4,0),0) -> 338 | E28: 159039 | F28: =IFERROR(VLOOKUP(B28,'Enrollment 2122'!$A:$F,6,0),0) -> 59 | G28: 6940 | H28: =IFERROR(VLOOKUP(B28,'Enrollment 2122'!$A:$E,5,FALSE),0) -> 108 | I28: 50817 | J28: 216796 | K28: =IF(D28>$D$17,_xlfn.IFNA(VLOOKUP(B28,'other funds ftr 2021 for 2122'!$A:$I,9,FALSE),0),1) -> 0.95 | L28: 205956 | M28: =1+IF(ISNA(VLOOKUP(B28,'Rural and Low Income 2122'!$A:$B,2,FALSE)),0,'2021-22 Prelim'!$M$17) -> 1 | N28: 205956 | Q28: 0 | R28: 205956 | S28: 123966 | T28: 81990 | U28: Y
A29: 11 | B29: 04228 | C29: CASCADE | D29: =IFERROR(VLOOKUP(B29,'Enrollment 2122'!$A:$D,4,0),0) -> 64 | E29: 30114 | F29: =IFERROR(VLOOKUP(B29,'Enrollment 2122'!$A:$F,6,0),0) -> 16 | G29: 1882 | H29: =IFERROR(VLOOKUP(B29,'Enrollment 2122'!$A:$E,5,FALSE),0) -> 13 | I29: 6117 | J29: 38113 | K29: =IF(D29>$D$17,_xlfn.IFNA(VLOOKUP(B29,'other funds ftr 2021 for 2122'!$A:$I,9,FALSE),0),1) -> 1 | L29: 38113 | M29: =1+IF(ISNA(VLOOKUP(B29,'Rural and Low Income 2122'!$A:$B,2,FALSE)),0,'2021-22 Prelim'!$M$17) -> 1.1 | N29: 41924 | Q29: 0 | R29: 41924 | S29: 44943 | T29: -3019 | U29: Y
A30: 12 | B30: 04222 | C30: CASHMERE | D30: =IFERROR(VLOOKUP(B30,'Enrollment 2122'!$A:$D,4,0),0) -> 257 | E30: 120926 | F30: =IFERROR(VLOOKUP(B30,'Enrollment 2122'!$A:$F,6,0),0) -> 20 | G30: 2353 | H30: =IFERROR(VLOOKUP(B30,'Enrollment 2122'!$A:$E,5,FALSE),0) -> 44 | I30: 20703 | J30: 143982 | K30: =IF(D30>$D$17,_xlfn.IFNA(VLOOKUP(B30,'other funds ftr 2021 for 2122'!$A:$I,9,FALSE),0),1) -> 1.15 | L30: 165579 | M30: =1+IF(ISNA(VLOOKUP(B30,'Rural and Low Income 2122'!$A:$B,2,FALSE)),0,'2021-22 Prelim'!$M$17) -> 1 | N30: 165579 | Q30: 0 | R30: 165579 | S30: 155528 | T30: 10051 | U30: Y
A31: 14 | B31: 18401 | C31: CENTRAL KITSAP | D31: =IFERROR(VLOOKUP(B31,'Enrollment 2122'!$A:$D,4,0),0) -> 16 | E31: 7528 | F31: =IFERROR(VLOOKUP(B31,'Enrollment 2122'!$A:$F,6,0),0) -> 5 | G31: 588 | H31: =IFERROR(VLOOKUP(B31,'Enrollment 2122'!$A:$E,5,FALSE),0) -> 8 | I31: 3764 | J31: 11880 | K31: =IF(D31>$D$17,_xlfn.IFNA(VLOOKUP(B31,'other funds ftr 2021 for 2122'!$A:$I,9,FALSE),0),1) -> 0 | L31: 11880 | M31: =1+IF(ISNA(VLOOKUP(B31,'Rural and Low Income 2122'!$A:$B,2,FALSE)),0,'2021-22 Prelim'!$M$17) -> 1 | N31: 0 | Q31: 0 | R31: 0 | S31: 0 | T31: 0 | U31: N
A32: 13 | B32: 32356 | C32: CENTRAL VALLEY | D32: =IFERROR(VLOOKUP(B32,'Enrollment 2122'!$A:$D,4,0),0) -> 15 | E32: 7058 | F32: =IFERROR(VLOOKUP(B32,'Enrollment 2122'!$A:$F,6,0),0) -> 1 | G32: 118 | H32: =IFERROR(VLOOKUP(B32,'Enrollment 2122'!$A:$E,5,FALSE),0) -> 5 | I32: 2353 | J32: 9529 | K32: =IF(D32>$D$17,_xlfn.IFNA(VLOOKUP(B32,'other funds ftr 2021 for 2122'!$A:$I,9,FALSE),0),1) -> 0 | L32: 9529 | M32: =1+IF(ISNA(VLOOKUP(B32,'Rural and Low Income 2122'!$A:$B,2,FALSE)),0,'2021-22 Prelim'!$M$17) -> 1 | N32: 0 | Q32: =ROUND(IF(P32>0,-(0.9-P32)*N32,0),0) -> 0 | R32: 0 | S32: 0 | T32: 0 | U32: N
A33: 15 | B33: 21401 | C33: CENTRALIA | D33: =IFERROR(VLOOKUP(B33,'Enrollment 2122'!$A:$D,4,0),0) -> 97 | E33: 45641 | F33: =IFERROR(VLOOKUP(B33,'Enrollment 2122'!$A:$F,6,0),0) -> 22 | G33: 2588 | H33: =IFERROR(VLOOKUP(B33,'Enrollment 2122'!$A:$E,5,FALSE),0) -> 34 | I33: 15998 | J33: 64227 | K33: =IF(D33>$D$17,_xlfn.IFNA(VLOOKUP(B33,'other funds ftr 2021 for 2122'!$A:$I,9,FALSE),0),1) -> 0.85 | L33: 54593 | M33: =1+IF(ISNA(VLOOKUP(B33,'Rural and Low Income 2122'!$A:$B,2,FALSE)),0,'2021-22 Prelim'!$M$17) -> 1.1 | N33: 60052 | Q33: =ROUND(IF(P33>0,-(0.9-P33)*N33,0),0) -> 0 | R33: 60052 | S33: 67429 | T33: -7377 | U33: Y
A34: 16 | B34: 21302 | C34: CHEHALIS | D34: =IFERROR(VLOOKUP(B34,'Enrollment 2122'!$A:$D,4,0),0) -> 34 | E34: 15998 | F34: =IFERROR(VLOOKUP(B34,'Enrollment 2122'!$A:$F,6,0),0) -> 14 | G34: 1647 | H34: =IFERROR(VLOOKUP(B34,'Enrollment 2122'!$A:$E,5,FALSE),0) -> 14 | I34: 6587 | J34: 24232 | K34: =IF(D34>$D$17,_xlfn.IFNA(VLOOKUP(B34,'other funds ftr 2021 for 2122'!$A:$I,9,FALSE),0),1) -> 0.85 | L34: 20597 | M34: =1+IF(ISNA(VLOOKUP(B34,'Rural and Low Income 2122'!$A:$B,2,FALSE)),0,'2021-22 Prelim'!$M$17) -> 1 | N34: 20597 | Q34: =ROUND(IF(P34>0,-(0.9-P34)*N34,0),0) -> 0 | R34: 20597 | S34: 17125 | T34: 3472 | U34: Y | V34: Y
A35: 17 | B35: 27901 | C35: CHIEF LESCHI TRIBAL | D35: =IFERROR(VLOOKUP(B35,'Enrollment 2122'!$A:$D,4,0),0) -> 12 | E35: 5646 | F35: =IFERROR(VLOOKUP(B35,'Enrollment 2122'!$A:$F,6,0),0) -> 0 | G35: 0 | H35: =IFERROR(VLOOKUP(B35,'Enrollment 2122'!$A:$E,5,FALSE),0) -> 2 | I35: 941 | J35: 6587 | K35: =IF(D35>$D$17,_xlfn.IFNA(VLOOKUP(B35,'other funds ftr 2021 for 2122'!$A:$I,9,FALSE),0),1) -> 0 | L35: 6587 | M35: =1+IF(ISNA(VLOOKUP(B35,'Rural and Low Income 2122'!$A:$B,2,FALSE)),0,'2021-22 Prelim'!$M$17) -> 1 | N35: 6587 | Q35: 0 | R35: 6587 | S35: 4991 | T35: 1596 | U35: Y
A36: 18 | B36: 36250 | C36: COLLEGE PLACE | D36: =IFERROR(VLOOKUP(B36,'Enrollment 2122'!$A:$D,4,0),0) -> 97 | E36: 45641 | F36: =IFERROR(VLOOKUP(B36,'Enrollment 2122'!$A:$F,6,0),0) -> 27 | G36: 3176 | H36: =IFERROR(VLOOKUP(B36,'Enrollment 2122'!$A:$E,5,FALSE),0) -> 25 | I36: 11763 | J36: 60580 | K36: =IF(D36>$D$17,_xlfn.IFNA(VLOOKUP(B36,'other funds ftr 2021 for 2122'!$A:$I,9,FALSE),0),1) -> 0.95 | L36: 57551 | M36: =1+IF(ISNA(VLOOKUP(B36,'Rural and Low Income 2122'!$A:$B,2,FALSE)),0,'2021-22 Prelim'!$M$17) -> 1 | N36: 57551 | Q36: =ROUND(IF(P36>0,-(0.9-P36)*N36,0),0) -> 0 | R36: 57551 | S36: 33764 | T36: 23787 | U36: Y | V36: Y
A37: 19 | B37: 36400 | C37: COLUMBIA | D37: =IFERROR(VLOOKUP(B37,'Enrollment 2122'!$A:$D,4,0),0) -> 60 | E37: 28232 | F37: =IFERROR(VLOOKUP(B37,'Enrollment 2122'!$A:$F,6,0),0) -> 31 | G37: 3647 | H37: =IFERROR(VLOOKUP(B37,'Enrollment 2122'!$A:$E,5,FALSE),0) -> 9 | I37: 4235 | J37: 36114 | K37: =IF(D37>$D$17,_xlfn.IFNA(VLOOKUP(B37,'other funds ftr 2021 for 2122'!$A:$I,9,FALSE),0),1) -> 0.95 | L37: 34308 | M37: =1+IF(ISNA(VLOOKUP(B37,'Rural and Low Income 2122'!$A:$B,2,FALSE)),0,'2021-22 Prelim'!$M$17) -> 1.1 | N37: 37739 | Q37: 0 | R37: 37739 | S37: 23106 | T37: 14633 | U37: Y
A38: 20 | B38: 29317 | C38: CONWAY | D38: =IFERROR(VLOOKUP(B38,'Enrollment 2122'!$A:$D,4,0),0) -> 31 | E38: 14586 | F38: =IFERROR(VLOOKUP(B38,'Enrollment 2122'!$A:$F,6,0),0) -> 8 | G38: 941 | H38: =IFERROR(VLOOKUP(B38,'Enrollment 2122'!$A:$E,5,FALSE),0) -> 13 | I38: 6117 | J38: 21644 | K38: =IF(D38>$D$17,_xlfn.IFNA(VLOOKUP(B38,'other funds ftr 2021 for 2122'!$A:$I,9,FALSE),0),1) -> 1.15 | L38: 24891 | M38: =1+IF(ISNA(VLOOKUP(B38,'Rural and Low Income 2122'!$A:$B,2,FALSE)),0,'2021-22 Prelim'!$M$17) -> 1 | N38: 24891 | Q38: 0 | R38: 24891 | S38: 24179 | T38: 712 | U38: Y
A39: 21 | B39: 15204 | C39: COUPEVILLE | D39: =IFERROR(VLOOKUP(B39,'Enrollment 2122'!$A:$D,4,0),0) -> 15 | E39: 7058 | F39: =IFERROR(VLOOKUP(B39,'Enrollment 2122'!$A:$F,6,0),0) -> 3 | G39: 353 | H39: =IFERROR(VLOOKUP(B39,'Enrollment 2122'!$A:$E,5,FALSE),0) -> 2 | I39: 941 | J39: 8352 | K39: =IF(D39>$D$17,_xlfn.IFNA(VLOOKUP(B39,'other funds ftr 2021 for 2122'!$A:$I,9,FALSE),0),1) -> 0.85 | L39: 7099 | M39: =1+IF(ISNA(VLOOKUP(B39,'Rural and Low Income 2122'!$A:$B,2,FALSE)),0,'2021-22 Prelim'!$M$17) -> 1 | N39: 7099 | Q39: 0 | R39: 7099 | S39: 7388 | T39: -289 | U39: Y
A40: 22 | B40: 39090 | C40: EAST VALLEY | D40: =IFERROR(VLOOKUP(B40,'Enrollment 2122'!$A:$D,4,0),0) -> 246 | E40: 115750 | F40: =IFERROR(VLOOKUP(B40,'Enrollment 2122'!$A:$F,6,0),0) -> 95 | G40: 11175 | H40: =IFERROR(VLOOKUP(B40,'Enrollment 2122'!$A:$E,5,FALSE),0) -> 113 | I40: 53170 | J40: 180095 | K40: =IF(D40>$D$17,_xlfn.IFNA(VLOOKUP(B40,'other funds ftr 2021 for 2122'!$A:$I,9,FALSE),0),1) -> 0 | L40: 180095 | M40: =1+IF(ISNA(VLOOKUP(B40,'Rural and Low Income 2122'!$A:$B,2,FALSE)),0,'2021-22 Prelim'!$M$17) -> 1 | N40: 0 | Q40: 0 | R40: 0 | S40: 0 | T40: 0 | U40: N
A41: 23 | B41: 09206 | C41: EASTMONT | D41: =IFERROR(VLOOKUP(B41,'Enrollment 2122'!$A:$D,4,0),0) -> 911 | E41: 428653 | F41: =IFERROR(VLOOKUP(B41,'Enrollment 2122'!$A:$F,6,0),0) -> 262 | G41: 30820 | H41: =IFERROR(VLOOKUP(B41,'Enrollment 2122'!$A:$E,5,FALSE),0) -> 241 | I41: 113398 | J41: 572871 | K41: =IF(D41>$D$17,_xlfn.IFNA(VLOOKUP(B41,'other funds ftr 2021 for 2122'!$A:$I,9,FALSE),0),1) -> 1.05 | L41: 601515 | M41: =1+IF(ISNA(VLOOKUP(B41,'Rural and Low Income 2122'!$A:$B,2,FALSE)),0,'2021-22 Prelim'!$M$17) -> 1 | N41: 601515 | Q41: 0 | R41: 601515 | S41: 471685 | T41: 129830 | U41: Y
A42: 24 | B42: 31015 | C42: EDMONDS | D42: =IFERROR(VLOOKUP(B42,'Enrollment 2122'!$A:$D,4,0),0) -> 19 | E42: 8940 | F42: =IFERROR(VLOOKUP(B42,'Enrollment 2122'!$A:$F,6,0),0) -> 1 | G42: 118 | H42: =IFERROR(VLOOKUP(B42,'Enrollment 2122'!$A:$E,5,FALSE),0) -> 5 | I42: 2353 | J42: 11411 | K42: =IF(D42>$D$17,_xlfn.IFNA(VLOOKUP(B42,'other funds ftr 2021 for 2122'!$A:$I,9,FALSE),0),1) -> 0 | L42: 11411 | M42: =1+IF(ISNA(VLOOKUP(B42,'Rural and Low Income 2122'!$A:$B,2,FALSE)),0,'2021-22 Prelim'!$M$17) -> 1 | N42: 0 | Q42: 0 | R42: 0 | S42: 0 | T42: 0 | U42: N
A43: 25 | B43: 19401 | C43: ELLENSBURG | D43: =IFERROR(VLOOKUP(B43,'Enrollment 2122'!$A:$D,4,0),0) -> 56 | E43: 26350 | F43: =IFERROR(VLOOKUP(B43,'Enrollment 2122'!$A:$F,6,0),0) -> 20 | G43: 2353 | H43: =IFERROR(VLOOKUP(B43,'Enrollment 2122'!$A:$E,5,FALSE),0) -> 15 | I43: 7058 | J43: 35761 | K43: =IF(D43>$D$17,_xlfn.IFNA(VLOOKUP(B43,'other funds ftr 2021 for 2122'!$A:$I,9,FALSE),0),1) -> 0.85 | L43: 30397 | M43: =1+IF(ISNA(VLOOKUP(B43,'Rural and Low Income 2122'!$A:$B,2,FALSE)),0,'2021-22 Prelim'!$M$17) -> 1 | N43: 30397 | Q43: 0 | R43: 30397 | S43: 24238 | T43: 6159 | U43: Y
A44: 26 | B44: 14068 | C44: ELMA | D44: =IFERROR(VLOOKUP(B44,'Enrollment 2122'!$A:$D,4,0),0) -> 50 | E44: 23527 | F44: =IFERROR(VLOOKUP(B44,'Enrollment 2122'!$A:$F,6,0),0) -> 14 | G44: 1647 | H44: =IFERROR(VLOOKUP(B44,'Enrollment 2122'!$A:$E,5,FALSE),0) -> 3 | I44: 1412 | J44: 26586 | K44: =IF(D44>$D$17,_xlfn.IFNA(VLOOKUP(B44,'other funds ftr 2021 for 2122'!$A:$I,9,FALSE),0),1) -> 0 | L44: 26586 | M44: =1+IF(ISNA(VLOOKUP(B44,'Rural and Low Income 2122'!$A:$B,2,FALSE)),0,'2021-22 Prelim'!$M$17) -> 1 | N44: 0 | Q44: 0 | R44: 0 | S44: 0 | T44: 0 | U44: N
A45: 27 | B45: 04127 | C45: ENTIAT | D45: =IFERROR(VLOOKUP(B45,'Enrollment 2122'!$A:$D,4,0),0) -> 35 | E45: 16469 | F45: =IFERROR(VLOOKUP(B45,'Enrollment 2122'!$A:$F,6,0),0) -> 3 | G45: 353 | H45: =IFERROR(VLOOKUP(B45,'Enrollment 2122'!$A:$E,5,FALSE),0) -> 12 | I45: 5646 | J45: 22468 | K45: =IF(D45>$D$17,_xlfn.IFNA(VLOOKUP(B45,'other funds ftr 2021 for 2122'!$A:$I,9,FALSE),0),1) -> 0 | L45: 22468 | M45: =1+IF(ISNA(VLOOKUP(B45,'Rural and Low Income 2122'!$A:$B,2,FALSE)),0,'2021-22 Prelim'!$M$17) -> 1 | N45: 0 | Q45: 0 | R45: 0 | S45: 0 | T45: 0 | U45: N
A46: 28 | B46: 13165 | C46: EPHRATA | D46: =IFERROR(VLOOKUP(B46,'Enrollment 2122'!$A:$D,4,0),0) -> 229 | E46: 107751 | F46: =IFERROR(VLOOKUP(B46,'Enrollment 2122'!$A:$F,6,0),0) -> 57 | G46: 6705 | H46: =IFERROR(VLOOKUP(B46,'Enrollment 2122'!$A:$E,5,FALSE),0) -> 62 | I46: 29173 | J46: 143629 | K46: =IF(D46>$D$17,_xlfn.IFNA(VLOOKUP(B46,'other funds ftr 2021 for 2122'!$A:$I,9,FALSE),0),1) -> 0.95 | L46: 136448 | M46: =1+IF(ISNA(VLOOKUP(B46,'Rural and Low Income 2122'!$A:$B,2,FALSE)),0,'2021-22 Prelim'!$M$17) -> 1 | N46: 136448 | Q46: 0 | R46: 136448 | S46: 91477 | T46: 44971 | U46: Y
A47: 29 | B47: 31002 | C47: EVERETT | D47: =IFERROR(VLOOKUP(B47,'Enrollment 2122'!$A:$D,4,0),0) -> 45 | E47: 21174 | F47: =IFERROR(VLOOKUP(B47,'Enrollment 2122'!$A:$F,6,0),0) -> 14 | G47: 1647 | H47: =IFERROR(VLOOKUP(B47,'Enrollment 2122'!$A:$E,5,FALSE),0) -> 16 | I47: 7528 | J47: 30349 | K47: =IF(D47>$D$17,_xlfn.IFNA(VLOOKUP(B47,'other funds ftr 2021 for 2122'!$A:$I,9,FALSE),0),1) -> 0 | L47: 30349 | M47: =1+IF(ISNA(VLOOKUP(B47,'Rural and Low Income 2122'!$A:$B,2,FALSE)),0,'2021-22 Prelim'!$M$17) -> 1 | N47: 0 | Q47: 0 | R47: 0 | S47: 0 | T47: 0 | U47: N
A48: 30 | B48: 06114 | C48: EVERGREEN | D48: =IFERROR(VLOOKUP(B48,'Enrollment 2122'!$A:$D,4,0),0) -> 41 | E48: 19292 | F48: =IFERROR(VLOOKUP(B48,'Enrollment 2122'!$A:$F,6,0),0) -> 12 | G48: 1412 | H48: =IFERROR(VLOOKUP(B48,'Enrollment 2122'!$A:$E,5,FALSE),0) -> 6 | I48: 2823 | J48: 23527 | K48: =IF(D48>$D$17,_xlfn.IFNA(VLOOKUP(B48,'other funds ftr 2021 for 2122'!$A:$I,9,FALSE),0),1) -> 0 | L48: 23527 | M48: =1+IF(ISNA(VLOOKUP(B48,'Rural and Low Income 2122'!$A:$B,2,FALSE)),0,'2021-22 Prelim'!$M$17) -> 1 | N48: 0 | Q48: 0 | R48: 0 | S48: 0 | T48: 0 | U48: N
A49: 31 | B49: 17210 | C49: FEDERAL WAY | D49: =IFERROR(VLOOKUP(B49,'Enrollment 2122'!$A:$D,4,0),0) -> 78 | E49: 36701 | F49: =IFERROR(VLOOKUP(B49,'Enrollment 2122'!$A:$F,6,0),0) -> 7 | G49: 823 | H49: =IFERROR(VLOOKUP(B49,'Enrollment 2122'!$A:$E,5,FALSE),0) -> 31 | I49: 14586 | J49: 52110 | K49: =IF(D49>$D$17,_xlfn.IFNA(VLOOKUP(B49,'other funds ftr 2021 for 2122'!$A:$I,9,FALSE),0),1) -> 0 | L49: 52110 | M49: =1+IF(ISNA(VLOOKUP(B49,'Rural and Low Income 2122'!$A:$B,2,FALSE)),0,'2021-22 Prelim'!$M$17) -> 1 | N49: 0 | Q49: 0 | R49: 0 | S49: 0 | T49: 0 | U49: N
A50: 32 | B50: 37502 | C50: FERNDALE | D50: =IFERROR(VLOOKUP(B50,'Enrollment 2122'!$A:$D,4,0),0) -> 187 | E50: 87989 | F50: =IFERROR(VLOOKUP(B50,'Enrollment 2122'!$A:$F,6,0),0) -> 32 | G50: 3764 | H50: =IFERROR(VLOOKUP(B50,'Enrollment 2122'!$A:$E,5,FALSE),0) -> 39 | I50: 18351 | J50: 110104 | K50: =IF(D50>$D$17,_xlfn.IFNA(VLOOKUP(B50,'other funds ftr 2021 for 2122'!$A:$I,9,FALSE),0),1) -> 0.95 | L50: 104599 | M50: =1+IF(ISNA(VLOOKUP(B50,'Rural and Low Income 2122'!$A:$B,2,FALSE)),0,'2021-22 Prelim'!$M$17) -> 1 | N50: 104599 | Q50: 0 | R50: 104599 | S50: 71944 | T50: 32655 | U50: Y
A51: 33 | B51: 03053 | C51: FINLEY | D51: =IFERROR(VLOOKUP(B51,'Enrollment 2122'!$A:$D,4,0),0) -> 86 | E51: 40466 | F51: =IFERROR(VLOOKUP(B51,'Enrollment 2122'!$A:$F,6,0),0) -> 23 | G51: 2706 | H51: =IFERROR(VLOOKUP(B51,'Enrollment 2122'!$A:$E,5,FALSE),0) -> 20 | I51: 9411 | J51: 52583 | K51: =IF(D51>$D$17,_xlfn.IFNA(VLOOKUP(B51,'other funds ftr 2021 for 2122'!$A:$I,9,FALSE),0),1) -> 0.95 | L51: 49954 | M51: =1+IF(ISNA(VLOOKUP(B51,'Rural and Low Income 2122'!$A:$B,2,FALSE)),0,'2021-22 Prelim'!$M$17) -> 1 | N51: 49954 | Q51: 0 | R51: 49954 | S51: 26894 | T51: 23060 | U51: Y
A52: 34 | B52: 27402 | C52: FRANKLIN PIERCE | D52: =IFERROR(VLOOKUP(B52,'Enrollment 2122'!$A:$D,4,0),0) -> 12 | E52: 5646 | F52: =IFERROR(VLOOKUP(B52,'Enrollment 2122'!$A:$F,6,0),0) -> 0 | G52: 0 | H52: =IFERROR(VLOOKUP(B52,'Enrollment 2122'!$A:$E,5,FALSE),0) -> 3 | I52: 1412 | J52: 7058 | K52: =IF(D52>$D$17,_xlfn.IFNA(VLOOKUP(B52,'other funds ftr 2021 for 2122'!$A:$I,9,FALSE),0),1) -> 0 | L52: 7058 | M52: =1+IF(ISNA(VLOOKUP(B52,'Rural and Low Income 2122'!$A:$B,2,FALSE)),0,'2021-22 Prelim'!$M$17) -> 1 | N52: 0 | Q52: 0 | R52: 0 | S52: 0 | T52: 0 | U52: N
A53: 35 | B53: 20404 | C53: GOLDENDALE | D53: =IFERROR(VLOOKUP(B53,'Enrollment 2122'!$A:$D,4,0),0) -> 85 | E53: 39995 | F53: =IFERROR(VLOOKUP(B53,'Enrollment 2122'!$A:$F,6,0),0) -> 16 | G53: 1882 | H53: =IFERROR(VLOOKUP(B53,'Enrollment 2122'!$A:$E,5,FALSE),0) -> 20 | I53: 9411 | J53: 51288 | K53: =IF(D53>$D$17,_xlfn.IFNA(VLOOKUP(B53,'other funds ftr 2021 for 2122'!$A:$I,9,FALSE),0),1) -> 0 | L53: 51288 | M53: =1+IF(ISNA(VLOOKUP(B53,'Rural and Low Income 2122'!$A:$B,2,FALSE)),0,'2021-22 Prelim'!$M$17) -> 1.1 | N53: 56417 | Q53: 0 | R53: 56417 | S53: 0 | T53: 56417 | U53: Y
A54: 36 | B54: 13301 | C54: GRAND COULEE DAM | D54: =IFERROR(VLOOKUP(B54,'Enrollment 2122'!$A:$D,4,0),0) -> 174 | E54: 81872 | F54: =IFERROR(VLOOKUP(B54,'Enrollment 2122'!$A:$F,6,0),0) -> 51 | G54: 5999 | H54: =IFERROR(VLOOKUP(B54,'Enrollment 2122'!$A:$E,5,FALSE),0) -> 43 | I54: 20233 | J54: 108104 | K54: =IF(D54>$D$17,_xlfn.IFNA(VLOOKUP(B54,'other funds ftr 2021 for 2122'!$A:$I,9,FALSE),0),1) -> 1.05 | L54: 113509 | M54: =1+IF(ISNA(VLOOKUP(B54,'Rural and Low Income 2122'!$A:$B,2,FALSE)),0,'2021-22 Prelim'!$M$17) -> 1.1 | N54: 0 | Q54: 0 | R54: 0 | S54: 49096 | T54: -49096 | U54: N
A55: 37 | B55: 39200 | C55: GRANDVIEW | D55: =IFERROR(VLOOKUP(B55,'Enrollment 2122'!$A:$D,4,0),0) -> 575 | E55: 270555 | F55: =IFERROR(VLOOKUP(B55,'Enrollment 2122'!$A:$F,6,0),0) -> 155 | G55: 18233 | H55: =IFERROR(VLOOKUP(B55,'Enrollment 2122'!$A:$E,5,FALSE),0) -> 182 | I55: 85637 | J55: 374425 | K55: =IF(D55>$D$17,_xlfn.IFNA(VLOOKUP(B55,'other funds ftr 2021 for 2122'!$A:$I,9,FALSE),0),1) -> 1 | L55: 374425 | M55: =1+IF(ISNA(VLOOKUP(B55,'Rural and Low Income 2122'!$A:$B,2,FALSE)),0,'2021-22 Prelim'!$M$17) -> 1.1 | N55: 411868 | Q55: 0 | R55: 411868 | S55: 348448 | T55: 63420 | U55: Y | V55: Y
A56: 38 | B56: 39204 | C56: GRANGER | D56: =IFERROR(VLOOKUP(B56,'Enrollment 2122'!$A:$D,4,0),0) -> 410 | E56: 192917 | F56: =IFERROR(VLOOKUP(B56,'Enrollment 2122'!$A:$F,6,0),0) -> 131 | G56: 15410 | H56: =IFERROR(VLOOKUP(B56,'Enrollment 2122'!$A:$E,5,FALSE),0) -> 87 | I56: 40936 | J56: 249263 | K56: =IF(D56>$D$17,_xlfn.IFNA(VLOOKUP(B56,'other funds ftr 2021 for 2122'!$A:$I,9,FALSE),0),1) -> 1.05 | L56: 261726 | M56: =1+IF(ISNA(VLOOKUP(B56,'Rural and Low Income 2122'!$A:$B,2,FALSE)),0,'2021-22 Prelim'!$M$17) -> 1.1 | N56: 287899 | Q56: 0 | R56: 287899 | S56: 225895 | T56: 62004 | U56: Y | V56: Y
A57: 39 | B57: 39203 | C57: HIGHLAND | D57: =IFERROR(VLOOKUP(B57,'Enrollment 2122'!$A:$D,4,0),0) -> 205 | E57: 96459 | F57: =IFERROR(VLOOKUP(B57,'Enrollment 2122'!$A:$F,6,0),0) -> 45 | G57: 5293 | H57: =IFERROR(VLOOKUP(B57,'Enrollment 2122'!$A:$E,5,FALSE),0) -> 39 | I57: 18351 | J57: 120103 | K57: =IF(D57>$D$17,_xlfn.IFNA(VLOOKUP(B57,'other funds ftr 2021 for 2122'!$A:$I,9,FALSE),0),1) -> 1.05 | L57: 126108 | M57: =1+IF(ISNA(VLOOKUP(B57,'Rural and Low Income 2122'!$A:$B,2,FALSE)),0,'2021-22 Prelim'!$M$17) -> 1 | N57: 126108 | Q57: 0 | R57: 126108 | S57: 117921 | T57: 8187 | U57: Y
A58: 40 | B58: 17401 | C58: HIGHLINE | D58: =IFERROR(VLOOKUP(B58,'Enrollment 2122'!$A:$D,4,0),0) -> 10 | E58: 4705 | F58: =IFERROR(VLOOKUP(B58,'Enrollment 2122'!$A:$F,6,0),0) -> 2 | G58: 235 | H58: =IFERROR(VLOOKUP(B58,'Enrollment 2122'!$A:$E,5,FALSE),0) -> 3 | I58: 1412 | J58: 6352 | K58: =IF(D58>$D$17,_xlfn.IFNA(VLOOKUP(B58,'other funds ftr 2021 for 2122'!$A:$I,9,FALSE),0),1) -> 1 | L58: 6352 | M58: =1+IF(ISNA(VLOOKUP(B58,'Rural and Low Income 2122'!$A:$B,2,FALSE)),0,'2021-22 Prelim'!$M$17) -> 1 | N58: 0 | Q58: 0 | R58: 0 | S58: 0 | T58: 0 | U58: N
A59: 41 | B59: 23404 | C59: HOOD CANAL | D59: =IFERROR(VLOOKUP(B59,'Enrollment 2122'!$A:$D,4,0),0) -> 48 | E59: 22585 | F59: =IFERROR(VLOOKUP(B59,'Enrollment 2122'!$A:$F,6,0),0) -> 17 | G59: 2000 | H59: =IFERROR(VLOOKUP(B59,'Enrollment 2122'!$A:$E,5,FALSE),0) -> 13 | I59: 6117 | J59: 30702 | K59: =IF(D59>$D$17,_xlfn.IFNA(VLOOKUP(B59,'other funds ftr 2021 for 2122'!$A:$I,9,FALSE),0),1) -> 1 | L59: 30702 | M59: =1+IF(ISNA(VLOOKUP(B59,'Rural and Low Income 2122'!$A:$B,2,FALSE)),0,'2021-22 Prelim'!$M$17) -> 1.1 | N59: 0 | Q59: 0 | R59: 0 | S59: 27617 | T59: -27617 | U59: N
A60: 42 | B60: 14028 | C60: HOQUIAM | D60: =IFERROR(VLOOKUP(B60,'Enrollment 2122'!$A:$D,4,0),0) -> 34 | E60: 15998 | F60: =IFERROR(VLOOKUP(B60,'Enrollment 2122'!$A:$F,6,0),0) -> 15 | G60: 1764 | H60: =IFERROR(VLOOKUP(B60,'Enrollment 2122'!$A:$E,5,FALSE),0) -> 12 | I60: 5646 | J60: 23408 | K60: =IF(D60>$D$17,_xlfn.IFNA(VLOOKUP(B60,'other funds ftr 2021 for 2122'!$A:$I,9,FALSE),0),1) -> 0.85 | L60: 19897 | M60: =1+IF(ISNA(VLOOKUP(B60,'Rural and Low Income 2122'!$A:$B,2,FALSE)),0,'2021-22 Prelim'!$M$17) -> 1.1 | N60: 0 | Q60: 0 | R60: 0 | S60: 16479 | T60: -16479 | U60: N
A61: 43 | B61: 08458 | C61: KELSO | D61: =IFERROR(VLOOKUP(B61,'Enrollment 2122'!$A:$D,4,0),0) -> 34 | E61: 15998 | F61: =IFERROR(VLOOKUP(B61,'Enrollment 2122'!$A:$F,6,0),0) -> 7 | G61: 823 | H61: =IFERROR(VLOOKUP(B61,'Enrollment 2122'!$A:$E,5,FALSE),0) -> 10 | I61: 4705 | J61: 21526 | K61: =IF(D61>$D$17,_xlfn.IFNA(VLOOKUP(B61,'other funds ftr 2021 for 2122'!$A:$I,9,FALSE),0),1) -> 0 | L61: 21526 | M61: =1+IF(ISNA(VLOOKUP(B61,'Rural and Low Income 2122'!$A:$B,2,FALSE)),0,'2021-22 Prelim'!$M$17) -> 1 | N61: 0 | Q61: 0 | R61: 0 | S61: 0 | T61: 0 | U61: N
A62: 44 | B62: 03017 | C62: KENNEWICK | D62: =IFERROR(VLOOKUP(B62,'Enrollment 2122'!$A:$D,4,0),0) -> 3008 | E62: 1415356 | F62: =IFERROR(VLOOKUP(B62,'Enrollment 2122'!$A:$F,6,0),0) -> 959 | G62: 112810 | H62: =IFERROR(VLOOKUP(B62,'Enrollment 2122'!$A:$E,5,FALSE),0) -> 1020 | I62: 479941 | J62: 2008107 | K62: =IF(D62>$D$17,_xlfn.IFNA(VLOOKUP(B62,'other funds ftr 2021 for 2122'!$A:$I,9,FALSE),0),1) -> 1.05 | L62: 2108512 | M62: =1+IF(ISNA(VLOOKUP(B62,'Rural and Low Income 2122'!$A:$B,2,FALSE)),0,'2021-22 Prelim'!$M$17) -> 1 | N62: 2108512 | Q62: 0 | R62: 2108512 | S62: 1468429 | T62: 640083 | U62: Y
A63: 45 | B63: 17415 | C63: KENT | D63: =IFERROR(VLOOKUP(B63,'Enrollment 2122'!$A:$D,4,0),0) -> 50 | E63: 23527 | F63: =IFERROR(VLOOKUP(B63,'Enrollment 2122'!$A:$F,6,0),0) -> 15 | G63: 1764 | H63: =IFERROR(VLOOKUP(B63,'Enrollment 2122'!$A:$E,5,FALSE),0) -> 15 | I63: 7058 | J63: 32349 | K63: =IF(D63>$D$17,_xlfn.IFNA(VLOOKUP(B63,'other funds ftr 2021 for 2122'!$A:$I,9,FALSE),0),1) -> 0 | L63: 32349 | M63: =1+IF(ISNA(VLOOKUP(B63,'Rural and Low Income 2122'!$A:$B,2,FALSE)),0,'2021-22 Prelim'!$M$17) -> 1 | N63: 0 | Q63: 0 | R63: 0 | S63: 0 | T63: 0 | U63: N
A64: 46 | B64: 03052 | C64: KIONA BENTON | D64: =IFERROR(VLOOKUP(B64,'Enrollment 2122'!$A:$D,4,0),0) -> 372 | E64: 175037 | F64: =IFERROR(VLOOKUP(B64,'Enrollment 2122'!$A:$F,6,0),0) -> 124 | G64: 14586 | H64: =IFERROR(VLOOKUP(B64,'Enrollment 2122'!$A:$E,5,FALSE),0) -> 83 | I64: 39054 | J64: 228677 | K64: =IF(D64>$D$17,_xlfn.IFNA(VLOOKUP(B64,'other funds ftr 2021 for 2122'!$A:$I,9,FALSE),0),1) -> 1.15 | L64: 262979 | M64: =1+IF(ISNA(VLOOKUP(B64,'Rural and Low Income 2122'!$A:$B,2,FALSE)),0,'2021-22 Prelim'!$M$17) -> 1 | N64: 262979 | Q64: 0 | R64: 262979 | S64: 197114 | T64: 65865 | U64: Y | V64: Y
A65: 47 | B65: 19403 | C65: KITTITAS | D65: =IFERROR(VLOOKUP(B65,'Enrollment 2122'!$A:$D,4,0),0) -> 23 | E65: 10822 | F65: =IFERROR(VLOOKUP(B65,'Enrollment 2122'!$A:$F,6,0),0) -> 8 | G65: 941 | H65: =IFERROR(VLOOKUP(B65,'Enrollment 2122'!$A:$E,5,FALSE),0) -> 4 | I65: 1882 | J65: 13645 | K65: =IF(D65>$D$17,_xlfn.IFNA(VLOOKUP(B65,'other funds ftr 2021 for 2122'!$A:$I,9,FALSE),0),1) -> 0 | L65: 13645 | M65: =1+IF(ISNA(VLOOKUP(B65,'Rural and Low Income 2122'!$A:$B,2,FALSE)),0,'2021-22 Prelim'!$M$17) -> 1 | N65: 0 | Q65: 0 | R65: 0 | S65: 0 | T65: 0 | U65: N
A66: 48 | B66: 29311 | C66: LA CONNER | D66: =IFERROR(VLOOKUP(B66,'Enrollment 2122'!$A:$D,4,0),0) -> 178 | E66: 83754 | F66: =IFERROR(VLOOKUP(B66,'Enrollment 2122'!$A:$F,6,0),0) -> 72 | G66: 8470 | H66: =IFERROR(VLOOKUP(B66,'Enrollment 2122'!$A:$E,5,FALSE),0) -> 59 | I66: 27761 | J66: 119985 | K66: =IF(D66>$D$17,_xlfn.IFNA(VLOOKUP(B66,'other funds ftr 2021 for 2122'!$A:$I,9,FALSE),0),1) -> 1.15 | L66: 137983 | M66: =1+IF(ISNA(VLOOKUP(B66,'Rural and Low Income 2122'!$A:$B,2,FALSE)),0,'2021-22 Prelim'!$M$17) -> 1 | N66: 137983 | Q66: 0 | R66: 137983 | S66: 112529 | T66: 25454 | U66: Y
A67: 49 | B67: 04129 | C67: LAKE CHELAN | D67: =IFERROR(VLOOKUP(B67,'Enrollment 2122'!$A:$D,4,0),0) -> 223 | E67: 104928 | F67: =IFERROR(VLOOKUP(B67,'Enrollment 2122'!$A:$F,6,0),0) -> 52 | G67: 6117 | H67: =IFERROR(VLOOKUP(B67,'Enrollment 2122'!$A:$E,5,FALSE),0) -> 69 | I67: 32467 | J67: 143512 | K67: =IF(D67>$D$17,_xlfn.IFNA(VLOOKUP(B67,'other funds ftr 2021 for 2122'!$A:$I,9,FALSE),0),1) -> 1.05 | L67: 150688 | M67: =1+IF(ISNA(VLOOKUP(B67,'Rural and Low Income 2122'!$A:$B,2,FALSE)),0,'2021-22 Prelim'!$M$17) -> 1 | N67: 150688 | Q67: 0 | R67: 150688 | S67: 121264 | T67: 29424 | U67: Y
A68: 50 | B68: 34307 | C68: LAKE QUINAULT | D68: =IFERROR(VLOOKUP(B68,'Enrollment 2122'!$A:$D,4,0),0) -> 0 | E68: 0 | F68: =IFERROR(VLOOKUP(B68,'Enrollment 2122'!$A:$F,6,0),0) -> 0 | G68: 0 | H68: =IFERROR(VLOOKUP(B68,'Enrollment 2122'!$A:$E,5,FALSE),0) -> 0 | I68: 0 | J68: 0 | K68: =IF(D68>$D$17,_xlfn.IFNA(VLOOKUP(B68,'other funds ftr 2021 for 2122'!$A:$I,9,FALSE),0),1) -> 1 | L68: 0 | M68: =1+IF(ISNA(VLOOKUP(B68,'Rural and Low Income 2122'!$A:$B,2,FALSE)),0,'2021-22 Prelim'!$M$17) -> 1 | N68: 0 | Q68: 0 | R68: 0 | S68: 0 | T68: 0 | U68: N
A69: 51 | B69: 01158 | C69: LIND | D69: =IFERROR(VLOOKUP(B69,'Enrollment 2122'!$A:$D,4,0),0) -> 48 | E69: 22585 | F69: =IFERROR(VLOOKUP(B69,'Enrollment 2122'!$A:$F,6,0),0) -> 15 | G69: 1764 | H69: =IFERROR(VLOOKUP(B69,'Enrollment 2122'!$A:$E,5,FALSE),0) -> 11 | I69: 5176 | J69: 29525 | K69: =IF(D69>$D$17,_xlfn.IFNA(VLOOKUP(B69,'other funds ftr 2021 for 2122'!$A:$I,9,FALSE),0),1) -> 1.15 | L69: 33954 | M69: =1+IF(ISNA(VLOOKUP(B69,'Rural and Low Income 2122'!$A:$B,2,FALSE)),0,'2021-22 Prelim'!$M$17) -> 1 | N69: 33954 | Q69: 0 | R69: 33954 | S69: 35943 | T69: -1989 | U69: Y
A70: 52 | B70: 08122 | C70: LONGVIEW | D70: =IFERROR(VLOOKUP(B70,'Enrollment 2122'!$A:$D,4,0),0) -> 52 | E70: 24468 | F70: =IFERROR(VLOOKUP(B70,'Enrollment 2122'!$A:$F,6,0),0) -> 13 | G70: 1529 | H70: =IFERROR(VLOOKUP(B70,'Enrollment 2122'!$A:$E,5,FALSE),0) -> 9 | I70: 4235 | J70: 30232 | K70: =IF(D70>$D$17,_xlfn.IFNA(VLOOKUP(B70,'other funds ftr 2021 for 2122'!$A:$I,9,FALSE),0),1) -> 0 | L70: 30232 | M70: =1+IF(ISNA(VLOOKUP(B70,'Rural and Low Income 2122'!$A:$B,2,FALSE)),0,'2021-22 Prelim'!$M$17) -> 1 | N70: 0 | Q70: 0 | R70: 0 | S70: 0 | T70: 0 | U70: N
A71: 53 | B71: 37903 | C71: LUMMI TRIBAL AGENCY | D71: =IFERROR(VLOOKUP(B71,'Enrollment 2122'!$A:$D,4,0),0) -> 15 | E71: 7058 | F71: =IFERROR(VLOOKUP(B71,'Enrollment 2122'!$A:$F,6,0),0) -> 8 | G71: 941 | H71: =IFERROR(VLOOKUP(B71,'Enrollment 2122'!$A:$E,5,FALSE),0) -> 2 | I71: 941 | J71: 8940 | K71: =IF(D71>$D$17,_xlfn.IFNA(VLOOKUP(B71,'other funds ftr 2021 for 2122'!$A:$I,9,FALSE),0),1) -> 0 | L71: 8940 | M71: =1+IF(ISNA(VLOOKUP(B71,'Rural and Low Income 2122'!$A:$B,2,FALSE)),0,'2021-22 Prelim'!$M$17) -> 1 | N71: 8940 | Q71: 0 | R71: 8940 | S71: 7749 | T71: 1191 | U71: Y
A72: 54 | B72: 20406 | C72: LYLE | D72: =IFERROR(VLOOKUP(B72,'Enrollment 2122'!$A:$D,4,0),0) -> 42 | E72: 19762 | F72: =IFERROR(VLOOKUP(B72,'Enrollment 2122'!$A:$F,6,0),0) -> 6 | G72: 706 | H72: =IFERROR(VLOOKUP(B72,'Enrollment 2122'!$A:$E,5,FALSE),0) -> 10 | I72: 4705 | J72: 25173 | K72: =IF(D72>$D$17,_xlfn.IFNA(VLOOKUP(B72,'other funds ftr 2021 for 2122'!$A:$I,9,FALSE),0),1) -> 1 | L72: 25173 | M72: =1+IF(ISNA(VLOOKUP(B72,'Rural and Low Income 2122'!$A:$B,2,FALSE)),0,'2021-22 Prelim'!$M$17) -> 1 | N72: 0 | Q72: 0 | R72: 0 | S72: 18070 | T72: -18070 | U72: N
A73: 55 | B73: 37504 | C73: LYNDEN | D73: =IFERROR(VLOOKUP(B73,'Enrollment 2122'!$A:$D,4,0),0) -> 190 | E73: 89401 | F73: =IFERROR(VLOOKUP(B73,'Enrollment 2122'!$A:$F,6,0),0) -> 26 | G73: 3058 | H73: =IFERROR(VLOOKUP(B73,'Enrollment 2122'!$A:$E,5,FALSE),0) -> 43 | I73: 20233 | J73: 112692 | K73: =IF(D73>$D$17,_xlfn.IFNA(VLOOKUP(B73,'other funds ftr 2021 for 2122'!$A:$I,9,FALSE),0),1) -> 1 | L73: 112692 | M73: =1+IF(ISNA(VLOOKUP(B73,'Rural and Low Income 2122'!$A:$B,2,FALSE)),0,'2021-22 Prelim'!$M$17) -> 1 | N73: 112692 | Q73: 0 | R73: 112692 | S73: 85650 | T73: 27042 | U73: Y
A74: 56 | B74: 39120 | C74: MABTON | D74: =IFERROR(VLOOKUP(B74,'Enrollment 2122'!$A:$D,4,0),0) -> 364 | E74: 171273 | F74: =IFERROR(VLOOKUP(B74,'Enrollment 2122'!$A:$F,6,0),0) -> 107 | G74: 12587 | H74: =IFERROR(VLOOKUP(B74,'Enrollment 2122'!$A:$E,5,FALSE),0) -> 96 | I74: 45171 | J74: 229031 | K74: =IF(D74>$D$17,_xlfn.IFNA(VLOOKUP(B74,'other funds ftr 2021 for 2122'!$A:$I,9,FALSE),0),1) -> 1.15 | L74: 263386 | M74: =1+IF(ISNA(VLOOKUP(B74,'Rural and Low Income 2122'!$A:$B,2,FALSE)),0,'2021-22 Prelim'!$M$17) -> 1.1 | N74: 289725 | Q74: 0 | R74: 289725 | S74: 193952 | T74: 95773 | U74: Y
A75: 57 | B75: 04019 | C75: MANSON | D75: =IFERROR(VLOOKUP(B75,'Enrollment 2122'!$A:$D,4,0),0) -> 100 | E75: 47053 | F75: =IFERROR(VLOOKUP(B75,'Enrollment 2122'!$A:$F,6,0),0) -> 9 | G75: 1059 | H75: =IFERROR(VLOOKUP(B75,'Enrollment 2122'!$A:$E,5,FALSE),0) -> 31 | I75: 14586 | J75: 62698 | K75: =IF(D75>$D$17,_xlfn.IFNA(VLOOKUP(B75,'other funds ftr 2021 for 2122'!$A:$I,9,FALSE),0),1) -> 1 | L75: 62698 | M75: =1+IF(ISNA(VLOOKUP(B75,'Rural and Low Income 2122'!$A:$B,2,FALSE)),0,'2021-22 Prelim'!$M$17) -> 1 | N75: 62698 | Q75: 0 | R75: 62698 | S75: 39948 | T75: 22750 | U75: Y
A76: 58 | B76: 31025 | C76: MARYSVILLE | D76: =IFERROR(VLOOKUP(B76,'Enrollment 2122'!$A:$D,4,0),0) -> 247 | E76: 116221 | F76: =IFERROR(VLOOKUP(B76,'Enrollment 2122'!$A:$F,6,0),0) -> 75 | G76: 8822 | H76: =IFERROR(VLOOKUP(B76,'Enrollment 2122'!$A:$E,5,FALSE),0) -> 61 | I76: 28702 | J76: 153745 | K76: =IF(D76>$D$17,_xlfn.IFNA(VLOOKUP(B76,'other funds ftr 2021 for 2122'!$A:$I,9,FALSE),0),1) -> 0.85 | L76: 130683 | M76: =1+IF(ISNA(VLOOKUP(B76,'Rural and Low Income 2122'!$A:$B,2,FALSE)),0,'2021-22 Prelim'!$M$17) -> 1 | N76: 130683 | Q76: 0 | R76: 130683 | S76: 102222 | T76: 28461 | U76: Y
A77: 59 | B77: 37505 | C77: MERIDIAN | D77: =IFERROR(VLOOKUP(B77,'Enrollment 2122'!$A:$D,4,0),0) -> 48 | E77: 22585 | F77: =IFERROR(VLOOKUP(B77,'Enrollment 2122'!$A:$F,6,0),0) -> 19 | G77: 2235 | H77: =IFERROR(VLOOKUP(B77,'Enrollment 2122'!$A:$E,5,FALSE),0) -> 10 | I77: 4705 | J77: 29525 | K77: =IF(D77>$D$17,_xlfn.IFNA(VLOOKUP(B77,'other funds ftr 2021 for 2122'!$A:$I,9,FALSE),0),1) -> 0 | L77: 29525 | M77: =1+IF(ISNA(VLOOKUP(B77,'Rural and Low Income 2122'!$A:$B,2,FALSE)),0,'2021-22 Prelim'!$M$17) -> 1 | N77: 0 | Q77: 0 | R77: 0 | S77: 0 | T77: 0 | U77: N
A78: 60 | B78: 31103 | C78: MONROE | D78: =IFERROR(VLOOKUP(B78,'Enrollment 2122'!$A:$D,4,0),0) -> 10 | E78: 4705 | F78: =IFERROR(VLOOKUP(B78,'Enrollment 2122'!$A:$F,6,0),0) -> 3 | G78: 353 | H78: =IFERROR(VLOOKUP(B78,'Enrollment 2122'!$A:$E,5,FALSE),0) -> 0 | I78: 0 | J78: 5058 | K78: =IF(D78>$D$17,_xlfn.IFNA(VLOOKUP(B78,'other funds ftr 2021 for 2122'!$A:$I,9,FALSE),0),1) -> 1 | L78: 5058 | M78: =1+IF(ISNA(VLOOKUP(B78,'Rural and Low Income 2122'!$A:$B,2,FALSE)),0,'2021-22 Prelim'!$M$17) -> 1 | N78: 0 | Q78: 0 | R78: 0 | S78: 0 | T78: 0 | U78: N
A79: 61 | B79: 13161 | C79: MOSES LAKE | D79: =IFERROR(VLOOKUP(B79,'Enrollment 2122'!$A:$D,4,0),0) -> 497 | E79: 233854 | F79: =IFERROR(VLOOKUP(B79,'Enrollment 2122'!$A:$F,6,0),0) -> 139 | G79: 16351 | H79: =IFERROR(VLOOKUP(B79,'Enrollment 2122'!$A:$E,5,FALSE),0) -> 142 | I79: 66815 | J79: 317020 | K79: =IF(D79>$D$17,_xlfn.IFNA(VLOOKUP(B79,'other funds ftr 2021 for 2122'!$A:$I,9,FALSE),0),1) -> 0.95 | L79: 301169 | M79: =1+IF(ISNA(VLOOKUP(B79,'Rural and Low Income 2122'!$A:$B,2,FALSE)),0,'2021-22 Prelim'!$M$17) -> 1 | N79: 301169 | Q79: 0 | R79: 301169 | S79: 238017 | T79: 63152 | U79: Y
A80: 62 | B80: 21206 | C80: MOSSYROCK | D80: =IFERROR(VLOOKUP(B80,'Enrollment 2122'!$A:$D,4,0),0) -> 49 | E80: 23056 | F80: =IFERROR(VLOOKUP(B80,'Enrollment 2122'!$A:$F,6,0),0) -> 9 | G80: 1059 | H80: =IFERROR(VLOOKUP(B80,'Enrollment 2122'!$A:$E,5,FALSE),0) -> 21 | I80: 9881 | J80: 33996 | K80: =IF(D80>$D$17,_xlfn.IFNA(VLOOKUP(B80,'other funds ftr 2021 for 2122'!$A:$I,9,FALSE),0),1) -> 0.95 | L80: 32296 | M80: =1+IF(ISNA(VLOOKUP(B80,'Rural and Low Income 2122'!$A:$B,2,FALSE)),0,'2021-22 Prelim'!$M$17) -> 1 | N80: 32296 | Q80: 0 | R80: 32296 | S80: 21253 | T80: 11043 | U80: Y
A81: 63 | B81: 29320 | C81: MOUNT VERNON | D81: =IFERROR(VLOOKUP(B81,'Enrollment 2122'!$A:$D,4,0),0) -> 1586 | E81: 746261 | F81: =IFERROR(VLOOKUP(B81,'Enrollment 2122'!$A:$F,6,0),0) -> 549 | G81: 64580 | H81: =IFERROR(VLOOKUP(B81,'Enrollment 2122'!$A:$E,5,FALSE),0) -> 490 | I81: 230560 | J81: 1041401 | K81: =IF(D81>$D$17,_xlfn.IFNA(VLOOKUP(B81,'other funds ftr 2021 for 2122'!$A:$I,9,FALSE),0),1) -> 1.15 | L81: 1197611 | M81: =1+IF(ISNA(VLOOKUP(B81,'Rural and Low Income 2122'!$A:$B,2,FALSE)),0,'2021-22 Prelim'!$M$17) -> 1 | N81: 1197611 | Q81: 0 | R81: 1197611 | S81: 694727 | T81: 502884 | U81: Y
A82: 64 | B82: 39209 | C82: MT ADAMS | D82: =IFERROR(VLOOKUP(B82,'Enrollment 2122'!$A:$D,4,0),0) -> 159 | E82: 74814 | F82: =IFERROR(VLOOKUP(B82,'Enrollment 2122'!$A:$F,6,0),0) -> 34 | G82: 4000 | H82: =IFERROR(VLOOKUP(B82,'Enrollment 2122'!$A:$E,5,FALSE),0) -> 33 | I82: 15528 | J82: 94342 | K82: =IF(D82>$D$17,_xlfn.IFNA(VLOOKUP(B82,'other funds ftr 2021 for 2122'!$A:$I,9,FALSE),0),1) -> 0 | L82: 94342 | M82: =1+IF(ISNA(VLOOKUP(B82,'Rural and Low Income 2122'!$A:$B,2,FALSE)),0,'2021-22 Prelim'!$M$17) -> 1.1 | N82: 103776 | Q82: 0 | R82: 103776 | S82: 0 | T82: 103776 | U82: Y
A83: 65 | B83: 37507 | C83: MT BAKER | D83: =IFERROR(VLOOKUP(B83,'Enrollment 2122'!$A:$D,4,0),0) -> 46 | E83: 21644 | F83: =IFERROR(VLOOKUP(B83,'Enrollment 2122'!$A:$F,6,0),0) -> 3 | G83: 353 | H83: =IFERROR(VLOOKUP(B83,'Enrollment 2122'!$A:$E,5,FALSE),0) -> 18 | I83: 8470 | J83: =+E83+G83+I83 -> 30467 | K83: =IF(D83>$D$17,_xlfn.IFNA(VLOOKUP(B83,'other funds ftr 2021 for 2122'!$A:$I,9,FALSE),0),1) -> 0.85 | L83: =IF(K83=0,J83,ROUND(J83*K83,0)) -> 25897 | M83: =1+IF(ISNA(VLOOKUP(B83,'Rural and Low Income 2122'!$A:$B,2,FALSE)),0,'2021-22 Prelim'!$M$17) -> 1 | N83: =IF(U83="y",ROUND(L83*M83,0),0) -> 25897 | Q83: 0 | R83: =N83+Q83 -> 25897 | S83: 15395 | T83: =R83-S83 -> 10502 | U83: Y
A84: 66 | B84: 17903 | C84: MUCKLESHOOT TRIBAL SCHOOL | D84: =IFERROR(VLOOKUP(B84,'Enrollment 2122'!$A:$D,4,0),0) -> 24 | E84: =IF(D84>=10,ROUND(D84*$F$3,0),0) -> 11293 | F84: =IFERROR(VLOOKUP(B84,'Enrollment 2122'!$A:$F,6,0),0) -> 8 | G84: =IF(D84>=$D$17,ROUND(F84*$F$3*$F$17,0),0) -> 941 | H84: =IFERROR(VLOOKUP(B84,'Enrollment 2122'!$A:$E,5,FALSE),0) -> 6 | I84: =IF(D84>=$D$17,ROUND(H84*$F$3*$H$17,0),0) -> 2823 | J84: 15057 | K84: =IF(D84>$D$17,_xlfn.IFNA(VLOOKUP(B84,'other funds ftr 2021 for 2122'!$A:$I,9,FALSE),0),1) -> 0 | L84: 15057 | M84: =1+IF(ISNA(VLOOKUP(B84,'Rural and Low Income 2122'!$A:$B,2,FALSE)),0,'2021-22 Prelim'!$M$17) -> 1 | N84: 15057 | Q84: 0 | R84: 15057 | S84: 5786 | T84: 9271 | U84: Y
A85: 67 | B85: 31006 | C85: MUKILTEO | D85: =IFERROR(VLOOKUP(B85,'Enrollment 2122'!$A:$D,4,0),0) -> 33 | E85: 15528 | F85: =IFERROR(VLOOKUP(B85,'Enrollment 2122'!$A:$F,6,0),0) -> 15 | G85: 1764 | H85: =IFERROR(VLOOKUP(B85,'Enrollment 2122'!$A:$E,5,FALSE),0) -> 8 | I85: 3764 | J85: 21056 | K85: =IF(D85>$D$17,_xlfn.IFNA(VLOOKUP(B85,'other funds ftr 2021 for 2122'!$A:$I,9,FALSE),0),1) -> 0 | L85: 21056 | M85: =1+IF(ISNA(VLOOKUP(B85,'Rural and Low Income 2122'!$A:$B,2,FALSE)),0,'2021-22 Prelim'!$M$17) -> 1 | N85: 0 | Q85: 0 | R85: 0 | S85: 0 | T85: 0 | U85: N | V85: Y
A86: 68 | B86: 39003 | C86: NACHES VALLEY | D86: =IFERROR(VLOOKUP(B86,'Enrollment 2122'!$A:$D,4,0),0) -> 128 | E86: 60228 | F86: =IFERROR(VLOOKUP(B86,'Enrollment 2122'!$A:$F,6,0),0) -> 35 | G86: 4117 | H86: =IFERROR(VLOOKUP(B86,'Enrollment 2122'!$A:$E,5,FALSE),0) -> 40 | I86: 18821 | J86: 83166 | K86: =IF(D86>$D$17,_xlfn.IFNA(VLOOKUP(B86,'other funds ftr 2021 for 2122'!$A:$I,9,FALSE),0),1) -> 0 | L86: 83166 | M86: =1+IF(ISNA(VLOOKUP(B86,'Rural and Low Income 2122'!$A:$B,2,FALSE)),0,'2021-22 Prelim'!$M$17) -> 1 | N86: 0 | Q86: 0 | R86: 0 | S86: 0 | T86: 0 | U86: N | V86: Y
A87: 69 | B87: 25155 | C87: NASELLE-GRAYS RIVER | D87: =IFERROR(VLOOKUP(B87,'Enrollment 2122'!$A:$D,4,0),0) -> 75 | E87: 35290 | F87: =IFERROR(VLOOKUP(B87,'Enrollment 2122'!$A:$F,6,0),0) -> 18 | G87: 2117 | H87: =IFERROR(VLOOKUP(B87,'Enrollment 2122'!$A:$E,5,FALSE),0) -> 12 | I87: 5646 | J87: 43053 | K87: =IF(D87>$D$17,_xlfn.IFNA(VLOOKUP(B87,'other funds ftr 2021 for 2122'!$A:$I,9,FALSE),0),1) -> 1.15 | L87: 49511 | M87: =1+IF(ISNA(VLOOKUP(B87,'Rural and Low Income 2122'!$A:$B,2,FALSE)),0,'2021-22 Prelim'!$M$17) -> 1 | N87: 49511 | Q87: 0 | R87: 49511 | S87: 47313 | T87: 2198 | U87: Y
A88: 70 | B88: 24014 | C88: NESPELEM | D88: =IFERROR(VLOOKUP(B88,'Enrollment 2122'!$A:$D,4,0),0) -> 44 | E88: 20703 | F88: =IFERROR(VLOOKUP(B88,'Enrollment 2122'!$A:$F,6,0),0) -> 9 | G88: 1059 | H88: =IFERROR(VLOOKUP(B88,'Enrollment 2122'!$A:$E,5,FALSE),0) -> 7 | I88: 3294 | J88: 25056 | K88: =IF(D88>$D$17,_xlfn.IFNA(VLOOKUP(B88,'other funds ftr 2021 for 2122'!$A:$I,9,FALSE),0),1) -> 1 | L88: 25056 | M88: =1+IF(ISNA(VLOOKUP(B88,'Rural and Low Income 2122'!$A:$B,2,FALSE)),0,'2021-22 Prelim'!$M$17) -> 1 | N88: 25056 | Q88: 0 | R88: 25056 | S88: 16753 | T88: 8303 | U88: Y
A89: 71 | B89: 37506 | C89: NOOKSACK VALLEY | D89: =IFERROR(VLOOKUP(B89,'Enrollment 2122'!$A:$D,4,0),0) -> 201 | E89: 94577 | F89: =IFERROR(VLOOKUP(B89,'Enrollment 2122'!$A:$F,6,0),0) -> 27 | G89: 3176 | H89: =IFERROR(VLOOKUP(B89,'Enrollment 2122'!$A:$E,5,FALSE),0) -> 29 | I89: 13645 | J89: 111398 | K89: =IF(D89>$D$17,_xlfn.IFNA(VLOOKUP(B89,'other funds ftr 2021 for 2122'!$A:$I,9,FALSE),0),1) -> 1 | L89: 111398 | M89: =1+IF(ISNA(VLOOKUP(B89,'Rural and Low Income 2122'!$A:$B,2,FALSE)),0,'2021-22 Prelim'!$M$17) -> 1 | N89: 111398 | Q89: 0 | R89: 111398 | S89: 96188 | T89: 15210 | U89: Y
A90: 72 | B90: 14064 | C90: NORTH BEACH | D90: =IFERROR(VLOOKUP(B90,'Enrollment 2122'!$A:$D,4,0),0) -> 26 | E90: 12234 | F90: =IFERROR(VLOOKUP(B90,'Enrollment 2122'!$A:$F,6,0),0) -> 6 | G90: 706 | H90: =IFERROR(VLOOKUP(B90,'Enrollment 2122'!$A:$E,5,FALSE),0) -> 7 | I90: 3294 | J90: 16234 | K90: =IF(D90>$D$17,_xlfn.IFNA(VLOOKUP(B90,'other funds ftr 2021 for 2122'!$A:$I,9,FALSE),0),1) -> 0.85 | L90: 13799 | M90: =1+IF(ISNA(VLOOKUP(B90,'Rural and Low Income 2122'!$A:$B,2,FALSE)),0,'2021-22 Prelim'!$M$17) -> 1 | N90: 13799 | Q90: 0 | R90: 13799 | S90: 8472 | T90: 5327 | U90: Y
A91: 73 | B91: 11051 | C91: NORTH FRANKLIN | D91: =IFERROR(VLOOKUP(B91,'Enrollment 2122'!$A:$D,4,0),0) -> 657 | E91: 309139 | F91: =IFERROR(VLOOKUP(B91,'Enrollment 2122'!$A:$F,6,0),0) -> 231 | G91: 27173 | H91: =IFERROR(VLOOKUP(B91,'Enrollment 2122'!$A:$E,5,FALSE),0) -> 251 | I91: 118103 | J91: 454415 | K91: =IF(D91>$D$17,_xlfn.IFNA(VLOOKUP(B91,'other funds ftr 2021 for 2122'!$A:$I,9,FALSE),0),1) -> 1.15 | L91: 522577 | M91: =1+IF(ISNA(VLOOKUP(B91,'Rural and Low Income 2122'!$A:$B,2,FALSE)),0,'2021-22 Prelim'!$M$17) -> 1.1 | N91: 574835 | Q91: 0 | R91: 574835 | S91: 451426 | T91: 123409 | U91: Y
A92: 74 | B92: 18400 | C92: NORTH KITSAP | D92: =IFERROR(VLOOKUP(B92,'Enrollment 2122'!$A:$D,4,0),0) -> 65 | E92: 30584 | F92: =IFERROR(VLOOKUP(B92,'Enrollment 2122'!$A:$F,6,0),0) -> 28 | G92: 3294 | H92: =IFERROR(VLOOKUP(B92,'Enrollment 2122'!$A:$E,5,FALSE),0) -> 12 | I92: 5646 | J92: 39524 | K92: =IF(D92>$D$17,_xlfn.IFNA(VLOOKUP(B92,'other funds ftr 2021 for 2122'!$A:$I,9,FALSE),0),1) -> 0 | L92: 39524 | M92: =1+IF(ISNA(VLOOKUP(B92,'Rural and Low Income 2122'!$A:$B,2,FALSE)),0,'2021-22 Prelim'!$M$17) -> 1 | N92: 0 | Q92: 0 | R92: 0 | S92: 0 | T92: 0 | U92: N
A93: 75 | B93: 34003 | C93: NORTH THURSTON | D93: =IFERROR(VLOOKUP(B93,'Enrollment 2122'!$A:$D,4,0),0) -> 39 | E93: 18351 | F93: =IFERROR(VLOOKUP(B93,'Enrollment 2122'!$A:$F,6,0),0) -> 14 | G93: 1647 | H93: =IFERROR(VLOOKUP(B93,'Enrollment 2122'!$A:$E,5,FALSE),0) -> 16 | I93: 7528 | J93: 27526 | K93: =IF(D93>$D$17,_xlfn.IFNA(VLOOKUP(B93,'other funds ftr 2021 for 2122'!$A:$I,9,FALSE),0),1) -> 0 | L93: 27526 | M93: =1+IF(ISNA(VLOOKUP(B93,'Rural and Low Income 2122'!$A:$B,2,FALSE)),0,'2021-22 Prelim'!$M$17) -> 1 | N93: 0 | Q93: 0 | R93: 0 | S93: 0 | T93: 0 | U93: N
A94: 76 | B94: 15201 | C94: OAK HARBOR | D94: =IFERROR(VLOOKUP(B94,'Enrollment 2122'!$A:$D,4,0),0) -> 23 | E94: 10822 | F94: =IFERROR(VLOOKUP(B94,'Enrollment 2122'!$A:$F,6,0),0) -> 8 | G94: 941 | H94: =IFERROR(VLOOKUP(B94,'Enrollment 2122'!$A:$E,5,FALSE),0) -> 12 | I94: 5646 | J94: 17409 | K94: =IF(D94>$D$17,_xlfn.IFNA(VLOOKUP(B94,'other funds ftr 2021 for 2122'!$A:$I,9,FALSE),0),1) -> 0 | L94: 17409 | M94: =1+IF(ISNA(VLOOKUP(B94,'Rural and Low Income 2122'!$A:$B,2,FALSE)),0,'2021-22 Prelim'!$M$17) -> 1 | N94: 0 | Q94: 0 | R94: 0 | S94: 0 | T94: 0 | U94: N
A95: 77 | B95: 25101 | C95: OCEAN BEACH | D95: =IFERROR(VLOOKUP(B95,'Enrollment 2122'!$A:$D,4,0),0) -> 56 | E95: 26350 | F95: =IFERROR(VLOOKUP(B95,'Enrollment 2122'!$A:$F,6,0),0) -> 24 | G95: 2823 | H95: =IFERROR(VLOOKUP(B95,'Enrollment 2122'!$A:$E,5,FALSE),0) -> 15 | I95: 7058 | J95: 36231 | K95: =IF(D95>$D$17,_xlfn.IFNA(VLOOKUP(B95,'other funds ftr 2021 for 2122'!$A:$I,9,FALSE),0),1) -> 0.95 | L95: 34419 | M95: =1+IF(ISNA(VLOOKUP(B95,'Rural and Low Income 2122'!$A:$B,2,FALSE)),0,'2021-22 Prelim'!$M$17) -> 1 | N95: 34419 | Q95: 0 | R95: 34419 | S95: 40233 | T95: -5814 | U95: Y
A96: 78 | B96: 14172 | C96: OCOSTA | D96: =IFERROR(VLOOKUP(B96,'Enrollment 2122'!$A:$D,4,0),0) -> 56 | E96: 26350 | F96: =IFERROR(VLOOKUP(B96,'Enrollment 2122'!$A:$F,6,0),0) -> 15 | G96: 1764 | H96: =IFERROR(VLOOKUP(B96,'Enrollment 2122'!$A:$E,5,FALSE),0) -> 18 | I96: 8470 | J96: 36584 | K96: =IF(D96>$D$17,_xlfn.IFNA(VLOOKUP(B96,'other funds ftr 2021 for 2122'!$A:$I,9,FALSE),0),1) -> 0.95 | L96: 34755 | M96: =1+IF(ISNA(VLOOKUP(B96,'Rural and Low Income 2122'!$A:$B,2,FALSE)),0,'2021-22 Prelim'!$M$17) -> 1.1 | N96: 38231 | Q96: 0 | R96: 38231 | S96: 23867 | T96: 14364 | U96: Y
A97: 79 | B97: 24105 | C97: OKANOGAN | D97: =IFERROR(VLOOKUP(B97,'Enrollment 2122'!$A:$D,4,0),0) -> 83 | E97: 39054 | F97: =IFERROR(VLOOKUP(B97,'Enrollment 2122'!$A:$F,6,0),0) -> 24 | G97: 2823 | H97: =IFERROR(VLOOKUP(B97,'Enrollment 2122'!$A:$E,5,FALSE),0) -> 23 | I97: 10822 | J97: 52699 | K97: =IF(D97>$D$17,_xlfn.IFNA(VLOOKUP(B97,'other funds ftr 2021 for 2122'!$A:$I,9,FALSE),0),1) -> 0 | L97: 52699 | M97: =1+IF(ISNA(VLOOKUP(B97,'Rural and Low Income 2122'!$A:$B,2,FALSE)),0,'2021-22 Prelim'!$M$17) -> 1.1 | N97: 0 | Q97: 0 | R97: 0 | S97: 0 | T97: 0 | U97: N
A98: 80 | B98: 34111 | C98: OLYMPIA | D98: =IFERROR(VLOOKUP(B98,'Enrollment 2122'!$A:$D,4,0),0) -> 30 | E98: 14116 | F98: =IFERROR(VLOOKUP(B98,'Enrollment 2122'!$A:$F,6,0),0) -> 5 | G98: 588 | H98: =IFERROR(VLOOKUP(B98,'Enrollment 2122'!$A:$E,5,FALSE),0) -> 10 | I98: 4705 | J98: 19409 | K98: =IF(D98>$D$17,_xlfn.IFNA(VLOOKUP(B98,'other funds ftr 2021 for 2122'!$A:$I,9,FALSE),0),1) -> 0.85 | L98: 16498 | M98: =1+IF(ISNA(VLOOKUP(B98,'Rural and Low Income 2122'!$A:$B,2,FALSE)),0,'2021-22 Prelim'!$M$17) -> 1 | N98: 16498 | Q98: 0 | R98: 16498 | S98: 9221 | T98: 7277 | U98: Y
A99: 81 | B99: 24019 | C99: OMAK | D99: =IFERROR(VLOOKUP(B99,'Enrollment 2122'!$A:$D,4,0),0) -> 60 | E99: 28232 | F99: =IFERROR(VLOOKUP(B99,'Enrollment 2122'!$A:$F,6,0),0) -> 24 | G99: 2823 | H99: =IFERROR(VLOOKUP(B99,'Enrollment 2122'!$A:$E,5,FALSE),0) -> 15 | I99: 7058 | J99: 38113 | K99: =IF(D99>$D$17,_xlfn.IFNA(VLOOKUP(B99,'other funds ftr 2021 for 2122'!$A:$I,9,FALSE),0),1) -> 0 | L99: 38113 | M99: =1+IF(ISNA(VLOOKUP(B99,'Rural and Low Income 2122'!$A:$B,2,FALSE)),0,'2021-22 Prelim'!$M$17) -> 1.1 | N99: 0 | Q99: 0 | R99: 0 | S99: 0 | T99: 0 | U99: N
A100: 82 | B100: 09013 | C100: ORONDO | D100: =IFERROR(VLOOKUP(B100,'Enrollment 2122'!$A:$D,4,0),0) -> 89 | E100: 41877 | F100: =IFERROR(VLOOKUP(B100,'Enrollment 2122'!$A:$F,6,0),0) -> 15 | G100: 1764 | H100: =IFERROR(VLOOKUP(B100,'Enrollment 2122'!$A:$E,5,FALSE),0) -> 11 | I100: 5176 | J100: 48817 | K100: =IF(D100>$D$17,_xlfn.IFNA(VLOOKUP(B100,'other funds ftr 2021 for 2122'!$A:$I,9,FALSE),0),1) -> 1.15 | L100: 56140 | M100: =1+IF(ISNA(VLOOKUP(B100,'Rural and Low Income 2122'!$A:$B,2,FALSE)),0,'2021-22 Prelim'!$M$17) -> 1 | N100: 56140 | Q100: =ROUND(IF(P100>0,-(0.9-P100)*N100,0),0) -> 0 | R100: 56140 | S100: 60774 | T100: -4634 | U100: Y
A101: 83 | B101: 24410 | C101: OROVILLE | D101: =IFERROR(VLOOKUP(B101,'Enrollment 2122'!$A:$D,4,0),0) -> 79 | E101: 37172 | F101: =IFERROR(VLOOKUP(B101,'Enrollment 2122'!$A:$F,6,0),0) -> 21 | G101: 2470 | H101: =IFERROR(VLOOKUP(B101,'Enrollment 2122'!$A:$E,5,FALSE),0) -> 14 | I101: 6587 | J101: 46229 | K101: =IF(D101>$D$17,_xlfn.IFNA(VLOOKUP(B101,'other funds ftr 2021 for 2122'!$A:$I,9,FALSE),0),1) -> 0 | L101: 46229 | M101: =1+IF(ISNA(VLOOKUP(B101,'Rural and Low Income 2122'!$A:$B,2,FALSE)),0,'2021-22 Prelim'!$M$17) -> 1.1 | N101: 0 | Q101: 0 | R101: 0 | S101: 0 | T101: 0 | U101: N
A102: 84 | B102: 01147 | C102: OTHELLO | D102: =IFERROR(VLOOKUP(B102,'Enrollment 2122'!$A:$D,4,0),0) -> 1003 | E102: 471942 | F102: =IFERROR(VLOOKUP(B102,'Enrollment 2122'!$A:$F,6,0),0) -> 252 | G102: 29643 | H102: =IFERROR(VLOOKUP(B102,'Enrollment 2122'!$A:$E,5,FALSE),0) -> 271 | I102: 127514 | J102: 629099 | K102: =IF(D102>$D$17,_xlfn.IFNA(VLOOKUP(B102,'other funds ftr 2021 for 2122'!$A:$I,9,FALSE),0),1) -> 1.05 | L102: 660554 | M102: =1+IF(ISNA(VLOOKUP(B102,'Rural and Low Income 2122'!$A:$B,2,FALSE)),0,'2021-22 Prelim'!$M$17) -> 1.1 | N102: 726609 | Q102: 0 | R102: 726609 | S102: 559307 | T102: 167302 | U102: Y
A103: 85 | B103: 11001 | C103: PASCO | D103: =IFERROR(VLOOKUP(B103,'Enrollment 2122'!$A:$D,4,0),0) -> 1971 | E103: 927416 | F103: =IFERROR(VLOOKUP(B103,'Enrollment 2122'!$A:$F,6,0),0) -> 510 | G103: 59993 | H103: =IFERROR(VLOOKUP(B103,'Enrollment 2122'!$A:$E,5,FALSE),0) -> 499 | I103: 234795 | J103: 1222204 | K103: =IF(D103>$D$17,_xlfn.IFNA(VLOOKUP(B103,'other funds ftr 2021 for 2122'!$A:$I,9,FALSE),0),1) -> 1 | L103: 1222204 | M103: =1+IF(ISNA(VLOOKUP(B103,'Rural and Low Income 2122'!$A:$B,2,FALSE)),0,'2021-22 Prelim'!$M$17) -> 1 | N103: 1222204 | Q103: 0 | R103: 1222204 | S103: 1023979 | T103: 198225 | U103: Y
A104: 86 | B104: 24122 | C104: PATEROS | D104: =IFERROR(VLOOKUP(B104,'Enrollment 2122'!$A:$D,4,0),0) -> 68 | E104: 31996 | F104: =IFERROR(VLOOKUP(B104,'Enrollment 2122'!$A:$F,6,0),0) -> 11 | G104: 1294 | H104: =IFERROR(VLOOKUP(B104,'Enrollment 2122'!$A:$E,5,FALSE),0) -> 23 | I104: 10822 | J104: 44112 | K104: =IF(D104>$D$17,_xlfn.IFNA(VLOOKUP(B104,'other funds ftr 2021 for 2122'!$A:$I,9,FALSE),0),1) -> 1.05 | L104: 46318 | M104: =1+IF(ISNA(VLOOKUP(B104,'Rural and Low Income 2122'!$A:$B,2,FALSE)),0,'2021-22 Prelim'!$M$17) -> 1 | N104: 46318 | Q104: 0 | R104: 46318 | S104: 35322 | T104: 10996 | U104: Y
A105: 87 | B105: 03050 | C105: PATERSON | D105: =IFERROR(VLOOKUP(B105,'Enrollment 2122'!$A:$D,4,0),0) -> 22 | E105: 10352 | F105: =IFERROR(VLOOKUP(B105,'Enrollment 2122'!$A:$F,6,0),0) -> 5 | G105: 588 | H105: =IFERROR(VLOOKUP(B105,'Enrollment 2122'!$A:$E,5,FALSE),0) -> 7 | I105: 3294 | J105: 14234 | K105: =IF(D105>$D$17,_xlfn.IFNA(VLOOKUP(B105,'other funds ftr 2021 for 2122'!$A:$I,9,FALSE),0),1) -> 1.05 | L105: 14946 | M105: =1+IF(ISNA(VLOOKUP(B105,'Rural and Low Income 2122'!$A:$B,2,FALSE)),0,'2021-22 Prelim'!$M$17) -> 1 | N105: 14946 | Q105: 0 | R105: 14946 | S105: 15161 | T105: -215 | U105: Y
A106: 88 | B106: 36402 | C106: PRESCOTT | D106: =IFERROR(VLOOKUP(B106,'Enrollment 2122'!$A:$D,4,0),0) -> 41 | E106: 19292 | F106: =IFERROR(VLOOKUP(B106,'Enrollment 2122'!$A:$F,6,0),0) -> 9 | G106: 1059 | H106: =IFERROR(VLOOKUP(B106,'Enrollment 2122'!$A:$E,5,FALSE),0) -> 4 | I106: 1882 | J106: 22233 | K106: =IF(D106>$D$17,_xlfn.IFNA(VLOOKUP(B106,'other funds ftr 2021 for 2122'!$A:$I,9,FALSE),0),1) -> 0.95 | L106: 21121 | M106: =1+IF(ISNA(VLOOKUP(B106,'Rural and Low Income 2122'!$A:$B,2,FALSE)),0,'2021-22 Prelim'!$M$17) -> 1 | N106: 21121 | Q106: 0 | R106: 21121 | S106: 13979 | T106: 7142 | U106: Y
A107: 89 | B107: 03116 | C107: PROSSER | D107: =IFERROR(VLOOKUP(B107,'Enrollment 2122'!$A:$D,4,0),0) -> 728 | E107: 342546 | F107: =IFERROR(VLOOKUP(B107,'Enrollment 2122'!$A:$F,6,0),0) -> 262 | G107: 30820 | H107: =IFERROR(VLOOKUP(B107,'Enrollment 2122'!$A:$E,5,FALSE),0) -> 209 | I107: 98341 | J107: 471707 | K107: =IF(D107>$D$17,_xlfn.IFNA(VLOOKUP(B107,'other funds ftr 2021 for 2122'!$A:$I,9,FALSE),0),1) -> 1.15 | L107: 542463 | M107: =1+IF(ISNA(VLOOKUP(B107,'Rural and Low Income 2122'!$A:$B,2,FALSE)),0,'2021-22 Prelim'!$M$17) -> 1 | N107: 542463 | Q107: 0 | R107: 542463 | S107: 460289 | T107: 82174 | U107: Y
A108: 90 | B108: 27003 | C108: PUYALLUP | D108: =IFERROR(VLOOKUP(B108,'Enrollment 2122'!$A:$D,4,0),0) -> 13 | E108: 6117 | F108: =IFERROR(VLOOKUP(B108,'Enrollment 2122'!$A:$F,6,0),0) -> 5 | G108: 588 | H108: =IFERROR(VLOOKUP(B108,'Enrollment 2122'!$A:$E,5,FALSE),0) -> 7 | I108: 3294 | J108: 9999 | K108: =IF(D108>$D$17,_xlfn.IFNA(VLOOKUP(B108,'other funds ftr 2021 for 2122'!$A:$I,9,FALSE),0),1) -> 0 | L108: 9999 | M108: =1+IF(ISNA(VLOOKUP(B108,'Rural and Low Income 2122'!$A:$B,2,FALSE)),0,'2021-22 Prelim'!$M$17) -> 1 | N108: 0 | Q108: 0 | R108: 0 | S108: 0 | T108: 0 | U108: N
A109: 91 | B109: 05903 | C109: QUILEUTE TRIBAL | D109: =IFERROR(VLOOKUP(B109,'Enrollment 2122'!$A:$D,4,0),0) -> 3 | E109: 0 | F109: =IFERROR(VLOOKUP(B109,'Enrollment 2122'!$A:$F,6,0),0) -> 0 | G109: 0 | H109: =IFERROR(VLOOKUP(B109,'Enrollment 2122'!$A:$E,5,FALSE),0) -> 0 | I109: 0 | J109: 0 | K109: =IF(D109>$D$17,_xlfn.IFNA(VLOOKUP(B109,'other funds ftr 2021 for 2122'!$A:$I,9,FALSE),0),1) -> 1 | L109: 0 | M109: =1+IF(ISNA(VLOOKUP(B109,'Rural and Low Income 2122'!$A:$B,2,FALSE)),0,'2021-22 Prelim'!$M$17) -> 1 | N109: 0 | Q109: 0 | R109: 0 | S109: 0 | T109: 0 | U109: N
A110: 92 | B110: 05402 | C110: QUILLAYUTE VALLEY | D110: =IFERROR(VLOOKUP(B110,'Enrollment 2122'!$A:$D,4,0),0) -> 86 | E110: 40466 | F110: =IFERROR(VLOOKUP(B110,'Enrollment 2122'!$A:$F,6,0),0) -> 25 | G110: 2941 | H110: =IFERROR(VLOOKUP(B110,'Enrollment 2122'!$A:$E,5,FALSE),0) -> 22 | I110: 10352 | J110: 53759 | K110: =IF(D110>$D$17,_xlfn.IFNA(VLOOKUP(B110,'other funds ftr 2021 for 2122'!$A:$I,9,FALSE),0),1) -> 0.85 | L110: 45695 | M110: =1+IF(ISNA(VLOOKUP(B110,'Rural and Low Income 2122'!$A:$B,2,FALSE)),0,'2021-22 Prelim'!$M$17) -> 1.1 | N110: 50265 | Q110: 0 | R110: 50265 | S110: 24246 | T110: 26019 | U110: Y
A111: 93 | B111: 13144 | C111: QUINCY | D111: =IFERROR(VLOOKUP(B111,'Enrollment 2122'!$A:$D,4,0),0) -> 512 | E111: 240912 | F111: =IFERROR(VLOOKUP(B111,'Enrollment 2122'!$A:$F,6,0),0) -> 109 | G111: 12822 | H111: =IFERROR(VLOOKUP(B111,'Enrollment 2122'!$A:$E,5,FALSE),0) -> 149 | I111: 70109 | J111: 323843 | K111: =IF(D111>$D$17,_xlfn.IFNA(VLOOKUP(B111,'other funds ftr 2021 for 2122'!$A:$I,9,FALSE),0),1) -> 1 | L111: 323843 | M111: =1+IF(ISNA(VLOOKUP(B111,'Rural and Low Income 2122'!$A:$B,2,FALSE)),0,'2021-22 Prelim'!$M$17) -> 1.1 | N111: 356227 | Q111: 0 | R111: 356227 | S111: 305011 | T111: 51216 | U111: Y
A112: 94 | B112: 17403 | C112: RENTON | D112: =IFERROR(VLOOKUP(B112,'Enrollment 2122'!$A:$D,4,0),0) -> 32 | E112: 15057 | F112: =IFERROR(VLOOKUP(B112,'Enrollment 2122'!$A:$F,6,0),0) -> 12 | G112: 1412 | H112: =IFERROR(VLOOKUP(B112,'Enrollment 2122'!$A:$E,5,FALSE),0) -> 9 | I112: 4235 | J112: 20704 | K112: =IF(D112>$D$17,_xlfn.IFNA(VLOOKUP(B112,'other funds ftr 2021 for 2122'!$A:$I,9,FALSE),0),1) -> 0 | L112: 20704 | M112: =1+IF(ISNA(VLOOKUP(B112,'Rural and Low Income 2122'!$A:$B,2,FALSE)),0,'2021-22 Prelim'!$M$17) -> 1 | N112: 0 | Q112: 0 | R112: 0 | S112: 0 | T112: 0 | U112: N
A113: 95 | B113: 03400 | C113: RICHLAND | D113: =IFERROR(VLOOKUP(B113,'Enrollment 2122'!$A:$D,4,0),0) -> 206 | E113: 96929 | F113: =IFERROR(VLOOKUP(B113,'Enrollment 2122'!$A:$F,6,0),0) -> 64 | G113: 7528 | H113: =IFERROR(VLOOKUP(B113,'Enrollment 2122'!$A:$E,5,FALSE),0) -> 73 | I113: 34349 | J113: 138806 | K113: =IF(D113>$D$17,_xlfn.IFNA(VLOOKUP(B113,'other funds ftr 2021 for 2122'!$A:$I,9,FALSE),0),1) -> 0 | L113: 138806 | M113: =1+IF(ISNA(VLOOKUP(B113,'Rural and Low Income 2122'!$A:$B,2,FALSE)),0,'2021-22 Prelim'!$M$17) -> 1 | N113: 138806 | Q113: 0 | R113: 138806 | S113: 0 | T113: 138806 | U113: Y
A114: 96 | B114: 17407 | C114: RIVERVIEW | D114: =IFERROR(VLOOKUP(B114,'Enrollment 2122'!$A:$D,4,0),0) -> 11 | E114: 5176 | F114: =IFERROR(VLOOKUP(B114,'Enrollment 2122'!$A:$F,6,0),0) -> 3 | G114: 353 | H114: =IFERROR(VLOOKUP(B114,'Enrollment 2122'!$A:$E,5,FALSE),0) -> 3 | I114: 1412 | J114: 6941 | K114: =IF(D114>$D$17,_xlfn.IFNA(VLOOKUP(B114,'other funds ftr 2021 for 2122'!$A:$I,9,FALSE),0),1) -> 0 | L114: 6941 | M114: =1+IF(ISNA(VLOOKUP(B114,'Rural and Low Income 2122'!$A:$B,2,FALSE)),0,'2021-22 Prelim'!$M$17) -> 1 | N114: 0 | Q114: 0 | R114: 0 | S114: 0 | T114: 0 | U114: N
A115: 97 | B115: 34401 | C115: ROCHESTER | D115: =IFERROR(VLOOKUP(B115,'Enrollment 2122'!$A:$D,4,0),0) -> 38 | E115: 17880 | F115: =IFERROR(VLOOKUP(B115,'Enrollment 2122'!$A:$F,6,0),0) -> 13 | G115: 1529 | H115: =IFERROR(VLOOKUP(B115,'Enrollment 2122'!$A:$E,5,FALSE),0) -> 9 | I115: 4235 | J115: 23644 | K115: =IF(D115>$D$17,_xlfn.IFNA(VLOOKUP(B115,'other funds ftr 2021 for 2122'!$A:$I,9,FALSE),0),1) -> 0 | L115: 23644 | M115: =1+IF(ISNA(VLOOKUP(B115,'Rural and Low Income 2122'!$A:$B,2,FALSE)),0,'2021-22 Prelim'!$M$17) -> 1 | N115: 23644 | Q115: 0 | R115: 23644 | S115: 0 | T115: 23644 | U115: Y
A116: 98 | B116: 20403 | C116: ROOSEVELT | D116: =IFERROR(VLOOKUP(B116,'Enrollment 2122'!$A:$D,4,0),0) -> 29 | E116: 13645 | F116: =IFERROR(VLOOKUP(B116,'Enrollment 2122'!$A:$F,6,0),0) -> 1 | G116: 118 | H116: =IFERROR(VLOOKUP(B116,'Enrollment 2122'!$A:$E,5,FALSE),0) -> 4 | I116: 1882 | J116: 15645 | K116: =IF(D116>$D$17,_xlfn.IFNA(VLOOKUP(B116,'other funds ftr 2021 for 2122'!$A:$I,9,FALSE),0),1) -> 0 | L116: 15645 | M116: =1+IF(ISNA(VLOOKUP(B116,'Rural and Low Income 2122'!$A:$B,2,FALSE)),0,'2021-22 Prelim'!$M$17) -> 1 | N116: 0 | Q116: 0 | R116: 0 | S116: 0 | T116: 0 | U116: N
A117: 99 | B117: 13160 | C117: ROYAL CITY | D117: =IFERROR(VLOOKUP(B117,'Enrollment 2122'!$A:$D,4,0),0) -> 258 | E117: 121397 | F117: =IFERROR(VLOOKUP(B117,'Enrollment 2122'!$A:$F,6,0),0) -> 34 | G117: 4000 | H117: =IFERROR(VLOOKUP(B117,'Enrollment 2122'!$A:$E,5,FALSE),0) -> 57 | I117: 26820 | J117: 152217 | K117: =IF(D117>$D$17,_xlfn.IFNA(VLOOKUP(B117,'other funds ftr 2021 for 2122'!$A:$I,9,FALSE),0),1) -> 1 | L117: 152217 | M117: =1+IF(ISNA(VLOOKUP(B117,'Rural and Low Income 2122'!$A:$B,2,FALSE)),0,'2021-22 Prelim'!$M$17) -> 1.1 | N117: 167439 | Q117: 0 | R117: 167439 | S117: 134333 | T117: 33106 | U117: Y
A118: 100 | B118: 17001 | C118: SEATTLE | D118: =IFERROR(VLOOKUP(B118,'Enrollment 2122'!$A:$D,4,0),0) -> 226 | E118: 106340 | F118: =IFERROR(VLOOKUP(B118,'Enrollment 2122'!$A:$F,6,0),0) -> 66 | G118: 7764 | H118: =IFERROR(VLOOKUP(B118,'Enrollment 2122'!$A:$E,5,FALSE),0) -> 90 | I118: 42348 | J118: 156452 | K118: =IF(D118>$D$17,_xlfn.IFNA(VLOOKUP(B118,'other funds ftr 2021 for 2122'!$A:$I,9,FALSE),0),1) -> 0.85 | L118: 132984 | M118: =1+IF(ISNA(VLOOKUP(B118,'Rural and Low Income 2122'!$A:$B,2,FALSE)),0,'2021-22 Prelim'!$M$17) -> 1 | N118: 132984 | Q118: 0 | R118: 132984 | S118: 99763 | T118: 33221 | U118: Y
A119: 101 | B119: 29101 | C119: SEDRO WOOLLEY | D119: =IFERROR(VLOOKUP(B119,'Enrollment 2122'!$A:$D,4,0),0) -> 207 | E119: 97400 | F119: =IFERROR(VLOOKUP(B119,'Enrollment 2122'!$A:$F,6,0),0) -> 38 | G119: 4470 | H119: =IFERROR(VLOOKUP(B119,'Enrollment 2122'!$A:$E,5,FALSE),0) -> 89 | I119: 41877 | J119: 143747 | K119: =IF(D119>$D$17,_xlfn.IFNA(VLOOKUP(B119,'other funds ftr 2021 for 2122'!$A:$I,9,FALSE),0),1) -> 0.95 | L119: 136560 | M119: =1+IF(ISNA(VLOOKUP(B119,'Rural and Low Income 2122'!$A:$B,2,FALSE)),0,'2021-22 Prelim'!$M$17) -> 1 | N119: 136560 | Q119: 0 | R119: 136560 | S119: 88042 | T119: 48518 | U119: Y
A120: 102 | B120: 39119 | C120: SELAH | D120: =IFERROR(VLOOKUP(B120,'Enrollment 2122'!$A:$D,4,0),0) -> 181 | E120: 85166 | F120: =IFERROR(VLOOKUP(B120,'Enrollment 2122'!$A:$F,6,0),0) -> 61 | G120: 7176 | H120: =IFERROR(VLOOKUP(B120,'Enrollment 2122'!$A:$E,5,FALSE),0) -> 66 | I120: 31055 | J120: 123397 | K120: =IF(D120>$D$17,_xlfn.IFNA(VLOOKUP(B120,'other funds ftr 2021 for 2122'!$A:$I,9,FALSE),0),1) -> 0.95 | L120: 117227 | M120: =1+IF(ISNA(VLOOKUP(B120,'Rural and Low Income 2122'!$A:$B,2,FALSE)),0,'2021-22 Prelim'!$M$17) -> 1 | N120: 117227 | Q120: 0 | R120: 117227 | S120: 62523 | T120: 54704 | U120: Y
A121: 103 | B121: 23309 | C121: SHELTON | D121: =IFERROR(VLOOKUP(B121,'Enrollment 2122'!$A:$D,4,0),0) -> 216 | E121: 101635 | F121: =IFERROR(VLOOKUP(B121,'Enrollment 2122'!$A:$F,6,0),0) -> 49 | G121: 5764 | H121: =IFERROR(VLOOKUP(B121,'Enrollment 2122'!$A:$E,5,FALSE),0) -> 77 | I121: 36231 | J121: 143630 | K121: =IF(D121>$D$17,_xlfn.IFNA(VLOOKUP(B121,'other funds ftr 2021 for 2122'!$A:$I,9,FALSE),0),1) -> 0.85 | L121: 122086 | M121: =1+IF(ISNA(VLOOKUP(B121,'Rural and Low Income 2122'!$A:$B,2,FALSE)),0,'2021-22 Prelim'!$M$17) -> 1.1 | N121: 134295 | Q121: 0 | R121: 134295 | S121: 52069 | T121: 82226 | U121: Y
A122: 104 | B122: 31201 | C122: SNOHOMISH | D122: =IFERROR(VLOOKUP(B122,'Enrollment 2122'!$A:$D,4,0),0) -> 90 | E122: 42348 | F122: =IFERROR(VLOOKUP(B122,'Enrollment 2122'!$A:$F,6,0),0) -> 41 | G122: 4823 | H122: =IFERROR(VLOOKUP(B122,'Enrollment 2122'!$A:$E,5,FALSE),0) -> 37 | I122: 17410 | J122: 64581 | K122: =IF(D122>$D$17,_xlfn.IFNA(VLOOKUP(B122,'other funds ftr 2021 for 2122'!$A:$I,9,FALSE),0),1) -> 0.95 | L122: 61352 | M122: =1+IF(ISNA(VLOOKUP(B122,'Rural and Low Income 2122'!$A:$B,2,FALSE)),0,'2021-22 Prelim'!$M$17) -> 1 | N122: 61352 | Q122: 0 | R122: 61352 | S122: 44855 | T122: 16497 | U122: Y
A123: 105 | B123: 13156 | C123: SOAP LAKE | D123: =IFERROR(VLOOKUP(B123,'Enrollment 2122'!$A:$D,4,0),0) -> 47 | E123: 22115 | F123: =IFERROR(VLOOKUP(B123,'Enrollment 2122'!$A:$F,6,0),0) -> 12 | G123: 1412 | H123: =IFERROR(VLOOKUP(B123,'Enrollment 2122'!$A:$E,5,FALSE),0) -> 13 | I123: 6117 | J123: 29644 | K123: =IF(D123>$D$17,_xlfn.IFNA(VLOOKUP(B123,'other funds ftr 2021 for 2122'!$A:$I,9,FALSE),0),1) -> 0 | L123: 29644 | M123: =1+IF(ISNA(VLOOKUP(B123,'Rural and Low Income 2122'!$A:$B,2,FALSE)),0,'2021-22 Prelim'!$M$17) -> 1 | N123: 0 | Q123: 0 | R123: 0 | S123: 0 | T123: 0 | U123: N
A124: 106 | B124: 25118 | C124: SOUTH BEND | D124: =IFERROR(VLOOKUP(B124,'Enrollment 2122'!$A:$D,4,0),0) -> 13 | E124: 6117 | F124: =IFERROR(VLOOKUP(B124,'Enrollment 2122'!$A:$F,6,0),0) -> 3 | G124: 353 | H124: =IFERROR(VLOOKUP(B124,'Enrollment 2122'!$A:$E,5,FALSE),0) -> 4 | I124: 1882 | J124: 8352 | K124: =IF(D124>$D$17,_xlfn.IFNA(VLOOKUP(B124,'other funds ftr 2021 for 2122'!$A:$I,9,FALSE),0),1) -> 0 | L124: 8352 | M124: =1+IF(ISNA(VLOOKUP(B124,'Rural and Low Income 2122'!$A:$B,2,FALSE)),0,'2021-22 Prelim'!$M$17) -> 1.1 | N124: 0 | Q124: 0 | R124: 0 | S124: 0 | T124: 0 | U124: N
A125: 107 | B125: 32081 | C125: SPOKANE | D125: =IFERROR(VLOOKUP(B125,'Enrollment 2122'!$A:$D,4,0),0) -> 86 | E125: 40466 | F125: =IFERROR(VLOOKUP(B125,'Enrollment 2122'!$A:$F,6,0),0) -> 13 | G125: 1529 | H125: =IFERROR(VLOOKUP(B125,'Enrollment 2122'!$A:$E,5,FALSE),0) -> 26 | I125: 12234 | J125: 54229 | K125: =IF(D125>$D$17,_xlfn.IFNA(VLOOKUP(B125,'other funds ftr 2021 for 2122'!$A:$I,9,FALSE),0),1) -> 0 | L125: 54229 | M125: =1+IF(ISNA(VLOOKUP(B125,'Rural and Low Income 2122'!$A:$B,2,FALSE)),0,'2021-22 Prelim'!$M$17) -> 1 | N125: 0 | Q125: 0 | R125: 0 | S125: 0 | T125: 0 | U125: N
A126: 108 | B126: 31401 | C126: STANWOOD-CAMANO | D126: =IFERROR(VLOOKUP(B126,'Enrollment 2122'!$A:$D,4,0),0) -> 22 | E126: 10352 | F126: =IFERROR(VLOOKUP(B126,'Enrollment 2122'!$A:$F,6,0),0) -> 7 | G126: 823 | H126: =IFERROR(VLOOKUP(B126,'Enrollment 2122'!$A:$E,5,FALSE),0) -> 6 | I126: 2823 | J126: 13998 | K126: =IF(D126>$D$17,_xlfn.IFNA(VLOOKUP(B126,'other funds ftr 2021 for 2122'!$A:$I,9,FALSE),0),1) -> 0 | L126: 13998 | M126: =1+IF(ISNA(VLOOKUP(B126,'Rural and Low Income 2122'!$A:$B,2,FALSE)),0,'2021-22 Prelim'!$M$17) -> 1 | N126: 0 | Q126: 0 | R126: 0 | S126: 0 | T126: 0 | U126: N
A127: 109 | B127: 30303 | C127: STEVENSON-CARSON | D127: =IFERROR(VLOOKUP(B127,'Enrollment 2122'!$A:$D,4,0),0) -> 28 | E127: 13175 | F127: =IFERROR(VLOOKUP(B127,'Enrollment 2122'!$A:$F,6,0),0) -> 2 | G127: 235 | H127: =IFERROR(VLOOKUP(B127,'Enrollment 2122'!$A:$E,5,FALSE),0) -> 6 | I127: 2823 | J127: 16233 | K127: =IF(D127>$D$17,_xlfn.IFNA(VLOOKUP(B127,'other funds ftr 2021 for 2122'!$A:$I,9,FALSE),0),1) -> 0 | L127: 16233 | M127: =1+IF(ISNA(VLOOKUP(B127,'Rural and Low Income 2122'!$A:$B,2,FALSE)),0,'2021-22 Prelim'!$M$17) -> 1 | N127: 0 | Q127: 0 | R127: 0 | S127: 10115 | T127: -10115 | U127: N
A128: 110 | B128: 31311 | C128: SULTAN | D128: =IFERROR(VLOOKUP(B128,'Enrollment 2122'!$A:$D,4,0),0) -> 21 | E128: 9881 | F128: =IFERROR(VLOOKUP(B128,'Enrollment 2122'!$A:$F,6,0),0) -> 4 | G128: 471 | H128: =IFERROR(VLOOKUP(B128,'Enrollment 2122'!$A:$E,5,FALSE),0) -> 4 | I128: 1882 | J128: 12234 | K128: =IF(D128>$D$17,_xlfn.IFNA(VLOOKUP(B128,'other funds ftr 2021 for 2122'!$A:$I,9,FALSE),0),1) -> 0 | L128: 12234 | M128: =1+IF(ISNA(VLOOKUP(B128,'Rural and Low Income 2122'!$A:$B,2,FALSE)),0,'2021-22 Prelim'!$M$17) -> 1 | N128: 0 | Q128: 0 | R128: 0 | S128: 0 | T128: 0 | U128: N
A129: 111 | B129: 39201 | C129: SUNNYSIDE | D129: =IFERROR(VLOOKUP(B129,'Enrollment 2122'!$A:$D,4,0),0) -> 1719 | E129: 808842 | F129: =IFERROR(VLOOKUP(B129,'Enrollment 2122'!$A:$F,6,0),0) -> 445 | G129: 52347 | H129: =IFERROR(VLOOKUP(B129,'Enrollment 2122'!$A:$E,5,FALSE),0) -> 542 | I129: 255028 | J129: 1116217 | K129: =IF(D129>$D$17,_xlfn.IFNA(VLOOKUP(B129,'other funds ftr 2021 for 2122'!$A:$I,9,FALSE),0),1) -> 1.05 | L129: 1172028 | M129: =1+IF(ISNA(VLOOKUP(B129,'Rural and Low Income 2122'!$A:$B,2,FALSE)),0,'2021-22 Prelim'!$M$17) -> 1.1 | N129: 1289231 | Q129: 0 | R129: 1289231 | S129: 831980 | T129: 457251 | U129: Y
A130: 112 | B130: 18902 | C130: SUQUAMISH TRIBAL EDUCATION DEPARTMENT | D130: =IFERROR(VLOOKUP(B130,'Enrollment 2122'!$A:$D,4,0),0) -> 16 | E130: 7528 | F130: =IFERROR(VLOOKUP(B130,'Enrollment 2122'!$A:$F,6,0),0) -> 5 | G130: 588 | H130: =IFERROR(VLOOKUP(B130,'Enrollment 2122'!$A:$E,5,FALSE),0) -> 10 | I130: 4705 | J130: 12821 | K130: =IF(D130>$D$17,_xlfn.IFNA(VLOOKUP(B130,'other funds ftr 2021 for 2122'!$A:$I,9,FALSE),0),1) -> 1.05 | L130: 13462 | M130: =1+IF(ISNA(VLOOKUP(B130,'Rural and Low Income 2122'!$A:$B,2,FALSE)),0,'2021-22 Prelim'!$M$17) -> 1 | N130: 13462 | Q130: 0 | R130: 13462 | S130: 8576 | T130: 4886 | U130: Y
A131: 113 | B131: 27010 | C131: TACOMA | D131: =IFERROR(VLOOKUP(B131,'Enrollment 2122'!$A:$D,4,0),0) -> 25 | E131: 11763 | F131: =IFERROR(VLOOKUP(B131,'Enrollment 2122'!$A:$F,6,0),0) -> 3 | G131: 353 | H131: =IFERROR(VLOOKUP(B131,'Enrollment 2122'!$A:$E,5,FALSE),0) -> 14 | I131: 6587 | J131: 18703 | K131: =IF(D131>$D$17,_xlfn.IFNA(VLOOKUP(B131,'other funds ftr 2021 for 2122'!$A:$I,9,FALSE),0),1) -> 0 | L131: 18703 | M131: =1+IF(ISNA(VLOOKUP(B131,'Rural and Low Income 2122'!$A:$B,2,FALSE)),0,'2021-22 Prelim'!$M$17) -> 1 | N131: 0 | Q131: 0 | R131: 0 | S131: 0 | T131: 0 | U131: N
A132: 114 | B132: 14077 | C132: TAHOLA | D132: =IFERROR(VLOOKUP(B132,'Enrollment 2122'!$A:$D,4,0),0) -> 61 | E132: 28702 | F132: =IFERROR(VLOOKUP(B132,'Enrollment 2122'!$A:$F,6,0),0) -> 10 | G132: 1176 | H132: =IFERROR(VLOOKUP(B132,'Enrollment 2122'!$A:$E,5,FALSE),0) -> 22 | I132: 10352 | J132: 40230 | K132: =IF(D132>$D$17,_xlfn.IFNA(VLOOKUP(B132,'other funds ftr 2021 for 2122'!$A:$I,9,FALSE),0),1) -> 0 | L132: 40230 | M132: =1+IF(ISNA(VLOOKUP(B132,'Rural and Low Income 2122'!$A:$B,2,FALSE)),0,'2021-22 Prelim'!$M$17) -> 1 | N132: 0 | Q132: 0 | R132: 0 | S132: 0 | T132: 0 | U132: N
A133: 115 | B133: 24404 | C133: TONASKET | D133: =IFERROR(VLOOKUP(B133,'Enrollment 2122'!$A:$D,4,0),0) -> 357 | E133: 167979 | F133: =IFERROR(VLOOKUP(B133,'Enrollment 2122'!$A:$F,6,0),0) -> 126 | G133: 14822 | H133: =IFERROR(VLOOKUP(B133,'Enrollment 2122'!$A:$E,5,FALSE),0) -> 88 | I133: 41407 | J133: 224208 | K133: =IF(D133>$D$17,_xlfn.IFNA(VLOOKUP(B133,'other funds ftr 2021 for 2122'!$A:$I,9,FALSE),0),1) -> 1.15 | L133: 257839 | M133: =1+IF(ISNA(VLOOKUP(B133,'Rural and Low Income 2122'!$A:$B,2,FALSE)),0,'2021-22 Prelim'!$M$17) -> 1 | N133: 257839 | Q133: 0 | R133: 257839 | S133: 214997 | T133: 42842 | U133: Y
A134: 116 | B134: 39202 | C134: TOPPENISH | D134: =IFERROR(VLOOKUP(B134,'Enrollment 2122'!$A:$D,4,0),0) -> 992 | E134: 466766 | F134: =IFERROR(VLOOKUP(B134,'Enrollment 2122'!$A:$F,6,0),0) -> 259 | G134: 30467 | H134: =IFERROR(VLOOKUP(B134,'Enrollment 2122'!$A:$E,5,FALSE),0) -> 255 | I134: 119985 | J134: 617218 | K134: =IF(D134>$D$17,_xlfn.IFNA(VLOOKUP(B134,'other funds ftr 2021 for 2122'!$A:$I,9,FALSE),0),1) -> 1.05 | L134: 648079 | M134: =1+IF(ISNA(VLOOKUP(B134,'Rural and Low Income 2122'!$A:$B,2,FALSE)),0,'2021-22 Prelim'!$M$17) -> 1 | N134: 648079 | Q134: 0 | R134: 648079 | S134: 566282 | T134: 81797 | U134: Y
A135: 117 | B135: 20400 | C135: TROUT LAKE | D135: =IFERROR(VLOOKUP(B135,'Enrollment 2122'!$A:$D,4,0),0) -> 119 | E135: 55993 | F135: =IFERROR(VLOOKUP(B135,'Enrollment 2122'!$A:$F,6,0),0) -> 13 | G135: 1529 | H135: =IFERROR(VLOOKUP(B135,'Enrollment 2122'!$A:$E,5,FALSE),0) -> 42 | I135: 19762 | J135: 77284 | K135: =IF(D135>$D$17,_xlfn.IFNA(VLOOKUP(B135,'other funds ftr 2021 for 2122'!$A:$I,9,FALSE),0),1) -> 0 | L135: 77284 | M135: =1+IF(ISNA(VLOOKUP(B135,'Rural and Low Income 2122'!$A:$B,2,FALSE)),0,'2021-22 Prelim'!$M$17) -> 1 | N135: 0 | Q135: 0 | R135: 0 | S135: 0 | T135: 0 | U135: N
A136: 118 | B136: 39002 | C136: UNION GAP | D136: =IFERROR(VLOOKUP(B136,'Enrollment 2122'!$A:$D,4,0),0) -> 61 | E136: 28702 | F136: =IFERROR(VLOOKUP(B136,'Enrollment 2122'!$A:$F,6,0),0) -> 14 | G136: 1647 | H136: =IFERROR(VLOOKUP(B136,'Enrollment 2122'!$A:$E,5,FALSE),0) -> 7 | I136: 3294 | J136: 33643 | K136: =IF(D136>$D$17,_xlfn.IFNA(VLOOKUP(B136,'other funds ftr 2021 for 2122'!$A:$I,9,FALSE),0),1) -> 1 | L136: 33643 | M136: =1+IF(ISNA(VLOOKUP(B136,'Rural and Low Income 2122'!$A:$B,2,FALSE)),0,'2021-22 Prelim'!$M$17) -> 1 | N136: 33643 | Q136: 0 | R136: 33643 | S136: 40915 | T136: -7272 | U136: Y
A137: 119 | B137: 06037 | C137: VANCOUVER | D137: =IFERROR(VLOOKUP(B137,'Enrollment 2122'!$A:$D,4,0),0) -> 68 | E137: 31996 | F137: =IFERROR(VLOOKUP(B137,'Enrollment 2122'!$A:$F,6,0),0) -> 26 | G137: 3058 | H137: =IFERROR(VLOOKUP(B137,'Enrollment 2122'!$A:$E,5,FALSE),0) -> 24 | I137: 11293 | J137: 46347 | K137: =IF(D137>$D$17,_xlfn.IFNA(VLOOKUP(B137,'other funds ftr 2021 for 2122'!$A:$I,9,FALSE),0),1) -> 0 | L137: 46347 | M137: =1+IF(ISNA(VLOOKUP(B137,'Rural and Low Income 2122'!$A:$B,2,FALSE)),0,'2021-22 Prelim'!$M$17) -> 1 | N137: 0 | Q137: 0 | R137: 0 | S137: 0 | T137: 0 | U137: N
A138: 120 | B138: 34901 | C138: WA HE LUT INDIAN TRIBAL SCHOOL | D138: =IFERROR(VLOOKUP(B138,'Enrollment 2122'!$A:$D,4,0),0) -> 12 | E138: 5646 | F138: =IFERROR(VLOOKUP(B138,'Enrollment 2122'!$A:$F,6,0),0) -> 2 | G138: 235 | H138: =IFERROR(VLOOKUP(B138,'Enrollment 2122'!$A:$E,5,FALSE),0) -> 2 | I138: 941 | J138: 6822 | K138: =IF(D138>$D$17,_xlfn.IFNA(VLOOKUP(B138,'other funds ftr 2021 for 2122'!$A:$I,9,FALSE),0),1) -> 0 | L138: 6822 | M138: =1+IF(ISNA(VLOOKUP(B138,'Rural and Low Income 2122'!$A:$B,2,FALSE)),0,'2021-22 Prelim'!$M$17) -> 1 | N138: 6822 | Q138: 0 | R138: 6822 | S138: 5062 | T138: 1760 | U138: Y
A139: 121 | B139: 13073 | C139: WAHLUKE | D139: =IFERROR(VLOOKUP(B139,'Enrollment 2122'!$A:$D,4,0),0) -> 1655 | E139: 778728 | F139: =IFERROR(VLOOKUP(B139,'Enrollment 2122'!$A:$F,6,0),0) -> 258 | G139: 30349 | H139: =IFERROR(VLOOKUP(B139,'Enrollment 2122'!$A:$E,5,FALSE),0) -> 808 | I139: 380189 | J139: 1189266 | K139: =IF(D139>$D$17,_xlfn.IFNA(VLOOKUP(B139,'other funds ftr 2021 for 2122'!$A:$I,9,FALSE),0),1) -> 1.15 | L139: 1367656 | M139: =1+IF(ISNA(VLOOKUP(B139,'Rural and Low Income 2122'!$A:$B,2,FALSE)),0,'2021-22 Prelim'!$M$17) -> 1.1 | N139: 1504422 | Q139: 0 | R139: 1504422 | S139: 785487 | T139: 718935 | U139: Y
A140: 122 | B140: 36140 | C140: WALLA WALLA | D140: =IFERROR(VLOOKUP(B140,'Enrollment 2122'!$A:$D,4,0),0) -> 119 | E140: 55993 | F140: =IFERROR(VLOOKUP(B140,'Enrollment 2122'!$A:$F,6,0),0) -> 39 | G140: 4588 | H140: =IFERROR(VLOOKUP(B140,'Enrollment 2122'!$A:$E,5,FALSE),0) -> 43 | I140: 20233 | J140: 80814 | K140: =IF(D140>$D$17,_xlfn.IFNA(VLOOKUP(B140,'other funds ftr 2021 for 2122'!$A:$I,9,FALSE),0),1) -> 0.85 | L140: 68692 | M140: =1+IF(ISNA(VLOOKUP(B140,'Rural and Low Income 2122'!$A:$B,2,FALSE)),0,'2021-22 Prelim'!$M$17) -> 1 | N140: 68692 | Q140: 0 | R140: 68692 | S140: 59894 | T140: 8798 | U140: Y
A141: 123 | B141: 39207 | C141: WAPATO | D141: =IFERROR(VLOOKUP(B141,'Enrollment 2122'!$A:$D,4,0),0) -> 960 | E141: 451709 | F141: =IFERROR(VLOOKUP(B141,'Enrollment 2122'!$A:$F,6,0),0) -> 278 | G141: 32702 | H141: =IFERROR(VLOOKUP(B141,'Enrollment 2122'!$A:$E,5,FALSE),0) -> 324 | I141: 152452 | J141: 636863 | K141: =IF(D141>$D$17,_xlfn.IFNA(VLOOKUP(B141,'other funds ftr 2021 for 2122'!$A:$I,9,FALSE),0),1) -> 1.05 | L141: 668706 | M141: =1+IF(ISNA(VLOOKUP(B141,'Rural and Low Income 2122'!$A:$B,2,FALSE)),0,'2021-22 Prelim'!$M$17) -> 1 | N141: 668706 | Q141: 0 | R141: 668706 | S141: 558074 | T141: 110632 | U141: Y
A142: 124 | B142: 13146 | C142: WARDEN | D142: =IFERROR(VLOOKUP(B142,'Enrollment 2122'!$A:$D,4,0),0) -> 312 | E142: 146806 | F142: =IFERROR(VLOOKUP(B142,'Enrollment 2122'!$A:$F,6,0),0) -> 52 | G142: 6117 | H142: =IFERROR(VLOOKUP(B142,'Enrollment 2122'!$A:$E,5,FALSE),0) -> 92 | I142: 43289 | J142: 196212 | K142: =IF(D142>$D$17,_xlfn.IFNA(VLOOKUP(B142,'other funds ftr 2021 for 2122'!$A:$I,9,FALSE),0),1) -> 1.15 | L142: 225644 | M142: =1+IF(ISNA(VLOOKUP(B142,'Rural and Low Income 2122'!$A:$B,2,FALSE)),0,'2021-22 Prelim'!$M$17) -> 1.1 | N142: 248208 | Q142: 0 | R142: 248208 | S142: 227675 | T142: 20533 | U142: Y
A143: 125 | B143: 09209 | C143: WATERVILLE | D143: =IFERROR(VLOOKUP(B143,'Enrollment 2122'!$A:$D,4,0),0) -> 25 | E143: 11763 | F143: =IFERROR(VLOOKUP(B143,'Enrollment 2122'!$A:$F,6,0),0) -> 5 | G143: 588 | H143: =IFERROR(VLOOKUP(B143,'Enrollment 2122'!$A:$E,5,FALSE),0) -> 10 | I143: 4705 | J143: 17056 | K143: =IF(D143>$D$17,_xlfn.IFNA(VLOOKUP(B143,'other funds ftr 2021 for 2122'!$A:$I,9,FALSE),0),1) -> 0 | L143: 17056 | M143: =1+IF(ISNA(VLOOKUP(B143,'Rural and Low Income 2122'!$A:$B,2,FALSE)),0,'2021-22 Prelim'!$M$17) -> 1 | N143: 0 | Q143: 0 | R143: 0 | S143: 0 | T143: 0 | U143: N
A144: 126 | B144: 04246 | C144: WENATCHEE | D144: =IFERROR(VLOOKUP(B144,'Enrollment 2122'!$A:$D,4,0),0) -> 1819 | E144: 855895 | F144: =IFERROR(VLOOKUP(B144,'Enrollment 2122'!$A:$F,6,0),0) -> 548 | G144: 64463 | H144: =IFERROR(VLOOKUP(B144,'Enrollment 2122'!$A:$E,5,FALSE),0) -> 553 | I144: 260203 | J144: 1180561 | K144: =IF(D144>$D$17,_xlfn.IFNA(VLOOKUP(B144,'other funds ftr 2021 for 2122'!$A:$I,9,FALSE),0),1) -> 1.15 | L144: 1357645 | M144: =1+IF(ISNA(VLOOKUP(B144,'Rural and Low Income 2122'!$A:$B,2,FALSE)),0,'2021-22 Prelim'!$M$17) -> 1 | N144: 1357645 | Q144: 0 | R144: 1357645 | S144: 1026443 | T144: 331202 | U144: Y
A145: 127 | B145: 39208 | C145: WEST VALLEY | D145: =IFERROR(VLOOKUP(B145,'Enrollment 2122'!$A:$D,4,0),0) -> 99 | E145: 46583 | F145: =IFERROR(VLOOKUP(B145,'Enrollment 2122'!$A:$F,6,0),0) -> 21 | G145: 2470 | H145: =IFERROR(VLOOKUP(B145,'Enrollment 2122'!$A:$E,5,FALSE),0) -> 17 | I145: 7999 | J145: 57052 | K145: =IF(D145>$D$17,_xlfn.IFNA(VLOOKUP(B145,'other funds ftr 2021 for 2122'!$A:$I,9,FALSE),0),1) -> 0.85 | L145: 48494 | M145: =1+IF(ISNA(VLOOKUP(B145,'Rural and Low Income 2122'!$A:$B,2,FALSE)),0,'2021-22 Prelim'!$M$17) -> 1 | N145: 48494 | Q145: 0 | R145: 48494 | S145: 31527 | T145: 16967 | U145: Y
A146: 128 | B146: 21303 | C146: WHITE PASS | D146: =IFERROR(VLOOKUP(B146,'Enrollment 2122'!$A:$D,4,0),0) -> 55 | E146: 25879 | F146: =IFERROR(VLOOKUP(B146,'Enrollment 2122'!$A:$F,6,0),0) -> 11 | G146: 1294 | H146: =IFERROR(VLOOKUP(B146,'Enrollment 2122'!$A:$E,5,FALSE),0) -> 20 | I146: 9411 | J146: 36584 | K146: =IF(D146>$D$17,_xlfn.IFNA(VLOOKUP(B146,'other funds ftr 2021 for 2122'!$A:$I,9,FALSE),0),1) -> 0 | L146: 36584 | M146: =1+IF(ISNA(VLOOKUP(B146,'Rural and Low Income 2122'!$A:$B,2,FALSE)),0,'2021-22 Prelim'!$M$17) -> 1.1 | N146: 0 | Q146: 0 | R146: 0 | S146: 0 | T146: 0 | U146: N
A147: 129 | B147: 20405 | C147: WHITE SALMON | D147: =IFERROR(VLOOKUP(B147,'Enrollment 2122'!$A:$D,4,0),0) -> 60 | E147: 28232 | F147: =IFERROR(VLOOKUP(B147,'Enrollment 2122'!$A:$F,6,0),0) -> 20 | G147: 2353 | H147: =IFERROR(VLOOKUP(B147,'Enrollment 2122'!$A:$E,5,FALSE),0) -> 18 | I147: 8470 | J147: =+E147+G147+I147 -> 39055 | K147: =IF(D147>$D$17,_xlfn.IFNA(VLOOKUP(B147,'other funds ftr 2021 for 2122'!$A:$I,9,FALSE),0),1) -> 0 | L147: =IF(K147=0,J147,ROUND(J147*K147,0)) -> 39055 | M147: =1+IF(ISNA(VLOOKUP(B147,'Rural and Low Income 2122'!$A:$B,2,FALSE)),0,'2021-22 Prelim'!$M$17) -> 1 | N147: =IF(U147="y",ROUND(L147*M147,0),0) -> 0 | Q147: 0 | R147: =N147+Q147 -> 0 | S147: 0 | T147: =R147-S147 -> 0 | U147: N
A148: 130 | B148: 21232 | C148: WINLOCK | D148: =IFERROR(VLOOKUP(B148,'Enrollment 2122'!$A:$D,4,0),0) -> 101 | E148: =IF(D148>=10,ROUND(D148*$F$3,0),0) -> 47524 | F148: =IFERROR(VLOOKUP(B148,'Enrollment 2122'!$A:$F,6,0),0) -> 50 | G148: =IF(D148>=$D$17,ROUND(F148*$F$3*$F$17,0),0) -> 5882 | H148: =IFERROR(VLOOKUP(B148,'Enrollment 2122'!$A:$E,5,FALSE),0) -> 20 | I148: =IF(D148>=$D$17,ROUND(H148*$F$3*$H$17,0),0) -> 9411 | J148: 62817 | K148: =IF(D148>$D$17,_xlfn.IFNA(VLOOKUP(B148,'other funds ftr 2021 for 2122'!$A:$I,9,FALSE),0),1) -> 1 | L148: 62817 | M148: =1+IF(ISNA(VLOOKUP(B148,'Rural and Low Income 2122'!$A:$B,2,FALSE)),0,'2021-22 Prelim'!$M$17) -> 1.1 | N148: 69099 | Q148: 0 | R148: 69099 | S148: 56445 | T148: 12654 | U148: Y
A149: 131 | B149: 39901 | C149: YAKAMA TRIBAL SCHOOL | D149: =IFERROR(VLOOKUP(B149,'Enrollment 2122'!$A:$D,4,0),0) -> 61 | E149: 28702 | F149: =IFERROR(VLOOKUP(B149,'Enrollment 2122'!$A:$F,6,0),0) -> 49 | G149: 5764 | H149: =IFERROR(VLOOKUP(B149,'Enrollment 2122'!$A:$E,5,FALSE),0) -> 31 | I149: 14586 | J149: 49052 | K149: =IF(D149>$D$17,_xlfn.IFNA(VLOOKUP(B149,'other funds ftr 2021 for 2122'!$A:$I,9,FALSE),0),1) -> 0 | L149: 49052 | M149: =1+IF(ISNA(VLOOKUP(B149,'Rural and Low Income 2122'!$A:$B,2,FALSE)),0,'2021-22 Prelim'!$M$17) -> 1 | N149: 49052 | Q149: 0 | R149: 49052 | S149: 21490 | T149: 27562 | U149: Y
A150: 132 | B150: 39007 | C150: YAKIMA | D150: =IFERROR(VLOOKUP(B150,'Enrollment 2122'!$A:$D,4,0),0) -> 2399 | E150: 1128803 | F150: =IFERROR(VLOOKUP(B150,'Enrollment 2122'!$A:$F,6,0),0) -> 813 | G150: 95635 | H150: =IFERROR(VLOOKUP(B150,'Enrollment 2122'!$A:$E,5,FALSE),0) -> 709 | I150: 333606 | J150: 1558044 | K150: =IF(D150>$D$17,_xlfn.IFNA(VLOOKUP(B150,'other funds ftr 2021 for 2122'!$A:$I,9,FALSE),0),1) -> 1 | L150: 1558044 | M150: =1+IF(ISNA(VLOOKUP(B150,'Rural and Low Income 2122'!$A:$B,2,FALSE)),0,'2021-22 Prelim'!$M$17) -> 1 | N150: 1558044 | Q150: 0 | R150: 1558044 | S150: 1237537 | T150: 320507 | U150: Y
A151: 133 | B151: 34002 | C151: YELM | D151: =IFERROR(VLOOKUP(B151,'Enrollment 2122'!$A:$D,4,0),0) -> 77 | E151: 36231 | F151: =IFERROR(VLOOKUP(B151,'Enrollment 2122'!$A:$F,6,0),0) -> 12 | G151: 1412 | H151: =IFERROR(VLOOKUP(B151,'Enrollment 2122'!$A:$E,5,FALSE),0) -> 15 | I151: 7058 | J151: 44701 | K151: =IF(D151>$D$17,_xlfn.IFNA(VLOOKUP(B151,'other funds ftr 2021 for 2122'!$A:$I,9,FALSE),0),1) -> 0 | L151: 44701 | M151: =1+IF(ISNA(VLOOKUP(B151,'Rural and Low Income 2122'!$A:$B,2,FALSE)),0,'2021-22 Prelim'!$M$17) -> 1 | N151: 0 | Q151: 0 | R151: 0 | S151: 0 | T151: 0 | U151: N
A152: 134 | B152: 39205 | C152: ZILLAH | D152: =IFERROR(VLOOKUP(B152,'Enrollment 2122'!$A:$D,4,0),0) -> 96 | E152: 45171 | F152: =IFERROR(VLOOKUP(B152,'Enrollment 2122'!$A:$F,6,0),0) -> 24 | G152: 2823 | H152: =IFERROR(VLOOKUP(B152,'Enrollment 2122'!$A:$E,5,FALSE),0) -> 32 | I152: 15057 | J152: 63051 | K152: =IF(D152>$D$17,_xlfn.IFNA(VLOOKUP(B152,'other funds ftr 2021 for 2122'!$A:$I,9,FALSE),0),1) -> 1 | L152: 63051 | M152: =1+IF(ISNA(VLOOKUP(B152,'Rural and Low Income 2122'!$A:$B,2,FALSE)),0,'2021-22 Prelim'!$M$17) -> 1 | N152: 63051 | Q152: 0 | R152: 63051 | S152: 53012 | T152: 10039 | U152: Y
S153: =SUM(S20:S152) -> 15032801
T154: consortium
T155: declined
S156: =S153+S154+S155 -> 15032801

Sheet 1920SmallSchools (hidden)
I1: From Assumptions Page:
C2: Constant Dollar Multipliers - Do Not Change Here | I2: Target Amounts | N2: 13932883
C3: 0 | F3: 351.3551163 | G3: Use CTRL K | I3: Actual Amounts | N3: 13932883
I4: Difference | N4: 0
I6: 13932883
G7: Put total here | I7: 13932883
I10: Go to H9 & Control K to set dollar amount
D14: Migrant Students | U14: Accepting Funding? | V14: HOLD HARMLESS
C15: 351.3551163 | D15: K-12 | F15: Needs Support | H15: Priority Interuption | R15: 13932826
B16: CCDDD | C16: District | D16: Ave. number | E16: Regular Dollars | F16: Ave. number | G16: Regular Dollars | H16: Priority Number | I16: Priority Dollars | J16: Subtotal | K16: Other Funds Factor | L16: Subtotal 2 | M16: Add'l Rural Factor | N16: Total Allocated Amount | P16: MOE | Q16: MOE Red. | R16: Subtotal After MOE | U16: Y for yes, N for no (reallocates money) | V16: Override funding? Y for yes, otherwise blank.
D17: 10 | E17: 351.3552253 | F17: 0.25 | G17: 87.83886719 | H17: 1 | I17: 351.3541371 | M17: 0.1 | N17: 124
A18: 0 | B18: 99999 | C18: State Total | D18: 30209 | E18: 10614090 | F18: 9216 | G18: 809523 | H18: 4230 | I18: 1486228 | J18: 12909841 | L18: 13465785 | N18: 13932883 | Q18: -57 | R18: 13932826 | S18: 18-19 Final Allocations (excluding 17-18 carryover) | T18: Allocation Difference
A19: 1 | B19: 17401 | C19: HIGHLINE | D19: 10 | E19: 3514 | F19: 6 | G19: 527 | H19: 0 | I19: 0 | J19: 4041 | K19: 1 | L19: 4041 | M19: 1 | N19: 4041 | Q19: 0 | R19: 4041 | T19: 4041 | U19: Y
A20: 2 | C20: CHIEF LESCHI | D20: 10 | E20: 3514 | F20: 2 | G20: 176 | H20: 0 | I20: 0 | J20: 3690 | K20: 1.15 | L20: 4244 | M20: 1 | N20: 4244 | Q20: 0 | R20: 4244 | T20: 4244 | U20: Y
A21: 6 | B21: 17407 | C21: RIVERVIEW | D21: 11 | E21: 3865 | F21: 7 | G21: 615 | H21: 0 | I21: 0 | J21: 4480 | K21: 0 | L21: 4480 | M21: 1 | N21: 4480 | Q21: 0 | R21: 4480 | T21: 4480 | U21: Y
A22: 7 | B22: 27402 | C22: FRANKLIN PIERCE | D22: 12 | E22: 4216 | F22: 6 | G22: 527 | H22: 0 | I22: 0 | J22: 4743 | K22: 0 | L22: 4743 | M22: 1 | N22: 4743 | Q22: 0 | R22: 4743 | T22: 4743 | U22: Y
A23: 8 | B23: 06119 | C23: BATTLE GROUND | D23: 12 | E23: 4216 | F23: 4 | G23: 351 | H23: 1 | I23: 351 | J23: 4918 | K23: 0 | L23: 4918 | M23: 1 | N23: 4918 | Q23: 0 | R23: 4918 | T23: 4918 | U23: Y
A24: 9 | B24: 17903 | C24: MUCKLESHOOT TRIBAL SCHOOL | D24: 13 | E24: 4568 | F24: 4 | G24: 351 | H24: 0 | I24: 0 | J24: 4919 | K24: 0 | L24: 4919 | M24: 1 | N24: 4919 | Q24: 0 | R24: 4919 | T24: 4919 | U24: Y
A25: 3 | B25: 18401 | C25: CENTRAL KITSAP | D25: 10 | E25: 3514 | F25: 5 | G25: 439 | H25: 3 | I25: 1054 | J25: 5007 | K25: 1 | L25: 5007 | M25: 1 | N25: 5007 | Q25: 0 | R25: 5007 | T25: 5007 | U25: y | Y25: 2625000
A26: 4 | B26: 32356 | C26: CENTRAL VALLEY | D26: 10 | E26: 3514 | F26: 1 | G26: 88 | H26: 5 | I26: 1757 | J26: 5359 | K26: 1 | L26: 5359 | M26: 1 | N26: 5359 | Q26: 0 | R26: 5359 | T26: 5359 | U26: Y | Y26: 1190934
A27: 5 | B27: 25118 | C27: SOUTH BEND | D27: 10 | E27: 3514 | F27: 0 | G27: 0 | H27: 5 | I27: 1757 | J27: 5271 | K27: 1 | L27: 5271 | M27: 1.1 | N27: 5798 | Q27: 0 | R27: 5798 | T27: 5798 | U27: Y | Y27: 1434066
A28: 11 | B28: 31103 | C28: MONROE | D28: 15 | E28: 5270 | F28: 9 | G28: 791 | H28: 0 | I28: 0 | J28: 6061 | K28: 0 | L28: 6061 | M28: 1 | N28: 6061 | Q28: 0 | R28: 6061 | T28: 6061 | U28: Y
A29: 12 | B29: 15204 | C29: COUPEVILLE | D29: 15 | E29: 5270 | F29: 5 | G29: 439 | H29: 0 | I29: 0 | J29: 5709 | K29: 0 | L29: 5709 | M29: 1.1 | N29: 6280 | Q29: 0 | R29: 6280 | T29: 6280 | U29: Y
A30: 10 | B30: 37503 | C30: BLAINE | D30: 13 | E30: 4568 | F30: 4 | G30: 351 | H30: 4 | I30: 1405 | J30: 6324 | K30: 0 | L30: 6324 | M30: 1 | N30: 6324 | Q30: 0 | R30: 6324 | T30: 6324 | U30: Y
A31: 14 | B31: 37903 | C31: LUMMI TRIBAL AGENCY | D31: 17 | E31: 5973 | F31: 7 | G31: 615 | H31: 0 | I31: 0 | J31: 6588 | K31: 0 | L31: 6588 | M31: 1 | N31: 6588 | Q31: 0 | R31: 6588 | T31: 6588 | U31: Y
A32: 15 | B32: 34003 | C32: NORTH THURSTON | D32: 17 | E32: 5973 | F32: 7 | G32: 615 | H32: 0 | I32: 0 | J32: 6588 | K32: 0 | L32: 6588 | M32: 1 | N32: 6588 | Q32: 0 | R32: 6588 | T32: 6588 | U32: Y
A33: 13 | B33: 19403 | C33: KITTITAS | D33: 16 | E33: 5622 | F33: 5 | G33: 439 | H33: 1 | I33: 351 | J33: 6412 | K33: 0 | L33: 6412 | M33: 1.1 | N33: 7053 | Q33: 0 | R33: 7053 | T33: 7053 | U33: Y
A34: 20 | B34: 14064 | C34: NORTH BEACH | D34: 20 | E34: 7027 | F34: 2 | G34: 176 | H34: 0 | I34: 0 | J34: 7203 | K34: 0 | L34: 7203 | M34: 1 | N34: 7203 | Q34: 0 | R34: 7203 | T34: 7203 | U34: Y
A35: 16 | B35: 18902 | C35: SUQUAMISH TRIBAL EDUCATION DEPARTMENT | D35: 17 | E35: 5973 | F35: 3 | G35: 264 | H35: 3 | I35: 1054 | J35: 7291 | K35: 0 | L35: 7291 | M35: 1 | N35: 7291 | Q35: 0 | R35: 7291 | T35: 7291 | U35: Y
A36: 23 | B36: 27003 | C36: PUYALLUP | D36: 22 | E36: 7730 | F36: 11 | G36: 966 | H36: 0 | I36: 0 | J36: 8696 | K36: 0.85 | L36: 7392 | M36: 1 | N36: 7392 | Q36: 0 | R36: 7392 | T36: 7392 | U36: Y
A37: 18 | B37: 31015 | C37: EDMONDS | D37: 18 | E37: 6324 | F37: 5 | G37: 439 | H37: 2 | I37: 703 | J37: 7466 | K37: 0 | L37: 7466 | M37: 1 | N37: 7466 | Q37: 0 | R37: 7466 | T37: 7466 | U37: Y
A38: 19 | B38: 30303 | C38: STEVENSON-CARSON | D38: 19 | E38: 6676 | F38: 1 | G38: 88 | H38: 3 | I38: 1054 | J38: 7818 | K38: 1 | L38: 7818 | M38: 1 | N38: 7818 | Q38: 0 | R38: 7818 | T38: 7818 | U38: Y
A39: 21 | B39: 34111 | C39: OLYMPIA | D39: 20 | E39: 7027 | F39: 5 | G39: 439 | H39: 5 | I39: 1757 | J39: 9223 | K39: 0.85 | L39: 7840 | M39: 1 | N39: 7840 | Q39: 0 | R39: 7840 | S39: 13626 | T39: -5786 | U39: Y
A40: 22 | B40: 15201 | C40: OAK HARBOR | D40: 20 | E40: 7027 | F40: 8 | G40: 703 | H40: 1 | I40: 351 | J40: 8081 | K40: 0 | L40: 8081 | M40: 1 | N40: 8081 | Q40: 0 | R40: 8081 | T40: 8081 | U40: Y
A41: 17 | B41: 09209 | C41: WATERVILLE | D41: 17 | E41: 5973 | F41: 5 | G41: 439 | H41: 4 | I41: 1405 | J41: 7817 | K41: 0 | L41: 7817 | M41: 1.1 | N41: 8599 | Q41: 0 | R41: 8599 | T41: 8599 | U41: Y
A42: 24 | B42: 32081 | C42: SPOKANE | D42: 22 | E42: 7730 | F42: 2 | G42: 176 | H42: 2 | I42: 703 | J42: 8609 | K42: 0 | L42: 8609 | M42: 1 | N42: 8609 | Q42: 0 | R42: 8609 | T42: 8609 | U42: Y
A43: 25 | B43: 27010 | C43: TACOMA | D43: 22 | E43: 7730 | F43: 10 | G43: 878 | H43: 1 | I43: 351 | J43: 8959 | K43: 0 | L43: 8959 | M43: 1 | N43: 8959 | Q43: 0 | R43: 8959 | T43: 8959 | U43: Y
A44: 35 | B44: 31311 | C44: SULTAN | D44: 31 | E44: 10892 | F44: 6 | G44: 527 | H44: 1 | I44: 351 | J44: 11770 | K44: 0.85 | L44: 10005 | M44: 1 | N44: 10005 | Q44: 0 | R44: 10005 | T44: 10005 | U44: Y
A45: 26 | B45: 31401 | C45: STANWOOD | D45: 24 | E45: 8433 | F45: 8 | G45: 703 | H45: 4 | I45: 1405 | J45: 10541 | K45: 0 | L45: 10541 | M45: 1 | N45: 10541 | Q45: 0 | R45: 10541 | T45: 10541 | U45: Y
A46: 32 | B46: 14077 | C46: TAHOLA | D46: 29 | E46: 10189 | F46: 3 | G46: 264 | H46: 1 | I46: 351 | J46: 10804 | K46: 0 | L46: 10804 | M46: 1 | N46: 10804 | Q46: 0 | R46: 10804 | T46: 10804 | U46: Y
A47: 30 | B47: 36402 | C47: PRESCOTT | D47: 28 | E47: 9838 | F47: 7 | G47: 615 | H47: 1 | I47: 351 | J47: 10804 | K47: 1 | L47: 10804 | M47: 1.1 | N47: 11884 | Q47: 0 | R47: 11884 | T47: 11884 | U47: Y
A48: 33 | B48: 20403 | C48: ROOSEVELT | D48: 30 | E48: 10541 | F48: 5 | G48: 439 | H48: 0 | I48: 0 | J48: 10980 | K48: 0 | L48: 10980 | M48: 1.1 | N48: 12078 | Q48: 0 | R48: 12078 | T48: 12078 | U48: Y
A49: 28 | B49: 17403 | C49: RENTON | D49: 26 | E49: 9135 | F49: 6 | G49: 527 | H49: 7 | I49: 2459 | J49: 12121 | K49: 0 | L49: 12121 | M49: 1 | N49: 12121 | Q49: 0 | R49: 12121 | T49: 12121 | U49: Y
A50: 36 | B50: 08458 | C50: KELSO | D50: 31 | E50: 10892 | F50: 11 | G50: 966 | H50: 2 | I50: 703 | J50: 12561 | K50: 0 | L50: 12561 | M50: 1 | N50: 12561 | Q50: 0 | R50: 12561 | T50: 12561 | U50: Y
A51: 27 | B51: 03050 | C51: PATERSON | D51: 24 | E51: 8433 | F51: 8 | G51: 703 | H51: 3 | I51: 1054 | J51: 10190 | K51: 1.15 | L51: 11719 | M51: 1.1 | N51: 12891 | Q51: 0 | R51: 12891 | S51: 17365 | T51: -4474 | U51: Y
A52: 29 | B52: 04127 | C52: ENTIAT | D52: 27 | E52: 9487 | F52: 6 | G52: 527 | H52: 5 | I52: 1757 | J52: 11771 | K52: 0 | L52: 11771 | M52: 1.1 | N52: 12948 | Q52: 0 | R52: 12948 | T52: 12948 | U52: Y
A53: 38 | B53: 37507 | C53: MT BAKER | D53: 32 | E53: 11243 | F53: 13 | G53: 1142 | H53: 2 | I53: 703 | J53: 13088 | K53: 0 | L53: 13088 | M53: 1 | N53: 13088 | Q53: 0 | R53: 13088 | T53: 13088 | U53: Y
A54: 37 | B54: 31002 | C54: EVERETT | D54: 31 | E54: 10892 | F54: 8 | G54: 703 | H54: 5 | I54: 1757 | J54: 13352 | K54: 0 | L54: 13352 | M54: 1 | N54: 13352 | Q54: 0 | R54: 13352 | T54: 13352 | U54: Y
A55: 31 | B55: 14028 | C55: HOQUIAM | D55: 28 | E55: 9838 | F55: 13 | G55: 1142 | H55: 5 | I55: 1757 | J55: 12737 | K55: 0 | L55: 12737 | M55: 1.1 | N55: 14011 | Q55: 0 | R55: 14011 | S55: 10512 | T55: 3499 | U55: Y
A56: 40 | B56: 24014 | C56: NESPELEM | D56: 35 | E56: 12297 | F56: 8 | G56: 703 | H56: 0 | I56: 0 | J56: 13000 | K56: 1 | L56: 13000 | M56: 1.1 | N56: 14300 | P56: 0.896 | Q56: -57 | R56: 14243 | T56: 14243 | U56: Y
A57: 44 | B57: 21302 | C57: CHEHALIS | D57: 39 | E57: 13703 | F57: 19 | G57: 1669 | H57: 5 | I57: 1757 | J57: 17129 | K57: 0.85 | L57: 14560 | M57: 1 | N57: 14560 | Q57: 0 | R57: 14560 | S57: 20225 | T57: -5665 | U57: Y | V57: Y
A58: 42 | B58: 06114 | C58: EVERGREEN | D58: 38 | E58: 13351 | F58: 11 | G58: 966 | H58: 2 | I58: 703 | J58: 15020 | K58: 0 | L58: 15020 | M58: 1 | N58: 15020 | Q58: 0 | R58: 15020 | T58: 15020 | U58: Y
A59: 34 | B59: 20406 | C59: LYLE | D59: 30 | E59: 10541 | F59: 7 | G59: 615 | H59: 8 | I59: 2811 | J59: 13967 | K59: 0 | L59: 13967 | M59: 1.1 | N59: 15364 | Q59: 0 | R59: 15364 | T59: 15364 | U59: Y
A60: 46 | B60: 21303 | C60: WHITE PASS | D60: 40 | E60: 14054 | F60: 6 | G60: 527 | H60: 0 | I60: 0 | J60: 14581 | K60: 0 | L60: 14581 | M60: 1.1 | N60: 16039 | Q60: 0 | R60: 16039 | T60: 16039 | U60: Y
A61: 39 | B61: 17210 | C61: FEDERAL WAY | D61: 34 | E61: 11946 | F61: 11 | G61: 966 | H61: 11 | I61: 3865 | J61: 16777 | K61: 0 | L61: 16777 | M61: 1 | N61: 16777 | Q61: 0 | R61: 16777 | T61: 16777 | U61: Y
A62: 43 | B62: 34401 | C62: ROCHESTER | D62: 38 | E62: 13351 | F62: 14 | G62: 1230 | H62: 7 | I62: 2459 | J62: 17040 | K62: 0 | L62: 17040 | M62: 1 | N62: 17040 | Q62: 0 | R62: 17040 | T62: 17040 | U62: Y
A63: 51 | B63: 08122 | C63: LONGVIEW | D63: 47 | E63: 16514 | F63: 17 | G63: 1493 | H63: 6 | I63: 2108 | J63: 20115 | K63: 0.85 | L63: 17098 | M63: 1 | N63: 17098 | Q63: 0 | R63: 17098 | T63: 17098 | U63: Y
A64: 48 | B64: 17408 | C64: AUBURN | D64: 44 | E64: 15460 | F64: 13 | G64: 1142 | H64: 4 | I64: 1405 | J64: 18007 | K64: 0 | L64: 18007 | M64: 1 | N64: 18007 | Q64: 0 | R64: 18007 | T64: 18007 | U64: Y
A65: 45 | B65: 21206 | C65: MOSSYROCK | D65: 39 | E65: 13703 | F65: 15 | G65: 1318 | H65: 4 | I65: 1405 | J65: 16426 | K65: 1 | L65: 16426 | M65: 1.1 | N65: 18069 | Q65: 0 | R65: 18069 | S65: 24719 | T65: -6650 | U65: Y
A66: 50 | B66: 20400 | C66: TROUT LAKE | D66: 46 | E66: 16162 | F66: 10 | G66: 878 | H66: 0 | I66: 0 | J66: 17040 | K66: 0 | L66: 17040 | M66: 1.1 | N66: 18744 | Q66: 0 | R66: 18744 | T66: 18744 | U66: Y
A67: 52 | B67: 20405 | C67: WHITE SALMON | D67: 47 | E67: 16514 | F67: 14 | G67: 1230 | H67: 4 | I67: 1405 | J67: 19149 | K67: 0 | L67: 19149 | M67: 1 | N67: 19149 | Q67: 0 | R67: 19149 | T67: 19149 | U67: Y
A68: 49 | B68: 36400 | C68: COLUMBIA | D68: 44 | E68: 15460 | F68: 22 | G68: 1932 | H68: 4 | I68: 1405 | J68: 18797 | K68: 0.95 | L68: 17857 | M68: 1.1 | N68: 19643 | Q68: 0 | R68: 19643 | T68: 19643 | U68: Y
A69: 53 | B69: 14172 | C69: OCOSTA | D69: 47 | E69: 16514 | F69: 14 | G69: 1230 | H69: 2 | I69: 703 | J69: 18447 | K69: 1 | L69: 18447 | M69: 1.1 | N69: 20292 | Q69: 0 | R69: 20292 | S69: 29530 | T69: -9238 | U69: Y
A70: 41 | B70: 29317 | C70: CONWAY | D70: 35 | E70: 12297 | F70: 5 | G70: 439 | H70: 10 | I70: 3514 | J70: 16250 | K70: 1.15 | L70: 18688 | M70: 1.1 | N70: 20557 | Q70: 0 | R70: 20557 | S70: 15565 | T70: 4992 | U70: Y
A71: 58 | B71: 19401 | C71: ELLENSBURG | D71: 52 | E71: 18270 | F71: 20 | G71: 1757 | H71: 12 | I71: 4216 | J71: 24243 | K71: 0.85 | L71: 20607 | M71: 1 | N71: 20607 | Q71: 0 | R71: 20607 | S71: 21780 | T71: -1173 | U71: Y
A72: 56 | B72: 05402 | C72: QUILLAYUTE VALLEY | D72: 50 | E72: 17568 | F72: 15 | G72: 1318 | H72: 9 | I72: 3162 | J72: 22048 | K72: 0.85 | L72: 18741 | M72: 1.1 | N72: 20615 | Q72: 0 | R72: 20615 | S72: 23198 | T72: -2583 | U72: Y
A73: 47 | B73: 13156 | C73: SOAP LAKE | D73: 42 | E73: 14757 | F73: 9 | G73: 791 | H73: 12 | I73: 4216 | J73: 19764 | K73: 0 | L73: 19764 | M73: 1.1 | N73: 21740 | Q73: 0 | R73: 21740 | T73: 21740 | U73: Y
A74: 55 | B74: 17415 | C74: KENT | D74: 48 | E74: 16865 | F74: 15 | G74: 1318 | H74: 11 | I74: 3865 | J74: 22048 | K74: 0 | L74: 22048 | M74: 1 | N74: 22048 | Q74: 0 | R74: 22048 | T74: 22048 | U74: Y
A75: 60 | B75: 03053 | C75: FINLEY | D75: 55 | E75: 19325 | F75: 26 | G75: 2284 | H75: 7 | I75: 2459 | J75: 24068 | K75: 0.95 | L75: 22865 | M75: 1 | N75: 22865 | Q75: 0 | R75: 22865 | T75: 22865 | U75: Y
A76: 54 | B76: 31006 | C76: MUKILTEO | D76: 47 | E76: 16514 | F76: 11 | G76: 966 | H76: 16 | I76: 5622 | J76: 23102 | K76: 0 | L76: 23102 | M76: 1 | N76: 23102 | Q76: 0 | R76: 23102 | T76: 23102 | U76: Y | V76: Y
A77: 61 | B77: 37505 | C77: MERIDIAN | D77: 57 | E77: 20027 | F77: 20 | G77: 1757 | H77: 8 | I77: 2811 | J77: 24595 | K77: 0.95 | L77: 23365 | M77: 1 | N77: 23365 | Q77: 0 | R77: 23365 | T77: 23365 | U77: Y
A78: 57 | B78: 23404 | C78: HOOD CANAL | D78: 51 | E78: 17919 | F78: 19 | G78: 1669 | H78: 5 | I78: 1757 | J78: 21345 | K78: 0 | L78: 21345 | M78: 1.1 | N78: 23480 | Q78: 0 | R78: 23480 | T78: 23480 | U78: Y
A79: 62 | B79: 31016 | C79: ARLINGTON | D79: 58 | E79: 20379 | F79: 30 | G79: 2635 | H79: 3 | I79: 1054 | J79: 24068 | K79: 0 | L79: 24068 | M79: 1 | N79: 24068 | Q79: 0 | R79: 24068 | T79: 24068 | U79: Y
A80: 65 | B80: 34002 | C80: YELM | D80: 62 | E80: 21784 | F80: 11 | G80: 966 | H80: 4 | I80: 1405 | J80: 24155 | K80: 0 | L80: 24155 | M80: 1 | N80: 24155 | Q80: 0 | R80: 24155 | T80: 24155 | U80: Y
A81: 63 | B81: 20404 | C81: GOLDENDALE | D81: 58 | E81: 20379 | F81: 13 | G81: 1142 | H81: 4 | I81: 1405 | J81: 22926 | K81: 0 | L81: 22926 | M81: 1.1 | N81: 25219 | Q81: 0 | R81: 25219 | T81: 25219 | U81: Y
A82: 69 | B82: 18400 | C82: NORTH KITSAP | D82: 69 | E82: 24244 | F82: 29 | G82: 2547 | H82: 0 | I82: 0 | J82: 26791 | K82: 0 | L82: 26791 | M82: 1 | N82: 26791 | Q82: 0 | R82: 26791 | T82: 26791 | U82: Y
A83: 71 | B83: 39208 | C83: WEST VALLEY | D83: 71 | E83: 24946 | F83: 23 | G83: 2020 | H83: 13 | I83: 4568 | J83: 31534 | K83: 0.85 | L83: 26804 | M83: 1 | N83: 26804 | Q83: 0 | R83: 26804 | S83: 28263 | T83: -1459 | U83: Y
A84: 66 | B84: 14068 | C84: ELMA | D84: 62 | E84: 21784 | F84: 17 | G84: 1493 | H84: 6 | I84: 2108 | J84: 25385 | K84: 0 | L84: 25385 | M84: 1.1 | N84: 27924 | Q84: 0 | R84: 27924 | T84: 27924 | U84: Y
A85: 67 | B85: 36250 | C85: COLLEGE PLACE | D85: 64 | E85: 22487 | F85: 20 | G85: 1757 | H85: 17 | I85: 5973 | J85: 30217 | K85: 0.95 | L85: 28706 | M85: 1 | N85: 28706 | Q85: 0 | R85: 28706 | T85: 28706 | U85: Y | V85: Y
A86: 64 | B86: 24122 | C86: PATEROS | D86: 59 | E86: 20730 | F86: 12 | G86: 1054 | H86: 12 | I86: 4216 | J86: 26000 | K86: 1.05 | L86: 27300 | M86: 1.1 | N86: 30030 | Q86: 0 | R86: 30030 | S86: 25016 | T86: 5014 | U86: Y
A87: 70 | B87: 18100 | C87: BREMERTON | D87: 70 | E87: 24595 | F87: 22 | G87: 1932 | H87: 11 | I87: 3865 | J87: 30392 | K87: 0 | L87: 30392 | M87: 1 | N87: 30392 | Q87: 0 | R87: 30392 | T87: 30392 | U87: Y
A88: 59 | B88: 01158 | C88: LIND | D88: 54 | E88: 18973 | F88: 15 | G88: 1318 | H88: 11 | I88: 3865 | J88: 24156 | K88: 1.15 | L88: 27779 | M88: 1.1 | N88: 30557 | Q88: 0 | R88: 30557 | S88: 30615 | T88: -58 | U88: Y
A89: 74 | B89: 24019 | C89: OMAK | D89: 76 | E89: 26703 | F89: 32 | G89: 2811 | H89: 2 | I89: 703 | J89: 30217 | K89: 0 | L89: 30217 | M89: 1.1 | N89: 33239 | Q89: 0 | R89: 33239 | T89: 33239 | U89: Y
A90: 77 | B90: 06037 | C90: VANCOUVER | D90: 82 | E90: 28811 | F90: 32 | G90: 2811 | H90: 6 | I90: 2108 | J90: 33730 | K90: 0 | L90: 33730 | M90: 1 | N90: 33730 | Q90: 0 | R90: 33730 | T90: 33730 | U90: Y
A91: 75 | B91: 04019 | C91: MANSON | D91: 81 | E91: 28460 | F91: 23 | G91: 2020 | H91: 15 | I91: 5270 | J91: 35750 | K91: 0.95 | L91: 33963 | M91: 1 | N91: 33963 | Q91: 0 | R91: 33963 | S91: 23861 | T91: 10102 | U91: Y
A92: 68 | B92: 25101 | C92: OCEAN BEACH | D92: 65 | E92: 22838 | F92: 22 | G92: 1932 | H92: 18 | I92: 6324 | J92: 31094 | K92: 1 | L92: 31094 | M92: 1.1 | N92: 34203 | Q92: 0 | R92: 34203 | S92: 34340 | T92: -137 | U92: Y
A93: 72 | B93: 39002 | C93: UNION GAP | D93: 73 | E93: 25649 | F93: 12 | G93: 1054 | H93: 14 | I93: 4919 | J93: 31622 | K93: 1 | L93: 31622 | M93: 1.1 | N93: 34784 | Q93: 0 | R93: 34784 | S93: 38892 | T93: -4108 | U93: Y
A94: 79 | B94: 31201 | C94: SNOHOMISH | D94: 90 | E94: 31622 | F94: 45 | G94: 3953 | H94: 13 | I94: 4568 | J94: 40143 | K94: 0.95 | L94: 38136 | M94: 1 | N94: 38136 | Q94: 0 | R94: 38136 | S94: 42891 | T94: -4755 | U94: Y
A95: 76 | B95: 04228 | C95: CASCADE | D95: 81 | E95: 28460 | F95: 19 | G95: 1669 | H95: 23 | I95: 8081 | J95: 38210 | K95: 1 | L95: 38210 | M95: 1 | N95: 38210 | Q95: 0 | R95: 38210 | S95: 49317 | T95: -11107 | U95: Y
A96: 80 | B96: 39003 | C96: NACHES | D96: 96 | E96: 33730 | F96: 29 | G96: 2547 | H96: 9 | I96: 3162 | J96: 39439 | K96: 0 | L96: 39439 | M96: 1 | N96: 39439 | Q96: 0 | R96: 39439 | T96: 39439 | U96: Y | V96: Y
A97: 73 | B97: 25155 | C97: NASELLE-GRAYS RIVER | D97: 73 | E97: 25649 | F97: 18 | G97: 1581 | H97: 13 | I97: 4568 | J97: 31798 | K97: 1.15 | L97: 36568 | M97: 1.1 | N97: 40225 | Q97: 0 | R97: 40225 | S97: 29714 | T97: 10511 | U97: Y
A98: 78 | B98: 24105 | C98: OKANOGAN | D98: 87 | E98: 30568 | F98: 23 | G98: 2020 | H98: 14 | I98: 4919 | J98: 37507 | K98: 0 | L98: 37507 | M98: 1.1 | N98: 41258 | Q98: 0 | R98: 41258 | T98: 41258 | U98: Y
A99: 81 | B99: 13301 | C99: GRAND COULEE DAM | D99: 98 | E99: 34433 | F99: 32 | G99: 2811 | H99: 2 | I99: 703 | J99: 37947 | K99: 0 | L99: 37947 | M99: 1.1 | N99: 41742 | Q99: 0 | R99: 41742 | T99: 41742 | U99: Y
A100: 85 | B100: 23309 | C100: SHELTON | D100: 113 | E100: 39703 | F100: 31 | G100: 2723 | H100: 14 | I100: 4919 | J100: 47345 | K100: 0.85 | L100: 40243 | M100: 1.1 | N100: 44267 | Q100: 0 | R100: 44267 | S100: 45352 | T100: -1085 | U100: Y
A101: 84 | B101: 39205 | C101: ZILLAH | D101: 101 | E101: 35487 | F101: 27 | G101: 2372 | H101: 15 | I101: 5270 | J101: 43129 | K101: 0.95 | L101: 40973 | M101: 1.1 | N101: 45070 | Q101: 0 | R101: 45070 | S101: 46650 | T101: -1580 | U101: Y
A102: 83 | B102: 21232 | C102: WINLOCK | D102: 100 | E102: 35136 | F102: 49 | G102: 4304 | H102: 6 | I102: 2108 | J102: 41548 | K102: 1.05 | L102: 43625 | M102: 1.1 | N102: 47988 | Q102: 0 | R102: 47988 | S102: 54847 | T102: -6859 | U102: Y
A103: 88 | B103: 36140 | C103: WALLA WALLA | D103: 130 | E103: 45676 | F103: 34 | G103: 2987 | H103: 32 | I103: 11243 | J103: 59906 | K103: 0.85 | L103: 50920 | M103: 1 | N103: 50920 | Q103: 0 | R103: 50920 | T103: 50920 | U103: Y
A104: 82 | B104: 09013 | C104: ORONDO | D104: 99 | E104: 34784 | F104: 17 | G104: 1493 | H104: 13 | I104: 4568 | J104: 40845 | K104: 1.15 | L104: 46972 | M104: 1.1 | N104: 51669 | Q104: 0 | R104: 51669 | S104: 43736 | T104: 7933 | U104: Y
A105: 86 | B105: 24410 | C105: OROVILLE | D105: 122 | E105: 42865 | F105: 26 | G105: 2284 | H105: 9 | I105: 3162 | J105: 48311 | K105: 0 | L105: 48311 | M105: 1.1 | N105: 53142 | Q105: 0 | R105: 53142 | T105: 53142 | U105: Y
A106: 89 | B106: 39119 | C106: SELAH | D106: 132 | E106: 46379 | F106: 53 | G106: 4655 | H106: 14 | I106: 4919 | J106: 55953 | K106: 0.95 | L106: 53155 | M106: 1 | N106: 53155 | Q106: 0 | R106: 53155 | S106: 61825 | T106: -8670 | U106: Y
A107: 87 | B107: 39209 | C107: MT ADAMS | D107: 122 | E107: 42865 | F107: 39 | G107: 3426 | H107: 11 | I107: 3865 | J107: 50156 | K107: 0 | L107: 50156 | M107: 1.1 | N107: 55172 | Q107: 0 | R107: 55172 | S107: 8564 | T107: 46608 | U107: Y
A108: 90 | B108: 21401 | C108: CENTRALIA | D108: 132 | E108: 46379 | F108: 46 | G108: 4041 | H108: 31 | I108: 10892 | J108: 61312 | K108: 0.85 | L108: 52115 | M108: 1.1 | N108: 57327 | Q108: 0 | R108: 57327 | S108: 60089 | T108: -2762 | U108: Y
A109: 91 | B109: 14005 | C109: ABERDEEN | D109: 132 | E109: 46379 | F109: 34 | G109: 2987 | H109: 21 | I109: 7378 | J109: 56744 | K109: 0.95 | L109: 53907 | M109: 1.1 | N109: 59298 | Q109: 0 | R109: 59298 | S109: 60995 | T109: -1697 | U109: Y
A110: 92 | B110: 37502 | C110: FERNDALE | D110: 168 | E110: 59028 | F110: 29 | G110: 2547 | H110: 8 | I110: 2811 | J110: 64386 | K110: 0.95 | L110: 61167 | M110: 1 | N110: 61167 | Q110: 0 | R110: 61167 | S110: 82788 | T110: -21621 | U110: Y
A111: 96 | B111: 37504 | C111: LYNDEN | D111: 182 | E111: 63947 | F111: 33 | G111: 2899 | H111: 17 | I111: 5973 | J111: 72819 | K111: 1 | L111: 72819 | M111: 1 | N111: 72819 | Q111: 0 | R111: 72819 | S111: 64062 | T111: 8757 | U111: Y
A112: 93 | B112: 29101 | C112: SEDRO WOOLLEY | D112: 173 | E112: 60784 | F112: 45 | G112: 3953 | H112: 40 | I112: 14054 | J112: 78791 | K112: 0.95 | L112: 74851 | M112: 1 | N112: 74851 | Q112: 0 | R112: 74851 | S112: 69070 | T112: 5781 | U112: Y
A113: 98 | B113: 37501 | C113: BELLINGHAM | D113: 193 | E113: 67812 | F113: 39 | G113: 3426 | H113: 50 | I113: 17568 | J113: 88806 | K113: 0.85 | L113: 75485 | M113: 1 | N113: 75485 | Q113: 0 | R113: 75485 | T113: 75485 | U113: Y
A114: 97 | B114: 13165 | C114: EPHRATA | D114: 184 | E114: 64649 | F114: 28 | G114: 2459 | H114: 42 | I114: 14757 | J114: 81865 | K114: 0.95 | L114: 77772 | M114: 1 | N114: 77772 | Q114: 0 | R114: 77772 | S114: 53228 | T114: 24544 | U114: Y
A115: 95 | B115: 37506 | C115: NOOKSACK VALLEY | D115: 181 | E115: 63595 | F115: 23 | G115: 2020 | H115: 46 | I115: 16162 | J115: 81777 | K115: 1 | L115: 81777 | M115: 1 | N115: 81777 | Q115: 0 | R115: 81777 | S115: 91337 | T115: -9560 | U115: Y
A116: 94 | B116: 03400 | C116: RICHLAND | D116: 177 | E116: 62190 | F116: 58 | G116: 5095 | H116: 42 | I116: 14757 | J116: 82042 | K116: 0 | L116: 82042 | M116: 1 | N116: 82042 | Q116: 0 | R116: 82042 | T116: 82042 | U116: Y
A117: 100 | B117: 17001 | C117: SEATTLE | D117: 201 | E117: 70622 | F117: 60 | G117: 5270 | H117: 68 | I117: 23892 | J117: 99784 | K117: 0.85 | L117: 84816 | M117: 1 | N117: 84816 | Q117: 0 | R117: 84816 | S117: 84792 | T117: 24 | U117: Y
A118: 105 | B118: 31025 | C118: MARYSVILLE | D118: 249 | E118: 87487 | F118: 96 | G118: 8433 | H118: 18 | I118: 6324 | J118: 102244 | K118: 0.85 | L118: 86907 | M118: 1 | N118: 86907 | Q118: 0 | R118: 86907 | S118: 86952 | T118: -45 | U118: Y
A119: 99 | B119: 29311 | C119: LA CONNER | D119: 197 | E119: 69217 | F119: 53 | G119: 4655 | H119: 5 | I119: 1757 | J119: 75629 | K119: 1.15 | L119: 86973 | M119: 1.1 | N119: 95670 | Q119: 0 | R119: 95670 | S119: 93370 | T119: 2300 | U119: Y
A120: 102 | B120: 39203 | C120: HIGHLAND | D120: 218 | E120: 76595 | F120: 55 | G120: 4831 | H120: 40 | I120: 14054 | J120: 95480 | K120: 1.05 | L120: 100254 | M120: 1 | N120: 100254 | Q120: 0 | R120: 100254 | S120: 141964 | T120: -41710 | U120: Y
A121: 101 | B121: 04129 | C121: LAKE CHELAN | D121: 207 | E121: 72731 | F121: 47 | G121: 4128 | H121: 48 | I121: 16865 | J121: 93724 | K121: 1 | L121: 93724 | M121: 1.1 | N121: 103096 | Q121: 0 | R121: 103096 | S121: 102347 | T121: 749 | U121: Y
A122: 107 | B122: 29100 | C122: BURLINGTON | D122: 274 | E122: 96271 | F122: 59 | G122: 5182 | H122: 27 | I122: 9487 | J122: 110940 | K122: 0.95 | L122: 105393 | M122: 1 | N122: 105393 | Q122: 0 | R122: 105393 | S122: 118531 | T122: -13138 | U122: Y
A123: 108 | B123: 39090 | C123: EAST VALLEY | D123: 274 | E123: 96271 | F123: 97 | G123: 8520 | H123: 21 | I123: 7378 | J123: 112169 | K123: 0 | L123: 112169 | M123: 1 | N123: 112169 | Q123: 0 | R123: 112169 | T123: 112169 | U123: Y
A124: 103 | B124: 13160 | C124: ROYAL CITY | D124: 231 | E124: 81163 | F124: 54 | G124: 4743 | H124: 51 | I124: 17919 | J124: 103825 | K124: 1 | L124: 103825 | M124: 1.1 | N124: 114208 | Q124: 0 | R124: 114208 | S124: 121139 | T124: -6931 | U124: Y
A125: 106 | B125: 09075 | C125: BRIDGEPORT | D125: 253 | E125: 88893 | F125: 63 | G125: 5534 | H125: 27 | I125: 9487 | J125: 103914 | K125: 1.05 | L125: 109110 | M125: 1.1 | N125: 120021 | Q125: 0 | R125: 120021 | S125: 115920 | T125: 4101 | U125: Y
A126: 104 | B126: 24111 | C126: BREWSTER | D126: 235 | E126: 82568 | F126: 36 | G126: 3162 | H126: 72 | I126: 25298 | J126: 111028 | K126: 1.05 | L126: 116579 | M126: 1.1 | N126: 128237 | Q126: 0 | R126: 128237 | S126: 147542 | T126: -19305 | U126: Y
A127: 109 | B127: 04222 | C127: CASHMERE | D127: 299 | E127: 105055 | F127: 33 | G127: 2899 | H127: 20 | I127: 7027 | J127: 114981 | K127: 1.15 | L127: 132228 | M127: 1 | N127: 132228 | Q127: 0 | R127: 132228 | S127: 102393 | T127: 29835 | U127: Y
A128: 110 | B128: 39120 | C128: MABTON | D128: 305 | E128: 107163 | F128: 96 | G128: 8433 | H128: 42 | I128: 14757 | J128: 130353 | K128: 1.15 | L128: 149906 | M128: 1.1 | N128: 164897 | Q128: 0 | R128: 164897 | S128: 189347 | T128: -24450 | U128: Y
A129: 113 | B129: 03052 | C129: KIONA BENTON | D129: 366 | E129: 128596 | F129: 117 | G129: 10277 | H129: 59 | I129: 20730 | J129: 159603 | K129: 1.05 | L129: 167583 | M129: 1 | N129: 167583 | Q129: 0 | R129: 167583 | S129: 174890 | T129: -7307 | U129: Y | V129: Y
A130: 112 | B130: 24404 | C130: TONASKET | D130: 348 | E130: 122272 | F130: 81 | G130: 7115 | H130: 43 | I130: 15108 | J130: 144495 | K130: 1.15 | L130: 166169 | M130: 1.1 | N130: 182786 | Q130: 0 | R130: 182786 | S130: 178964 | T130: 3822 | U130: Y
A131: 114 | B131: 39204 | C131: GRANGER | D131: 391 | E131: 137380 | F131: 149 | G131: 13088 | H131: 45 | I131: 15811 | J131: 166279 | K131: 1.05 | L131: 174593 | M131: 1.1 | N131: 192052 | Q131: 0 | R131: 192052 | S131: 203067 | T131: -11015 | U131: Y | V131: Y
A132: 111 | B132: 13146 | C132: WARDEN | D132: 329 | E132: 115596 | F132: 62 | G132: 5446 | H132: 91 | I132: 31973 | J132: 153015 | K132: 1.15 | L132: 175967 | M132: 1.1 | N132: 193564 | Q132: 0 | R132: 193564 | S132: 201311 | T132: -7747 | U132: Y
A133: 115 | B133: 13161 | C133: MOSES LAKE | D133: 476 | E133: 167245 | F133: 149 | G133: 13088 | H133: 93 | I133: 32676 | J133: 213009 | K133: 0.95 | L133: 202359 | M133: 1 | N133: 202359 | Q133: 0 | R133: 202359 | S133: 222281 | T133: -19922 | U133: Y
A134: 116 | B134: 13144 | C134: QUINCY | D134: 513 | E134: 180245 | F134: 132 | G134: 11595 | H134: 93 | I134: 32676 | J134: 224516 | K134: 1.05 | L134: 235742 | M134: 1.1 | N134: 259316 | Q134: 0 | R134: 259316 | S134: 281404 | T134: -22088 | U134: Y
A135: 117 | B135: 39200 | C135: GRANDVIEW | D135: 628 | E135: 220651 | F135: 194 | G135: 17041 | H135: 90 | I135: 31622 | J135: 269314 | K135: 1 | L135: 269314 | M135: 1.1 | N135: 296245 | Q135: 0 | R135: 296245 | S135: 324156 | T135: -27911 | U135: Y | V135: Y
A136: 118 | B136: 11051 | C136: NORTH FRANKLIN | D136: 704 | E136: 247354 | F136: 266 | G136: 23365 | H136: 93 | I136: 32676 | J136: 303395 | K136: 1.15 | L136: 348904 | M136: 1.1 | N136: 383794 | Q136: 0 | R136: 383794 | S136: 484176 | T136: -100382 | U136: Y
A137: 119 | B137: 03116 | C137: PROSSER | D137: 817 | E137: 287057 | F137: 326 | G137: 28635 | H137: 70 | I137: 24595 | J137: 340287 | K137: 1.15 | L137: 391330 | M137: 1 | N137: 391330 | Q137: 0 | R137: 391330 | S137: 473486 | T137: -82156 | U137: Y
A138: 120 | B138: 09206 | C138: EASTMONT | D138: 881 | E138: 309544 | F138: 288 | G138: 25298 | H138: 134 | I138: 47082 | J138: 381924 | K138: 1.05 | L138: 401020 | M138: 1 | N138: 401020 | Q138: 0 | R138: 401020 | S138: 446622 | T138: -45602 | U138: Y
A139: 121 | B139: 39207 | C139: WAPATO | D139: 945 | E139: 332031 | F139: 289 | G139: 25385 | H139: 157 | I139: 55163 | J139: 412579 | K139: 1.15 | L139: 474466 | M139: 1 | N139: 474466 | Q139: 0 | R139: 474466 | S139: 583177 | T139: -108711 | U139: Y
A140: 122 | B140: 01147 | C140: OTHELLO | D140: 945 | E140: 332031 | F140: 215 | G140: 18885 | H140: 173 | I140: 60784 | J140: 411700 | K140: 1.05 | L140: 432285 | M140: 1.1 | N140: 475514 | Q140: 0 | R140: 475514 | S140: 452878 | T140: 22636 | U140: Y
A141: 123 | B141: 39202 | C141: TOPPENISH | D141: 980 | E141: 344328 | F141: 288 | G141: 25298 | H141: 253 | I141: 88893 | J141: 458519 | K141: 1.05 | L141: 481445 | M141: 1 | N141: 481445 | Q141: 0 | R141: 481445 | S141: 564817 | T141: -83372 | U141: Y
A142: 125 | B142: 29320 | C142: MOUNT VERNON | D142: 1384 | E142: 486275 | F142: 500 | G142: 43919 | H142: 92 | I142: 32325 | J142: 562519 | K142: 1.05 | L142: 590645 | M142: 1 | N142: 590645 | Q142: 0 | R142: 590645 | S142: 532892 | T142: 57753 | U142: Y
A143: 124 | B143: 13073 | C143: WAHLUKE | D143: 1253 | E143: 440248 | F143: 234 | G143: 20554 | H143: 191 | I143: 67109 | J143: 527911 | K143: 1.15 | L143: 607098 | M143: 1.1 | N143: 667808 | Q143: 0 | R143: 667808 | S143: 647024 | T143: 20784 | U143: Y
A144: 126 | B144: 39201 | C144: SUNNYSIDE | D144: 1437 | E144: 504897 | F144: 404 | G144: 35487 | H144: 205 | I144: 72028 | J144: 612412 | K144: 1.05 | L144: 643033 | M144: 1.1 | N144: 707336 | Q144: 0 | R144: 707336 | S144: 730078 | T144: -22742 | U144: Y
A145: 128 | B145: 11001 | C145: PASCO | D145: 1986 | E145: 697791 | F145: 567 | G145: 49805 | H145: 350 | I145: 122974 | J145: 870570 | K145: 1 | L145: 870570 | M145: 1 | N145: 870570 | Q145: 0 | R145: 870570 | S145: 977511 | T145: -106941 | U145: Y
A146: 127 | B146: 04246 | C146: WENATCHEE | D146: 1779 | E146: 625061 | F146: 627 | G146: 55075 | H146: 224 | I146: 78704 | J146: 758840 | K146: 1.15 | L146: 872666 | M146: 1 | N146: 872666 | Q146: 0 | R146: 872666 | S146: 993048 | T146: -120382 | U146: Y
A147: 129 | B147: 39007 | C147: YAKIMA | D147: 2504 | E147: 879793 | F147: 966 | G147: 84852 | H147: 249 | I147: 87487 | J147: 1052132 | K147: 1 | L147: 1052132 | M147: 1 | N147: 1052132 | Q147: 0 | R147: 1052132 | S147: 1302195 | T147: -250063 | U147: Y
A148: 130 | B148: 03017 | C148: KENNEWICK | D148: 2896 | E148: 1017524 | F148: 984 | G148: 86433 | H148: 242 | I148: 85028 | J148: 1188985 | K148: 1.05 | L148: 1248434 | M148: 1 | N148: 1248434 | Q148: 0 | R148: 1248434 | S148: 1347125 | T148: -98691 | U148: Y
S149: 13647371 | T149: 285455
S150: 169124 | T150: consortium
S151: 168561 | T151: declined
S152: 13985056

Sheet 2020-21 Final (hidden)
I1: From Assumptions Page:
C2: Constant Dollar Multipliers - Do Not Change Here | I2: Target Amounts | N2: 16825082
C3: 0 | F3: 400.4968588 | G3: Use CTRL K | I3: Actual Amounts | N3: 16795507
I4: Difference | N4: -29575
I6: 16795507
G7: Put total here | I7: 16825082
I10: Go to H9 & Control K to set dollar amount
D14: Migrant Students | U14: Accepting Funding? | V14: HOLD HARMLESS
C15: 400.4968588 | D15: K-12 | F15: Needs Support | H15: Priority Interuption | R15: 16795507
B16: CCDDD | C16: District | D16: Ave. number | E16: Regular Dollars | F16: Ave. number | G16: Regular Dollars | H16: Priority Number | I16: Priority Dollars | J16: Subtotal | K16: Other Funds Factor | L16: Subtotal 2 | M16: Add'l Rural Factor | N16: Total Allocated Amount | P16: MOE | Q16: MOE Red. | R16: Subtotal After MOE | U16: Y for yes, N for no (reallocates money) | V16: Override funding? Y for yes, otherwise blank.
D17: 10 | E17: 400.1886877 | F17: 0.25 | G17: 102.4704021 | H17: 1 | I17: 407.4422 | M17: 0.1 | N17: 124
A18: 0 | B18: 99999 | C18: State Total | D18: 31205 | E18: 12487888 | F18: 8531 | G18: 874175 | H18: 9109 | I18: 3711391 | J18: 17073454 | L18: 17786731 | N18: 16795507 | Q18: 0 | R18: 16795507 | S18: 19-20 Final Allocations (excluding 17-18 carryover) | T18: Allocation Difference
A19: 1 | B19: 14005 | C19: ABERDEEN | D19: 130 | E19: 52065 | F19: 30 | G19: 3004 | H19: 42 | I19: 16821 | J19: 71890 | K19: 0.95 | L19: 68296 | M19: 1.1 | N19: 75126 | Q19: 0 | R19: 75126 | S19: 69748 | T19: 5378 | U19: Y
A20: 2 | B20: 31016 | C20: ARLINGTON | D20: 53 | E20: 21226 | F20: 24 | G20: 2403 | H20: 22 | I20: 8811 | J20: 32440 | K20: 0 | L20: 32440 | M20: 1 | N20: 0 | Q20: 0 | R20: 0 | S20: 0 | T20: 0 | U20: N
A21: 3 | B21: 17408 | C21: AUBURN | D21: 39 | E21: 15619 | F21: 9 | G21: 901 | H21: 4 | I21: 1602 | J21: 18122 | K21: 0 | L21: 18122 | M21: 1 | N21: 0 | Q21: 0 | R21: 0 | S21: 0 | T21: 0 | U21: N
A22: 4 | B22: 06119 | C22: BATTLE GROUND | D22: 16 | E22: 6408 | F22: 4 | G22: 400 | H22: 2 | I22: 801 | J22: 7609 | K22: 0 | L22: 7609 | M22: 1 | N22: 0 | Q22: 0 | R22: 0 | S22: 0 | T22: 0 | U22: N
A23: 5 | B23: 37501 | C23: BELLINGHAM | D23: 177 | E23: 70888 | F23: 49 | G23: 4906 | H23: 33 | I23: 13216 | J23: 89010 | K23: 0 | L23: 89010 | M23: 1 | N23: 0 | Q23: 0 | R23: 0 | S23: 0 | T23: 0 | U23: N
A24: 6 | B24: 37503 | C24: BLAINE | D24: 9 | E24: 0 | F24: 3 | G24: 0 | H24: 0 | I24: 0 | J24: 0 | K24: 1 | L24: 0 | M24: 1 | N24: 0 | Q24: 0 | R24: 0 | S24: 0 | T24: 0 | U24: N
A25: 7 | B25: 18100 | C25: BREMERTON | D25: 84 | E25: 33642 | F25: 21 | G25: 2103 | H25: 17 | I25: 6808 | J25: 42553 | K25: 0 | L25: 42553 | M25: 1 | N25: 0 | Q25: 0 | R25: 0 | S25: 0 | T25: 0 | U25: N
A26: 8 | B26: 24111 | C26: BREWSTER | D26: 225 | E26: 90112 | F26: 26 | G26: 2603 | H26: 67 | I26: 26833 | J26: 119548 | K26: 1.05 | L26: 125525 | M26: 1.1 | N26: 138078 | Q26: 0 | R26: 138078 | S26: 150834 | T26: -12756 | U26: Y
A27: 9 | B27: 09075 | C27: BRIDGEPORT | D27: 230 | E27: 92114 | F27: 47 | G27: 4706 | H27: 38 | I27: 15219 | J27: 112039 | K27: 1.05 | L27: 117641 | M27: 1.1 | N27: 129405 | Q27: 0 | R27: 129405 | S27: 141169 | T27: -11764 | U27: Y
A28: 10 | B28: 29100 | C28: BURLINGTON-EDISON | D28: 299 | E28: 119749 | F28: 60 | G28: 6007 | H28: 95 | I28: 38047 | J28: 163803 | K28: 0.95 | L28: 155613 | M28: 1 | N28: 155613 | Q28: 0 | R28: 155613 | S28: 123966 | T28: 31647 | U28: Y
A29: 11 | B29: 04228 | C29: CASCADE | D29: 61 | E29: 24430 | F29: 20 | G29: 2002 | H29: 16 | I29: 6408 | J29: 32840 | K29: 1 | L29: 32840 | M29: 1 | N29: 32840 | Q29: 0 | R29: 32840 | S29: 44943 | T29: -12103 | U29: Y
A30: 12 | B30: 04222 | C30: CASHMERE | D30: 257 | E30: 102928 | F30: 20 | G30: 2002 | H30: 44 | I30: 17622 | J30: 122552 | K30: 1.15 | L30: 140935 | M30: 1 | N30: 140935 | Q30: 0 | R30: 140935 | S30: 155528 | T30: -14593 | U30: Y
A31: 14 | B31: 18401 | C31: CENTRAL KITSAP | D31: 10 | E31: 4005 | F31: 3 | G31: 300 | H31: 2 | I31: 801 | J31: 5106 | K31: 1 | L31: 5106 | M31: 1 | N31: 0 | Q31: 0 | R31: 0 | S31: 0 | T31: 0 | U31: N
A32: 13 | B32: 32356 | C32: CENTRAL VALLEY | D32: 5 | E32: 0 | F32: 0 | G32: 0 | H32: 2 | I32: 0 | J32: 0 | K32: 1 | L32: 0 | M32: 1 | N32: 0 | Q32: 0 | R32: 0 | S32: 0 | T32: 0 | U32: N
A33: 15 | B33: 21401 | C33: CENTRALIA | D33: 97 | E33: 38848 | F33: 22 | G33: 2203 | H33: 34 | I33: 13617 | J33: 54668 | K33: 0.85 | L33: 46468 | M33: 1.1 | N33: 51115 | Q33: 0 | R33: 51115 | S33: 67429 | T33: -16314 | U33: Y
A34: 16 | B34: 21302 | C34: CHEHALIS | D34: 34 | E34: 13617 | F34: 14 | G34: 1402 | H34: 14 | I34: 5607 | J34: 20626 | K34: 0.85 | L34: 17532 | M34: 1 | N34: 17532 | Q34: 0 | R34: 17532 | S34: 17125 | T34: 407 | U34: Y | V34: Y
A35: 17 | B35: 27901 | C35: CHIEF LESCHI TRIBAL | D35: 12 | E35: 4806 | F35: 0 | G35: 0 | H35: 2 | I35: 801 | J35: 5607 | K35: 0 | L35: 5607 | M35: 1 | N35: 5607 | Q35: 0 | R35: 5607 | S35: 4991 | T35: 616 | U35: Y
A36: 18 | B36: 36250 | C36: COLLEGE PLACE | D36: 97 | E36: 38848 | F36: 27 | G36: 2703 | H36: 25 | I36: 10012 | J36: 51563 | K36: 0.95 | L36: 48985 | M36: 1 | N36: 48985 | Q36: 0 | R36: 48985 | S36: 33764 | T36: 15221 | U36: Y | V36: Y
A37: 19 | B37: 36400 | C37: COLUMBIA | D37: 53 | E37: 21226 | F37: 23 | G37: 2303 | H37: 8 | I37: 3204 | J37: 26733 | K37: 0.95 | L37: 25396 | M37: 1 | N37: 25396 | Q37: 0 | R37: 25396 | S37: 23106 | T37: 2290 | U37: Y
A38: 20 | B38: 29317 | C38: CONWAY | D38: 31 | E38: 12415 | F38: 8 | G38: 801 | H38: 13 | I38: 5206 | J38: 18422 | K38: 1.15 | L38: 21185 | M38: 1.1 | N38: 23304 | Q38: 0 | R38: 23304 | S38: 24179 | T38: -875 | U38: Y
A39: 21 | B39: 15204 | C39: COUPEVILLE | D39: 11 | E39: 4405 | F39: 7 | G39: 701 | H39: 3 | I39: 1201 | J39: 6307 | K39: 0.85 | L39: 5361 | M39: 1 | N39: 5361 | Q39: 0 | R39: 5361 | S39: 7388 | T39: -2027 | U39: Y
A40: 22 | B40: 39090 | C40: EAST VALLEY | D40: 241 | E40: 96520 | F40: 92 | G40: 9211 | H40: 68 | I40: 27234 | J40: 132965 | K40: 0 | L40: 132965 | M40: 1 | N40: 0 | Q40: 0 | R40: 0 | S40: 0 | T40: 0 | U40: N
A41: 23 | B41: 09206 | C41: EASTMONT | D41: 911 | E41: 364853 | F41: 262 | G41: 26233 | H41: 241 | I41: 96520 | J41: 487606 | K41: 1.05 | L41: 511986 | M41: 1 | N41: 511986 | Q41: 0 | R41: 511986 | S41: 471685 | T41: 40301 | U41: Y
A42: 24 | B42: 31015 | C42: EDMONDS | D42: 15 | E42: 6007 | F42: 3 | G42: 300 | H42: 2 | I42: 801 | J42: 7108 | K42: 0 | L42: 7108 | M42: 1 | N42: 0 | Q42: 0 | R42: 0 | S42: 0 | T42: 0 | U42: N
A43: 25 | B43: 19401 | C43: ELLENSBURG | D43: 45 | E43: 18022 | F43: 18 | G43: 1802 | H43: 15 | I43: 6007 | J43: 25831 | K43: 0.85 | L43: 21956 | M43: 1 | N43: 21956 | Q43: 0 | R43: 21956 | S43: 24238 | T43: -2282 | U43: Y
A44: 26 | B44: 14068 | C44: ELMA | D44: 50 | E44: 20025 | F44: 14 | G44: 1402 | H44: 3 | I44: 1201 | J44: 22628 | K44: 0 | L44: 22628 | M44: 1 | N44: 0 | Q44: 0 | R44: 0 | S44: 0 | T44: 0 | U44: N
A45: 27 | B45: 04127 | C45: ENTIAT | D45: 28 | E45: 11214 | F45: 2 | G45: 200 | H45: 9 | I45: 3604 | J45: 15018 | K45: 0 | L45: 15018 | M45: 1.1 | N45: 0 | Q45: 0 | R45: 0 | S45: 0 | T45: 0 | U45: N
A46: 28 | B46: 13165 | C46: EPHRATA | D46: 217 | E46: 86908 | F46: 32 | G46: 3204 | H46: 76 | I46: 30438 | J46: 120550 | K46: 0.95 | L46: 114523 | M46: 1 | N46: 114523 | Q46: 0 | R46: 114523 | S46: 91477 | T46: 23046 | U46: Y
A47: 29 | B47: 31002 | C47: EVERETT | D47: 42 | E47: 16821 | F47: 9 | G47: 901 | H47: 14 | I47: 5607 | J47: 23329 | K47: 0 | L47: 23329 | M47: 1 | N47: 0 | Q47: 0 | R47: 0 | S47: 0 | T47: 0 | U47: N
A48: 30 | B48: 06114 | C48: EVERGREEN | D48: 33 | E48: 13216 | F48: 7 | G48: 701 | H48: 16 | I48: 6408 | J48: 20325 | K48: 0 | L48: 20325 | M48: 1 | N48: 0 | Q48: 0 | R48: 0 | S48: 0 | T48: 0 | U48: N
A49: 31 | B49: 17210 | C49: FEDERAL WAY | D49: 52 | E49: 20826 | F49: 13 | G49: 1302 | H49: 18 | I49: 7209 | J49: 29337 | K49: 0 | L49: 29337 | M49: 1 | N49: 0 | Q49: 0 | R49: 0 | S49: 0 | T49: 0 | U49: N
A50: 32 | B50: 37502 | C50: FERNDALE | D50: 181 | E50: 72490 | F50: 27 | G50: 2703 | H50: 44 | I50: 17622 | J50: 92815 | K50: 0.95 | L50: 88174 | M50: 1 | N50: 88174 | Q50: 0 | R50: 88174 | S50: 71944 | T50: 16230 | U50: Y
A51: 33 | B51: 03053 | C51: FINLEY | D51: 74 | E51: 29637 | F51: 26 | G51: 2603 | H51: 15 | I51: 6007 | J51: 38247 | K51: 0.95 | L51: 36335 | M51: 1 | N51: 36335 | Q51: 0 | R51: 36335 | S51: 26894 | T51: 9441 | U51: Y
A52: 34 | B52: 27402 | C52: FRANKLIN PIERCE | D52: 10 | E52: 4005 | F52: 3 | G52: 300 | H52: 2 | I52: 801 | J52: 5106 | K52: 1 | L52: 5106 | M52: 1 | N52: 0 | Q52: 0 | R52: 0 | S52: 0 | T52: 0 | U52: N
A53: 35 | B53: 20404 | C53: GOLDENDALE | D53: 59 | E53: 23629 | F53: 15 | G53: 1502 | H53: 16 | I53: 6408 | J53: 31539 | K53: 0 | L53: 31539 | M53: 1.1 | N53: 34693 | Q53: 0 | R53: 34693 | S53: 0 | T53: 34693 | U53: Y
A54: 36 | B54: 13301 | C54: GRAND COULEE DAM | D54: 134 | E54: 53667 | F54: 49 | G54: 4906 | H54: 41 | I54: 16420 | J54: 74993 | K54: 1.05 | L54: 78743 | M54: 1.1 | N54: 0 | Q54: 0 | R54: 0 | S54: 49096 | T54: -49096 | U54: N
A55: 37 | B55: 39200 | C55: GRANDVIEW | D55: 575 | E55: 230286 | F55: 155 | G55: 15519 | H55: 182 | I55: 72890 | J55: 318695 | K55: 1 | L55: 318695 | M55: 1.1 | N55: 350565 | Q55: 0 | R55: 350565 | S55: 348448 | T55: 2117 | U55: Y | V55: Y
A56: 38 | B56: 39204 | C56: GRANGER | D56: 410 | E56: 164204 | F56: 131 | G56: 13116 | H56: 87 | I56: 34843 | J56: 212163 | K56: 1.05 | L56: 222771 | M56: 1.1 | N56: 245048 | Q56: 0 | R56: 245048 | S56: 225895 | T56: 19153 | U56: Y | V56: Y
A57: 39 | B57: 39203 | C57: HIGHLAND | D57: 205 | E57: 82102 | F57: 45 | G57: 4506 | H57: 39 | I57: 15619 | J57: 102227 | K57: 1.05 | L57: 107338 | M57: 1 | N57: 107338 | Q57: 0 | R57: 107338 | S57: 117921 | T57: -10583 | U57: Y
A58: 40 | B58: 17401 | C58: HIGHLINE | D58: 7 | E58: 0 | F58: 1 | G58: 0 | H58: 3 | I58: 0 | J58: 0 | K58: 1 | L58: 0 | M58: 1 | N58: 0 | Q58: 0 | R58: 0 | S58: 0 | T58: 0 | U58: N
A59: 41 | B59: 23404 | C59: HOOD CANAL | D59: 48 | E59: 19224 | F59: 17 | G59: 1702 | H59: 13 | I59: 5206 | J59: 26132 | K59: 1 | L59: 26132 | M59: 1.1 | N59: 0 | Q59: 0 | R59: 0 | S59: 27617 | T59: -27617 | U59: N
A60: 42 | B60: 14028 | C60: HOQUIAM | D60: 28 | E60: 11214 | F60: 11 | G60: 1101 | H60: 6 | I60: 2403 | J60: 14718 | K60: 0.85 | L60: 12510 | M60: 1.1 | N60: 13761 | Q60: 0 | R60: 13761 | S60: 16479 | T60: -2718 | U60: Y
A61: 43 | B61: 08458 | C61: KELSO | D61: 34 | E61: 13617 | F61: 7 | G61: 701 | H61: 10 | I61: 4005 | J61: 18323 | K61: 0 | L61: 18323 | M61: 1 | N61: 0 | Q61: 0 | R61: 0 | S61: 0 | T61: 0 | U61: N
A62: 44 | B62: 03017 | C62: KENNEWICK | D62: 3008 | E62: 1204695 | F62: 959 | G62: 96019 | H62: 1020 | I62: 408507 | J62: 1709221 | K62: 1.05 | L62: 1794682 | M62: 1 | N62: 1794682 | Q62: 0 | R62: 1794682 | S62: 1468429 | T62: 326253 | U62: Y
A63: 45 | B63: 17415 | C63: KENT | D63: 50 | E63: 20025 | F63: 15 | G63: 1502 | H63: 15 | I63: 6007 | J63: 27534 | K63: 0 | L63: 27534 | M63: 1 | N63: 0 | Q63: 0 | R63: 0 | S63: 0 | T63: 0 | U63: N
A64: 46 | B64: 03052 | C64: KIONA BENTON | D64: 372 | E64: 148985 | F64: 124 | G64: 12415 | H64: 83 | I64: 33241 | J64: 194641 | K64: 1.05 | L64: 204373 | M64: 1 | N64: 204373 | Q64: 0 | R64: 204373 | S64: 197114 | T64: 7259 | U64: Y | V64: Y
A65: 47 | B65: 19403 | C65: KITTITAS | D65: 23 | E65: 9211 | F65: 8 | G65: 801 | H65: 4 | I65: 1602 | J65: 11614 | K65: 0 | L65: 11614 | M65: 1 | N65: 0 | Q65: 0 | R65: 0 | S65: 0 | T65: 0 | U65: N
A66: 48 | B66: 29311 | C66: LA CONNER | D66: 176 | E66: 70487 | F66: 75 | G66: 7509 | H66: 83 | I66: 33241 | J66: 111237 | K66: 1.15 | L66: 127923 | M66: 1 | N66: 127923 | Q66: 0 | R66: 127923 | S66: 112529 | T66: 15394 | U66: Y
A67: 49 | B67: 04129 | C67: LAKE CHELAN | D67: 223 | E67: 89311 | F67: 52 | G67: 5206 | H67: 69 | I67: 27634 | J67: 122151 | K67: 1.05 | L67: 128259 | M67: 1 | N67: 128259 | Q67: 0 | R67: 128259 | S67: 121264 | T67: 6995 | U67: Y
A68: 50 | B68: 34307 | C68: LAKE QUINAULT | D68: 0 | E68: 0 | F68: 0 | G68: 0 | H68: 0 | I68: 0 | J68: 0 | K68: 1 | L68: 0 | M68: 1 | N68: 0 | Q68: 0 | R68: 0 | S68: 0 | T68: 0 | U68: N
A69: 51 | B69: 01158 | C69: LIND | D69: 48 | E69: 19224 | F69: 15 | G69: 1502 | H69: 11 | I69: 4405 | J69: 25131 | K69: 1.15 | L69: 28901 | M69: 1.1 | N69: 31791 | Q69: 0 | R69: 31791 | S69: 35943 | T69: -4152 | U69: Y
A70: 52 | B70: 08122 | C70: LONGVIEW | D70: 48 | E70: 19224 | F70: 16 | G70: 1602 | H70: 12 | I70: 4806 | J70: 25632 | K70: 0 | L70: 25632 | M70: 1 | N70: 0 | Q70: 0 | R70: 0 | S70: 0 | T70: 0 | U70: N
A71: 53 | B71: 37903 | C71: LUMMI TRIBAL AGENCY | D71: 15 | E71: 6007 | F71: 8 | G71: 801 | H71: 2 | I71: 801 | J71: 7609 | K71: 0 | L71: 7609 | M71: 1 | N71: 7609 | Q71: 0 | R71: 7609 | S71: 7749 | T71: -140 | U71: Y
A72: 54 | B72: 20406 | C72: LYLE | D72: 33 | E72: 13216 | F72: 8 | G72: 801 | H72: 16 | I72: 6408 | J72: 20425 | K72: 1 | L72: 20425 | M72: 1.1 | N72: 0 | Q72: 0 | R72: 0 | S72: 18070 | T72: -18070 | U72: N
A73: 55 | B73: 37504 | C73: LYNDEN | D73: 190 | E73: 76094 | F73: 26 | G73: 2603 | H73: 43 | I73: 17221 | J73: 95918 | K73: 1 | L73: 95918 | M73: 1 | N73: 95918 | Q73: 0 | R73: 95918 | S73: 85650 | T73: 10268 | U73: Y
A74: 56 | B74: 39120 | C74: MABTON | D74: 324 | E74: 129761 | F74: 92 | G74: 9211 | H74: 93 | I74: 37246 | J74: 176218 | K74: 1.15 | L74: 202651 | M74: 1.1 | N74: 222916 | Q74: 0 | R74: 222916 | S74: 193952 | T74: 28964 | U74: Y
A75: 57 | B75: 04019 | C75: MANSON | D75: 100 | E75: 40050 | F75: 9 | G75: 901 | H75: 31 | I75: 12415 | J75: 53366 | K75: 1 | L75: 53366 | M75: 1 | N75: 53366 | Q75: 0 | R75: 53366 | S75: 39948 | T75: 13418 | U75: Y
A76: 58 | B76: 31025 | C76: MARYSVILLE | D76: 232 | E76: 92915 | F76: 92 | G76: 9211 | H76: 81 | I76: 32440 | J76: 134566 | K76: 0.85 | L76: 114381 | M76: 1 | N76: 114381 | Q76: 0 | R76: 114381 | S76: 102222 | T76: 12159 | U76: Y
A77: 59 | B77: 37505 | C77: MERIDIAN | D77: 48 | E77: 19224 | F77: 19 | G77: 1902 | H77: 10 | I77: 4005 | J77: 25131 | K77: 0 | L77: 25131 | M77: 1 | N77: 0 | Q77: 0 | R77: 0 | S77: 0 | T77: 0 | U77: N
A78: 60 | B78: 31103 | C78: MONROE | D78: 10 | E78: 4005 | F78: 3 | G78: 300 | H78: 0 | I78: 0 | J78: 4305 | K78: 1 | L78: 4305 | M78: 1 | N78: 0 | Q78: 0 | R78: 0 | S78: 0 | T78: 0 | U78: N
A79: 61 | B79: 13161 | C79: MOSES LAKE | D79: 497 | E79: 199047 | F79: 139 | G79: 13917 | H79: 142 | I79: 56871 | J79: 269835 | K79: 0.95 | L79: 256343 | M79: 1 | N79: 256343 | Q79: 0 | R79: 256343 | S79: 238017 | T79: 18326 | U79: Y
A80: 62 | B80: 21206 | C80: MOSSYROCK | D80: 46 | E80: 18423 | F80: 11 | G80: 1101 | H80: 12 | I80: 4806 | J80: 24330 | K80: 0.95 | L80: 23114 | M80: 1.1 | N80: 25425 | Q80: 0 | R80: 25425 | S80: 21253 | T80: 4172 | U80: Y
A81: 63 | B81: 29320 | C81: MOUNT VERNON | D81: 1586 | E81: 635188 | F81: 549 | G81: 54968 | H81: 490 | I81: 196243 | J81: 886399 | K81: 1.05 | L81: 930719 | M81: 1 | N81: 930719 | Q81: 0 | R81: 930719 | S81: 694727 | T81: 235992 | U81: Y
A82: 64 | B82: 39209 | C82: MT ADAMS | D82: 134 | E82: 53667 | F82: 31 | G82: 3104 | H82: 33 | I82: 13216 | J82: 69987 | K82: 0 | L82: 69987 | M82: 1.1 | N82: 0 | Q82: 0 | R82: 0 | S82: 0 | T82: 0 | U82: N
A83: 65 | B83: 37507 | C83: MT BAKER | D83: 27 | E83: 10813 | F83: 9 | G83: 901 | H83: 14 | I83: 5607 | J83: 17321 | K83: 0.85 | L83: 14723 | M83: 1 | N83: 14723 | Q83: 0 | R83: 14723 | S83: 15395 | T83: -672 | U83: Y
A84: 66 | B84: 17903 | C84: MUCKLESHOOT TRIBAL SCHOOL | D84: 14 | E84: 5607 | F84: 4 | G84: 400 | H84: 5 | I84: 2002 | J84: 8009 | K84: 0 | L84: 8009 | M84: 1 | N84: 8009 | Q84: 0 | R84: 8009 | S84: 5786 | T84: 2223 | U84: Y
A85: 67 | B85: 31006 | C85: MUKILTEO | D85: 32 | E85: 12816 | F85: 7 | G85: 701 | H85: 8 | I85: 3204 | J85: 16721 | K85: 0 | L85: 16721 | M85: 1 | N85: 0 | Q85: 0 | R85: 0 | S85: 0 | T85: 0 | U85: N | V85: Y
A86: 68 | B86: 39003 | C86: NACHES VALLEY | D86: 101 | E86: 40450 | F86: 24 | G86: 2403 | H86: 18 | I86: 7209 | J86: 50062 | K86: 0 | L86: 50062 | M86: 1 | N86: 0 | Q86: 0 | R86: 0 | S86: 0 | T86: 0 | U86: N | V86: Y
A87: 69 | B87: 25155 | C87: NASELLE-GRAYS RIVER | D87: 75 | E87: 30037 | F87: 18 | G87: 1802 | H87: 12 | I87: 4806 | J87: 36645 | K87: 1.15 | L87: 42142 | M87: 1.1 | N87: 46356 | Q87: 0 | R87: 46356 | S87: 47313 | T87: -957 | U87: Y
A88: 70 | B88: 24014 | C88: NESPELEM | D88: 36 | E88: 14418 | F88: 6 | G88: 601 | H88: 2 | I88: 801 | J88: 15820 | K88: 1 | L88: 15820 | M88: 1.1 | N88: 17402 | Q88: 0 | R88: 17402 | S88: 16753 | T88: 649 | U88: Y
A89: 71 | B89: 37506 | C89: NOOKSACK VALLEY | D89: 201 | E89: 80500 | F89: 27 | G89: 2703 | H89: 29 | I89: 11614 | J89: 94817 | K89: 1 | L89: 94817 | M89: 1 | N89: 94817 | Q89: 0 | R89: 94817 | S89: 96188 | T89: -1371 | U89: Y
A90: 72 | B90: 14064 | C90: NORTH BEACH | D90: 20 | E90: 8010 | F90: 1 | G90: 100 | H90: 3 | I90: 1201 | J90: 9311 | K90: 0.85 | L90: 7914 | M90: 1 | N90: 7914 | Q90: 0 | R90: 7914 | S90: 8472 | T90: -558 | U90: Y
A91: 73 | B91: 11051 | C91: NORTH FRANKLIN | D91: 657 | E91: 263126 | F91: 231 | G91: 23129 | H91: 251 | I91: 100525 | J91: 386780 | K91: 1.15 | L91: 444797 | M91: 1.1 | N91: 489277 | Q91: 0 | R91: 489277 | S91: 451426 | T91: 37851 | U91: Y
A92: 74 | B92: 18400 | C92: NORTH KITSAP | D92: 65 | E92: 26032 | F92: 28 | G92: 2803 | H92: 12 | I92: 4806 | J92: 33641 | K92: 0 | L92: 33641 | M92: 1 | N92: 0 | Q92: 0 | R92: 0 | S92: 0 | T92: 0 | U92: N
A93: 75 | B93: 34003 | C93: NORTH THURSTON | D93: 24 | E93: 9612 | F93: 12 | G93: 1201 | H93: 6 | I93: 2403 | J93: 13216 | K93: 0 | L93: 13216 | M93: 1 | N93: 0 | Q93: 0 | R93: 0 | S93: 0 | T93: 0 | U93: N
A94: 76 | B94: 15201 | C94: OAK HARBOR | D94: 19 | E94: 7609 | F94: 6 | G94: 601 | H94: 12 | I94: 4806 | J94: 13016 | K94: 0 | L94: 13016 | M94: 1 | N94: 0 | Q94: 0 | R94: 0 | S94: 0 | T94: 0 | U94: N
A95: 77 | B95: 25101 | C95: OCEAN BEACH | D95: 56 | E95: 22428 | F95: 19 | G95: 1902 | H95: 27 | I95: 10813 | J95: 35143 | K95: 1 | L95: 35143 | M95: 1 | N95: 35143 | Q95: 0 | R95: 35143 | S95: 40233 | T95: -5090 | U95: Y
A96: 78 | B96: 14172 | C96: OCOSTA | D96: 56 | E96: 22428 | F96: 15 | G96: 1502 | H96: 18 | I96: 7209 | J96: 31139 | K96: 0.95 | L96: 29582 | M96: 1.1 | N96: 32540 | Q96: 0 | R96: 32540 | S96: 23867 | T96: 8673 | U96: Y
A97: 79 | B97: 24105 | C97: OKANOGAN | D97: 83 | E97: 33241 | F97: 24 | G97: 2403 | H97: 23 | I97: 9211 | J97: 44855 | K97: 0 | L97: 44855 | M97: 1.1 | N97: 0 | Q97: 0 | R97: 0 | S97: 0 | T97: 0 | U97: N
A98: 80 | B98: 34111 | C98: OLYMPIA | D98: 20 | E98: 8010 | F98: 6 | G98: 601 | H98: 4 | I98: 1602 | J98: 10213 | K98: 0.85 | L98: 8681 | M98: 1 | N98: 8681 | Q98: 0 | R98: 8681 | S98: 9221 | T98: -540 | U98: Y
A99: 81 | B99: 24019 | C99: OMAK | D99: 60 | E99: 24030 | F99: 24 | G99: 2403 | H99: 15 | I99: 6007 | J99: 32440 | K99: 0 | L99: 32440 | M99: 1.1 | N99: 0 | Q99: 0 | R99: 0 | S99: 0 | T99: 0 | U99: N
A100: 82 | B100: 09013 | C100: ORONDO | D100: 89 | E100: 35644 | F100: 15 | G100: 1502 | H100: 11 | I100: 4405 | J100: 41551 | K100: 1.15 | L100: 47784 | M100: 1.1 | N100: 52562 | Q100: 0 | R100: 52562 | S100: 60774 | T100: -8212 | U100: Y
A101: 83 | B101: 24410 | C101: OROVILLE | D101: 79 | E101: 31639 | F101: 21 | G101: 2103 | H101: 14 | I101: 5607 | J101: 39349 | K101: 0 | L101: 39349 | M101: 1.1 | N101: 0 | Q101: 0 | R101: 0 | S101: 0 | T101: 0 | U101: N
A102: 84 | B102: 01147 | C102: OTHELLO | D102: 1003 | E102: 401698 | F102: 252 | G102: 25231 | H102: 271 | I102: 108535 | J102: 535464 | K102: 1.05 | L102: 562237 | M102: 1.1 | N102: 618461 | Q102: 0 | R102: 618461 | S102: 559307 | T102: 59154 | U102: Y
A103: 85 | B103: 11001 | C103: PASCO | D103: 1971 | E103: 789379 | F103: 510 | G103: 51063 | H103: 499 | I103: 199848 | J103: 1040290 | K103: 1 | L103: 1040290 | M103: 1 | N103: 1040290 | Q103: 0 | R103: 1040290 | S103: 1023979 | T103: 16311 | U103: Y
A104: 86 | B104: 24122 | C104: PATEROS | D104: 68 | E104: 27234 | F104: 11 | G104: 1101 | H104: 23 | I104: 9211 | J104: 37546 | K104: 1.05 | L104: 39423 | M104: 1.1 | N104: 43365 | Q104: 0 | R104: 43365 | S104: 35322 | T104: 8043 | U104: Y
A105: 87 | B105: 03050 | C105: PATERSON | D105: 22 | E105: 8811 | F105: 5 | G105: 501 | H105: 7 | I105: 2803 | J105: 12115 | K105: 1.15 | L105: 13932 | M105: 1.1 | N105: 15325 | Q105: 0 | R105: 15325 | S105: 15161 | T105: 164 | U105: Y
A106: 88 | B106: 36402 | C106: PRESCOTT | D106: 41 | E106: 16420 | F106: 9 | G106: 901 | H106: 4 | I106: 1602 | J106: 18923 | K106: 0.95 | L106: 17977 | M106: 1.1 | N106: 19775 | Q106: 0 | R106: 19775 | S106: 13979 | T106: 5796 | U106: Y
A107: 89 | B107: 03116 | C107: PROSSER | D107: 728 | E107: 291562 | F107: 262 | G107: 26233 | H107: 209 | I107: 83704 | J107: 401499 | K107: 1.15 | L107: 461724 | M107: 1 | N107: 461724 | Q107: 0 | R107: 461724 | S107: 460289 | T107: 1435 | U107: Y
A108: 90 | B108: 27003 | C108: PUYALLUP | D108: 13 | E108: 5206 | F108: 7 | G108: 701 | H108: 2 | I108: 801 | J108: 6708 | K108: 0 | L108: 6708 | M108: 1 | N108: 0 | Q108: 0 | R108: 0 | S108: 0 | T108: 0 | U108: N
A109: 91 | B109: 05903 | C109: QUILEUTE TRIBAL | D109: 3 | E109: 0 | F109: 1 | G109: 0 | H109: 2 | I109: 0 | J109: 0 | K109: 1 | L109: 0 | M109: 1 | N109: 0 | Q109: 0 | R109: 0 | S109: 0 | T109: 0 | U109: N
A110: 92 | B110: 05402 | C110: QUILLAYUTE VALLEY | D110: 69 | E110: 27634 | F110: 20 | G110: 2002 | H110: 22 | I110: 8811 | J110: 38447 | K110: 0.85 | L110: 32680 | M110: 1.1 | N110: 35948 | Q110: 0 | R110: 35948 | S110: 24246 | T110: 11702 | U110: Y
A111: 93 | B111: 13144 | C111: QUINCY | D111: 512 | E111: 205054 | F111: 109 | G111: 10914 | H111: 149 | I111: 59674 | J111: 275642 | K111: 1 | L111: 275642 | M111: 1.1 | N111: 303206 | Q111: 0 | R111: 303206 | S111: 305011 | T111: -1805 | U111: Y
A112: 94 | B112: 17403 | C112: RENTON | D112: 21 | E112: 8410 | F112: 11 | G112: 1101 | H112: 7 | I112: 2803 | J112: 12314 | K112: 0 | L112: 12314 | M112: 1 | N112: 0 | Q112: 0 | R112: 0 | S112: 0 | T112: 0 | U112: N
A113: 95 | B113: 03400 | C113: RICHLAND | D113: 201 | E113: 80500 | F113: 51 | G113: 5106 | H113: 54 | I113: 21627 | J113: 107233 | K113: 0 | L113: 107233 | M113: 1 | N113: 0 | Q113: 0 | R113: 0 | S113: 0 | T113: 0 | U113: N
A114: 96 | B114: 17407 | C114: RIVERVIEW | D114: 11 | E114: 4405 | F114: 3 | G114: 300 | H114: 3 | I114: 1201 | J114: 5906 | K114: 0 | L114: 5906 | M114: 1 | N114: 0 | Q114: 0 | R114: 0 | S114: 0 | T114: 0 | U114: N
A115: 97 | B115: 34401 | C115: ROCHESTER | D115: 38 | E115: 15219 | F115: 13 | G115: 1302 | H115: 9 | I115: 3604 | J115: 20125 | K115: 0 | L115: 20125 | M115: 1 | N115: 0 | Q115: 0 | R115: 0 | S115: 0 | T115: 0 | U115: N
A116: 98 | B116: 20403 | C116: ROOSEVELT | D116: 26 | E116: 10413 | F116: 2 | G116: 200 | H116: 2 | I116: 801 | J116: 11414 | K116: 0 | L116: 11414 | M116: 1.1 | N116: 0 | Q116: 0 | R116: 0 | S116: 0 | T116: 0 | U116: N
A117: 99 | B117: 13160 | C117: ROYAL CITY | D117: 258 | E117: 103328 | F117: 34 | G117: 3404 | H117: 57 | I117: 22828 | J117: 129560 | K117: 1 | L117: 129560 | M117: 1 | N117: 129560 | Q117: 0 | R117: 129560 | S117: 134333 | T117: -4773 | U117: Y
A118: 100 | B118: 17001 | C118: SEATTLE | D118: 226 | E118: 90512 | F118: 66 | G118: 6608 | H118: 90 | I118: 36045 | J118: 133165 | K118: 0.85 | L118: 113190 | M118: 1 | N118: 113190 | Q118: 0 | R118: 113190 | S118: 99763 | T118: 13427 | U118: Y
A119: 101 | B119: 29101 | C119: SEDRO WOOLLEY | D119: 207 | E119: 82903 | F119: 38 | G119: 3805 | H119: 89 | I119: 35644 | J119: 122352 | K119: 0.95 | L119: 116234 | M119: 1 | N119: 116234 | Q119: 0 | R119: 116234 | S119: 88042 | T119: 28192 | U119: Y
A120: 102 | B120: 39119 | C120: SELAH | D120: 177 | E120: 70888 | F120: 61 | G120: 6108 | H120: 69 | I120: 27634 | J120: 104630 | K120: 0.95 | L120: 99399 | M120: 1 | N120: 99399 | Q120: 0 | R120: 99399 | S120: 62523 | T120: 36876 | U120: Y
A121: 103 | B121: 23309 | C121: SHELTON | D121: 143 | E121: 57271 | F121: 41 | G121: 4105 | H121: 46 | I121: 18423 | J121: 79799 | K121: 0.85 | L121: 67829 | M121: 1.1 | N121: 74612 | Q121: 0 | R121: 74612 | S121: 52069 | T121: 22543 | U121: Y
A122: 104 | B122: 31201 | C122: SNOHOMISH | D122: 72 | E122: 28836 | F122: 40 | G122: 4005 | H122: 34 | I122: 13617 | J122: 46458 | K122: 0.95 | L122: 44135 | M122: 1 | N122: 44135 | Q122: 0 | R122: 44135 | S122: 44855 | T122: -720 | U122: Y
A123: 105 | B123: 13156 | C123: SOAP LAKE | D123: 46 | E123: 18423 | F123: 14 | G123: 1402 | H123: 18 | I123: 7209 | J123: 27034 | K123: 0 | L123: 27034 | M123: 1.1 | N123: 0 | Q123: 0 | R123: 0 | S123: 0 | T123: 0 | U123: N
A124: 106 | B124: 25118 | C124: SOUTH BEND | D124: 13 | E124: 5206 | F124: 3 | G124: 300 | H124: 4 | I124: 1602 | J124: 7108 | K124: 0 | L124: 7108 | M124: 1.1 | N124: 0 | Q124: 0 | R124: 0 | S124: 0 | T124: 0 | U124: N
A125: 107 | B125: 32081 | C125: SPOKANE | D125: 42 | E125: 16821 | F125: 4 | G125: 400 | H125: 8 | I125: 3204 | J125: 20425 | K125: 0 | L125: 20425 | M125: 1 | N125: 0 | Q125: 0 | R125: 0 | S125: 0 | T125: 0 | U125: N
A126: 108 | B126: 31401 | C126: STANWOOD-CAMANO | D126: 22 | E126: 8811 | F126: 7 | G126: 701 | H126: 6 | I126: 2403 | J126: 11915 | K126: 0 | L126: 11915 | M126: 1 | N126: 0 | Q126: 0 | R126: 0 | S126: 0 | T126: 0 | U126: N
A127: 109 | B127: 30303 | C127: STEVENSON-CARSON | D127: 28 | E127: 11214 | F127: 2 | G127: 200 | H127: 6 | I127: 2403 | J127: 13817 | K127: 0 | L127: 13817 | M127: 1.1 | N127: 15199 | Q127: 0 | R127: 15199 | S127: 10115 | T127: 5084 | U127: Y
A128: 110 | B128: 31311 | C128: SULTAN | D128: 15 | E128: 6007 | F128: 4 | G128: 400 | H128: 3 | I128: 1201 | J128: 7608 | K128: 0 | L128: 7608 | M128: 1 | N128: 0 | Q128: 0 | R128: 0 | S128: 0 | T128: 0 | U128: N
A129: 111 | B129: 39201 | C129: SUNNYSIDE | D129: 1585 | E129: 634788 | F129: 372 | G129: 37246 | H129: 447 | I129: 179022 | J129: 851056 | K129: 1.05 | L129: 893609 | M129: 1.1 | N129: 982970 | Q129: 0 | R129: 982970 | S129: 831980 | T129: 150990 | U129: Y
A130: 112 | B130: 18902 | C130: SUQUAMISH TRIBAL EDUCATION DEPARTMENT | D130: 16 | E130: 6408 | F130: 5 | G130: 501 | H130: 10 | I130: 4005 | J130: 10914 | K130: 1.15 | L130: 12551 | M130: 1 | N130: 12551 | Q130: 0 | R130: 12551 | S130: 8576 | T130: 3975 | U130: Y
A131: 113 | B131: 27010 | C131: TACOMA | D131: 11 | E131: 4405 | F131: 2 | G131: 200 | H131: 7 | I131: 2803 | J131: 7408 | K131: 0 | L131: 7408 | M131: 1 | N131: 0 | Q131: 0 | R131: 0 | S131: 0 | T131: 0 | U131: N
A132: 114 | B132: 14077 | C132: TAHOLA | D132: 56 | E132: 22428 | F132: 3 | G132: 300 | H132: 14 | I132: 5607 | J132: 28335 | K132: 0 | L132: 28335 | M132: 1.1 | N132: 0 | Q132: 0 | R132: 0 | S132: 0 | T132: 0 | U132: N
A133: 115 | B133: 24404 | C133: TONASKET | D133: 357 | E133: 142977 | F133: 126 | G133: 12616 | H133: 88 | I133: 35244 | J133: 190837 | K133: 1.15 | L133: 219463 | M133: 1.1 | N133: 241409 | Q133: 0 | R133: 241409 | S133: 214997 | T133: 26412 | U133: Y
A134: 116 | B134: 39202 | C134: TOPPENISH | D134: 992 | E134: 397293 | F134: 259 | G134: 25932 | H134: 255 | I134: 102127 | J134: 525352 | K134: 1.05 | L134: 551620 | M134: 1 | N134: 551620 | Q134: 0 | R134: 551620 | S134: 566282 | T134: -14662 | U134: Y
A135: 117 | B135: 20400 | C135: TROUT LAKE | D135: 119 | E135: 47659 | F135: 13 | G135: 1302 | H135: 42 | I135: 16821 | J135: 65782 | K135: 0 | L135: 65782 | M135: 1.1 | N135: 0 | Q135: 0 | R135: 0 | S135: 0 | T135: 0 | U135: N
A136: 118 | B136: 39002 | C136: UNION GAP | D136: 61 | E136: 24430 | F136: 14 | G136: 1402 | H136: 7 | I136: 2803 | J136: 28635 | K136: 0.95 | L136: 27203 | M136: 1 | N136: 27203 | Q136: 0 | R136: 27203 | S136: 40915 | T136: -13712 | U136: Y
A137: 119 | B137: 06037 | C137: VANCOUVER | D137: 66 | E137: 26433 | F137: 21 | G137: 2103 | H137: 10 | I137: 4005 | J137: 32541 | K137: 0 | L137: 32541 | M137: 1 | N137: 0 | Q137: 0 | R137: 0 | S137: 0 | T137: 0 | U137: N
A138: 120 | B138: 34901 | C138: WA HE LUT INDIAN TRIBAL SCHOOL | D138: 12 | E138: 4806 | F138: 2 | G138: 200 | H138: 2 | I138: 801 | J138: 5807 | K138: 0 | L138: 5807 | M138: 1 | N138: 5807 | Q138: 0 | R138: 5807 | S138: 5062 | T138: 745 | U138: Y
A139: 121 | B139: 13073 | C139: WAHLUKE | D139: 1580 | E139: 632785 | F139: 328 | G139: 32841 | H139: 691 | I139: 276743 | J139: 942369 | K139: 1.15 | L139: 1083724 | M139: 1.1 | N139: 1192096 | Q139: 0 | R139: 1192096 | S139: 785487 | T139: 406609 | U139: Y
A140: 122 | B140: 36140 | C140: WALLA WALLA | D140: 117 | E140: 46858 | F140: 42 | G140: 4205 | H140: 38 | I140: 15219 | J140: 66282 | K140: 0.85 | L140: 56340 | M140: 1 | N140: 56340 | Q140: 0 | R140: 56340 | S140: 59894 | T140: -3554 | U140: Y
A141: 123 | B141: 39207 | C141: WAPATO | D141: 960 | E141: 384477 | F141: 278 | G141: 27835 | H141: 324 | I141: 129761 | J141: 542073 | K141: 1.05 | L141: 569177 | M141: 1 | N141: 569177 | Q141: 0 | R141: 569177 | S141: 558074 | T141: 11103 | U141: Y
A142: 124 | B142: 13146 | C142: WARDEN | D142: 312 | E142: 124955 | F142: 52 | G142: 5206 | H142: 92 | I142: 36846 | J142: 167007 | K142: 1.15 | L142: 192058 | M142: 1.1 | N142: 211264 | Q142: 0 | R142: 211264 | S142: 227675 | T142: -16411 | U142: Y
A143: 125 | B143: 09209 | C143: WATERVILLE | D143: 25 | E143: 10012 | F143: 5 | G143: 501 | H143: 4 | I143: 1602 | J143: 12115 | K143: 0 | L143: 12115 | M143: 1.1 | N143: 0 | Q143: 0 | R143: 0 | S143: 0 | T143: 0 | U143: N
A144: 126 | B144: 04246 | C144: WENATCHEE | D144: 1819 | E144: 728504 | F144: 548 | G144: 54868 | H144: 553 | I144: 221475 | J144: 1004847 | K144: 1.15 | L144: 1155574 | M144: 1 | N144: 1155574 | Q144: 0 | R144: 1155574 | S144: 1026443 | T144: 129131 | U144: Y
A145: 127 | B145: 39208 | C145: WEST VALLEY | D145: 99 | E145: 39649 | F145: 21 | G145: 2103 | H145: 17 | I145: 6808 | J145: 48560 | K145: 0.85 | L145: 41276 | M145: 1 | N145: 41276 | Q145: 0 | R145: 41276 | S145: 31527 | T145: 9749 | U145: Y
A146: 128 | B146: 21303 | C146: WHITE PASS | D146: 55 | E146: 22027 | F146: 11 | G146: 1101 | H146: 20 | I146: 8010 | J146: 31138 | K146: 0 | L146: 31138 | M146: 1.1 | N146: 0 | Q146: 0 | R146: 0 | S146: 0 | T146: 0 | U146: N
A147: 129 | B147: 20405 | C147: WHITE SALMON | D147: 60 | E147: 24030 | F147: 20 | G147: 2002 | H147: 18 | I147: 7209 | J147: 33241 | K147: 0 | L147: 33241 | M147: 1 | N147: 0 | Q147: 0 | R147: 0 | S147: 0 | T147: 0 | U147: N
A148: 130 | B148: 21232 | C148: WINLOCK | D148: 101 | E148: 40450 | F148: 50 | G148: 5006 | H148: 20 | I148: 8010 | J148: 53466 | K148: 1 | L148: 53466 | M148: 1.1 | N148: 58813 | Q148: 0 | R148: 58813 | S148: 56445 | T148: 2368 | U148: Y
A149: 131 | B149: 39901 | C149: YAKAMA TRIBAL SCHOOL | D149: 48 | E149: 19224 | F149: 31 | G149: 3104 | H149: 29 | I149: 11614 | J149: 33942 | K149: 0 | L149: 33942 | M149: 1 | N149: 33942 | Q149: 0 | R149: 33942 | S149: 21490 | T149: 12452 | U149: Y
A150: 132 | B150: 39007 | C150: YAKIMA | D150: 2399 | E150: 960792 | F150: 813 | G150: 81401 | H150: 709 | I150: 283952 | J150: 1326145 | K150: 1 | L150: 1326145 | M150: 1 | N150: 1326145 | Q150: 0 | R150: 1326145 | S150: 1237537 | T150: 88608 | U150: Y
A151: 133 | B151: 34002 | C151: YELM | D151: 77 | E151: 30838 | F151: 12 | G151: 1201 | H151: 15 | I151: 6007 | J151: 38046 | K151: 0 | L151: 38046 | M151: 1 | N151: 0 | Q151: 0 | R151: 0 | S151: 0 | T151: 0 | U151: N
A152: 134 | B152: 39205 | C152: ZILLAH | D152: 96 | E152: 38448 | F152: 24 | G152: 2403 | H152: 32 | I152: 12816 | J152: 53667 | K152: 1 | L152: 53667 | M152: 1 | N152: 53667 | Q152: 0 | R152: 53667 | S152: 53012 | T152: 655 | U152: Y
S153: 15032801
T154: consortium
T155: declined
S156: 15032801

Sheet 2020-21 Prelim (hidden)
I1: From Assumptions Page:
C2: Constant Dollar Multipliers - Do Not Change Here | I2: Target Amounts | N2: 16272886
C3: 0 | F3: 389.4570655 | G3: Use CTRL K | I3: Actual Amounts | N3: 16272886
I4: Difference | N4: 0
I6: 16272886
G7: Put total here | I7: 16272886
I10: Go to H9 & Control K to set dollar amount
D14: Migrant Students | U14: Accepting Funding? | V14: HOLD HARMLESS
C15: 389.4570655 | D15: K-12 | F15: Needs Support | H15: Priority Interuption | R15: 16272886
B16: CCDDD | C16: District | D16: Ave. number | E16: Regular Dollars | F16: Ave. number | G16: Regular Dollars | H16: Priority Number | I16: Priority Dollars | J16: Subtotal | K16: Other Funds Factor | L16: Subtotal 2 | M16: Add'l Rural Factor | N16: Total Allocated Amount | P16: MOE | Q16: MOE Red. | R16: Subtotal After MOE | U16: Y for yes, N for no (reallocates money) | V16: Override funding? Y for yes, otherwise blank.
D17: 10 | E17: 389.1574748 | F17: 0.25 | G17: 99.64670027 | H17: 1 | I17: 396.2123175 | M17: 0.1 | N17: 124
A18: 0 | B18: 99999 | C18: State Total | D18: 31205 | E18: 12143659 | F18: 8531 | G18: 850086 | H18: 9109 | I18: 3609098 | J18: 16602843 | L18: 17296459 | N18: 16272886 | Q18: 0 | R18: 16272886 | S18: 19-20 Final Allocations (excluding 17-18 carryover) | T18: Allocation Difference
A19: 1 | B19: 14005 | C19: ABERDEEN | D19: 130 | E19: 50629 | F19: 30 | G19: 2921 | H19: 42 | I19: 16357 | J19: 69907 | K19: 0.95 | L19: 66412 | M19: 1.1 | N19: 73053 | Q19: 0 | R19: 73053 | S19: 69748 | T19: 3305 | U19: Y
A20: 2 | B20: 31016 | C20: ARLINGTON | D20: 53 | E20: 20641 | F20: 24 | G20: 2337 | H20: 22 | I20: 8568 | J20: 31546 | K20: 0 | L20: 31546 | M20: 1 | N20: 0 | Q20: 0 | R20: 0 | S20: 0 | T20: 0 | U20: N
A21: 3 | B21: 17408 | C21: AUBURN | D21: 39 | E21: 15189 | F21: 9 | G21: 876 | H21: 4 | I21: 1558 | J21: 17623 | K21: 0 | L21: 17623 | M21: 1 | N21: 0 | Q21: 0 | R21: 0 | S21: 0 | T21: 0 | U21: N
A22: 4 | B22: 06119 | C22: BATTLE GROUND | D22: 16 | E22: 6231 | F22: 4 | G22: 389 | H22: 2 | I22: 779 | J22: 7399 | K22: 0 | L22: 7399 | M22: 1 | N22: 0 | Q22: 0 | R22: 0 | S22: 0 | T22: 0 | U22: N
A23: 5 | B23: 37501 | C23: BELLINGHAM | D23: 177 | E23: 68934 | F23: 49 | G23: 4771 | H23: 33 | I23: 12852 | J23: 86557 | K23: 0 | L23: 86557 | M23: 1 | N23: 0 | Q23: 0 | R23: 0 | S23: 0 | T23: 0 | U23: N
A24: 6 | B24: 37503 | C24: BLAINE | D24: 9 | E24: 0 | F24: 3 | G24: 0 | H24: 0 | I24: 0 | J24: 0 | K24: 1 | L24: 0 | M24: 1 | N24: 0 | Q24: 0 | R24: 0 | S24: 0 | T24: 0 | U24: N
A25: 7 | B25: 18100 | C25: BREMERTON | D25: 84 | E25: 32714 | F25: 21 | G25: 2045 | H25: 17 | I25: 6621 | J25: 41380 | K25: 0 | L25: 41380 | M25: 1 | N25: 0 | Q25: 0 | R25: 0 | S25: 0 | T25: 0 | U25: N
A26: 8 | B26: 24111 | C26: BREWSTER | D26: 225 | E26: 87628 | F26: 26 | G26: 2531 | H26: 67 | I26: 26094 | J26: 116253 | K26: 1.05 | L26: 122066 | M26: 1.1 | N26: 134273 | Q26: 0 | R26: 134273 | S26: 150834 | T26: -16561 | U26: Y
A27: 9 | B27: 09075 | C27: BRIDGEPORT | D27: 230 | E27: 89575 | F27: 47 | G27: 4576 | H27: 38 | I27: 14799 | J27: 108950 | K27: 1.05 | L27: 114398 | M27: 1.1 | N27: 125838 | Q27: 0 | R27: 125838 | S27: 141169 | T27: -15331 | U27: Y
A28: 10 | B28: 29100 | C28: BURLINGTON-EDISON | D28: 299 | E28: 116448 | F28: 60 | G28: 5842 | H28: 95 | I28: 36998 | J28: 159288 | K28: 0.95 | L28: 151324 | M28: 1 | N28: 151324 | Q28: 0 | R28: 151324 | S28: 123966 | T28: 27358 | U28: Y
A29: 11 | B29: 04228 | C29: CASCADE | D29: 61 | E29: 23757 | F29: 20 | G29: 1947 | H29: 16 | I29: 6231 | J29: 31935 | K29: 1 | L29: 31935 | M29: 1 | N29: 31935 | Q29: 0 | R29: 31935 | S29: 44943 | T29: -13008 | U29: Y
A30: 12 | B30: 04222 | C30: CASHMERE | D30: 257 | E30: 100090 | F30: 20 | G30: 1947 | H30: 44 | I30: 17136 | J30: 119173 | K30: 1.15 | L30: 137049 | M30: 1 | N30: 137049 | Q30: 0 | R30: 137049 | S30: 155528 | T30: -18479 | U30: Y
A31: 14 | B31: 18401 | C31: CENTRAL KITSAP | D31: 10 | E31: 3895 | F31: 3 | G31: 292 | H31: 2 | I31: 779 | J31: 4966 | K31: 1 | L31: 4966 | M31: 1 | N31: 0 | Q31: 0 | R31: 0 | S31: 0 | T31: 0 | U31: N
A32: 13 | B32: 32356 | C32: CENTRAL VALLEY | D32: 5 | E32: 0 | F32: 0 | G32: 0 | H32: 2 | I32: 0 | J32: 0 | K32: 1 | L32: 0 | M32: 1 | N32: 0 | Q32: 0 | R32: 0 | S32: 0 | T32: 0 | U32: N
A33: 15 | B33: 21401 | C33: CENTRALIA | D33: 97 | E33: 37777 | F33: 22 | G33: 2142 | H33: 34 | I33: 13242 | J33: 53161 | K33: 0.85 | L33: 45187 | M33: 1.1 | N33: 49706 | Q33: 0 | R33: 49706 | S33: 67429 | T33: -17723 | U33: Y
A34: 16 | B34: 21302 | C34: CHEHALIS | D34: 34 | E34: 13242 | F34: 14 | G34: 1363 | H34: 14 | I34: 5452 | J34: 20057 | K34: 0.85 | L34: 17048 | M34: 1 | N34: 17048 | Q34: 0 | R34: 17048 | S34: 17125 | T34: -77 | U34: Y | V34: Y
A35: 17 | B35: 27901 | C35: CHIEF LESCHI TRIBAL | D35: 12 | E35: 4673 | F35: 0 | G35: 0 | H35: 2 | I35: 779 | J35: 5452 | K35: 0 | L35: 5452 | M35: 1 | N35: 0 | Q35: 0 | R35: 0 | S35: 4991 | T35: -4991 | U35: N
A36: 18 | B36: 36250 | C36: COLLEGE PLACE | D36: 97 | E36: 37777 | F36: 27 | G36: 2629 | H36: 25 | I36: 9736 | J36: 50142 | K36: 0.95 | L36: 47635 | M36: 1 | N36: 47635 | Q36: 0 | R36: 47635 | S36: 33764 | T36: 13871 | U36: Y | V36: Y
A37: 19 | B37: 36400 | C37: COLUMBIA | D37: 53 | E37: 20641 | F37: 23 | G37: 2239 | H37: 8 | I37: 3116 | J37: 25996 | K37: 0.95 | L37: 24696 | M37: 1 | N37: 24696 | Q37: 0 | R37: 24696 | S37: 23106 | T37: 1590 | U37: Y
A38: 20 | B38: 29317 | C38: CONWAY | D38: 31 | E38: 12073 | F38: 8 | G38: 779 | H38: 13 | I38: 5063 | J38: 17915 | K38: 1.15 | L38: 20602 | M38: 1.1 | N38: 22662 | Q38: 0 | R38: 22662 | S38: 24179 | T38: -1517 | U38: Y
A39: 21 | B39: 15204 | C39: COUPEVILLE | D39: 11 | E39: 4284 | F39: 7 | G39: 682 | H39: 3 | I39: 1168 | J39: 6134 | K39: 0.85 | L39: 5214 | M39: 1 | N39: 5214 | Q39: 0 | R39: 5214 | S39: 7388 | T39: -2174 | U39: Y
A40: 22 | B40: 39090 | C40: EAST VALLEY | D40: 241 | E40: 93859 | F40: 92 | G40: 8958 | H40: 68 | I40: 26483 | J40: 129300 | K40: 0 | L40: 129300 | M40: 1 | N40: 0 | Q40: 0 | R40: 0 | S40: 0 | T40: 0 | U40: N
A41: 23 | B41: 09206 | C41: EASTMONT | D41: 911 | E41: 354795 | F41: 262 | G41: 25509 | H41: 241 | I41: 93859 | J41: 474163 | K41: 1.05 | L41: 497871 | M41: 1 | N41: 497871 | Q41: 0 | R41: 497871 | S41: 471685 | T41: 26186 | U41: Y
A42: 24 | B42: 31015 | C42: EDMONDS | D42: 15 | E42: 5842 | F42: 3 | G42: 292 | H42: 2 | I42: 779 | J42: 6913 | K42: 0 | L42: 6913 | M42: 1 | N42: 0 | Q42: 0 | R42: 0 | S42: 0 | T42: 0 | U42: N
A43: 25 | B43: 19401 | C43: ELLENSBURG | D43: 45 | E43: 17526 | F43: 18 | G43: 1753 | H43: 15 | I43: 5842 | J43: 25121 | K43: 0.85 | L43: 21353 | M43: 1 | N43: 21353 | Q43: 0 | R43: 21353 | S43: 24238 | T43: -2885 | U43: Y
A44: 26 | B44: 14068 | C44: ELMA | D44: 50 | E44: 19473 | F44: 14 | G44: 1363 | H44: 3 | I44: 1168 | J44: 22004 | K44: 0 | L44: 22004 | M44: 1 | N44: 0 | Q44: 0 | R44: 0 | S44: 0 | T44: 0 | U44: N
A45: 27 | B45: 04127 | C45: ENTIAT | D45: 28 | E45: 10905 | F45: 2 | G45: 195 | H45: 9 | I45: 3505 | J45: 14605 | K45: 0 | L45: 14605 | M45: 1.1 | N45: 0 | Q45: 0 | R45: 0 | S45: 0 | T45: 0 | U45: N
A46: 28 | B46: 13165 | C46: EPHRATA | D46: 217 | E46: 84512 | F46: 32 | G46: 3116 | H46: 76 | I46: 29599 | J46: 117227 | K46: 0.95 | L46: 111366 | M46: 1 | N46: 111366 | Q46: 0 | R46: 111366 | S46: 91477 | T46: 19889 | U46: Y
A47: 29 | B47: 31002 | C47: EVERETT | D47: 42 | E47: 16357 | F47: 9 | G47: 876 | H47: 14 | I47: 5452 | J47: 22685 | K47: 0 | L47: 22685 | M47: 1 | N47: 0 | Q47: 0 | R47: 0 | S47: 0 | T47: 0 | U47: N
A48: 30 | B48: 06114 | C48: EVERGREEN | D48: 33 | E48: 12852 | F48: 7 | G48: 682 | H48: 16 | I48: 6231 | J48: 19765 | K48: 0 | L48: 19765 | M48: 1 | N48: 0 | Q48: 0 | R48: 0 | S48: 0 | T48: 0 | U48: N
A49: 31 | B49: 17210 | C49: FEDERAL WAY | D49: 52 | E49: 20252 | F49: 13 | G49: 1266 | H49: 18 | I49: 7010 | J49: 28528 | K49: 0 | L49: 28528 | M49: 1 | N49: 0 | Q49: 0 | R49: 0 | S49: 0 | T49: 0 | U49: N
A50: 32 | B50: 37502 | C50: FERNDALE | D50: 181 | E50: 70492 | F50: 27 | G50: 2629 | H50: 44 | I50: 17136 | J50: 90257 | K50: 0.95 | L50: 85744 | M50: 1 | N50: 85744 | Q50: 0 | R50: 85744 | S50: 71944 | T50: 13800 | U50: Y
A51: 33 | B51: 03053 | C51: FINLEY | D51: 74 | E51: 28820 | F51: 26 | G51: 2531 | H51: 15 | I51: 5842 | J51: 37193 | K51: 0.95 | L51: 35333 | M51: 1 | N51: 35333 | Q51: 0 | R51: 35333 | S51: 26894 | T51: 8439 | U51: Y
A52: 34 | B52: 27402 | C52: FRANKLIN PIERCE | D52: 10 | E52: 3895 | F52: 3 | G52: 292 | H52: 2 | I52: 779 | J52: 4966 | K52: 1 | L52: 4966 | M52: 1 | N52: 0 | Q52: 0 | R52: 0 | S52: 0 | T52: 0 | U52: N
A53: 35 | B53: 20404 | C53: GOLDENDALE | D53: 59 | E53: 22978 | F53: 15 | G53: 1460 | H53: 16 | I53: 6231 | J53: 30669 | K53: 0 | L53: 30669 | M53: 1.1 | N53: 33736 | Q53: 0 | R53: 33736 | S53: 0 | T53: 33736 | U53: Y
A54: 36 | B54: 13301 | C54: GRAND COULEE DAM | D54: 134 | E54: 52187 | F54: 49 | G54: 4771 | H54: 41 | I54: 15968 | J54: 72926 | K54: 1.05 | L54: 76572 | M54: 1.1 | N54: 0 | Q54: 0 | R54: 0 | S54: 49096 | T54: -49096 | U54: N
A55: 37 | B55: 39200 | C55: GRANDVIEW | D55: 575 | E55: 223938 | F55: 155 | G55: 15091 | H55: 182 | I55: 70881 | J55: 309910 | K55: 1 | L55: 309910 | M55: 1.1 | N55: 340901 | Q55: 0 | R55: 340901 | S55: 348448 | T55: -7547 | U55: Y | V55: Y
A56: 38 | B56: 39204 | C56: GRANGER | D56: 410 | E56: 159677 | F56: 131 | G56: 12755 | H56: 87 | I56: 33883 | J56: 206315 | K56: 1.05 | L56: 216631 | M56: 1.1 | N56: 238294 | Q56: 0 | R56: 238294 | S56: 225895 | T56: 12399 | U56: Y | V56: Y
A57: 39 | B57: 39203 | C57: HIGHLAND | D57: 205 | E57: 79839 | F57: 45 | G57: 4381 | H57: 39 | I57: 15189 | J57: 99409 | K57: 1.05 | L57: 104379 | M57: 1 | N57: 104379 | Q57: 0 | R57: 104379 | S57: 117921 | T57: -13542 | U57: Y
A58: 40 | B58: 17401 | C58: HIGHLINE | D58: 7 | E58: 0 | F58: 1 | G58: 0 | H58: 3 | I58: 0 | J58: 0 | K58: 1 | L58: 0 | M58: 1 | N58: 0 | Q58: 0 | R58: 0 | S58: 0 | T58: 0 | U58: N
A59: 41 | B59: 23404 | C59: HOOD CANAL | D59: 48 | E59: 18694 | F59: 17 | G59: 1655 | H59: 13 | I59: 5063 | J59: 25412 | K59: 1 | L59: 25412 | M59: 1.1 | N59: 0 | Q59: 0 | R59: 0 | S59: 27617 | T59: -27617 | U59: N
A60: 42 | B60: 14028 | C60: HOQUIAM | D60: 28 | E60: 10905 | F60: 11 | G60: 1071 | H60: 6 | I60: 2337 | J60: 14313 | K60: 0.85 | L60: 12166 | M60: 1.1 | N60: 13383 | Q60: 0 | R60: 13383 | S60: 16479 | T60: -3096 | U60: Y
A61: 43 | B61: 08458 | C61: KELSO | D61: 34 | E61: 13242 | F61: 7 | G61: 682 | H61: 10 | I61: 3895 | J61: 17819 | K61: 0 | L61: 17819 | M61: 1 | N61: 0 | Q61: 0 | R61: 0 | S61: 0 | T61: 0 | U61: N
A62: 44 | B62: 03017 | C62: KENNEWICK | D62: 3008 | E62: 1171487 | F62: 959 | G62: 93372 | H62: 1020 | I62: 397246 | J62: 1662105 | K62: 1.05 | L62: 1745210 | M62: 1 | N62: 1745210 | Q62: 0 | R62: 1745210 | S62: 1468429 | T62: 276781 | U62: Y
A63: 45 | B63: 17415 | C63: KENT | D63: 50 | E63: 19473 | F63: 15 | G63: 1460 | H63: 15 | I63: 5842 | J63: 26775 | K63: 0 | L63: 26775 | M63: 1 | N63: 0 | Q63: 0 | R63: 0 | S63: 0 | T63: 0 | U63: N
A64: 46 | B64: 03052 | C64: KIONA BENTON | D64: 372 | E64: 144878 | F64: 124 | G64: 12073 | H64: 83 | I64: 32325 | J64: 189276 | K64: 1.05 | L64: 198740 | M64: 1 | N64: 198740 | Q64: 0 | R64: 198740 | S64: 197114 | T64: 1626 | U64: Y | V64: Y
A65: 47 | B65: 19403 | C65: KITTITAS | D65: 23 | E65: 8958 | F65: 8 | G65: 779 | H65: 4 | I65: 1558 | J65: 11295 | K65: 0 | L65: 11295 | M65: 1 | N65: 0 | Q65: 0 | R65: 0 | S65: 0 | T65: 0 | U65: N
A66: 48 | B66: 29311 | C66: LA CONNER | D66: 176 | E66: 68544 | F66: 75 | G66: 7302 | H66: 83 | I66: 32325 | J66: 108171 | K66: 1.15 | L66: 124397 | M66: 1 | N66: 124397 | Q66: 0 | R66: 124397 | S66: 112529 | T66: 11868 | U66: Y
A67: 49 | B67: 04129 | C67: LAKE CHELAN | D67: 223 | E67: 86849 | F67: 52 | G67: 5063 | H67: 69 | I67: 26873 | J67: 118785 | K67: 1.05 | L67: 124724 | M67: 1 | N67: 124724 | Q67: 0 | R67: 124724 | S67: 121264 | T67: 3460 | U67: Y
A68: 50 | B68: 34307 | C68: LAKE QUINAULT | D68: 0 | E68: 0 | F68: 0 | G68: 0 | H68: 0 | I68: 0 | J68: 0 | K68: 1 | L68: 0 | M68: 1 | N68: 0 | Q68: 0 | R68: 0 | S68: 0 | T68: 0 | U68: N
A69: 51 | B69: 01158 | C69: LIND | D69: 48 | E69: 18694 | F69: 15 | G69: 1460 | H69: 11 | I69: 4284 | J69: 24438 | K69: 1.15 | L69: 28104 | M69: 1.1 | N69: 30914 | Q69: 0 | R69: 30914 | S69: 35943 | T69: -5029 | U69: Y
A70: 52 | B70: 08122 | C70: LONGVIEW | D70: 48 | E70: 18694 | F70: 16 | G70: 1558 | H70: 12 | I70: 4673 | J70: 24925 | K70: 0 | L70: 24925 | M70: 1 | N70: 0 | Q70: 0 | R70: 0 | S70: 0 | T70: 0 | U70: N
A71: 53 | B71: 37903 | C71: LUMMI TRIBAL AGENCY | D71: 15 | E71: 5842 | F71: 8 | G71: 779 | H71: 2 | I71: 779 | J71: 7400 | K71: 0 | L71: 7400 | M71: 1 | N71: 0 | Q71: 0 | R71: 0 | S71: 7749 | T71: -7749 | U71: N
A72: 54 | B72: 20406 | C72: LYLE | D72: 33 | E72: 12852 | F72: 8 | G72: 779 | H72: 16 | I72: 6231 | J72: 19862 | K72: 1 | L72: 19862 | M72: 1.1 | N72: 0 | Q72: 0 | R72: 0 | S72: 18070 | T72: -18070 | U72: N
A73: 55 | B73: 37504 | C73: LYNDEN | D73: 190 | E73: 73997 | F73: 26 | G73: 2531 | H73: 43 | I73: 16747 | J73: 93275 | K73: 1 | L73: 93275 | M73: 1 | N73: 93275 | Q73: 0 | R73: 93275 | S73: 85650 | T73: 7625 | U73: Y
A74: 56 | B74: 39120 | C74: MABTON | D74: 324 | E74: 126184 | F74: 92 | G74: 8958 | H74: 93 | I74: 36220 | J74: 171362 | K74: 1.15 | L74: 197066 | M74: 1.1 | N74: 216773 | Q74: 0 | R74: 216773 | S74: 193952 | T74: 22821 | U74: Y
A75: 57 | B75: 04019 | C75: MANSON | D75: 100 | E75: 38946 | F75: 9 | G75: 876 | H75: 31 | I75: 12073 | J75: 51895 | K75: 1 | L75: 51895 | M75: 1 | N75: 51895 | Q75: 0 | R75: 51895 | S75: 39948 | T75: 11947 | U75: Y
A76: 58 | B76: 31025 | C76: MARYSVILLE | D76: 232 | E76: 90354 | F76: 92 | G76: 8958 | H76: 81 | I76: 31546 | J76: 130858 | K76: 0.85 | L76: 111229 | M76: 1 | N76: 111229 | Q76: 0 | R76: 111229 | S76: 102222 | T76: 9007 | U76: Y
A77: 59 | B77: 37505 | C77: MERIDIAN | D77: 48 | E77: 18694 | F77: 19 | G77: 1850 | H77: 10 | I77: 3895 | J77: 24439 | K77: 0 | L77: 24439 | M77: 1 | N77: 0 | Q77: 0 | R77: 0 | S77: 0 | T77: 0 | U77: N
A78: 60 | B78: 31103 | C78: MONROE | D78: 10 | E78: 3895 | F78: 3 | G78: 292 | H78: 0 | I78: 0 | J78: 4187 | K78: 1 | L78: 4187 | M78: 1 | N78: 0 | Q78: 0 | R78: 0 | S78: 0 | T78: 0 | U78: N
A79: 61 | B79: 13161 | C79: MOSES LAKE | D79: 497 | E79: 193560 | F79: 139 | G79: 13534 | H79: 142 | I79: 55303 | J79: 262397 | K79: 0.95 | L79: 249277 | M79: 1 | N79: 249277 | Q79: 0 | R79: 249277 | S79: 238017 | T79: 11260 | U79: Y
A80: 62 | B80: 21206 | C80: MOSSYROCK | D80: 46 | E80: 17915 | F80: 11 | G80: 1071 | H80: 12 | I80: 4673 | J80: 23659 | K80: 0.95 | L80: 22476 | M80: 1.1 | N80: 24724 | Q80: 0 | R80: 24724 | S80: 21253 | T80: 3471 | U80: Y
A81: 63 | B81: 29320 | C81: MOUNT VERNON | D81: 1586 | E81: 617679 | F81: 549 | G81: 53453 | H81: 490 | I81: 190834 | J81: 861966 | K81: 1.05 | L81: 905064 | M81: 1 | N81: 905064 | Q81: 0 | R81: 905064 | S81: 694727 | T81: 210337 | U81: Y
A82: 64 | B82: 39209 | C82: MT ADAMS | D82: 134 | E82: 52187 | F82: 31 | G82: 3018 | H82: 33 | I82: 12852 | J82: 68057 | K82: 0 | L82: 68057 | M82: 1.1 | N82: 0 | Q82: 0 | R82: 0 | S82: 0 | T82: 0 | U82: N
A83: 65 | B83: 37507 | C83: MT BAKER | D83: 27 | E83: 10515 | F83: 9 | G83: 876 | H83: 14 | I83: 5452 | J83: 16843 | K83: 0.85 | L83: 14317 | M83: 1 | N83: 14317 | Q83: 0 | R83: 14317 | S83: 15395 | T83: -1078 | U83: Y
A84: 66 | B84: 17903 | C84: MUCKLESHOOT TRIBAL SCHOOL | D84: 14 | E84: 5452 | F84: 4 | G84: 389 | H84: 5 | I84: 1947 | J84: 7788 | K84: 0 | L84: 7788 | M84: 1 | N84: 0 | Q84: 0 | R84: 0 | S84: 5786 | T84: -5786 | U84: N
A85: 67 | B85: 31006 | C85: MUKILTEO | D85: 32 | E85: 12463 | F85: 7 | G85: 682 | H85: 8 | I85: 3116 | J85: 16261 | K85: 0 | L85: 16261 | M85: 1 | N85: 0 | Q85: 0 | R85: 0 | S85: 0 | T85: 0 | U85: N | V85: Y
A86: 68 | B86: 39003 | C86: NACHES VALLEY | D86: 101 | E86: 39335 | F86: 24 | G86: 2337 | H86: 18 | I86: 7010 | J86: 48682 | K86: 0 | L86: 48682 | M86: 1 | N86: 0 | Q86: 0 | R86: 0 | S86: 0 | T86: 0 | U86: N | V86: Y
A87: 69 | B87: 25155 | C87: NASELLE-GRAYS RIVER | D87: 75 | E87: 29209 | F87: 18 | G87: 1753 | H87: 12 | I87: 4673 | J87: 35635 | K87: 1.15 | L87: 40980 | M87: 1.1 | N87: 45078 | Q87: 0 | R87: 45078 | S87: 47313 | T87: -2235 | U87: Y
A88: 70 | B88: 24014 | C88: NESPELEM | D88: 36 | E88: 14020 | F88: 6 | G88: 584 | H88: 2 | I88: 779 | J88: 15383 | K88: 1 | L88: 15383 | M88: 1.1 | N88: 0 | Q88: 0 | R88: 0 | S88: 16753 | T88: -16753 | U88: N
A89: 71 | B89: 37506 | C89: NOOKSACK VALLEY | D89: 201 | E89: 78281 | F89: 27 | G89: 2629 | H89: 29 | I89: 11294 | J89: 92204 | K89: 1 | L89: 92204 | M89: 1 | N89: 92204 | Q89: 0 | R89: 92204 | S89: 96188 | T89: -3984 | U89: Y
A90: 72 | B90: 14064 | C90: NORTH BEACH | D90: 20 | E90: 7789 | F90: 1 | G90: 97 | H90: 3 | I90: 1168 | J90: 9054 | K90: 0.85 | L90: 7696 | M90: 1 | N90: 7696 | Q90: 0 | R90: 7696 | S90: 8472 | T90: -776 | U90: Y
A91: 73 | B91: 11051 | C91: NORTH FRANKLIN | D91: 657 | E91: 255873 | F91: 231 | G91: 22491 | H91: 251 | I91: 97754 | J91: 376118 | K91: 1.15 | L91: 432536 | M91: 1.1 | N91: 475790 | Q91: 0 | R91: 475790 | S91: 451426 | T91: 24364 | U91: Y
A92: 74 | B92: 18400 | C92: NORTH KITSAP | D92: 65 | E92: 25315 | F92: 28 | G92: 2726 | H92: 12 | I92: 4673 | J92: 32714 | K92: 0 | L92: 32714 | M92: 1 | N92: 0 | Q92: 0 | R92: 0 | S92: 0 | T92: 0 | U92: N
A93: 75 | B93: 34003 | C93: NORTH THURSTON | D93: 24 | E93: 9347 | F93: 12 | G93: 1168 | H93: 6 | I93: 2337 | J93: 12852 | K93: 0 | L93: 12852 | M93: 1 | N93: 0 | Q93: 0 | R93: 0 | S93: 0 | T93: 0 | U93: N
A94: 76 | B94: 15201 | C94: OAK HARBOR | D94: 19 | E94: 7400 | F94: 6 | G94: 584 | H94: 12 | I94: 4673 | J94: 12657 | K94: 0 | L94: 12657 | M94: 1 | N94: 0 | Q94: 0 | R94: 0 | S94: 0 | T94: 0 | U94: N
A95: 77 | B95: 25101 | C95: OCEAN BEACH | D95: 56 | E95: 21810 | F95: 19 | G95: 1850 | H95: 27 | I95: 10515 | J95: 34175 | K95: 1 | L95: 34175 | M95: 1 | N95: 34175 | Q95: 0 | R95: 34175 | S95: 40233 | T95: -6058 | U95: Y
A96: 78 | B96: 14172 | C96: OCOSTA | D96: 56 | E96: 21810 | F96: 15 | G96: 1460 | H96: 18 | I96: 7010 | J96: 30280 | K96: 0.95 | L96: 28766 | M96: 1.1 | N96: 31643 | Q96: 0 | R96: 31643 | S96: 23867 | T96: 7776 | U96: Y
A97: 79 | B97: 24105 | C97: OKANOGAN | D97: 83 | E97: 32325 | F97: 24 | G97: 2337 | H97: 23 | I97: 8958 | J97: 43620 | K97: 0 | L97: 43620 | M97: 1.1 | N97: 0 | Q97: 0 | R97: 0 | S97: 0 | T97: 0 | U97: N
A98: 80 | B98: 34111 | C98: OLYMPIA | D98: 20 | E98: 7789 | F98: 6 | G98: 584 | H98: 4 | I98: 1558 | J98: 9931 | K98: 0.85 | L98: 8441 | M98: 1 | N98: 8441 | Q98: 0 | R98: 8441 | S98: 9221 | T98: -780 | U98: Y
A99: 81 | B99: 24019 | C99: OMAK | D99: 60 | E99: 23367 | F99: 24 | G99: 2337 | H99: 15 | I99: 5842 | J99: 31546 | K99: 0 | L99: 31546 | M99: 1.1 | N99: 0 | Q99: 0 | R99: 0 | S99: 0 | T99: 0 | U99: N
A100: 82 | B100: 09013 | C100: ORONDO | D100: 89 | E100: 34662 | F100: 15 | G100: 1460 | H100: 11 | I100: 4284 | J100: 40406 | K100: 1.15 | L100: 46467 | M100: 1.1 | N100: 51114 | Q100: 0 | R100: 51114 | S100: 60774 | T100: -9660 | U100: Y
A101: 83 | B101: 24410 | C101: OROVILLE | D101: 79 | E101: 30767 | F101: 21 | G101: 2045 | H101: 14 | I101: 5452 | J101: 38264 | K101: 0 | L101: 38264 | M101: 1.1 | N101: 0 | Q101: 0 | R101: 0 | S101: 0 | T101: 0 | U101: N
A102: 84 | B102: 01147 | C102: OTHELLO | D102: 1003 | E102: 390625 | F102: 252 | G102: 24536 | H102: 271 | I102: 105543 | J102: 520704 | K102: 1.05 | L102: 546739 | M102: 1.1 | N102: 601413 | Q102: 0 | R102: 601413 | S102: 559307 | T102: 42106 | U102: Y
A103: 85 | B103: 11001 | C103: PASCO | D103: 1971 | E103: 767620 | F103: 510 | G103: 49656 | H103: 499 | I103: 194339 | J103: 1011615 | K103: 1 | L103: 1011615 | M103: 1 | N103: 1011615 | Q103: 0 | R103: 1011615 | S103: 1023979 | T103: -12364 | U103: Y
A104: 86 | B104: 24122 | C104: PATEROS | D104: 68 | E104: 26483 | F104: 11 | G104: 1071 | H104: 23 | I104: 8958 | J104: 36512 | K104: 1.05 | L104: 38338 | M104: 1.1 | N104: 42172 | Q104: 0 | R104: 42172 | S104: 35322 | T104: 6850 | U104: Y
A105: 87 | B105: 03050 | C105: PATERSON | D105: 22 | E105: 8568 | F105: 5 | G105: 487 | H105: 7 | I105: 2726 | J105: 11781 | K105: 1.15 | L105: 13548 | M105: 1.1 | N105: 14903 | Q105: 0 | R105: 14903 | S105: 15161 | T105: -258 | U105: Y
A106: 88 | B106: 36402 | C106: PRESCOTT | D106: 41 | E106: 15968 | F106: 9 | G106: 876 | H106: 4 | I106: 1558 | J106: 18402 | K106: 0.95 | L106: 17482 | M106: 1.1 | N106: 19230 | Q106: 0 | R106: 19230 | S106: 13979 | T106: 5251 | U106: Y
A107: 89 | B107: 03116 | C107: PROSSER | D107: 728 | E107: 283525 | F107: 262 | G107: 25509 | H107: 209 | I107: 81397 | J107: 390431 | K107: 1.15 | L107: 448996 | M107: 1 | N107: 448996 | Q107: 0 | R107: 448996 | S107: 460289 | T107: -11293 | U107: Y
A108: 90 | B108: 27003 | C108: PUYALLUP | D108: 13 | E108: 5063 | F108: 7 | G108: 682 | H108: 2 | I108: 779 | J108: 6524 | K108: 0 | L108: 6524 | M108: 1 | N108: 0 | Q108: 0 | R108: 0 | S108: 0 | T108: 0 | U108: N
A109: 91 | B109: 05903 | C109: QUILEUTE TRIBAL | D109: 3 | E109: 0 | F109: 1 | G109: 0 | H109: 2 | I109: 0 | J109: 0 | K109: 1 | L109: 0 | M109: 1 | N109: 0 | Q109: 0 | R109: 0 | S109: 0 | T109: 0 | U109: N
A110: 92 | B110: 05402 | C110: QUILLAYUTE VALLEY | D110: 69 | E110: 26873 | F110: 20 | G110: 1947 | H110: 22 | I110: 8568 | J110: 37388 | K110: 0.85 | L110: 31780 | M110: 1.1 | N110: 34958 | Q110: 0 | R110: 34958 | S110: 24246 | T110: 10712 | U110: Y
A111: 93 | B111: 13144 | C111: QUINCY | D111: 512 | E111: 199402 | F111: 109 | G111: 10613 | H111: 149 | I111: 58029 | J111: 268044 | K111: 1 | L111: 268044 | M111: 1.1 | N111: 294848 | Q111: 0 | R111: 294848 | S111: 305011 | T111: -10163 | U111: Y
A112: 94 | B112: 17403 | C112: RENTON | D112: 21 | E112: 8179 | F112: 11 | G112: 1071 | H112: 7 | I112: 2726 | J112: 11976 | K112: 0 | L112: 11976 | M112: 1 | N112: 0 | Q112: 0 | R112: 0 | S112: 0 | T112: 0 | U112: N
A113: 95 | B113: 03400 | C113: RICHLAND | D113: 201 | E113: 78281 | F113: 51 | G113: 4966 | H113: 54 | I113: 21031 | J113: 104278 | K113: 0 | L113: 104278 | M113: 1 | N113: 0 | Q113: 0 | R113: 0 | S113: 0 | T113: 0 | U113: N
A114: 96 | B114: 17407 | C114: RIVERVIEW | D114: 11 | E114: 4284 | F114: 3 | G114: 292 | H114: 3 | I114: 1168 | J114: 5744 | K114: 0 | L114: 5744 | M114: 1 | N114: 0 | Q114: 0 | R114: 0 | S114: 0 | T114: 0 | U114: N
A115: 97 | B115: 34401 | C115: ROCHESTER | D115: 38 | E115: 14799 | F115: 13 | G115: 1266 | H115: 9 | I115: 3505 | J115: 19570 | K115: 0 | L115: 19570 | M115: 1 | N115: 0 | Q115: 0 | R115: 0 | S115: 0 | T115: 0 | U115: N
A116: 98 | B116: 20403 | C116: ROOSEVELT | D116: 26 | E116: 10126 | F116: 2 | G116: 195 | H116: 2 | I116: 779 | J116: 11100 | K116: 0 | L116: 11100 | M116: 1.1 | N116: 0 | Q116: 0 | R116: 0 | S116: 0 | T116: 0 | U116: N
A117: 99 | B117: 13160 | C117: ROYAL CITY | D117: 258 | E117: 100480 | F117: 34 | G117: 3310 | H117: 57 | I117: 22199 | J117: 125989 | K117: 1 | L117: 125989 | M117: 1 | N117: 125989 | Q117: 0 | R117: 125989 | S117: 134333 | T117: -8344 | U117: Y
A118: 100 | B118: 17001 | C118: SEATTLE | D118: 226 | E118: 88017 | F118: 66 | G118: 6426 | H118: 90 | I118: 35051 | J118: 129494 | K118: 0.85 | L118: 110070 | M118: 1 | N118: 110070 | Q118: 0 | R118: 110070 | S118: 99763 | T118: 10307 | U118: Y
A119: 101 | B119: 29101 | C119: SEDRO WOOLLEY | D119: 207 | E119: 80618 | F119: 38 | G119: 3700 | H119: 89 | I119: 34662 | J119: 118980 | K119: 0.95 | L119: 113031 | M119: 1 | N119: 113031 | Q119: 0 | R119: 113031 | S119: 88042 | T119: 24989 | U119: Y
A120: 102 | B120: 39119 | C120: SELAH | D120: 177 | E120: 68934 | F120: 61 | G120: 5939 | H120: 69 | I120: 26873 | J120: 101746 | K120: 0.95 | L120: 96659 | M120: 1 | N120: 96659 | Q120: 0 | R120: 96659 | S120: 62523 | T120: 34136 | U120: Y
A121: 103 | B121: 23309 | C121: SHELTON | D121: 143 | E121: 55692 | F121: 41 | G121: 3992 | H121: 46 | I121: 17915 | J121: 77599 | K121: 0.85 | L121: 65959 | M121: 1.1 | N121: 72555 | Q121: 0 | R121: 72555 | S121: 52069 | T121: 20486 | U121: Y
A122: 104 | B122: 31201 | C122: SNOHOMISH | D122: 72 | E122: 28041 | F122: 40 | G122: 3895 | H122: 34 | I122: 13242 | J122: 45178 | K122: 0.95 | L122: 42919 | M122: 1 | N122: 42919 | Q122: 0 | R122: 42919 | S122: 44855 | T122: -1936 | U122: Y
A123: 105 | B123: 13156 | C123: SOAP LAKE | D123: 46 | E123: 17915 | F123: 14 | G123: 1363 | H123: 18 | I123: 7010 | J123: 26288 | K123: 0 | L123: 26288 | M123: 1.1 | N123: 0 | Q123: 0 | R123: 0 | S123: 0 | T123: 0 | U123: N
A124: 106 | B124: 25118 | C124: SOUTH BEND | D124: 13 | E124: 5063 | F124: 3 | G124: 292 | H124: 4 | I124: 1558 | J124: 6913 | K124: 0 | L124: 6913 | M124: 1.1 | N124: 0 | Q124: 0 | R124: 0 | S124: 0 | T124: 0 | U124: N
A125: 107 | B125: 32081 | C125: SPOKANE | D125: 42 | E125: 16357 | F125: 4 | G125: 389 | H125: 8 | I125: 3116 | J125: 19862 | K125: 0 | L125: 19862 | M125: 1 | N125: 0 | Q125: 0 | R125: 0 | S125: 0 | T125: 0 | U125: N
A126: 108 | B126: 31401 | C126: STANWOOD-CAMANO | D126: 22 | E126: 8568 | F126: 7 | G126: 682 | H126: 6 | I126: 2337 | J126: 11587 | K126: 0 | L126: 11587 | M126: 1 | N126: 0 | Q126: 0 | R126: 0 | S126: 0 | T126: 0 | U126: N
A127: 109 | B127: 30303 | C127: STEVENSON-CARSON | D127: 28 | E127: 10905 | F127: 2 | G127: 195 | H127: 6 | I127: 2337 | J127: 13437 | K127: 0 | L127: 13437 | M127: 1.1 | N127: 14781 | Q127: 0 | R127: 14781 | S127: 10115 | T127: 4666 | U127: Y
A128: 110 | B128: 31311 | C128: SULTAN | D128: 15 | E128: 5842 | F128: 4 | G128: 389 | H128: 3 | I128: 1168 | J128: 7399 | K128: 0 | L128: 7399 | M128: 1 | N128: 0 | Q128: 0 | R128: 0 | S128: 0 | T128: 0 | U128: N
A129: 111 | B129: 39201 | C129: SUNNYSIDE | D129: 1585 | E129: 617289 | F129: 372 | G129: 36220 | H129: 447 | I129: 174087 | J129: 827596 | K129: 1.05 | L129: 868976 | M129: 1.1 | N129: 955874 | Q129: 0 | R129: 955874 | S129: 831980 | T129: 123894 | U129: Y
A130: 112 | B130: 18902 | C130: SUQUAMISH TRIBAL EDUCATION DEPARTMENT | D130: 16 | E130: 6231 | F130: 5 | G130: 487 | H130: 10 | I130: 3895 | J130: 10613 | K130: 1.15 | L130: 12205 | M130: 1 | N130: 0 | Q130: 0 | R130: 0 | S130: 8576 | T130: -8576 | U130: N
A131: 113 | B131: 27010 | C131: TACOMA | D131: 11 | E131: 4284 | F131: 2 | G131: 195 | H131: 7 | I131: 2726 | J131: 7205 | K131: 0 | L131: 7205 | M131: 1 | N131: 0 | Q131: 0 | R131: 0 | S131: 0 | T131: 0 | U131: N
A132: 114 | B132: 14077 | C132: TAHOLA | D132: 56 | E132: 21810 | F132: 3 | G132: 292 | H132: 14 | I132: 5452 | J132: 27554 | K132: 0 | L132: 27554 | M132: 1.1 | N132: 0 | Q132: 0 | R132: 0 | S132: 0 | T132: 0 | U132: N
A133: 115 | B133: 24404 | C133: TONASKET | D133: 357 | E133: 139036 | F133: 126 | G133: 12268 | H133: 88 | I133: 34272 | J133: 185576 | K133: 1.15 | L133: 213412 | M133: 1.1 | N133: 234753 | Q133: 0 | R133: 234753 | S133: 214997 | T133: 19756 | U133: Y
A134: 116 | B134: 39202 | C134: TOPPENISH | D134: 992 | E134: 386341 | F134: 259 | G134: 25217 | H134: 255 | I134: 99312 | J134: 510870 | K134: 1.05 | L134: 536414 | M134: 1 | N134: 536414 | Q134: 0 | R134: 536414 | S134: 566282 | T134: -29868 | U134: Y
A135: 117 | B135: 20400 | C135: TROUT LAKE | D135: 119 | E135: 46345 | F135: 13 | G135: 1266 | H135: 42 | I135: 16357 | J135: 63968 | K135: 0 | L135: 63968 | M135: 1.1 | N135: 0 | Q135: 0 | R135: 0 | S135: 0 | T135: 0 | U135: N
A136: 118 | B136: 39002 | C136: UNION GAP | D136: 61 | E136: 23757 | F136: 14 | G136: 1363 | H136: 7 | I136: 2726 | J136: 27846 | K136: 0.95 | L136: 26454 | M136: 1 | N136: 26454 | Q136: 0 | R136: 26454 | S136: 40915 | T136: -14461 | U136: Y
A137: 119 | B137: 06037 | C137: VANCOUVER | D137: 66 | E137: 25704 | F137: 21 | G137: 2045 | H137: 10 | I137: 3895 | J137: 31644 | K137: 0 | L137: 31644 | M137: 1 | N137: 0 | Q137: 0 | R137: 0 | S137: 0 | T137: 0 | U137: N
A138: 120 | B138: 34901 | C138: WA HE LUT INDIAN TRIBAL SCHOOL | D138: 12 | E138: 4673 | F138: 2 | G138: 195 | H138: 2 | I138: 779 | J138: 5647 | K138: 0 | L138: 5647 | M138: 1 | N138: 0 | Q138: 0 | R138: 0 | S138: 5062 | T138: -5062 | U138: N
A139: 121 | B139: 13073 | C139: WAHLUKE | D139: 1580 | E139: 615342 | F139: 328 | G139: 31935 | H139: 691 | I139: 269115 | J139: 916392 | K139: 1.15 | L139: 1053851 | M139: 1.1 | N139: 1159236 | Q139: 0 | R139: 1159236 | S139: 785487 | T139: 373749 | U139: Y
